{"text_format":"1","workbook":"xlsx","n_sheets":2,"sheets":["Instructions","GC2"],"not_rendered":{"charts":0,"images":0,"macros":1,"external_links":0,"defined_names":17,"comments":0,"pivot_tables":0},"unopened":[],"bounds":{"document_bytes":16777216,"sheet_cells":100000,"rows_first":2000,"rows_last":500,"rows_between":2000,"halvings":0,"cell_chars":16384,"cell_head_chars":4096},"cells_cut":0,"cells_raw":0,"read":"whole","date_system":"1900"}

{"sheet":"Instructions","index":0,"n_rows":10,"n_cols":1,"rows_kept":10,"cut":false,"hidden":false,"merged":[]}
["Important Read carefully First:  Must only run the following sequence of steps to be consistent"]
[]
["1.  To change the realizations for either case spreadsheet you must do the following in the spreadsheet with the case you are running"]
["2.  In this case the news headlines and future spot rates of interest must be consistent with each other"]
["3. In the case spreadsheet use the Function 9 key to generate a new state realizations"]
["4. To free the realizations click on Run freeze (Ctrl f) -- this freezes the realizations"]
["3. Function 9 to update headlines and interest rates (can be done several times to check headlines, but underlying state is frozen)"]
["4. Run update divs (Ctrl u) builds correct rates given freeze"]
[]
["The above generates new paths for the economy with consistent headlines"]

{"sheet":"GC2","index":1,"n_rows":2770,"n_cols":58,"rows_kept":1125,"cut":true,"hidden":false,"merged":[],"bounds":{"rows_first":500,"rows_last":125,"rows_between":500,"halvings":2}}
["Number of Securities",7,"Name","Cp Bnd","Zero 2","Zero 3","Zero 4","Zero 5","Stock1","Stock2",null,null,null,null,null,null,"***Important Note: Must only run the following sequence of steps to be consistent"]
["Maximum Number of Trials",10,"Security Type","Bond","Bond","Bond","Bond","Bond","Stock","Stock",null,null,null,null,null,null,"1. Function 9 generate a new state (S2 draws)"]
["Number of Periods per Trial",5,"Price Quotes","Endogenous","Endogenous","Endogenous","Endogenous","Endogenous","Endogenous","Endogenous",null,null,null,null,null,null,"2. Run freeze (Ctrl f) -- this freezes the realizations"]
["Period Length (seconds)","280/280/280/280/0","Start Life",1,1,1,1,1,1,1,null,null,null,null,null,null,"3. Function 9 to update headlines and interest rates (can be done several times to check headlines, but underlying state is frozen)"]
["Maximum Number of Traders",60,"End Life",5,2,3,4,5,5,5,null,null,null,null,null,null,"4. Run update divs (Ctrl u) builds correct rates given freeze"]
["Number of Trader Types",2,"Short Selling","Yes","Yes","Yes","Yes","Yes","Yes","Yes"]
["Market Depth",20,"Quote to Price Formula","Quote","Quote","Quote","Quote","Quote","Quote","Quote"]
["Depth Displayed",10,"Information","Yes","Yes","Yes","Yes","Yes","No","No",null,null,null,null,null,null,null,null,null,null,null,null,null,null,null,null,null,null,null,"Time ",300]
["Borrowing Allowed","Yes",null,null,null,null,null,null,null,null,null,null,null,null,null,null,null,null,null,null,null,null,null,null,null,null,null,null,null,"Time periods","Precision"]
["Last Row with Exogenous Prices",null,null,null,null,null,null,null,null,null,null,null,null,null,null,null,null,null,null,null,null,null,null,null,null,null,null,null,null,0.3,12]
["Number of Information Types",1,null,null,null,null,null,null,null,null,null,null,null,null,null,null,null,null,null,null,null,null,null,null,null,null,null,null,null,null,10]
["Last Row with Information",270,null,null,null,null,null,null,null,null,null,null,null,null,null,null,null,null,null,null,null,null,null,null,null,null,null,null,null,null,8]
[null,null,null,null,null,null,null,null,null,null,null,null,null,null,null,null,null,null,null,null,null,null,null,null,null,null,null,null,null,null,6,null,null,null,"Exogenous Rates"]
[null,null,null,null,null,null,null,null,null,null,null,null,null,null,null,null,null,null,null,null,null,null,null,null,null,null,null,null,null,null,4,null,null,null,0.01,0.01]
[null,null,null,null,null,null,null,null,null,null,null,null,null,null,null,null,null,null,null,null,null,null,null,null,null,null,null,null,null,null,null,null,null,null,0.05,0.05]
[null,null,null,null,null,null,null,null,null,null,null,null,null,null,null,null,null,null,null,null,null,null,null,null,null,null,null,null,null,null,null,null,null,null,{"$f":"+(AI15-AI14)/10","v":4.0000000000000001E-3},{"$f":"+(AJ15-AJ14)/10","v":4.0000000000000001E-3}]
["Recalculate","No","Autotrade","Yes","Yes","Yes","Yes","Yes","Yes","Yes"]
[null,null,null,null,null,null,null,null,null,null,null,null,null,null,null,null,null,null,null,null,null,null,null,null,null,null,null,null,null,280]
[null,"testx/testy/testz",null,null,null,null,null,null,null,null,null,null,null,null,null,null,null,null,null,null,null,null,null,null,null,null,null,null,null,null,null,null,null,null,null,"Work area"]
["Trader Data","Type 1","Type 2","Payoff and Settlement Data","Security 1","Security 2","Security 3","Security 4","Security 5","Security 6","Security 7","Interest Rate","Exogenous Prices","Time into Period","Cp Bnd Bid","Cp Bnd Ask","Zero1 Bid","Zero1 Ask","Zero2 Bid","Zero2 Ask","Zero3 Bid","Zero3 Ask","Zero4 Bid","Zero4 Ask","Stock1Bid","Stock1Ask","Stock2Bid","Stock2Ask","Information","Time into P","Rate- Info1","Rate-Info2","Rate-Info3","Rate-Info4","Rate-Info4","Freeze Area","S2 Draws","S1 Payoff",null,null,"Precision"]
["Cash",{"$f":"+B96","v":3952875.8998158798},{"$f":"+C96","v":6064355.7482045703},"Trial 1",5,0,0,0,0,{"$f":"1000*$L21","v":19.999999552965164},{"$f":"1000*(0.06-$L21)","v":40.000000447034836},1.9999999552965164E-2,null,null,null,null,null,null,null,null,null,null,null,null,null,null,null,null,"Trial 1",{"$f":"+(BF21/300)*$AD$18","v":0},{"$f":"+B02Clue1(INT($AJ21+RAND()*$AO21))","v":"Inventory buildup points to signs of recession"},{"$f":"+$AE21","v":"Inventory buildup points to signs of recession"},"Inventory buildup points to signs of recession","Inventory buildup points to signs of recession","Inventory buildup points to signs of recession",2,{"$f":"INT(1+RAND()*10)","v":4},{"$f":"+$AI$14+(AJ21-1)*$AI$16+$AI$16*RAND()","v":1.4471245501051076E-2},null,null,7,null,null,null,null,null,null,null,null,null,null,null,null,null,null,null,null,0]
["Endow 1",100000,{"$f":"-B22","v":-100000},null,5,100,0,0,0,{"$f":"1000*$L22","v":15.939835458993912},{"$f":"1000*(0.06-$L22)","v":44.060164541006088},1.5939835458993912E-2,null,null,null,null,null,null,null,null,null,null,null,null,null,null,null,null,null,{"$f":"+(BF22/300)*$AD$18","v":28},{"$f":"+B02Clue1(INT($AJ22+RAND()*$AO22))","v":"Leading economic indicators match expectations"},"Leading economic indicators match expectations","Leading economic indicators match expectations","Leading economic indicators match expectations","Leading economic indicators match expectations",2,{"$f":"+AK21","v":4},1.4471245501051076E-2,null,null,5,null,null,null,null,null,null,null,null,null,null,null,null,null,null,null,null,{"$f":"+INT($AE$8*$AD$10*RAND()+BF21)","v":30}]
["Endow 2",107900,{"$f":"-B23","v":-107900},null,5,0,100,0,0,{"$f":"1000*$L23","v":17.920689657330513},42.079310342669487,1.7920689657330513E-2,null,null,null,null,null,null,null,null,null,null,null,null,null,null,null,null,null,{"$f":"+(BF23/300)*$AD$18","v":84.933333333333337},{"$f":"+B02Clue1(INT($AJ23+RAND()*$AO23))","v":"Inventory buildup points to signs of recession"},"Inventory buildup points to signs of recession","Inventory buildup points to signs of recession","Inventory buildup points to signs of recession","Inventory buildup points to signs of recession",2,4,1.4471245501051076E-2,null,null,3,null,null,null,null,null,null,null,null,null,null,null,null,null,null,null,null,{"$f":"+INT($AE$8*$AD$10*RAND()+BF22)","v":91}]
["Endow 3",110000,{"$f":"B24","v":110000},null,5,0,0,100,0,{"$f":"1000*$L24","v":22.244688123464584},37.755311876535416,2.2244688123464584E-2,null,null,null,null,null,null,null,null,null,null,null,null,null,null,null,null,null,148.4,{"$f":"+B02Clue1(INT($AJ24+RAND()*$AO24))","v":"Consumer confidence falls, signalling decline in spending"},"Consumer confidence falls, signalling decline in spending","Consumer confidence falls, signalling decline in spending","Consumer confidence falls, signalling decline in spending","Consumer confidence falls, signalling decline in spending",2,4,1.4471245501051076E-2,null,null,2,null,null,null,null,null,null,null,null,null,null,null,null,null,null,null,null,{"$f":"+INT($AE$8*$AD$10*RAND()+BF23)","v":159}]
["Endow 4",-115600,{"$f":"-B25","v":115600},null,105,0,0,0,100,{"$f":"10000*$L25","v":221.09907120466232},{"$f":"10000*(0.06-$L25)","v":378.90092879533768},2.2109907120466232E-2,null,null,null,null,null,null,null,null,null,null,null,null,null,null,null,null,null,173.6,{"$f":"+B02Clue1(INT($AJ25+RAND()*$AO25))","v":"Inventory buildup points to signs of recession"},"Inventory buildup points to signs of recession","Inventory buildup points to signs of recession","Inventory buildup points to signs of recession","Inventory buildup points to signs of recession",2,4,1.4471245501051076E-2,null,null,1,null,null,null,null,null,null,null,null,null,null,null,null,null,null,null,null,{"$f":"+INT($AE$8*$AD$10*RAND()+BF24)","v":186}]
["Endow 5",-115600,{"$f":"-B26","v":115600},"Trial 2",5,0,0,0,0,{"$f":"1000*$L26","v":19.999999552965164},{"$f":"1000*(0.06-$L26)","v":40.000000447034836},1.9999999552965164E-2,null,null,null,null,null,null,null,null,null,null,null,null,null,null,null,null,"Period2 ",0,{"$f":"+B02Clue1(INT(0.6*$AJ26+0.4*$AJ21+RAND()*$AO26))","v":"Consumer spending suggests that a declining trend has started."},"Consumer spending suggests that a declining trend has started.","Consumer spending suggests that a declining trend has started.","Consumer spending suggests that a declining trend has started.","Consumer spending suggests that a declining trend has started.",2,{"$f":"INT(0.4*AK21+0.6*(1+RAND()*10))","v":2},{"$f":"+$AI$14+(AJ26-1)*$AI$16+$AI$16*RAND()","v":1.5502617823770059E-2},null,null,{"$f":"+AO21","v":7},null,null,null,null,null,null,null,null,null,null,null,null,null,null,null,null,0]
["Endow 6",0,0,null,5,100,0,0,0,{"$f":"1000*$L27","v":26.718147099018097},33.281852900981903,2.6718147099018097E-2,null,null,null,null,null,null,null,null,null,null,null,null,null,null,null,null,null,60.666666666666671,{"$f":"+B02Clue1(INT(0.6*$AJ27+0.4*$AJ22+RAND()*$AO27))","v":"Early trend in recession, forward indicators raise new questions about the economy"},"Early trend in recession, forward indicators raise new questions about the economy","Early trend in recession, forward indicators raise new questions about the economy","Early trend in recession, forward indicators raise new questions about the economy","Early trend in recession, forward indicators raise new questions about the economy",2,{"$f":"+AK26","v":2},{"$f":"+AL26","v":1.5502617823770059E-2},null,null,{"$f":"+AO22","v":5},null,null,null,null,null,null,null,null,null,null,null,null,null,null,null,null,{"$f":"+INT($AE$8*$AD$10*RAND()+BF26)","v":65}]
["Endow 7",0,0,null,5,0,100,0,0,{"$f":"1000*$L28","v":33.839106559753418},26.160893440246578,3.3839106559753418E-2,null,null,null,null,null,null,null,null,null,null,null,null,null,null,null,null,null,86.8,"Inventory buildup points to signs of recession","Inventory buildup points to signs of recession","Inventory buildup points to signs of recession","Inventory buildup points to signs of recession","Inventory buildup points to signs of recession",2,{"$f":"+AK27","v":2},{"$f":"+AL27","v":1.5502617823770059E-2},null,null,3,null,null,null,null,null,null,null,null,null,null,null,null,null,null,null,null,{"$f":"+INT($AE$8*$AD$10*RAND()+BF27)","v":93}]
["Rights 1",0,0,null,5,0,0,100,0,{"$f":"1000*$L29","v":33.457387238740921},26.542612761259075,3.3457387238740921E-2,null,null,null,null,null,null,null,null,null,null,null,null,null,null,null,null,null,97.066666666666663,"Consumer spending suggests that a declining trend has started.","Consumer spending suggests that a declining trend has started.","Consumer spending suggests that a declining trend has started.","Consumer spending suggests that a declining trend has started.","Consumer spending suggests that a declining trend has started.",2,{"$f":"+AK28","v":2},1.5502617823770059E-2,null,null,2,null,null,null,null,null,null,null,null,null,null,null,null,null,null,null,null,{"$f":"+INT($AE$8*$AD$10*RAND()+BF28)","v":104}]
["Rights 2",0,0,null,105,0,0,0,100,{"$f":"10000*$L30","v":371.36401981115341},{"$f":"10000*(0.06-$L30)","v":228.63598018884656},3.7136401981115341E-2,null,null,null,null,null,null,null,null,null,null,null,null,null,null,null,null,null,115.73333333333333,"Consumer confidence falls, signalling decline in spending","Consumer confidence falls, signalling decline in spending","Consumer confidence falls, signalling decline in spending","Consumer confidence falls, signalling decline in spending","Consumer confidence falls, signalling decline in spending",2,{"$f":"+AK29","v":2},1.5502617823770059E-2,null,null,1,null,null,null,null,null,null,null,null,null,null,null,null,null,null,null,null,{"$f":"+INT($AE$8*$AD$10*RAND()+BF29)","v":124}]
["Rights 3",0,0,"Trial 3",5,0,0,0,0,{"$f":"1000*$L31","v":19.999999552965164},{"$f":"1000*(0.06-$L31)","v":40.000000447034836},1.9999999552965164E-2,null,null,null,null,null,null,null,null,null,null,null,null,null,null,null,null,"Period3",0,{"$f":"+B02Clue1(INT(0.6*$AJ31+0.4*$AJ26+RAND()*$AO31))","v":"Sharp jump in strong GDP forecasts"},"Sharp jump in strong GDP forecasts","Sharp jump in strong GDP forecasts","Sharp jump in strong GDP forecasts","Sharp jump in strong GDP forecasts",4,{"$f":"INT(0.4*AK26+0.6*(1+RAND()*10))","v":2},{"$f":"+$AI$14+(AJ31-1)*$AI$16+$AI$16*RAND()","v":2.5352723981128918E-2},null,null,{"$f":"+AO26","v":7},null,null,null,null,null,null,null,null,null,null,null,null,null,null,null,null,0]
["Rights 4",0,0,null,5,100,0,0,0,{"$f":"1000*$L32","v":18.053669482469559},{"$f":"1000*(0.06-$L32)","v":41.946330517530441},1.8053669482469559E-2,null,null,null,null,null,null,null,null,null,null,null,null,null,null,null,null,null,54.133333333333333,"Fed chairman congressional testimony provides optimism","Fed chairman congressional testimony provides optimism","Fed chairman congressional testimony provides optimism","Fed chairman congressional testimony provides optimism","Fed chairman congressional testimony provides optimism",4,{"$f":"+AK31","v":2},2.5352723981128918E-2,null,null,5,null,null,null,null,null,null,null,null,null,null,null,null,null,null,null,null,{"$f":"+INT($AE$8*$AD$10*RAND()+BF31)","v":58}]
["Rights 5",0,0,null,5,0,100,0,0,{"$f":"1000*$L33","v":33.41057151556015},{"$f":"1000*(0.06-$L33)","v":26.589428484439846},3.341057151556015E-2,null,null,null,null,null,null,null,null,null,null,null,null,null,null,null,null,null,123.2,"Stock funds experiencing mild selling","Stock funds experiencing mild selling","Stock funds experiencing mild selling","Stock funds experiencing mild selling","Stock funds experiencing mild selling",4,{"$f":"+AK32","v":2},2.5352723981128918E-2,null,null,3,null,null,null,null,null,null,null,null,null,null,null,null,null,null,null,null,{"$f":"+INT($AE$8*$AD$10*RAND()+BF32)","v":132}]
["Rights 6",0,0,null,5,0,0,100,0,{"$f":"1000*$L34","v":23.708844557404518},{"$f":"1000*(0.06-$L34)","v":36.291155442595482},2.3708844557404518E-2,null,null,null,null,null,null,null,null,null,null,null,null,null,null,null,null,null,203.46666666666667,"Early trend in recession, forward indicators raise new questions about the economy","Early trend in recession, forward indicators raise new questions about the economy","Early trend in recession, forward indicators raise new questions about the economy","Early trend in recession, forward indicators raise new questions about the economy","Early trend in recession, forward indicators raise new questions about the economy",4,{"$f":"+AK33","v":2},2.5352723981128918E-2,null,null,2,null,null,null,null,null,null,null,null,null,null,null,null,null,null,null,null,{"$f":"+INT($AE$8*$AD$10*RAND()+BF33)","v":218}]
["Rights 7",0,0,null,105,0,0,0,100,{"$f":"10000*$L35","v":247.81474843621254},{"$f":"10000*(0.06-$L35)","v":352.18525156378746},2.4781474843621254E-2,null,null,null,null,null,null,null,null,null,null,null,null,null,null,null,null,null,271.59999999999997,"Consumer spending suggests that a declining trend has started.","Consumer spending suggests that a declining trend has started.","Consumer spending suggests that a declining trend has started.","Consumer spending suggests that a declining trend has started.","Consumer spending suggests that a declining trend has started.",4,{"$f":"+AK34","v":2},2.5352723981128918E-2,null,null,1,null,null,null,null,null,null,null,null,null,null,null,null,null,null,null,null,{"$f":"+INT($AE$8*$AD$10*RAND()+BF34)","v":291}]
["Lower Bound",-100000000,-100000000,"Trial 4",5,0,0,0,0,{"$f":"1000*$L36","v":19.999999552965164},{"$f":"1000*(0.06-$L36)","v":40.000000447034836},1.9999999552965164E-2,null,null,null,null,null,null,null,null,null,null,null,null,null,null,null,null,"Period4",0,{"$f":"+B02Clue1(INT(0.6*$AJ36+0.4*$AJ31+RAND()*$AO36))","v":"Geopolitical concerns starting to worry investors"},"Geopolitical concerns starting to worry investors","Geopolitical concerns starting to worry investors","Geopolitical concerns starting to worry investors","Geopolitical concerns starting to worry investors",4,{"$f":"INT(0.4*AK31+0.6*(1+RAND()*10))","v":6},{"$f":"+$AI$14+(AJ36-1)*$AI$16+$AI$16*RAND()","v":2.4267917829858737E-2},null,null,7,null,null,null,null,null,null,null,null,null,null,null,null,null,null,null,null,0]
["Lower Bound Payoff",{"$f":"+B36*$B$41","v":-10000},{"$f":"+C36*$B$41","v":-10000},null,5,100,0,0,0,{"$f":"1000*$L37","v":13.76977376639843},{"$f":"1000*(0.06-$L37)","v":46.23022623360157},1.376977376639843E-2,null,null,null,null,null,null,null,null,null,null,null,null,null,null,null,null,null,52.266666666666666,"Some major corporations have started to trim work force","Some major corporations have started to trim work force","Some major corporations have started to trim work force","Some major corporations have started to trim work force","Some major corporations have started to trim work force",4,{"$f":"+AK36","v":6},2.4267917829858737E-2,null,null,5,null,null,null,null,null,null,null,null,null,null,null,null,null,null,null,null,{"$f":"+INT($AE$8*$AD$10*RAND()+BF36)","v":56}]
["Upper Bound",100000000,100000000,null,5,0,100,0,0,{"$f":"1000*$L38","v":11.257603764533997},{"$f":"1000*(0.06-$L38)","v":48.742396235466003},1.1257603764533997E-2,null,null,null,null,null,null,null,null,null,null,null,null,null,null,null,null,null,82.13333333333334,"Leading economic indicators match expectations","Leading economic indicators match expectations","Leading economic indicators match expectations","Leading economic indicators match expectations","Leading economic indicators match expectations",4,{"$f":"+AK37","v":6},2.4267917829858737E-2,null,null,3,null,null,null,null,null,null,null,null,null,null,null,null,null,null,null,null,{"$f":"+INT($AE$8*$AD$10*RAND()+BF37)","v":88}]
["Upper Bound Payoff",{"$f":"+B38*$B$41","v":10000},{"$f":"+C38*$B$41","v":10000},null,5,0,0,100,0,{"$f":"1000*$L39","v":23.228837177157402},{"$f":"1000*(0.06-$L39)","v":36.771162822842598},2.3228837177157402E-2,null,null,null,null,null,null,null,null,null,null,null,null,null,null,null,null,null,86.8,"Leading economic indicators match expectations","Leading economic indicators match expectations","Leading economic indicators match expectations","Leading economic indicators match expectations","Leading economic indicators match expectations",4,{"$f":"+AK38","v":6},2.4267917829858737E-2,null,null,2,null,null,null,null,null,null,null,null,null,null,null,null,null,null,null,null,{"$f":"+INT($AE$8*$AD$10*RAND()+BF38)","v":93}]
["Constant",0,0,null,105,0,0,0,100,{"$f":"10000*$L40","v":249.98104199767113},{"$f":"10000*(0.06-$L40)","v":350.01895800232887},2.4998104199767113E-2,null,null,null,null,null,null,null,null,null,null,null,null,null,null,null,null,null,135.33333333333334,"Some major corporations have started to trim work force","Some major corporations have started to trim work force","Some major corporations have started to trim work force","Some major corporations have started to trim work force","Some major corporations have started to trim work force",4,{"$f":"+AK39","v":6},2.4267917829858737E-2,null,null,1,null,null,null,null,null,null,null,null,null,null,null,null,null,null,null,null,{"$f":"+INT($AE$8*$AD$10*RAND()+BF39)","v":145}]
["Linear Coefficient",1E-4,1E-4,"Trial 5",5,0,0,0,0,{"$f":"1000*$L41","v":19.999999552965164},{"$f":"1000*(0.06-$L41)","v":40.000000447034836},1.9999999552965164E-2,null,null,null,null,null,null,null,null,null,null,null,null,null,null,null,null,"Period5",0,{"$f":"+B02Clue1(INT(0.6*$AJ41+0.4*$AJ36+RAND()*$AO41))","v":"Factory orders expected to increase sharply"},{"$f":"+$AE41","v":"Factory orders expected to increase sharply"},"Factory orders expected to increase sharply","Factory orders expected to increase sharply","Factory orders expected to increase sharply",6,{"$f":"INT(0.4*AK36+0.6*(1+RAND()*10))","v":3},{"$f":"+$AI$14+(AJ41-1)*$AI$16+$AI$16*RAND()","v":3.3445042696638082E-2},null,null,7,null,null,null,null,null,null,null,null,null,null,null,null,null,null,null,null,0]
["Quadratic Coefficient",0,0,null,5,100,0,0,0,{"$f":"1000*$L42","v":45.577269047498703},{"$f":"1000*(0.06-$L42)","v":14.422730952501295},4.5577269047498703E-2,null,null,null,null,null,null,null,null,null,null,null,null,null,null,null,null,null,66.266666666666666,"Leading indicators suggest positive economic outlook","Leading indicators suggest positive economic outlook","Leading indicators suggest positive economic outlook","Leading indicators suggest positive economic outlook","Leading indicators suggest positive economic outlook",6,{"$f":"+AK41","v":3},3.3445042696638082E-2,null,null,5,null,null,null,null,null,null,null,null,null,null,null,null,null,null,null,null,{"$f":"+INT($AE$8*$AD$10*RAND()+BF41)","v":71}]
["Log Coefficient",0,0,null,5,0,100,0,0,{"$f":"1000*$L43","v":35.479556769132614},{"$f":"1000*(0.06-$L43)","v":24.520443230867382},3.5479556769132614E-2,null,null,null,null,null,null,null,null,null,null,null,null,null,null,null,null,null,71.86666666666666,"Leading economic indicators match expectations","Leading economic indicators match expectations","Leading economic indicators match expectations","Leading economic indicators match expectations","Leading economic indicators match expectations",6,{"$f":"+AK42","v":3},3.3445042696638082E-2,null,null,3,null,null,null,null,null,null,null,null,null,null,null,null,null,null,null,null,{"$f":"+INT($AE$8*$AD$10*RAND()+BF42)","v":77}]
["CARA Coefficient",0,0,null,5,0,0,100,0,{"$f":"1000*$L44","v":21.711703389883041},{"$f":"1000*(0.06-$L44)","v":38.288296610116959},2.1711703389883041E-2,null,null,null,null,null,null,null,null,null,null,null,null,null,null,null,null,null,99.866666666666674,"Leading indicators suggest positive economic outlook","Leading indicators suggest positive economic outlook","Leading indicators suggest positive economic outlook","Leading indicators suggest positive economic outlook","Leading indicators suggest positive economic outlook",6,{"$f":"+AK43","v":3},3.3445042696638082E-2,null,null,2,null,null,null,null,null,null,null,null,null,null,null,null,null,null,null,null,{"$f":"+INT($AE$8*$AD$10*RAND()+BF43)","v":107}]
["CARA Exponent",0,0,null,105,0,0,0,100,{"$f":"10000*$L45","v":243.69092658162117},{"$f":"10000*(0.06-$L45)","v":356.30907341837883},2.4369092658162117E-2,null,null,null,null,null,null,null,null,null,null,null,null,null,null,null,null,null,111.06666666666666,"Leading economic indicators match expectations","Leading economic indicators match expectations","Leading economic indicators match expectations","Leading economic indicators match expectations","Leading economic indicators match expectations",6,{"$f":"+AK44","v":3},3.3445042696638082E-2,null,null,1,null,null,null,null,null,null,null,null,null,null,null,null,null,null,null,null,{"$f":"+INT($AE$8*$AD$10*RAND()+BF44)","v":119}]
["HARA Coefficient",0,0,"Trial 6",5,0,0,0,0,{"$f":"1000*$L46","v":19.999999552965164},{"$f":"1000*(0.06-$L46)","v":40.000000447034836},1.9999999552965164E-2,null,null,null,null,null,null,null,null,null,null,null,null,null,null,null,null,"Trial 2",0,{"$f":"+B02Clue1(INT($AJ46+RAND()*$AO46))","v":"Analyst forecast increased earnings for most industries in the economy"},"Analyst forecast increased earnings for most industries in the economy","Analyst forecast increased earnings for most industries in the economy","Analyst forecast increased earnings for most industries in the economy","Analyst forecast increased earnings for most industries in the economy",5,{"$f":"INT(1+RAND()*10)","v":5},{"$f":"+$AI$14+(AJ46-1)*$AI$16+$AI$16*RAND()","v":2.6671175694676839E-2},null,null,7,null,null,null,null,null,null,null,null,null,null,null,null,null,null,null,null,0]
["HARA Exponent",0,0,null,5,100,0,0,0,{"$f":"1000*$L47","v":23.742562159895897},{"$f":"1000*(0.06-$L47)","v":36.257437840104103},2.3742562159895897E-2,null,null,null,null,null,null,null,null,null,null,null,null,null,null,null,null,null,14,{"$f":"+B02Clue1(INT($AJ47+RAND()*$AO47))","v":"Factory orders expected to increase sharply"},"Factory orders expected to increase sharply","Factory orders expected to increase sharply","Factory orders expected to increase sharply","Factory orders expected to increase sharply",5,{"$f":"+AK46","v":5},2.6671175694676839E-2,null,null,5,null,null,null,null,null,null,null,null,null,null,null,null,null,null,null,null,{"$f":"+INT($AE$8*$AD$10*RAND()+BF46)","v":15}]
[null,null,null,null,5,0,100,0,0,{"$f":"1000*$L48","v":30.858660116791725},{"$f":"1000*(0.06-$L48)","v":29.141339883208271},3.0858660116791725E-2,null,null,null,null,null,null,null,null,null,null,null,null,null,null,null,null,null,44.800000000000004,{"$f":"+B02Clue1(INT($AJ48+RAND()*$AO48))","v":"Stock funds experiencing mild selling"},"Stock funds experiencing mild selling","Stock funds experiencing mild selling","Stock funds experiencing mild selling","Stock funds experiencing mild selling",5,5,2.6671175694676839E-2,null,null,3,null,null,null,null,null,null,null,null,null,null,null,null,null,null,null,null,{"$f":"+INT($AE$8*$AD$10*RAND()+BF47)","v":48}]
[null,null,null,null,5,0,0,100,0,{"$f":"1000*$L49","v":26.828836649656296},{"$f":"1000*(0.06-$L49)","v":33.171163350343704},2.6828836649656296E-2,null,null,null,null,null,null,null,null,null,null,null,null,null,null,null,null,null,124.13333333333334,{"$f":"+B02Clue1(INT($AJ49+RAND()*$AO49))","v":"Fed chairman congressional testimony provides optimism"},"Fed chairman congressional testimony provides optimism","Fed chairman congressional testimony provides optimism","Fed chairman congressional testimony provides optimism","Fed chairman congressional testimony provides optimism",5,5,2.6671175694676839E-2,null,null,2,null,null,null,null,null,null,null,null,null,null,null,null,null,null,null,null,{"$f":"+INT($AE$8*$AD$10*RAND()+BF48)","v":133}]
[null,null,null,null,105,0,0,0,100,{"$f":"10000*$L50","v":290.64452275633812},{"$f":"10000*(0.06-$L50)","v":309.35547724366188},2.9064452275633812E-2,null,null,null,null,null,null,null,null,null,null,null,null,null,null,null,null,null,127.86666666666666,{"$f":"+B02Clue1(INT($AJ50+RAND()*$AO50))","v":"Stock funds experiencing mild selling"},"Stock funds experiencing mild selling","Stock funds experiencing mild selling","Stock funds experiencing mild selling","Stock funds experiencing mild selling",5,5,2.6671175694676839E-2,null,null,1,null,null,null,null,null,null,null,null,null,null,null,null,null,null,null,null,{"$f":"+INT($AE$8*$AD$10*RAND()+BF49)","v":137}]
[null,null,null,"Trial 7",5,0,0,0,0,{"$f":"1000*$L51","v":19.999999552965164},{"$f":"1000*(0.06-$L51)","v":40.000000447034836},1.9999999552965164E-2,null,null,null,null,null,null,null,null,null,null,null,null,null,null,null,null,"Period2 ",0,{"$f":"+B02Clue1(INT(0.6*$AJ51+0.4*$AJ46+RAND()*$AO51))","v":"Inflationary expectations increased sharply"},"Inflationary expectations increased sharply","Inflationary expectations increased sharply","Inflationary expectations increased sharply","Inflationary expectations increased sharply",6,{"$f":"INT(0.4*AK46+0.6*(1+RAND()*10))","v":3},{"$f":"+$AI$14+(AJ51-1)*$AI$16+$AI$16*RAND()","v":3.0658817288604825E-2},null,null,7,null,null,null,null,null,null,null,null,null,null,null,null,null,null,null,null,0]
[null,null,null,null,5,100,0,0,0,{"$f":"1000*$L52","v":35.753868520259857},{"$f":"1000*(0.06-$L52)","v":24.246131479740139},3.5753868520259857E-2,null,null,null,null,null,null,null,null,null,null,null,null,null,null,null,null,null,27.066666666666666,{"$f":"+B02Clue1(INT(0.6*$AJ52+0.4*$AJ47+RAND()*$AO52))","v":"Consumer price index expected to surge"},"Consumer price index expected to surge","Consumer price index expected to surge","Consumer price index expected to surge","Consumer price index expected to surge",6,{"$f":"+AK51","v":3},{"$f":"+AL51","v":3.0658817288604825E-2},null,null,5,null,null,null,null,null,null,null,null,null,null,null,null,null,null,null,null,{"$f":"+INT($AE$8*$AD$10*RAND()+BF51)","v":29}]
[null,null,null,null,5,0,100,0,0,{"$f":"1000*$L53","v":44.07157376408577},{"$f":"1000*(0.06-$L53)","v":15.928426235914229},4.407157376408577E-2,null,null,null,null,null,null,null,null,null,null,null,null,null,null,null,null,null,84,"Fed chairman congressional testimony provides optimism","Fed chairman congressional testimony provides optimism","Fed chairman congressional testimony provides optimism","Fed chairman congressional testimony provides optimism","Fed chairman congressional testimony provides optimism",6,{"$f":"+AK52","v":3},{"$f":"+AL52","v":3.0658817288604825E-2},null,null,3,null,null,null,null,null,null,null,null,null,null,null,null,null,null,null,null,{"$f":"+INT($AE$8*$AD$10*RAND()+BF52)","v":90}]
[null,null,null,null,5,0,0,100,0,{"$f":"1000*$L54","v":45.797701925039291},{"$f":"1000*(0.06-$L54)","v":14.202298074960707},4.5797701925039291E-2,null,null,null,null,null,null,null,null,null,null,null,null,null,null,null,null,null,164.26666666666668,"Leading indicators suggest positive economic outlook","Leading indicators suggest positive economic outlook","Leading indicators suggest positive economic outlook","Leading indicators suggest positive economic outlook","Leading indicators suggest positive economic outlook",6,{"$f":"+AK53","v":3},3.0658817288604825E-2,null,null,2,null,null,null,null,null,null,null,null,null,null,null,null,null,null,null,null,{"$f":"+INT($AE$8*$AD$10*RAND()+BF53)","v":176}]
[null,null,null,null,105,0,0,0,100,{"$f":"10000*$L55","v":272.79600501060486},{"$f":"10000*(0.06-$L55)","v":327.20399498939514},2.7279600501060486E-2,null,null,null,null,null,null,null,null,null,null,null,null,null,null,null,null,null,208.13333333333333,"Fed chairman congressional testimony provides optimism","Fed chairman congressional testimony provides optimism","Fed chairman congressional testimony provides optimism","Fed chairman congressional testimony provides optimism","Fed chairman congressional testimony provides optimism",6,{"$f":"+AK54","v":3},3.0658817288604825E-2,null,null,1,null,null,null,null,null,null,null,null,null,null,null,null,null,null,null,null,{"$f":"+INT($AE$8*$AD$10*RAND()+BF54)","v":223}]
[null,null,null,"Trial 8",5,0,0,0,0,{"$f":"1000*$L56","v":19.999999552965164},{"$f":"1000*(0.06-$L56)","v":40.000000447034836},1.9999999552965164E-2,null,null,null,null,null,null,null,null,null,null,null,null,null,null,null,null,"Period3",0,{"$f":"+B02Clue1(INT(0.6*$AJ56+0.4*$AJ51+RAND()*$AO56))","v":"Fed chairman congressional testimony provides optimism"},"Fed chairman congressional testimony provides optimism","Fed chairman congressional testimony provides optimism","Fed chairman congressional testimony provides optimism","Fed chairman congressional testimony provides optimism",6,{"$f":"INT(0.4*AK51+0.6*(1+RAND()*10))","v":2},{"$f":"+$AI$14+(AJ56-1)*$AI$16+$AI$16*RAND()","v":3.2217336439226377E-2},null,null,7,null,null,null,null,null,null,null,null,null,null,null,null,null,null,null,null,0]
[null,null,null,null,5,100,0,0,0,{"$f":"1000*$L57","v":29.587112367153168},{"$f":"1000*(0.06-$L57)","v":30.412887632846829},2.9587112367153168E-2,null,null,null,null,null,null,null,null,null,null,null,null,null,null,null,null,null,11.200000000000001,"Factory orders expected to increase sharply","Factory orders expected to increase sharply","Factory orders expected to increase sharply","Factory orders expected to increase sharply","Factory orders expected to increase sharply",6,{"$f":"+AK56","v":2},3.2217336439226377E-2,null,null,5,null,null,null,null,null,null,null,null,null,null,null,null,null,null,null,null,{"$f":"+INT($AE$8*$AD$10*RAND()+BF56)","v":12}]
[null,null,null,null,5,0,100,0,0,{"$f":"1000*$L58","v":38.587186485528946},{"$f":"1000*(0.06-$L58)","v":21.412813514471051},3.8587186485528946E-2,null,null,null,null,null,null,null,null,null,null,null,null,null,null,null,null,null,28,"Analyst forecast increased earnings for most industries in the economy","Analyst forecast increased earnings for most industries in the economy","Analyst forecast increased earnings for most industries in the economy","Analyst forecast increased earnings for most industries in the economy","Analyst forecast increased earnings for most industries in the economy",6,{"$f":"+AK57","v":2},3.2217336439226377E-2,null,null,3,null,null,null,null,null,null,null,null,null,null,null,null,null,null,null,null,{"$f":"+INT($AE$8*$AD$10*RAND()+BF57)","v":30}]
[null,null,null,null,5,0,0,100,0,{"$f":"1000*$L59","v":22.731468081474304},{"$f":"1000*(0.06-$L59)","v":37.268531918525696},2.2731468081474304E-2,null,null,null,null,null,null,null,null,null,null,null,null,null,null,null,null,null,101.73333333333333,"Indicators are reinforcing a positive economic outlook","Indicators are reinforcing a positive economic outlook","Indicators are reinforcing a positive economic outlook","Indicators are reinforcing a positive economic outlook","Indicators are reinforcing a positive economic outlook",6,{"$f":"+AK58","v":2},3.2217336439226377E-2,null,null,2,null,null,null,null,null,null,null,null,null,null,null,null,null,null,null,null,{"$f":"+INT($AE$8*$AD$10*RAND()+BF58)","v":109}]
[null,null,null,null,105,0,0,0,100,{"$f":"10000*$L60","v":238.80042135715485},{"$f":"10000*(0.06-$L60)","v":361.19957864284515},2.3880042135715485E-2,null,null,null,null,null,null,null,null,null,null,null,null,null,null,null,null,null,150.26666666666665,"Leading indicators suggest positive economic outlook","Leading indicators suggest positive economic outlook","Leading indicators suggest positive economic outlook","Leading indicators suggest positive economic outlook","Leading indicators suggest positive economic outlook",6,{"$f":"+AK59","v":2},3.2217336439226377E-2,null,null,1,null,null,null,null,null,null,null,null,null,null,null,null,null,null,null,null,{"$f":"+INT($AE$8*$AD$10*RAND()+BF59)","v":161}]
[null,null,null,"Trial 9",5,0,0,0,0,{"$f":"1000*$L61","v":19.999999552965164},{"$f":"1000*(0.06-$L61)","v":40.000000447034836},1.9999999552965164E-2,null,null,null,null,null,null,null,null,null,null,null,null,null,null,null,null,"Period4",0,{"$f":"+B02Clue1(INT(0.6*$AJ61+0.4*$AJ56+RAND()*$AO61))","v":"Sharp jump in strong GDP forecasts"},{"$f":"+$AE61","v":"Sharp jump in strong GDP forecasts"},"Sharp jump in strong GDP forecasts","Sharp jump in strong GDP forecasts","Sharp jump in strong GDP forecasts",7,{"$f":"INT(0.4*AK56+0.6*(1+RAND()*10))","v":6},{"$f":"+$AI$14+(AJ61-1)*$AI$16+$AI$16*RAND()","v":3.6202453377685129E-2},null,null,7,null,null,null,null,null,null,null,null,null,null,null,null,null,null,null,null,0]
[null,null,null,null,5,100,0,0,0,{"$f":"1000*$L62","v":37.673212587833405},{"$f":"1000*(0.06-$L62)","v":22.326787412166592},3.7673212587833405E-2,null,null,null,null,null,null,null,null,null,null,null,null,null,null,null,null,null,53.2,"Indicators are reinforcing a positive economic outlook","Indicators are reinforcing a positive economic outlook","Indicators are reinforcing a positive economic outlook","Indicators are reinforcing a positive economic outlook","Indicators are reinforcing a positive economic outlook",7,{"$f":"+AK61","v":6},3.6202453377685129E-2,null,null,5,null,null,null,null,null,null,null,null,null,null,null,null,null,null,null,null,{"$f":"+INT($AE$8*$AD$10*RAND()+BF61)","v":57}]
[null,null,null,null,5,0,100,0,0,{"$f":"1000*$L63","v":36.722209304571152},{"$f":"1000*(0.06-$L63)","v":23.277790695428845},3.6722209304571152E-2,null,null,null,null,null,null,null,null,null,null,null,null,null,null,null,null,null,67.2,"Fed chairman congressional testimony provides optimism","Fed chairman congressional testimony provides optimism","Fed chairman congressional testimony provides optimism","Fed chairman congressional testimony provides optimism","Fed chairman congressional testimony provides optimism",7,{"$f":"+AK62","v":6},3.6202453377685129E-2,null,null,3,null,null,null,null,null,null,null,null,null,null,null,null,null,null,null,null,{"$f":"+INT($AE$8*$AD$10*RAND()+BF62)","v":72}]
[null,null,null,null,5,0,0,100,0,{"$f":"1000*$L64","v":33.467046916484833},{"$f":"1000*(0.06-$L64)","v":26.532953083515164},3.3467046916484833E-2,null,null,null,null,null,null,null,null,null,null,null,null,null,null,null,null,null,74.666666666666671,"Leading indicators suggest positive economic outlook","Leading indicators suggest positive economic outlook","Leading indicators suggest positive economic outlook","Leading indicators suggest positive economic outlook","Leading indicators suggest positive economic outlook",7,{"$f":"+AK63","v":6},3.6202453377685129E-2,null,null,2,null,null,null,null,null,null,null,null,null,null,null,null,null,null,null,null,{"$f":"+INT($AE$8*$AD$10*RAND()+BF63)","v":80}]
[null,null,null,null,105,0,0,0,100,{"$f":"10000*$L65","v":229.78171706199646},{"$f":"10000*(0.06-$L65)","v":370.21828293800354},2.2978171706199646E-2,null,null,null,null,null,null,null,null,null,null,null,null,null,null,null,null,null,114.8,"Leading indicators suggest positive economic outlook","Leading indicators suggest positive economic outlook","Leading indicators suggest positive economic outlook","Leading indicators suggest positive economic outlook","Leading indicators suggest positive economic outlook",7,{"$f":"+AK64","v":6},3.6202453377685129E-2,null,null,1,null,null,null,null,null,null,null,null,null,null,null,null,null,null,null,null,{"$f":"+INT($AE$8*$AD$10*RAND()+BF64)","v":123}]
[null,null,null,"Trial 10",5,0,0,0,0,{"$f":"1000*$L66","v":19.999999552965164},{"$f":"1000*(0.06-$L66)","v":40.000000447034836},1.9999999552965164E-2,null,null,null,null,null,null,null,null,null,null,null,null,null,null,null,null,"Period5",0,{"$f":"+B02Clue1(INT(0.6*$AJ66+0.4*$AJ61+RAND()*$AO66))","v":"Sharp jump in strong GDP forecasts"},"Sharp jump in strong GDP forecasts","Sharp jump in strong GDP forecasts","Sharp jump in strong GDP forecasts","Sharp jump in strong GDP forecasts",6,{"$f":"INT(0.4*AK61+0.6*(1+RAND()*10))","v":3},{"$f":"+$AI$14+(AJ66-1)*$AI$16+$AI$16*RAND()","v":3.3080320264177884E-2},null,null,7,null,null,null,null,null,null,null,null,null,null,null,null,null,null,null,null,0]
[null,null,null,null,5,100,0,0,0,{"$f":"1000*$L67","v":25.508709251880646},{"$f":"1000*(0.06-$L67)","v":34.491290748119354},2.5508709251880646E-2,null,null,null,null,null,null,null,null,null,null,null,null,null,null,null,null,null,34.533333333333331,"Leading indicators suggest positive economic outlook","Leading indicators suggest positive economic outlook","Leading indicators suggest positive economic outlook","Leading indicators suggest positive economic outlook","Leading indicators suggest positive economic outlook",6,{"$f":"+AK66","v":3},3.3080320264177884E-2,null,null,5,null,null,null,null,null,null,null,null,null,null,null,null,null,null,null,null,{"$f":"+INT($AE$8*$AD$10*RAND()+BF66)","v":37}]
[null,null,null,null,5,0,100,0,0,{"$f":"1000*$L68","v":21.140480414032936},{"$f":"1000*(0.06-$L68)","v":38.859519585967064},2.1140480414032936E-2,null,null,null,null,null,null,null,null,null,null,null,null,null,null,null,null,null,92.4,"Indicators are reinforcing a positive economic outlook","Indicators are reinforcing a positive economic outlook","Indicators are reinforcing a positive economic outlook","Indicators are reinforcing a positive economic outlook","Indicators are reinforcing a positive economic outlook",6,{"$f":"+AK67","v":3},3.3080320264177884E-2,null,null,3,null,null,null,null,null,null,null,null,null,null,null,null,null,null,null,null,{"$f":"+INT($AE$8*$AD$10*RAND()+BF67)","v":99}]
[null,null,null,null,5,0,0,100,0,{"$f":"1000*$L69","v":26.595285162329674},{"$f":"1000*(0.06-$L69)","v":33.404714837670326},2.6595285162329674E-2,null,null,null,null,null,null,null,null,null,null,null,null,null,null,null,null,null,172.66666666666669,"Leading indicators suggest positive economic outlook","Leading indicators suggest positive economic outlook","Leading indicators suggest positive economic outlook","Leading indicators suggest positive economic outlook","Leading indicators suggest positive economic outlook",6,{"$f":"+AK68","v":3},3.3080320264177884E-2,null,null,2,null,null,null,null,null,null,null,null,null,null,null,null,null,null,null,null,{"$f":"+INT($AE$8*$AD$10*RAND()+BF68)","v":185}]
[null,null,null,null,105,0,0,0,100,{"$f":"10000*$L70","v":312.63388693332672},{"$f":"10000*(0.06-$L70)","v":287.36611306667328},3.1263388693332672E-2,null,null,null,null,null,null,null,null,null,null,null,null,null,null,null,null,null,207.2,"Geopolitical investment concerns are rapidly fading","Geopolitical investment concerns are rapidly fading","Geopolitical investment concerns are rapidly fading","Geopolitical investment concerns are rapidly fading","Geopolitical investment concerns are rapidly fading",6,{"$f":"+AK69","v":3},3.3080320264177884E-2,null,null,1,null,null,null,null,null,null,null,null,null,null,null,null,null,null,null,null,{"$f":"+INT($AE$8*$AD$10*RAND()+BF69)","v":222}]
[null,null,null,null,null,null,null,null,null,null,null,null,null,null,null,null,null,null,null,null,null,null,null,null,null,null,null,null,"Trial 3",0,{"$f":"+B02Clue1(INT($AJ71+RAND()*$AO71))","v":"Early trend in recession, forward indicators raise new questions about the economy"},"Early trend in recession, forward indicators raise new questions about the economy","Early trend in recession, forward indicators raise new questions about the economy","Early trend in recession, forward indicators raise new questions about the economy","Early trend in recession, forward indicators raise new questions about the economy",3,{"$f":"INT(1+RAND()*10)","v":5},{"$f":"+$AI$14+(AJ71-1)*$AI$16+$AI$16*RAND()","v":1.8106423987030482E-2},null,null,7,null,null,null,null,null,null,null,null,null,null,null,null,null,null,null,null,0]
[null,null,null,null,null,null,null,null,null,null,null,null,null,null,null,null,null,null,null,null,null,null,null,null,null,null,null,null,null,13.066666666666666,{"$f":"+B02Clue1(INT($AJ72+RAND()*$AO72))","v":"Indicators are reinforcing a positive economic outlook"},"Indicators are reinforcing a positive economic outlook","Indicators are reinforcing a positive economic outlook","Indicators are reinforcing a positive economic outlook","Indicators are reinforcing a positive economic outlook",3,{"$f":"+AK71","v":5},1.8106423987030482E-2,null,null,5,null,null,null,null,null,null,null,null,null,null,null,null,null,null,null,null,{"$f":"+INT($AE$8*$AD$10*RAND()+BF71)","v":14}]
[null,null,null,null,78.885180000000005,null,77.439089999999993,34.56,null,null,null,null,null,null,null,null,null,null,null,null,null,null,null,null,null,null,null,null,null,89.600000000000009,{"$f":"+B02Clue1(INT($AJ73+RAND()*$AO73))","v":"Some major corporations have started to trim work force"},"Some major corporations have started to trim work force","Some major corporations have started to trim work force","Some major corporations have started to trim work force","Some major corporations have started to trim work force",3,5,1.8106423987030482E-2,null,null,3,null,null,null,null,null,null,null,null,null,null,null,null,null,null,null,null,{"$f":"+INT($AE$8*$AD$10*RAND()+BF72)","v":96}]
[null,null,null,null,60,null,null,null,null,null,null,null,null,null,null,null,null,null,null,null,null,null,null,null,null,null,null,null,null,113.86666666666667,{"$f":"+B02Clue1(INT($AJ74+RAND()*$AO74))","v":"Consumer spending suggests that a declining trend has started."},"Consumer spending suggests that a declining trend has started.","Consumer spending suggests that a declining trend has started.","Consumer spending suggests that a declining trend has started.","Consumer spending suggests that a declining trend has started.",3,5,1.8106423987030482E-2,null,null,2,null,null,null,null,null,null,null,null,null,null,null,null,null,null,null,null,{"$f":"+INT($AE$8*$AD$10*RAND()+BF73)","v":122}]
[null,null,null,null,null,null,null,null,null,null,null,null,null,null,null,null,null,null,null,null,null,null,null,null,null,null,null,null,null,158.66666666666666,{"$f":"+B02Clue1(INT($AJ75+RAND()*$AO75))","v":"Consumer spending suggests that a declining trend has started."},"Consumer spending suggests that a declining trend has started.","Consumer spending suggests that a declining trend has started.","Consumer spending suggests that a declining trend has started.","Consumer spending suggests that a declining trend has started.",3,5,1.8106423987030482E-2,null,null,1,null,null,null,null,null,null,null,null,null,null,null,null,null,null,null,null,{"$f":"+INT($AE$8*$AD$10*RAND()+BF74)","v":170}]
[null,null,null,null,null,null,null,null,null,null,null,null,null,null,null,null,null,null,null,null,null,null,null,null,null,null,null,null,"Period2 ",0,{"$f":"+B02Clue1(INT(0.6*$AJ76+0.4*$AJ71+RAND()*$AO76))","v":"Very strong and unexpected surge in the producer price index"},"Very strong and unexpected surge in the producer price index","Very strong and unexpected surge in the producer price index","Very strong and unexpected surge in the producer price index","Very strong and unexpected surge in the producer price index",6,{"$f":"INT(0.4*AK71+0.6*(1+RAND()*10))","v":6},{"$f":"+$AI$14+(AJ76-1)*$AI$16+$AI$16*RAND()","v":3.3061586236249225E-2},null,null,7,null,null,null,null,null,null,null,null,null,null,null,null,null,null,null,null,0]
[null,null,null,null,null,null,null,null,null,null,null,null,null,null,null,null,null,null,null,null,null,null,null,null,null,null,null,null,null,54.133333333333333,{"$f":"+B02Clue1(INT(0.6*$AJ77+0.4*$AJ72+RAND()*$AO77))","v":"Leading economic indicators match expectations"},"Leading economic indicators match expectations","Leading economic indicators match expectations","Leading economic indicators match expectations","Leading economic indicators match expectations",6,{"$f":"+AK76","v":6},{"$f":"+AL76","v":3.3061586236249225E-2},null,null,5,null,null,null,null,null,null,null,null,null,null,null,null,null,null,null,null,{"$f":"+INT($AE$8*$AD$10*RAND()+BF76)","v":58}]
[null,null,null,null,null,null,null,null,null,null,null,null,null,null,null,null,null,null,null,null,null,null,null,null,null,null,null,null,null,93.333333333333329,"Geopolitical investment concerns are rapidly fading","Geopolitical investment concerns are rapidly fading","Geopolitical investment concerns are rapidly fading","Geopolitical investment concerns are rapidly fading","Geopolitical investment concerns are rapidly fading",6,{"$f":"+AK77","v":6},{"$f":"+AL77","v":3.3061586236249225E-2},null,null,3,null,null,null,null,null,null,null,null,null,null,null,null,null,null,null,null,{"$f":"+INT($AE$8*$AD$10*RAND()+BF77)","v":100}]
[null,null,null,null,null,null,null,null,null,null,null,null,null,null,null,null,null,null,null,null,null,null,null,null,null,null,null,null,null,169.86666666666667,"Stock funds experiencing mild selling","Stock funds experiencing mild selling","Stock funds experiencing mild selling","Stock funds experiencing mild selling","Stock funds experiencing mild selling",6,{"$f":"+AK78","v":6},3.3061586236249225E-2,null,null,2,null,null,null,null,null,null,null,null,null,null,null,null,null,null,null,null,{"$f":"+INT($AE$8*$AD$10*RAND()+BF78)","v":182}]
["Endowments Calculations",null,null,null,null,null,null,null,null,null,null,null,null,null,null,null,null,null,null,null,null,null,null,null,null,null,null,null,null,170.79999999999998,"Stock funds experiencing mild selling","Stock funds experiencing mild selling","Stock funds experiencing mild selling","Stock funds experiencing mild selling","Stock funds experiencing mild selling",6,{"$f":"+AK79","v":6},3.3061586236249225E-2,null,null,1,null,null,null,null,null,null,null,null,null,null,null,null,null,null,null,null,{"$f":"+INT($AE$8*$AD$10*RAND()+BF79)","v":183}]
["E(Rates)",1.9999999552965164E-2,3.6729700863361359E-2,4.1121259331703186E-2,3.5491321235895157E-2,4.204283282160759E-2,null,null,null,null,null,null,null,null,null,null,null,null,null,null,null,null,null,null,null,null,null,null,"Period3",0,{"$f":"+B02Clue1(INT(0.6*$AJ81+0.4*$AJ76+RAND()*$AO81))","v":"Geopolitical investment concerns are rapidly fading"},{"$f":"+$AE81","v":"Geopolitical investment concerns are rapidly fading"},"Geopolitical investment concerns are rapidly fading","Geopolitical investment concerns are rapidly fading","Geopolitical investment concerns are rapidly fading",4,{"$f":"INT(0.4*AK76+0.6*(1+RAND()*10))","v":7},{"$f":"+$AI$14+(AJ81-1)*$AI$16+$AI$16*RAND()","v":2.5650943244857984E-2},null,null,7,null,null,null,null,null,null,null,null,null,null,null,null,null,null,null,null,0]
["E(1+Spot Rates)",{"$f":"(1+B81)","v":1.0199999995529652},{"$f":"+((1+B81)*(1+C81))^0.5","v":1.0283308292651614},{"$f":"+((C82^2)*(1+D81))^(1/3)","v":1.0325767506499277},{"$f":"+((D82^3)*(1+E81))^(1/4)","v":1.0333046233086816},{"$f":"+((E82^5)*(1+F81))^(1/5)","v":1.0418506972857706},null,null,null,null,null,null,null,null,null,null,null,null,null,null,null,null,null,null,null,null,null,null,null,1.8666666666666667,"Geopolitical investment concerns are rapidly fading","Geopolitical investment concerns are rapidly fading","Geopolitical investment concerns are rapidly fading","Geopolitical investment concerns are rapidly fading","Geopolitical investment concerns are rapidly fading",4,{"$f":"+AK81","v":7},2.5650943244857984E-2,null,null,5,null,null,null,null,null,null,null,null,null,null,null,null,null,null,null,null,{"$f":"+INT($AE$8*$AD$10*RAND()+BF81)","v":2}]
["Coupon Bond",5,5,5,5,105,null,null,null,null,null,null,null,null,null,null,null,null,null,null,null,null,null,null,null,null,null,null,null,65.333333333333329,"Leading economic indicators match expectations","Leading economic indicators match expectations","Leading economic indicators match expectations","Leading economic indicators match expectations","Leading economic indicators match expectations",4,{"$f":"+AK82","v":7},2.5650943244857984E-2,null,null,3,null,null,null,null,null,null,null,null,null,null,null,null,null,null,null,null,{"$f":"+INT($AE$8*$AD$10*RAND()+BF82)","v":70}]
["Z2",0,100,null,null,null,null,null,null,null,null,null,null,null,null,null,null,null,null,null,null,null,null,null,null,null,null,null,null,82.13333333333334,"Fed chairman congressional testimony provides optimism","Fed chairman congressional testimony provides optimism","Fed chairman congressional testimony provides optimism","Fed chairman congressional testimony provides optimism","Fed chairman congressional testimony provides optimism",4,{"$f":"+AK83","v":7},2.5650943244857984E-2,null,null,2,null,null,null,null,null,null,null,null,null,null,null,null,null,null,null,null,{"$f":"+INT($AE$8*$AD$10*RAND()+BF83)","v":88}]
["Z3",0,0,100,null,null,null,null,null,null,null,null,null,null,null,null,null,null,null,null,null,null,null,null,null,null,null,null,null,92.4,"Stock funds experiencing mild selling","Stock funds experiencing mild selling","Stock funds experiencing mild selling","Stock funds experiencing mild selling","Stock funds experiencing mild selling",4,{"$f":"+AK84","v":7},2.5650943244857984E-2,null,null,1,null,null,null,null,null,null,null,null,null,null,null,null,null,null,null,null,{"$f":"+INT($AE$8*$AD$10*RAND()+BF84)","v":99}]
["Z4",0,0,0,100,null,null,null,null,null,null,null,null,null,null,null,null,null,null,null,null,null,null,null,null,null,null,null,"Period4",0,{"$f":"+B02Clue1(INT(0.6*$AJ86+0.4*$AJ81+RAND()*$AO86))","v":"Stock funds experiencing mild selling"},"Stock funds experiencing mild selling","Stock funds experiencing mild selling","Stock funds experiencing mild selling","Stock funds experiencing mild selling",4,{"$f":"INT(0.4*AK81+0.6*(1+RAND()*10))","v":5},{"$f":"+$AI$14+(AJ86-1)*$AI$16+$AI$16*RAND()","v":2.3267573964950748E-2},null,null,7,null,null,null,null,null,null,null,null,null,null,null,null,null,null,null,null,0]
["Z5",0,0,0,0,100,null,null,null,null,null,null,null,null,null,null,null,null,null,null,null,null,null,null,null,null,null,null,null,{"$f":"+(BF87/300)*$AD$18","v":23.333333333333332},"Leading economic indicators match expectations","Leading economic indicators match expectations","Leading economic indicators match expectations","Leading economic indicators match expectations","Leading economic indicators match expectations",4,{"$f":"+AK86","v":5},2.3267573964950748E-2,null,null,5,null,null,null,null,null,null,null,null,null,null,null,null,null,null,null,null,{"$f":"+INT($AE$8*$AD$10*RAND()+BF86)","v":25}]
[null,"PerfectInfo",null,null,null,null,null,null,null,null,null,null,null,null,null,null,null,null,null,null,null,null,null,null,null,null,null,null,null,26.133333333333333,"Some major corporations have started to trim work force","Some major corporations have started to trim work force","Some major corporations have started to trim work force","Some major corporations have started to trim work force","Some major corporations have started to trim work force",4,{"$f":"+AK87","v":5},2.3267573964950748E-2,null,null,3,null,null,null,null,null,null,null,null,null,null,null,null,null,null,null,null,{"$f":"+INT($AE$8*$AD$10*RAND()+BF87)","v":28}]
["Coupon Bond",{"$f":"+(B83/($B$82))+(C83/($C$82)^2)+(D83/($D$82)^3)+(E83/($E$82)^4)+(F83/($F$82)^5)","v":104.09621508035913},null,null,null,null,null,null,null,null,null,null,null,null,null,null,null,null,null,null,null,null,null,null,null,null,null,null,null,75.600000000000009,"Some major corporations have started to trim work force","Some major corporations have started to trim work force","Some major corporations have started to trim work force","Some major corporations have started to trim work force","Some major corporations have started to trim work force",4,{"$f":"+AK88","v":5},2.3267573964950748E-2,null,null,2,null,null,null,null,null,null,null,null,null,null,null,null,null,null,null,null,{"$f":"+INT($AE$8*$AD$10*RAND()+BF88)","v":81}]
["Z2",{"$f":"+(B84/($B$82))+(C84/($C$82)^2)+(D84/($D$82)^3)+(E84/($E$82)^4)+(F84/($F$82)^5)","v":94.565840688848382},null,null,null,null,null,null,null,null,null,null,null,null,null,null,null,null,null,null,null,null,null,null,null,null,null,null,null,104.53333333333333,"Some major corporations have started to trim work force","Some major corporations have started to trim work force","Some major corporations have started to trim work force","Some major corporations have started to trim work force","Some major corporations have started to trim work force",4,{"$f":"+AK89","v":5},2.3267573964950748E-2,null,null,1,null,null,null,null,null,null,null,null,null,null,null,null,null,null,null,null,{"$f":"+INT($AE$8*$AD$10*RAND()+BF89)","v":112}]
["Z3",{"$f":"+(B85/($B$82))+(C85/($C$82)^2)+(D85/($D$82)^3)+(E85/($E$82)^4)+(F85/($F$82)^5)","v":90.830765236270679},null,null,null,null,null,null,null,null,null,null,null,null,null,null,null,null,null,null,null,null,null,null,null,null,null,null,"Period5",0,{"$f":"+B02Clue1(INT(0.6*$AJ91+0.4*$AJ86+RAND()*$AO91))","v":"Fed chairman congressional testimony provides optimism"},"Fed chairman congressional testimony provides optimism","Fed chairman congressional testimony provides optimism","Fed chairman congressional testimony provides optimism","Fed chairman congressional testimony provides optimism",4,{"$f":"INT(0.4*AK86+0.6*(1+RAND()*10))","v":3},{"$f":"+$AI$14+(AJ91-1)*$AI$16+$AI$16*RAND()","v":2.4028259570120357E-2},null,null,7,null,null,null,null,null,null,null,null,null,null,null,null,null,null,null,null,0]
["Z4",{"$f":"+(B86/($B$82))+(C86/($C$82)^2)+(D86/($D$82)^3)+(E86/($E$82)^4)+(F86/($F$82)^5)","v":87.71755337153472},null,null,null,null,null,null,null,null,null,null,null,null,null,null,null,null,null,null,null,null,null,null,null,null,null,null,null,47.6,"Analyst forecast increased earnings for most industries in the economy","Analyst forecast increased earnings for most industries in the economy","Analyst forecast increased earnings for most industries in the economy","Analyst forecast increased earnings for most industries in the economy","Analyst forecast increased earnings for most industries in the economy",4,{"$f":"+AK91","v":3},2.4028259570120357E-2,null,null,{"$f":"+AO87","v":5},null,null,null,null,null,null,null,null,null,null,null,null,null,null,null,null,{"$f":"+INT($AE$8*$AD$10*RAND()+BF91)","v":51}]
["Z5",{"$f":"+(B87/($B$82))+(C87/($C$82)^2)+(D87/($D$82)^3)+(E87/($E$82)^4)+(F87/($F$82)^5)","v":81.465282218156503},null,null,null,null,null,null,null,null,null,null,null,null,null,null,null,null,null,null,null,null,null,null,null,null,null,null,null,88.666666666666657,"Geopolitical concerns starting to worry investors","Geopolitical concerns starting to worry investors","Geopolitical concerns starting to worry investors","Geopolitical concerns starting to worry investors","Geopolitical concerns starting to worry investors",4,{"$f":"+AK92","v":3},2.4028259570120357E-2,null,null,3,null,null,null,null,null,null,null,null,null,null,null,null,null,null,null,null,{"$f":"+INT($AE$8*$AD$10*RAND()+BF92)","v":95}]
[null,"Type 1","Type 2",null,null,null,null,null,null,null,null,null,null,null,null,null,null,null,null,null,null,null,null,null,null,null,null,null,null,97.066666666666663,"Some major corporations have started to trim work force","Some major corporations have started to trim work force","Some major corporations have started to trim work force","Some major corporations have started to trim work force","Some major corporations have started to trim work force",4,{"$f":"+AK93","v":3},2.4028259570120357E-2,null,null,2,null,null,null,null,null,null,null,null,null,null,null,null,null,null,null,null,{"$f":"+INT($AE$8*$AD$10*RAND()+BF93)","v":104}]
["Bonds",{"$f":"+B22*$B$89+B23*$B$90+B24*$B$91+B25*$B$92+B26*$B$93","v":11047124.10018412},{"$f":"+C22*$B$89+C23*$B$90+C24*$B$91+C25*$B$92+C26*$B$93","v":8935644.2517954297},null,null,null,null,null,null,null,null,null,null,null,null,null,null,null,null,null,null,null,null,null,null,null,null,null,null,128.80000000000001,"Geopolitical concerns starting to worry investors","Geopolitical concerns starting to worry investors","Geopolitical concerns starting to worry investors","Geopolitical concerns starting to worry investors","Geopolitical concerns starting to worry investors",4,{"$f":"+AK94","v":3},2.4028259570120357E-2,null,null,1,null,null,null,null,null,null,null,null,null,null,null,null,null,null,null,null,{"$f":"+INT($AE$8*$AD$10*RAND()+BF94)","v":138}]
["Cash",{"$f":"+B97-B95","v":3952875.8998158798},{"$f":"+C97-C95","v":6064355.7482045703},null,null,null,null,null,null,null,null,null,null,null,null,null,null,null,null,null,null,null,null,null,null,null,null,null,"Trial 4",0,{"$f":"+B02Clue1(INT($AJ96+RAND()*$AO96))","v":"Leading indicators suggest positive economic outlook"},"Leading indicators suggest positive economic outlook","Leading indicators suggest positive economic outlook","Leading indicators suggest positive economic outlook","Leading indicators suggest positive economic outlook",1,{"$f":"INT(1+RAND()*10)","v":2},{"$f":"+$AI$14+(AJ96-1)*$AI$16+$AI$16*RAND()","v":1.0409469280361532E-2},null,null,7,null,null,null,null,null,null,null,null,null,null,null,null,null,null,null,null,0]
["Total",{"$f":"15000000","v":15000000},{"$f":"15000000","v":15000000},null,null,null,null,null,null,null,null,null,null,null,null,null,null,null,null,null,null,null,null,null,null,null,null,null,null,14.933333333333334,{"$f":"+B02Clue1(INT($AJ97+RAND()*$AO97))","v":"Stock funds experiencing mild selling"},"Stock funds experiencing mild selling","Stock funds experiencing mild selling","Stock funds experiencing mild selling","Stock funds experiencing mild selling",1,{"$f":"+AK96","v":2},1.0409469280361532E-2,null,null,5,null,null,null,null,null,null,null,null,null,null,null,null,null,null,null,null,{"$f":"+INT($AE$8*$AD$10*RAND()+BF96)","v":16}]
[null,null,null,null,null,null,null,null,null,null,null,null,null,null,null,null,null,null,null,null,null,null,null,null,null,null,null,null,null,17.733333333333334,{"$f":"+B02Clue1(INT($AJ98+RAND()*$AO98))","v":"Recession more likely say economists"},"Recession more likely say economists","Recession more likely say economists","Recession more likely say economists","Recession more likely say economists",1,2,1.0409469280361532E-2,null,null,3,null,null,null,null,null,null,null,null,null,null,null,null,null,null,null,null,{"$f":"+INT($AE$8*$AD$10*RAND()+BF97)","v":19}]
[null,null,null,null,null,null,null,null,null,null,null,null,null,null,null,null,null,null,null,null,null,null,null,null,null,null,null,null,null,84.933333333333337,{"$f":"+B02Clue1(INT($AJ99+RAND()*$AO99))","v":"Consumer confidence falls, signalling decline in spending"},"Consumer confidence falls, signalling decline in spending","Consumer confidence falls, signalling decline in spending","Consumer confidence falls, signalling decline in spending","Consumer confidence falls, signalling decline in spending",1,2,1.0409469280361532E-2,null,null,2,null,null,null,null,null,null,null,null,null,null,null,null,null,null,null,null,{"$f":"+INT($AE$8*$AD$10*RAND()+BF98)","v":91}]
[null,null,null,null,null,null,null,null,null,null,null,null,null,null,null,null,null,null,null,null,null,null,null,null,null,null,null,null,null,157.73333333333335,{"$f":"+B02Clue1(INT($AJ100+RAND()*$AO100))","v":"No breakthrough at the UN; crisis continues"},"No breakthrough at the UN; crisis continues","No breakthrough at the UN; crisis continues","No breakthrough at the UN; crisis continues","No breakthrough at the UN; crisis continues",1,2,1.0409469280361532E-2,null,null,1,null,null,null,null,null,null,null,null,null,null,null,null,null,null,null,null,{"$f":"+INT($AE$8*$AD$10*RAND()+BF99)","v":169}]
[null,null,null,null,null,null,null,null,null,null,null,null,null,null,null,null,null,null,null,null,null,null,null,null,null,null,null,null,"Period2 ",0,{"$f":"+B02Clue1(INT(0.6*$AJ101+0.4*$AJ96+RAND()*$AO101))","v":"Early trend in recession, forward indicators raise new questions about the economy"},{"$f":"+$AE101","v":"Early trend in recession, forward indicators raise new questions about the economy"},"Early trend in recession, forward indicators raise new questions about the economy","Early trend in recession, forward indicators raise new questions about the economy","Early trend in recession, forward indicators raise new questions about the economy",1,{"$f":"INT(0.4*AK96+0.6*(1+RAND()*10))","v":2},{"$f":"+$AI$14+(AJ101-1)*$AI$16+$AI$16*RAND()","v":1.36974672871226E-2},null,null,7,null,null,null,null,null,null,null,null,null,null,null,null,null,null,null,null,0]
[null,null,null,null,null,null,null,null,null,null,null,null,null,null,null,null,null,null,null,null,null,null,null,null,null,null,null,null,null,20.533333333333335,{"$f":"+B02Clue1(INT(0.6*$AJ102+0.4*$AJ97+RAND()*$AO102))","v":"Early trend in recession, forward indicators raise new questions about the economy"},"Early trend in recession, forward indicators raise new questions about the economy","Early trend in recession, forward indicators raise new questions about the economy","Early trend in recession, forward indicators raise new questions about the economy","Early trend in recession, forward indicators raise new questions about the economy",1,{"$f":"+AK101","v":2},{"$f":"+AL101","v":1.36974672871226E-2},null,null,5,null,null,null,null,null,null,null,null,null,null,null,null,null,null,null,null,{"$f":"+INT($AE$8*$AD$10*RAND()+BF101)","v":22}]
[null,null,null,null,null,null,null,null,null,null,null,null,null,null,null,null,null,null,null,null,null,null,null,null,null,null,null,null,null,55.066666666666663,"Consumer spending suggests that a declining trend has started.","Consumer spending suggests that a declining trend has started.","Consumer spending suggests that a declining trend has started.","Consumer spending suggests that a declining trend has started.","Consumer spending suggests that a declining trend has started.",1,{"$f":"+AK102","v":2},{"$f":"+AL102","v":1.36974672871226E-2},null,null,3,null,null,null,null,null,null,null,null,null,null,null,null,null,null,null,null,{"$f":"+INT($AE$8*$AD$10*RAND()+BF102)","v":59}]
[null,null,null,null,null,null,null,null,null,null,null,null,null,null,null,null,null,null,null,null,null,null,null,null,null,null,null,null,null,92.4,"Inventory buildup points to signs of recession","Inventory buildup points to signs of recession","Inventory buildup points to signs of recession","Inventory buildup points to signs of recession","Inventory buildup points to signs of recession",1,{"$f":"+AK103","v":2},1.36974672871226E-2,null,null,2,null,null,null,null,null,null,null,null,null,null,null,null,null,null,null,null,{"$f":"+INT($AE$8*$AD$10*RAND()+BF103)","v":99}]
[null,null,null,null,null,null,null,null,null,null,null,null,null,null,null,null,null,null,null,null,null,null,null,null,null,null,null,null,null,137.19999999999999,"Recession more likely say economists","Recession more likely say economists","Recession more likely say economists","Recession more likely say economists","Recession more likely say economists",1,{"$f":"+AK104","v":2},1.36974672871226E-2,null,null,1,null,null,null,null,null,null,null,null,null,null,null,null,null,null,null,null,{"$f":"+INT($AE$8*$AD$10*RAND()+BF104)","v":147}]
[null,null,null,null,null,null,null,null,null,null,null,null,null,null,null,null,null,null,null,null,null,null,null,null,null,null,null,null,"Period3",0,{"$f":"+B02Clue1(INT(0.6*$AJ106+0.4*$AJ101+RAND()*$AO106))","v":"Stock funds experiencing mild selling"},"Stock funds experiencing mild selling","Stock funds experiencing mild selling","Stock funds experiencing mild selling","Stock funds experiencing mild selling",4,{"$f":"INT(0.4*AK101+0.6*(1+RAND()*10))","v":2},{"$f":"+$AI$14+(AJ106-1)*$AI$16+$AI$16*RAND()","v":2.2936413989034905E-2},null,null,7,null,null,null,null,null,null,null,null,null,null,null,null,null,null,null,null,0]
[null,null,null,null,70.250020000000006,30,null,null,null,null,null,null,null,null,null,null,null,null,null,null,null,null,null,null,null,null,null,null,null,54.133333333333333,"Fed chairman congressional testimony provides optimism","Fed chairman congressional testimony provides optimism","Fed chairman congressional testimony provides optimism","Fed chairman congressional testimony provides optimism","Fed chairman congressional testimony provides optimism",4,{"$f":"+AK106","v":2},2.2936413989034905E-2,null,null,5,null,null,null,null,null,null,null,null,null,null,null,null,null,null,null,null,{"$f":"+INT($AE$8*$AD$10*RAND()+BF106)","v":58}]
[null,null,null,null,null,null,null,null,null,null,null,null,null,null,null,null,null,null,null,null,null,null,null,null,null,null,null,null,null,84,"Consumer spending suggests that a declining trend has started.","Consumer spending suggests that a declining trend has started.","Consumer spending suggests that a declining trend has started.","Consumer spending suggests that a declining trend has started.","Consumer spending suggests that a declining trend has started.",4,{"$f":"+AK107","v":2},2.2936413989034905E-2,null,null,3,null,null,null,null,null,null,null,null,null,null,null,null,null,null,null,null,{"$f":"+INT($AE$8*$AD$10*RAND()+BF107)","v":90}]
[null,null,null,null,null,null,null,null,null,null,null,null,null,null,null,null,null,null,null,null,null,null,null,null,null,null,null,null,null,86.8,"Early trend in recession, forward indicators raise new questions about the economy","Early trend in recession, forward indicators raise new questions about the economy","Early trend in recession, forward indicators raise new questions about the economy","Early trend in recession, forward indicators raise new questions about the economy","Early trend in recession, forward indicators raise new questions about the economy",4,{"$f":"+AK108","v":2},2.2936413989034905E-2,null,null,2,null,null,null,null,null,null,null,null,null,null,null,null,null,null,null,null,{"$f":"+INT($AE$8*$AD$10*RAND()+BF108)","v":93}]
[null,null,null,null,null,null,null,null,null,null,null,null,null,null,null,null,null,null,null,null,null,null,null,null,null,null,null,null,null,136.26666666666668,"Consumer spending suggests that a declining trend has started.","Consumer spending suggests that a declining trend has started.","Consumer spending suggests that a declining trend has started.","Consumer spending suggests that a declining trend has started.","Consumer spending suggests that a declining trend has started.",4,{"$f":"+AK109","v":2},2.2936413989034905E-2,null,null,1,null,null,null,null,null,null,null,null,null,null,null,null,null,null,null,null,{"$f":"+INT($AE$8*$AD$10*RAND()+BF109)","v":146}]
[null,null,null,null,null,null,null,null,null,null,null,null,null,null,null,null,null,null,null,null,null,null,null,null,null,null,null,null,"Period4",0,{"$f":"+B02Clue1(INT(0.6*$AJ111+0.4*$AJ106+RAND()*$AO111))","v":"Indicators are reinforcing a positive economic outlook"},"Indicators are reinforcing a positive economic outlook","Indicators are reinforcing a positive economic outlook","Indicators are reinforcing a positive economic outlook","Indicators are reinforcing a positive economic outlook",4,{"$f":"INT(0.4*AK106+0.6*(1+RAND()*10))","v":6},{"$f":"+$AI$14+(AJ111-1)*$AI$16+$AI$16*RAND()","v":2.2191273581461089E-2},null,null,7,null,null,null,null,null,null,null,null,null,null,null,null,null,null,null,null,0]
[null,null,null,null,22.778890000000001,14.965120000000001,10.75,14.60417,null,null,null,null,null,null,null,null,null,null,null,null,null,null,null,null,null,null,null,null,null,42,"Leading economic indicators match expectations","Leading economic indicators match expectations","Leading economic indicators match expectations","Leading economic indicators match expectations","Leading economic indicators match expectations",4,{"$f":"+AK111","v":6},2.2191273581461089E-2,null,null,5,null,null,null,null,null,null,null,null,null,null,null,null,null,null,null,null,{"$f":"+INT($AE$8*$AD$10*RAND()+BF111)","v":45}]
[null,null,null,null,null,null,null,null,null,null,null,null,null,null,null,null,null,null,null,null,null,null,null,null,null,null,null,null,null,63.466666666666661,"Geopolitical concerns starting to worry investors","Geopolitical concerns starting to worry investors","Geopolitical concerns starting to worry investors","Geopolitical concerns starting to worry investors","Geopolitical concerns starting to worry investors",4,{"$f":"+AK112","v":6},2.2191273581461089E-2,null,null,3,null,null,null,null,null,null,null,null,null,null,null,null,null,null,null,null,{"$f":"+INT($AE$8*$AD$10*RAND()+BF112)","v":68}]
[null,null,null,null,null,null,null,null,null,null,null,null,null,null,null,null,null,null,null,null,null,null,null,null,null,null,null,null,null,97.066666666666663,"Geopolitical concerns starting to worry investors","Geopolitical concerns starting to worry investors","Geopolitical concerns starting to worry investors","Geopolitical concerns starting to worry investors","Geopolitical concerns starting to worry investors",4,{"$f":"+AK113","v":6},2.2191273581461089E-2,null,null,2,null,null,null,null,null,null,null,null,null,null,null,null,null,null,null,null,{"$f":"+INT($AE$8*$AD$10*RAND()+BF113)","v":104}]
[null,null,null,null,null,null,null,null,null,null,null,null,null,null,null,null,null,null,null,null,null,null,null,null,null,null,null,null,null,150.26666666666665,"Some major corporations have started to trim work force","Some major corporations have started to trim work force","Some major corporations have started to trim work force","Some major corporations have started to trim work force","Some major corporations have started to trim work force",4,{"$f":"+AK114","v":6},2.2191273581461089E-2,null,null,1,null,null,null,null,null,null,null,null,null,null,null,null,null,null,null,null,{"$f":"+INT($AE$8*$AD$10*RAND()+BF114)","v":161}]
[null,null,null,null,null,null,null,null,null,null,null,null,null,null,null,null,null,null,null,null,null,null,null,null,null,null,null,null,"Period5",0,{"$f":"+B02Clue1(INT(0.6*$AJ116+0.4*$AJ111+RAND()*$AO116))","v":"Analyst forecast increased earnings for most industries in the economy"},"Analyst forecast increased earnings for most industries in the economy","Analyst forecast increased earnings for most industries in the economy","Analyst forecast increased earnings for most industries in the economy","Analyst forecast increased earnings for most industries in the economy",6,{"$f":"INT(0.4*AK111+0.6*(1+RAND()*10))","v":6},{"$f":"+$AI$14+(AJ116-1)*$AI$16+$AI$16*RAND()","v":3.00809042700102E-2},null,null,7,null,null,null,null,null,null,null,null,null,null,null,null,null,null,null,null,0]
[null,null,null,null,null,null,null,null,null,null,null,null,null,null,null,null,null,null,null,null,null,null,null,null,null,null,null,null,null,46.666666666666664,"Sharp jump in strong GDP forecasts","Sharp jump in strong GDP forecasts","Sharp jump in strong GDP forecasts","Sharp jump in strong GDP forecasts","Sharp jump in strong GDP forecasts",6,{"$f":"+AK116","v":6},3.00809042700102E-2,null,null,5,null,null,null,null,null,null,null,null,null,null,null,null,null,null,null,null,{"$f":"+INT($AE$8*$AD$10*RAND()+BF116)","v":50}]
[null,null,null,null,null,null,null,null,null,null,null,null,null,null,null,null,null,null,null,null,null,null,null,null,null,null,null,null,null,73.73333333333332,"Stock funds experiencing mild selling","Stock funds experiencing mild selling","Stock funds experiencing mild selling","Stock funds experiencing mild selling","Stock funds experiencing mild selling",6,{"$f":"+AK117","v":6},3.00809042700102E-2,null,null,3,null,null,null,null,null,null,null,null,null,null,null,null,null,null,null,null,{"$f":"+INT($AE$8*$AD$10*RAND()+BF117)","v":79}]
[null,null,null,null,null,null,null,null,null,null,null,null,null,null,null,null,null,null,null,null,null,null,null,null,null,null,null,null,null,151.20000000000002,"Stock funds experiencing mild selling","Stock funds experiencing mild selling","Stock funds experiencing mild selling","Stock funds experiencing mild selling","Stock funds experiencing mild selling",6,{"$f":"+AK118","v":6},3.00809042700102E-2,null,null,2,null,null,null,null,null,null,null,null,null,null,null,null,null,null,null,null,{"$f":"+INT($AE$8*$AD$10*RAND()+BF118)","v":162}]
[null,null,null,null,null,null,null,null,null,null,null,null,null,null,null,null,null,null,null,null,null,null,null,null,null,null,null,null,null,228.66666666666666,"Stock funds experiencing mild selling","Stock funds experiencing mild selling","Stock funds experiencing mild selling","Stock funds experiencing mild selling","Stock funds experiencing mild selling",6,{"$f":"+AK119","v":6},3.00809042700102E-2,null,null,1,null,null,null,null,null,null,null,null,null,null,null,null,null,null,null,null,{"$f":"+INT($AE$8*$AD$10*RAND()+BF119)","v":245}]
[null,null,null,null,null,null,null,null,null,null,null,null,null,null,null,null,null,null,null,null,null,null,null,null,null,null,null,null,"Trial 5",0,{"$f":"+B02Clue1(INT($AJ121+RAND()*$AO121))","v":"Large jump in both imports and exports plus trade deficit sharply wider"},{"$f":"+$AE121","v":"Large jump in both imports and exports plus trade deficit sharply wider"},"Large jump in both imports and exports plus trade deficit sharply wider","Large jump in both imports and exports plus trade deficit sharply wider","Large jump in both imports and exports plus trade deficit sharply wider",9,{"$f":"INT(1+RAND()*10)","v":8},{"$f":"+$AI$14+(AJ121-1)*$AI$16+$AI$16*RAND()","v":4.2921775581147549E-2},null,null,7,null,null,null,null,null,null,null,null,null,null,null,null,null,null,null,null,0]
[null,null,null,null,null,null,null,null,null,null,null,null,null,null,null,null,null,null,null,null,null,null,null,null,null,null,null,null,null,22.400000000000002,{"$f":"+B02Clue1(INT($AJ122+RAND()*$AO122))","v":"Consumer price index expected to surge"},"Consumer price index expected to surge","Consumer price index expected to surge","Consumer price index expected to surge","Consumer price index expected to surge",9,{"$f":"+AK121","v":8},4.2921775581147549E-2,null,null,5,null,null,null,null,null,null,null,null,null,null,null,null,null,null,null,null,{"$f":"+INT($AE$8*$AD$10*RAND()+BF121)","v":24}]
[null,null,null,null,null,null,null,null,null,null,null,null,null,null,null,null,null,null,null,null,null,null,null,null,null,null,null,null,null,39.200000000000003,{"$f":"+B02Clue1(INT($AJ123+RAND()*$AO123))","v":"Large jump in both imports and exports plus trade deficit sharply wider"},"Large jump in both imports and exports plus trade deficit sharply wider","Large jump in both imports and exports plus trade deficit sharply wider","Large jump in both imports and exports plus trade deficit sharply wider","Large jump in both imports and exports plus trade deficit sharply wider",9,8,4.2921775581147549E-2,null,null,3,null,null,null,null,null,null,null,null,null,null,null,null,null,null,null,null,{"$f":"+INT($AE$8*$AD$10*RAND()+BF122)","v":42}]
[null,null,null,null,null,null,null,null,null,null,null,null,null,null,null,null,null,null,null,null,null,null,null,null,null,null,null,null,null,119.46666666666667,{"$f":"+B02Clue1(INT($AJ124+RAND()*$AO124))","v":"Inflationary expectations increased sharply"},"Inflationary expectations increased sharply","Inflationary expectations increased sharply","Inflationary expectations increased sharply","Inflationary expectations increased sharply",9,8,4.2921775581147549E-2,null,null,2,null,null,null,null,null,null,null,null,null,null,null,null,null,null,null,null,{"$f":"+INT($AE$8*$AD$10*RAND()+BF123)","v":128}]
[null,null,null,null,null,null,null,null,null,null,null,null,null,null,null,null,null,null,null,null,null,null,null,null,null,null,null,null,null,136.26666666666668,{"$f":"+B02Clue1(INT($AJ125+RAND()*$AO125))","v":"Sharp jump in strong GDP forecasts"},"Sharp jump in strong GDP forecasts","Sharp jump in strong GDP forecasts","Sharp jump in strong GDP forecasts","Sharp jump in strong GDP forecasts",9,8,4.2921775581147549E-2,null,null,1,null,null,null,null,null,null,null,null,null,null,null,null,null,null,null,null,{"$f":"+INT($AE$8*$AD$10*RAND()+BF124)","v":146}]
[null,null,null,null,null,null,null,null,null,null,null,null,null,null,null,null,null,null,null,null,null,null,null,null,null,null,null,null,"Period2 ",0,{"$f":"+B02Clue1(INT(0.6*$AJ126+0.4*$AJ121+RAND()*$AO126))","v":"Large jump in both imports and exports plus trade deficit sharply wider"},"Large jump in both imports and exports plus trade deficit sharply wider","Large jump in both imports and exports plus trade deficit sharply wider","Large jump in both imports and exports plus trade deficit sharply wider","Large jump in both imports and exports plus trade deficit sharply wider",7,{"$f":"INT(0.4*AK121+0.6*(1+RAND()*10))","v":6},{"$f":"+$AI$14+(AJ126-1)*$AI$16+$AI$16*RAND()","v":3.6173556186746662E-2},null,null,7,null,null,null,null,null,null,null,null,null,null,null,null,null,null,null,null,0]
[null,null,null,null,null,null,null,null,null,null,null,null,null,null,null,null,null,null,null,null,null,null,null,null,null,null,null,null,null,54.133333333333333,{"$f":"+B02Clue1(INT(0.6*$AJ127+0.4*$AJ122+RAND()*$AO127))","v":"Very strong and unexpected surge in the producer price index"},"Very strong and unexpected surge in the producer price index","Very strong and unexpected surge in the producer price index","Very strong and unexpected surge in the producer price index","Very strong and unexpected surge in the producer price index",7,{"$f":"+AK126","v":6},{"$f":"+AL126","v":3.6173556186746662E-2},null,null,5,null,null,null,null,null,null,null,null,null,null,null,null,null,null,null,null,{"$f":"+INT($AE$8*$AD$10*RAND()+BF126)","v":58}]
[null,null,null,null,null,null,null,null,null,null,null,null,null,null,null,null,null,null,null,null,null,null,null,null,null,null,null,null,null,134.4,"Inflationary expectations increased sharply","Inflationary expectations increased sharply","Inflationary expectations increased sharply","Inflationary expectations increased sharply","Inflationary expectations increased sharply",7,{"$f":"+AK127","v":6},{"$f":"+AL127","v":3.6173556186746662E-2},null,null,3,null,null,null,null,null,null,null,null,null,null,null,null,null,null,null,null,{"$f":"+INT($AE$8*$AD$10*RAND()+BF127)","v":144}]
[null,null,null,null,null,null,null,null,null,null,null,null,null,null,null,null,null,null,null,null,null,null,null,null,null,null,null,null,null,136.26666666666668,"Factory orders expected to increase sharply","Factory orders expected to increase sharply","Factory orders expected to increase sharply","Factory orders expected to increase sharply","Factory orders expected to increase sharply",7,{"$f":"+AK128","v":6},3.6173556186746662E-2,null,null,2,null,null,null,null,null,null,null,null,null,null,null,null,null,null,null,null,{"$f":"+INT($AE$8*$AD$10*RAND()+BF128)","v":146}]
[null,null,null,null,null,null,null,null,null,null,null,null,null,null,null,null,null,null,null,null,null,null,null,null,null,null,null,null,null,154,"Factory orders expected to increase sharply","Factory orders expected to increase sharply","Factory orders expected to increase sharply","Factory orders expected to increase sharply","Factory orders expected to increase sharply",7,{"$f":"+AK129","v":6},3.6173556186746662E-2,null,null,1,null,null,null,null,null,null,null,null,null,null,null,null,null,null,null,null,{"$f":"+INT($AE$8*$AD$10*RAND()+BF129)","v":165}]
[null,null,null,null,null,null,null,null,null,null,null,null,null,null,null,null,null,null,null,null,null,null,null,null,null,null,null,null,"Period3",0,{"$f":"+B02Clue1(INT(0.6*$AJ131+0.4*$AJ126+RAND()*$AO131))","v":"Fed chairman congressional testimony provides optimism"},"Fed chairman congressional testimony provides optimism","Fed chairman congressional testimony provides optimism","Fed chairman congressional testimony provides optimism","Fed chairman congressional testimony provides optimism",3,{"$f":"INT(0.4*AK126+0.6*(1+RAND()*10))","v":4},{"$f":"+$AI$14+(AJ131-1)*$AI$16+$AI$16*RAND()","v":2.1215444249548493E-2},null,null,7,null,null,null,null,null,null,null,null,null,null,null,null,null,null,null,null,0]
[null,null,null,null,null,null,null,null,null,null,null,null,null,null,null,null,null,null,null,null,null,null,null,null,null,null,null,null,null,77.466666666666669,"Stock funds experiencing mild selling","Stock funds experiencing mild selling","Stock funds experiencing mild selling","Stock funds experiencing mild selling","Stock funds experiencing mild selling",3,{"$f":"+AK131","v":4},2.1215444249548493E-2,null,null,5,null,null,null,null,null,null,null,null,null,null,null,null,null,null,null,null,{"$f":"+INT($AE$8*$AD$10*RAND()+BF131)","v":83}]
[null,null,null,null,null,null,null,null,null,null,null,null,null,null,null,null,null,null,null,null,null,null,null,null,null,null,null,null,null,119.46666666666667,"Stock funds experiencing mild selling","Stock funds experiencing mild selling","Stock funds experiencing mild selling","Stock funds experiencing mild selling","Stock funds experiencing mild selling",3,{"$f":"+AK132","v":4},2.1215444249548493E-2,null,null,3,null,null,null,null,null,null,null,null,null,null,null,null,null,null,null,null,{"$f":"+INT($AE$8*$AD$10*RAND()+BF132)","v":128}]
[null,null,null,null,null,null,null,null,null,null,null,null,null,null,null,null,null,null,null,null,null,null,null,null,null,null,null,null,null,194.13333333333333,"Some major corporations have started to trim work force","Some major corporations have started to trim work force","Some major corporations have started to trim work force","Some major corporations have started to trim work force","Some major corporations have started to trim work force",3,{"$f":"+AK133","v":4},2.1215444249548493E-2,null,null,2,null,null,null,null,null,null,null,null,null,null,null,null,null,null,null,null,{"$f":"+INT($AE$8*$AD$10*RAND()+BF133)","v":208}]
[null,null,null,null,null,null,null,null,null,null,null,null,null,null,null,null,null,null,null,null,null,null,null,null,null,null,null,null,null,238.93333333333334,"Stock funds experiencing mild selling","Stock funds experiencing mild selling","Stock funds experiencing mild selling","Stock funds experiencing mild selling","Stock funds experiencing mild selling",3,{"$f":"+AK134","v":4},2.1215444249548493E-2,null,null,1,null,null,null,null,null,null,null,null,null,null,null,null,null,null,null,null,{"$f":"+INT($AE$8*$AD$10*RAND()+BF134)","v":256}]
[null,null,null,null,null,null,null,null,null,null,null,null,null,null,null,null,null,null,null,null,null,null,null,null,null,null,null,null,"Period4",0,{"$f":"+B02Clue1(INT(0.6*$AJ136+0.4*$AJ131+RAND()*$AO136))","v":"Sharp jump in strong GDP forecasts"},"Sharp jump in strong GDP forecasts","Sharp jump in strong GDP forecasts","Sharp jump in strong GDP forecasts","Sharp jump in strong GDP forecasts",4,{"$f":"INT(0.4*AK131+0.6*(1+RAND()*10))","v":2},{"$f":"+$AI$14+(AJ136-1)*$AI$16+$AI$16*RAND()","v":2.4225341620462793E-2},null,null,7,null,null,null,null,null,null,null,null,null,null,null,null,null,null,null,null,0]
[null,null,null,null,null,null,null,null,null,null,null,null,null,null,null,null,null,null,null,null,null,null,null,null,null,null,null,null,null,41.06666666666667,"Indicators are reinforcing a positive economic outlook","Indicators are reinforcing a positive economic outlook","Indicators are reinforcing a positive economic outlook","Indicators are reinforcing a positive economic outlook","Indicators are reinforcing a positive economic outlook",4,{"$f":"+AK136","v":2},2.4225341620462793E-2,null,null,5,null,null,null,null,null,null,null,null,null,null,null,null,null,null,null,null,{"$f":"+INT($AE$8*$AD$10*RAND()+BF136)","v":44}]
[null,null,null,null,null,null,null,null,null,null,null,null,null,null,null,null,null,null,null,null,null,null,null,null,null,null,null,null,null,116.66666666666667,"Fed chairman congressional testimony provides optimism","Fed chairman congressional testimony provides optimism","Fed chairman congressional testimony provides optimism","Fed chairman congressional testimony provides optimism","Fed chairman congressional testimony provides optimism",4,{"$f":"+AK137","v":2},2.4225341620462793E-2,null,null,3,null,null,null,null,null,null,null,null,null,null,null,null,null,null,null,null,{"$f":"+INT($AE$8*$AD$10*RAND()+BF137)","v":125}]
[null,null,null,null,null,null,null,null,null,null,null,null,null,null,null,null,null,null,null,null,null,null,null,null,null,null,null,null,null,186.66666666666666,"Stock funds experiencing mild selling","Stock funds experiencing mild selling","Stock funds experiencing mild selling","Stock funds experiencing mild selling","Stock funds experiencing mild selling",4,{"$f":"+AK138","v":2},2.4225341620462793E-2,null,null,2,null,null,null,null,null,null,null,null,null,null,null,null,null,null,null,null,{"$f":"+INT($AE$8*$AD$10*RAND()+BF138)","v":200}]
[null,null,null,null,null,null,null,null,null,null,null,null,null,null,null,null,null,null,null,null,null,null,null,null,null,null,null,null,null,227.73333333333335,"Early trend in recession, forward indicators raise new questions about the economy","Early trend in recession, forward indicators raise new questions about the economy","Early trend in recession, forward indicators raise new questions about the economy","Early trend in recession, forward indicators raise new questions about the economy","Early trend in recession, forward indicators raise new questions about the economy",4,{"$f":"+AK139","v":2},2.4225341620462793E-2,null,null,1,null,null,null,null,null,null,null,null,null,null,null,null,null,null,null,null,{"$f":"+INT($AE$8*$AD$10*RAND()+BF139)","v":244}]
[null,null,null,null,null,null,null,null,null,null,null,null,null,null,null,null,null,null,null,null,null,null,null,null,null,null,null,null,"Period5",0,{"$f":"+B02Clue1(INT(0.6*$AJ141+0.4*$AJ136+RAND()*$AO141))","v":"Factory orders expected to increase sharply"},{"$f":"+$AE141","v":"Factory orders expected to increase sharply"},"Factory orders expected to increase sharply","Factory orders expected to increase sharply","Factory orders expected to increase sharply",3,{"$f":"INT(0.4*AK136+0.6*(1+RAND()*10))","v":5},{"$f":"+$AI$14+(AJ141-1)*$AI$16+$AI$16*RAND()","v":2.0167703861325329E-2},null,null,7,null,null,null,null,null,null,null,null,null,null,null,null,null,null,null,null,0]
[null,null,null,null,null,null,null,null,null,null,null,null,null,null,null,null,null,null,null,null,null,null,null,null,null,null,null,null,null,6.5333333333333332,"Leading economic indicators match expectations","Leading economic indicators match expectations","Leading economic indicators match expectations","Leading economic indicators match expectations","Leading economic indicators match expectations",3,{"$f":"+AK141","v":5},2.0167703861325329E-2,null,null,5,null,null,null,null,null,null,null,null,null,null,null,null,null,null,null,null,{"$f":"+INT($AE$8*$AD$10*RAND()+BF141)","v":7}]
[null,null,null,null,null,null,null,null,null,null,null,null,null,null,null,null,null,null,null,null,null,null,null,null,null,null,null,null,null,14,"Geopolitical concerns starting to worry investors","Geopolitical concerns starting to worry investors","Geopolitical concerns starting to worry investors","Geopolitical concerns starting to worry investors","Geopolitical concerns starting to worry investors",3,{"$f":"+AK142","v":5},2.0167703861325329E-2,null,null,3,null,null,null,null,null,null,null,null,null,null,null,null,null,null,null,null,{"$f":"+INT($AE$8*$AD$10*RAND()+BF142)","v":15}]
[null,null,null,null,null,null,null,null,null,null,null,null,null,null,null,null,null,null,null,null,null,null,null,null,null,null,null,null,null,85.86666666666666,"Some major corporations have started to trim work force","Some major corporations have started to trim work force","Some major corporations have started to trim work force","Some major corporations have started to trim work force","Some major corporations have started to trim work force",3,{"$f":"+AK143","v":5},2.0167703861325329E-2,null,null,2,null,null,null,null,null,null,null,null,null,null,null,null,null,null,null,null,{"$f":"+INT($AE$8*$AD$10*RAND()+BF143)","v":92}]
[null,null,null,null,null,null,null,null,null,null,null,null,null,null,null,null,null,null,null,null,null,null,null,null,null,null,null,null,null,94.266666666666666,"Some major corporations have started to trim work force","Some major corporations have started to trim work force","Some major corporations have started to trim work force","Some major corporations have started to trim work force","Some major corporations have started to trim work force",3,{"$f":"+AK144","v":5},2.0167703861325329E-2,null,null,1,null,null,null,null,null,null,null,null,null,null,null,null,null,null,null,null,{"$f":"+INT($AE$8*$AD$10*RAND()+BF144)","v":101}]
[null,null,null,null,null,null,null,null,null,null,null,null,null,null,null,null,null,null,null,null,null,null,null,null,null,null,null,null,"Trial 6",0,{"$f":"+B02Clue1(INT($AJ146+RAND()*$AO146))","v":"Much stronger economic growth is currently being forecast"},"Much stronger economic growth is currently being forecast","Much stronger economic growth is currently being forecast","Much stronger economic growth is currently being forecast","Much stronger economic growth is currently being forecast",4,{"$f":"INT(1+RAND()*10)","v":8},{"$f":"+$AI$14+(AJ146-1)*$AI$16+$AI$16*RAND()","v":2.4006898268313127E-2},null,null,7,null,null,null,null,null,null,null,null,null,null,null,null,null,null,null,null,0]
[null,null,null,null,null,null,null,null,null,null,null,null,null,null,null,null,null,null,null,null,null,null,null,null,null,null,null,null,null,65.333333333333329,{"$f":"+B02Clue1(INT($AJ147+RAND()*$AO147))","v":"Stock funds experiencing mild selling"},"Stock funds experiencing mild selling","Stock funds experiencing mild selling","Stock funds experiencing mild selling","Stock funds experiencing mild selling",4,{"$f":"+AK146","v":8},2.4006898268313127E-2,null,null,5,null,null,null,null,null,null,null,null,null,null,null,null,null,null,null,null,{"$f":"+INT($AE$8*$AD$10*RAND()+BF146)","v":70}]
[null,null,null,null,null,null,null,null,null,null,null,null,null,null,null,null,null,null,null,null,null,null,null,null,null,null,null,null,null,115.73333333333333,{"$f":"+B02Clue1(INT($AJ148+RAND()*$AO148))","v":"Geopolitical concerns starting to worry investors"},"Geopolitical concerns starting to worry investors","Geopolitical concerns starting to worry investors","Geopolitical concerns starting to worry investors","Geopolitical concerns starting to worry investors",4,8,2.4006898268313127E-2,null,null,3,null,null,null,null,null,null,null,null,null,null,null,null,null,null,null,null,{"$f":"+INT($AE$8*$AD$10*RAND()+BF147)","v":124}]
[null,null,null,null,null,null,null,null,null,null,null,null,null,null,null,null,null,null,null,null,null,null,null,null,null,null,null,null,null,162.39999999999998,{"$f":"+B02Clue1(INT($AJ149+RAND()*$AO149))","v":"Some major corporations have started to trim work force"},"Some major corporations have started to trim work force","Some major corporations have started to trim work force","Some major corporations have started to trim work force","Some major corporations have started to trim work force",4,8,2.4006898268313127E-2,null,null,2,null,null,null,null,null,null,null,null,null,null,null,null,null,null,null,null,{"$f":"+INT($AE$8*$AD$10*RAND()+BF148)","v":174}]
[null,null,null,null,null,null,null,null,null,null,null,null,null,null,null,null,null,null,null,null,null,null,null,null,null,null,null,null,null,229.6,{"$f":"+B02Clue1(INT($AJ150+RAND()*$AO150))","v":"Some major corporations have started to trim work force"},"Some major corporations have started to trim work force","Some major corporations have started to trim work force","Some major corporations have started to trim work force","Some major corporations have started to trim work force",4,8,2.4006898268313127E-2,null,null,1,null,null,null,null,null,null,null,null,null,null,null,null,null,null,null,null,{"$f":"+INT($AE$8*$AD$10*RAND()+BF149)","v":246}]
[null,null,null,null,null,null,null,null,null,null,null,null,null,null,null,null,null,null,null,null,null,null,null,null,null,null,null,null,"Period2 ",{"$f":"+(BF151/300)*$AD$18","v":0},{"$f":"+B02Clue1(INT(0.6*$AJ151+0.4*$AJ146+RAND()*$AO151))","v":"Much stronger economic growth is currently being forecast"},"Much stronger economic growth is currently being forecast","Much stronger economic growth is currently being forecast","Much stronger economic growth is currently being forecast","Much stronger economic growth is currently being forecast",6,{"$f":"INT(0.4*AK146+0.6*(1+RAND()*10))","v":4},{"$f":"+$AI$14+(AJ151-1)*$AI$16+$AI$16*RAND()","v":3.0059394017006073E-2},null,null,7,null,null,null,null,null,null,null,null,null,null,null,null,null,null,null,null,0]
[null,null,null,null,null,null,null,null,null,null,null,null,null,null,null,null,null,null,null,null,null,null,null,null,null,null,null,null,null,24.266666666666666,{"$f":"+B02Clue1(INT(0.6*$AJ152+0.4*$AJ147+RAND()*$AO152))","v":"Leading economic indicators match expectations"},"Leading economic indicators match expectations","Leading economic indicators match expectations","Leading economic indicators match expectations","Leading economic indicators match expectations",6,{"$f":"+AK151","v":4},{"$f":"+AL151","v":3.0059394017006073E-2},null,null,5,null,null,null,null,null,null,null,null,null,null,null,null,null,null,null,null,{"$f":"+INT($AE$8*$AD$10*RAND()+BF151)","v":26}]
[null,null,null,null,null,null,null,null,null,null,null,null,null,null,null,null,null,null,null,null,null,null,null,null,null,null,null,null,null,85.86666666666666,"Fed chairman congressional testimony provides optimism","Fed chairman congressional testimony provides optimism","Fed chairman congressional testimony provides optimism","Fed chairman congressional testimony provides optimism","Fed chairman congressional testimony provides optimism",6,{"$f":"+AK152","v":4},{"$f":"+AL152","v":3.0059394017006073E-2},null,null,3,null,null,null,null,null,null,null,null,null,null,null,null,null,null,null,null,{"$f":"+INT($AE$8*$AD$10*RAND()+BF152)","v":92}]
[null,null,null,null,null,null,null,null,null,null,null,null,null,null,null,null,null,null,null,null,null,null,null,null,null,null,null,null,null,147.46666666666664,"Fed chairman congressional testimony provides optimism","Fed chairman congressional testimony provides optimism","Fed chairman congressional testimony provides optimism","Fed chairman congressional testimony provides optimism","Fed chairman congressional testimony provides optimism",6,{"$f":"+AK153","v":4},3.0059394017006073E-2,null,null,2,null,null,null,null,null,null,null,null,null,null,null,null,null,null,null,null,{"$f":"+INT($AE$8*$AD$10*RAND()+BF153)","v":158}]
[null,null,null,null,null,null,null,null,null,null,null,null,null,null,null,null,null,null,null,null,null,null,null,null,null,null,null,null,null,229.6,"Leading economic indicators match expectations","Leading economic indicators match expectations","Leading economic indicators match expectations","Leading economic indicators match expectations","Leading economic indicators match expectations",6,{"$f":"+AK154","v":4},3.0059394017006073E-2,null,null,1,null,null,null,null,null,null,null,null,null,null,null,null,null,null,null,null,{"$f":"+INT($AE$8*$AD$10*RAND()+BF154)","v":246}]
[null,null,null,null,null,null,null,null,null,null,null,null,null,null,null,null,null,null,null,null,null,null,null,null,null,null,null,null,"Period3",0,{"$f":"+B02Clue1(INT(0.6*$AJ156+0.4*$AJ151+RAND()*$AO156))","v":"Very strong and unexpected surge in the producer price index"},"Very strong and unexpected surge in the producer price index","Very strong and unexpected surge in the producer price index","Very strong and unexpected surge in the producer price index","Very strong and unexpected surge in the producer price index",5,{"$f":"INT(0.4*AK151+0.6*(1+RAND()*10))","v":2},{"$f":"+$AI$14+(AJ156-1)*$AI$16+$AI$16*RAND()","v":2.9808303371639793E-2},null,null,{"$f":"+AO151","v":7},null,null,null,null,null,null,null,null,null,null,null,null,null,null,null,null,0]
[null,null,null,null,null,null,null,null,null,null,null,null,null,null,null,null,null,null,null,null,null,null,null,null,null,null,null,null,null,68.13333333333334,"Sharp jump in strong GDP forecasts","Sharp jump in strong GDP forecasts","Sharp jump in strong GDP forecasts","Sharp jump in strong GDP forecasts","Sharp jump in strong GDP forecasts",5,{"$f":"+AK156","v":2},2.9808303371639793E-2,null,null,5,null,null,null,null,null,null,null,null,null,null,null,null,null,null,null,null,{"$f":"+INT($AE$8*$AD$10*RAND()+BF156)","v":73}]
[null,null,null,null,null,null,null,null,null,null,null,null,null,null,null,null,null,null,null,null,null,null,null,null,null,null,null,null,null,117.6,"Indicators are reinforcing a positive economic outlook","Indicators are reinforcing a positive economic outlook","Indicators are reinforcing a positive economic outlook","Indicators are reinforcing a positive economic outlook","Indicators are reinforcing a positive economic outlook",5,{"$f":"+AK157","v":2},2.9808303371639793E-2,null,null,3,null,null,null,null,null,null,null,null,null,null,null,null,null,null,null,null,{"$f":"+INT($AE$8*$AD$10*RAND()+BF157)","v":126}]
[null,null,null,null,null,null,null,null,null,null,null,null,null,null,null,null,null,null,null,null,null,null,null,null,null,null,null,null,null,132.53333333333333,"Leading economic indicators match expectations","Leading economic indicators match expectations","Leading economic indicators match expectations","Leading economic indicators match expectations","Leading economic indicators match expectations",5,{"$f":"+AK158","v":2},2.9808303371639793E-2,null,null,2,null,null,null,null,null,null,null,null,null,null,null,null,null,null,null,null,{"$f":"+INT($AE$8*$AD$10*RAND()+BF158)","v":142}]
[null,null,null,null,null,null,null,null,null,null,null,null,null,null,null,null,null,null,null,null,null,null,null,null,null,null,null,null,null,212.8,"Leading indicators suggest positive economic outlook","Leading indicators suggest positive economic outlook","Leading indicators suggest positive economic outlook","Leading indicators suggest positive economic outlook","Leading indicators suggest positive economic outlook",5,{"$f":"+AK159","v":2},2.9808303371639793E-2,null,null,1,null,null,null,null,null,null,null,null,null,null,null,null,null,null,null,null,{"$f":"+INT($AE$8*$AD$10*RAND()+BF159)","v":228}]
[null,null,null,null,null,null,null,null,null,null,null,null,null,null,null,null,null,null,null,null,null,null,null,null,null,null,null,null,"Period4",0,{"$f":"+B02Clue1(INT(0.6*$AJ161+0.4*$AJ156+RAND()*$AO161))","v":"Indicators are reinforcing a positive economic outlook"},{"$f":"+$AE161","v":"Indicators are reinforcing a positive economic outlook"},"Indicators are reinforcing a positive economic outlook","Indicators are reinforcing a positive economic outlook","Indicators are reinforcing a positive economic outlook",5,{"$f":"INT(0.4*AK156+0.6*(1+RAND()*10))","v":2},{"$f":"+$AI$14+(AJ161-1)*$AI$16+$AI$16*RAND()","v":2.7817354250722272E-2},null,null,7,null,null,null,null,null,null,null,null,null,null,null,null,null,null,null,null,0]
[null,null,null,null,null,null,null,null,null,null,null,null,null,null,null,null,null,null,null,null,null,null,null,null,null,null,null,null,null,75.600000000000009,"Geopolitical investment concerns are rapidly fading","Geopolitical investment concerns are rapidly fading","Geopolitical investment concerns are rapidly fading","Geopolitical investment concerns are rapidly fading","Geopolitical investment concerns are rapidly fading",5,{"$f":"+AK161","v":2},2.7817354250722272E-2,null,null,5,null,null,null,null,null,null,null,null,null,null,null,null,null,null,null,null,{"$f":"+INT($AE$8*$AD$10*RAND()+BF161)","v":81}]
[null,null,null,null,null,null,null,null,null,null,null,null,null,null,null,null,null,null,null,null,null,null,null,null,null,null,null,null,null,79.333333333333329,"Geopolitical investment concerns are rapidly fading","Geopolitical investment concerns are rapidly fading","Geopolitical investment concerns are rapidly fading","Geopolitical investment concerns are rapidly fading","Geopolitical investment concerns are rapidly fading",5,{"$f":"+AK162","v":2},2.7817354250722272E-2,null,null,3,null,null,null,null,null,null,null,null,null,null,null,null,null,null,null,null,{"$f":"+INT($AE$8*$AD$10*RAND()+BF162)","v":85}]
[null,null,null,null,null,null,null,null,null,null,null,null,null,null,null,null,null,null,null,null,null,null,null,null,null,null,null,null,null,100.8,"Stock funds experiencing mild selling","Stock funds experiencing mild selling","Stock funds experiencing mild selling","Stock funds experiencing mild selling","Stock funds experiencing mild selling",5,{"$f":"+AK163","v":2},2.7817354250722272E-2,null,null,2,null,null,null,null,null,null,null,null,null,null,null,null,null,null,null,null,{"$f":"+INT($AE$8*$AD$10*RAND()+BF163)","v":108}]
[null,null,null,null,null,null,null,null,null,null,null,null,null,null,null,null,null,null,null,null,null,null,null,null,null,null,null,null,null,112,"Leading economic indicators match expectations","Leading economic indicators match expectations","Leading economic indicators match expectations","Leading economic indicators match expectations","Leading economic indicators match expectations",5,{"$f":"+AK164","v":2},2.7817354250722272E-2,null,null,1,null,null,null,null,null,null,null,null,null,null,null,null,null,null,null,null,{"$f":"+INT($AE$8*$AD$10*RAND()+BF164)","v":120}]
[null,null,null,null,null,null,null,null,null,null,null,null,null,null,null,null,null,null,null,null,null,null,null,null,null,null,null,null,"Period5",0,{"$f":"+B02Clue1(INT(0.6*$AJ166+0.4*$AJ161+RAND()*$AO166))","v":"Large jump in both imports and exports plus trade deficit sharply wider"},"Large jump in both imports and exports plus trade deficit sharply wider","Large jump in both imports and exports plus trade deficit sharply wider","Large jump in both imports and exports plus trade deficit sharply wider","Large jump in both imports and exports plus trade deficit sharply wider",3,{"$f":"INT(0.4*AK161+0.6*(1+RAND()*10))","v":3},{"$f":"+$AI$14+(AJ166-1)*$AI$16+$AI$16*RAND()","v":2.1970197384325148E-2},null,null,7,null,null,null,null,null,null,null,null,null,null,null,null,null,null,null,null,0]
[null,null,null,null,null,null,null,null,null,null,null,null,null,null,null,null,null,null,null,null,null,null,null,null,null,null,null,null,null,31.733333333333331,"Some major corporations have started to trim work force","Some major corporations have started to trim work force","Some major corporations have started to trim work force","Some major corporations have started to trim work force","Some major corporations have started to trim work force",3,{"$f":"+AK166","v":3},2.1970197384325148E-2,null,null,5,null,null,null,null,null,null,null,null,null,null,null,null,null,null,null,null,{"$f":"+INT($AE$8*$AD$10*RAND()+BF166)","v":34}]
[null,null,null,null,null,null,null,null,null,null,null,null,null,null,null,null,null,null,null,null,null,null,null,null,null,null,null,null,null,70.933333333333337,"Fed chairman congressional testimony provides optimism","Fed chairman congressional testimony provides optimism","Fed chairman congressional testimony provides optimism","Fed chairman congressional testimony provides optimism","Fed chairman congressional testimony provides optimism",3,{"$f":"+AK167","v":3},2.1970197384325148E-2,null,null,3,null,null,null,null,null,null,null,null,null,null,null,null,null,null,null,null,{"$f":"+INT($AE$8*$AD$10*RAND()+BF167)","v":76}]
[null,null,null,null,null,null,null,null,null,null,null,null,null,null,null,null,null,null,null,null,null,null,null,null,null,null,null,null,null,77.466666666666669,"Some major corporations have started to trim work force","Some major corporations have started to trim work force","Some major corporations have started to trim work force","Some major corporations have started to trim work force","Some major corporations have started to trim work force",3,{"$f":"+AK168","v":3},2.1970197384325148E-2,null,null,2,null,null,null,null,null,null,null,null,null,null,null,null,null,null,null,null,{"$f":"+INT($AE$8*$AD$10*RAND()+BF168)","v":83}]
[null,null,null,null,null,null,null,null,null,null,null,null,null,null,null,null,null,null,null,null,null,null,null,null,null,null,null,null,null,115.73333333333333,"Some major corporations have started to trim work force","Some major corporations have started to trim work force","Some major corporations have started to trim work force","Some major corporations have started to trim work force","Some major corporations have started to trim work force",3,{"$f":"+AK169","v":3},2.1970197384325148E-2,null,null,1,null,null,null,null,null,null,null,null,null,null,null,null,null,null,null,null,{"$f":"+INT($AE$8*$AD$10*RAND()+BF169)","v":124}]
[null,null,null,null,null,null,null,null,null,null,null,null,null,null,null,null,null,null,null,null,null,null,null,null,null,null,null,null,"Trial 7",0,{"$f":"+B02Clue1(INT($AJ171+RAND()*$AO171))","v":"Consumer price index expected to surge"},"Consumer price index expected to surge","Consumer price index expected to surge","Consumer price index expected to surge","Consumer price index expected to surge",7,{"$f":"INT(1+RAND()*10)","v":3},{"$f":"+$AI$14+(AJ171-1)*$AI$16+$AI$16*RAND()","v":3.794451852181447E-2},null,null,7,null,null,null,null,null,null,null,null,null,null,null,null,null,null,null,null,0]
[null,null,null,null,null,null,null,null,null,null,null,null,null,null,null,null,null,null,null,null,null,null,null,null,null,null,null,null,null,18.666666666666668,{"$f":"+B02Clue1(INT($AJ172+RAND()*$AO172))","v":"Analyst forecast increased earnings for most industries in the economy"},"Analyst forecast increased earnings for most industries in the economy","Analyst forecast increased earnings for most industries in the economy","Analyst forecast increased earnings for most industries in the economy","Analyst forecast increased earnings for most industries in the economy",7,{"$f":"+AK171","v":3},3.794451852181447E-2,null,null,5,null,null,null,null,null,null,null,null,null,null,null,null,null,null,null,null,{"$f":"+INT($AE$8*$AD$10*RAND()+BF171)","v":20}]
[null,null,null,null,null,null,null,null,null,null,null,null,null,null,null,null,null,null,null,null,null,null,null,null,null,null,null,null,null,19.600000000000001,{"$f":"+B02Clue1(INT($AJ173+RAND()*$AO173))","v":"Much stronger economic growth is currently being forecast"},"Much stronger economic growth is currently being forecast","Much stronger economic growth is currently being forecast","Much stronger economic growth is currently being forecast","Much stronger economic growth is currently being forecast",7,3,3.794451852181447E-2,null,null,3,null,null,null,null,null,null,null,null,null,null,null,null,null,null,null,null,{"$f":"+INT($AE$8*$AD$10*RAND()+BF172)","v":21}]
[null,null,null,null,null,null,null,null,null,null,null,null,null,null,null,null,null,null,null,null,null,null,null,null,null,null,null,null,null,98.933333333333337,{"$f":"+B02Clue1(INT($AJ174+RAND()*$AO174))","v":"Geopolitical investment concerns are rapidly fading"},"Geopolitical investment concerns are rapidly fading","Geopolitical investment concerns are rapidly fading","Geopolitical investment concerns are rapidly fading","Geopolitical investment concerns are rapidly fading",7,3,3.794451852181447E-2,null,null,2,null,null,null,null,null,null,null,null,null,null,null,null,null,null,null,null,{"$f":"+INT($AE$8*$AD$10*RAND()+BF173)","v":106}]
[null,null,null,null,null,null,null,null,null,null,null,null,null,null,null,null,null,null,null,null,null,null,null,null,null,null,null,null,null,137.19999999999999,{"$f":"+B02Clue1(INT($AJ175+RAND()*$AO175))","v":"Indicators are reinforcing a positive economic outlook"},"Indicators are reinforcing a positive economic outlook","Indicators are reinforcing a positive economic outlook","Indicators are reinforcing a positive economic outlook","Indicators are reinforcing a positive economic outlook",7,3,3.794451852181447E-2,null,null,1,null,null,null,null,null,null,null,null,null,null,null,null,null,null,null,null,{"$f":"+INT($AE$8*$AD$10*RAND()+BF174)","v":147}]
[null,null,null,null,null,null,null,null,null,null,null,null,null,null,null,null,null,null,null,null,null,null,null,null,null,null,null,null,"Period2 ",0,{"$f":"+B02Clue1(INT(0.6*$AJ176+0.4*$AJ171+RAND()*$AO176))","v":"Consumer price index expected to surge"},"Consumer price index expected to surge","Consumer price index expected to surge","Consumer price index expected to surge","Consumer price index expected to surge",9,{"$f":"INT(0.4*AK171+0.6*(1+RAND()*10))","v":6},{"$f":"+$AI$14+(AJ176-1)*$AI$16+$AI$16*RAND()","v":4.3033803552405395E-2},null,null,7,null,null,null,null,null,null,null,null,null,null,null,null,null,null,null,null,0]
[null,null,null,null,null,null,null,null,null,null,null,null,null,null,null,null,null,null,null,null,null,null,null,null,null,null,null,null,null,0,{"$f":"+B02Clue1(INT(0.6*$AJ177+0.4*$AJ172+RAND()*$AO177))","v":"Analyst forecast increased earnings for most industries in the economy"},"Analyst forecast increased earnings for most industries in the economy","Analyst forecast increased earnings for most industries in the economy","Analyst forecast increased earnings for most industries in the economy","Analyst forecast increased earnings for most industries in the economy",9,{"$f":"+AK176","v":6},{"$f":"+AL176","v":4.3033803552405395E-2},null,null,5,null,null,null,null,null,null,null,null,null,null,null,null,null,null,null,null,{"$f":"+INT($AE$8*$AD$10*RAND()+BF176)","v":0}]
[null,null,null,null,null,null,null,null,null,null,null,null,null,null,null,null,null,null,null,null,null,null,null,null,null,null,null,null,null,70.933333333333337,"Analyst forecast increased earnings for most industries in the economy","Analyst forecast increased earnings for most industries in the economy","Analyst forecast increased earnings for most industries in the economy","Analyst forecast increased earnings for most industries in the economy","Analyst forecast increased earnings for most industries in the economy",9,{"$f":"+AK177","v":6},{"$f":"+AL177","v":4.3033803552405395E-2},null,null,3,null,null,null,null,null,null,null,null,null,null,null,null,null,null,null,null,{"$f":"+INT($AE$8*$AD$10*RAND()+BF177)","v":76}]
[null,null,null,null,null,null,null,null,null,null,null,null,null,null,null,null,null,null,null,null,null,null,null,null,null,null,null,null,null,122.26666666666667,"Factory orders expected to increase sharply","Factory orders expected to increase sharply","Factory orders expected to increase sharply","Factory orders expected to increase sharply","Factory orders expected to increase sharply",9,{"$f":"+AK178","v":6},4.3033803552405395E-2,null,null,2,null,null,null,null,null,null,null,null,null,null,null,null,null,null,null,null,{"$f":"+INT($AE$8*$AD$10*RAND()+BF178)","v":131}]
[null,null,null,null,null,null,null,null,null,null,null,null,null,null,null,null,null,null,null,null,null,null,null,null,null,null,null,null,null,136.26666666666668,"Much stronger economic growth is currently being forecast","Much stronger economic growth is currently being forecast","Much stronger economic growth is currently being forecast","Much stronger economic growth is currently being forecast","Much stronger economic growth is currently being forecast",9,{"$f":"+AK179","v":6},4.3033803552405395E-2,null,null,1,null,null,null,null,null,null,null,null,null,null,null,null,null,null,null,null,{"$f":"+INT($AE$8*$AD$10*RAND()+BF179)","v":146}]
[null,null,null,null,null,null,null,null,null,null,null,null,null,null,null,null,null,null,null,null,null,null,null,null,null,null,null,null,"Period3",0,{"$f":"+B02Clue1(INT(0.6*$AJ181+0.4*$AJ176+RAND()*$AO181))","v":"Consumer price index expected to surge"},{"$f":"+$AE181","v":"Consumer price index expected to surge"},"Consumer price index expected to surge","Consumer price index expected to surge","Consumer price index expected to surge",9,{"$f":"INT(0.4*AK176+0.6*(1+RAND()*10))","v":8},{"$f":"+$AI$14+(AJ181-1)*$AI$16+$AI$16*RAND()","v":4.3817384079633419E-2},null,null,7,null,null,null,null,null,null,null,null,null,null,null,null,null,null,null,null,0]
[null,null,null,null,null,null,null,null,null,null,null,null,null,null,null,null,null,null,null,null,null,null,null,null,null,null,null,null,null,35.466666666666669,"Sharp jump in strong GDP forecasts","Sharp jump in strong GDP forecasts","Sharp jump in strong GDP forecasts","Sharp jump in strong GDP forecasts","Sharp jump in strong GDP forecasts",9,{"$f":"+AK181","v":8},4.3817384079633419E-2,null,null,5,null,null,null,null,null,null,null,null,null,null,null,null,null,null,null,null,{"$f":"+INT($AE$8*$AD$10*RAND()+BF181)","v":38}]
[null,null,null,null,null,null,null,null,null,null,null,null,null,null,null,null,null,null,null,null,null,null,null,null,null,null,null,null,null,118.53333333333333,"Inflationary expectations increased sharply","Inflationary expectations increased sharply","Inflationary expectations increased sharply","Inflationary expectations increased sharply","Inflationary expectations increased sharply",9,{"$f":"+AK182","v":8},4.3817384079633419E-2,null,null,3,null,null,null,null,null,null,null,null,null,null,null,null,null,null,null,null,{"$f":"+INT($AE$8*$AD$10*RAND()+BF182)","v":127}]
[null,null,null,null,null,null,null,null,null,null,null,null,null,null,null,null,null,null,null,null,null,null,null,null,null,null,null,null,null,178.26666666666668,"Large jump in both imports and exports plus trade deficit sharply wider","Large jump in both imports and exports plus trade deficit sharply wider","Large jump in both imports and exports plus trade deficit sharply wider","Large jump in both imports and exports plus trade deficit sharply wider","Large jump in both imports and exports plus trade deficit sharply wider",9,{"$f":"+AK183","v":8},4.3817384079633419E-2,null,null,2,null,null,null,null,null,null,null,null,null,null,null,null,null,null,null,null,{"$f":"+INT($AE$8*$AD$10*RAND()+BF183)","v":191}]
[null,null,null,null,null,null,null,null,null,null,null,null,null,null,null,null,null,null,null,null,null,null,null,null,null,null,null,null,null,221.20000000000002,"Sharp jump in strong GDP forecasts","Sharp jump in strong GDP forecasts","Sharp jump in strong GDP forecasts","Sharp jump in strong GDP forecasts","Sharp jump in strong GDP forecasts",9,{"$f":"+AK184","v":8},4.3817384079633419E-2,null,null,1,null,null,null,null,null,null,null,null,null,null,null,null,null,null,null,null,{"$f":"+INT($AE$8*$AD$10*RAND()+BF184)","v":237}]
[null,null,null,null,null,null,null,null,null,null,null,null,null,null,null,null,null,null,null,null,null,null,null,null,null,null,null,null,"Period4",0,{"$f":"+B02Clue1(INT(0.6*$AJ186+0.4*$AJ181+RAND()*$AO186))","v":"Geopolitical investment concerns are rapidly fading"},"Geopolitical investment concerns are rapidly fading","Geopolitical investment concerns are rapidly fading","Geopolitical investment concerns are rapidly fading","Geopolitical investment concerns are rapidly fading",5,{"$f":"INT(0.4*AK181+0.6*(1+RAND()*10))","v":4},{"$f":"+$AI$14+(AJ186-1)*$AI$16+$AI$16*RAND()","v":2.6711885272507355E-2},null,null,7,null,null,null,null,null,null,null,null,null,null,null,null,null,null,null,null,0]
[null,null,null,null,null,null,null,null,null,null,null,null,null,null,null,null,null,null,null,null,null,null,null,null,null,null,null,null,null,42,"Indicators are reinforcing a positive economic outlook","Indicators are reinforcing a positive economic outlook","Indicators are reinforcing a positive economic outlook","Indicators are reinforcing a positive economic outlook","Indicators are reinforcing a positive economic outlook",5,{"$f":"+AK186","v":4},2.6711885272507355E-2,null,null,5,null,null,null,null,null,null,null,null,null,null,null,null,null,null,null,null,{"$f":"+INT($AE$8*$AD$10*RAND()+BF186)","v":45}]
[null,null,null,null,null,null,null,null,null,null,null,null,null,null,null,null,null,null,null,null,null,null,null,null,null,null,null,null,null,118.53333333333333,"Geopolitical investment concerns are rapidly fading","Geopolitical investment concerns are rapidly fading","Geopolitical investment concerns are rapidly fading","Geopolitical investment concerns are rapidly fading","Geopolitical investment concerns are rapidly fading",5,{"$f":"+AK187","v":4},2.6711885272507355E-2,null,null,3,null,null,null,null,null,null,null,null,null,null,null,null,null,null,null,null,{"$f":"+INT($AE$8*$AD$10*RAND()+BF187)","v":127}]
[null,null,null,null,null,null,null,null,null,null,null,null,null,null,null,null,null,null,null,null,null,null,null,null,null,null,null,null,null,126.93333333333332,"Factory orders expected to increase sharply","Factory orders expected to increase sharply","Factory orders expected to increase sharply","Factory orders expected to increase sharply","Factory orders expected to increase sharply",5,{"$f":"+AK188","v":4},2.6711885272507355E-2,null,null,2,null,null,null,null,null,null,null,null,null,null,null,null,null,null,null,null,{"$f":"+INT($AE$8*$AD$10*RAND()+BF188)","v":136}]
[null,null,null,null,null,null,null,null,null,null,null,null,null,null,null,null,null,null,null,null,null,null,null,null,null,null,null,null,null,154,"Indicators are reinforcing a positive economic outlook","Indicators are reinforcing a positive economic outlook","Indicators are reinforcing a positive economic outlook","Indicators are reinforcing a positive economic outlook","Indicators are reinforcing a positive economic outlook",5,{"$f":"+AK189","v":4},2.6711885272507355E-2,null,null,1,null,null,null,null,null,null,null,null,null,null,null,null,null,null,null,null,{"$f":"+INT($AE$8*$AD$10*RAND()+BF189)","v":165}]
[null,null,null,null,null,null,null,null,null,null,null,null,null,null,null,null,null,null,null,null,null,null,null,null,null,null,null,null,"Period5",0,{"$f":"+B02Clue1(INT(0.6*$AJ191+0.4*$AJ186+RAND()*$AO191))","v":"Consumer price index expected to surge"},"Consumer price index expected to surge","Consumer price index expected to surge","Consumer price index expected to surge","Consumer price index expected to surge",7,{"$f":"INT(0.4*AK186+0.6*(1+RAND()*10))","v":3},{"$f":"+$AI$14+(AJ191-1)*$AI$16+$AI$16*RAND()","v":3.4705790052990487E-2},null,null,7,null,null,null,null,null,null,null,null,null,null,null,null,null,null,null,null,0]
[null,null,null,null,null,null,null,null,null,null,null,null,null,null,null,null,null,null,null,null,null,null,null,null,null,null,null,null,null,67.2,"Sharp jump in strong GDP forecasts","Sharp jump in strong GDP forecasts","Sharp jump in strong GDP forecasts","Sharp jump in strong GDP forecasts","Sharp jump in strong GDP forecasts",7,{"$f":"+AK191","v":3},3.4705790052990487E-2,null,null,5,null,null,null,null,null,null,null,null,null,null,null,null,null,null,null,null,{"$f":"+INT($AE$8*$AD$10*RAND()+BF191)","v":72}]
[null,null,null,null,null,null,null,null,null,null,null,null,null,null,null,null,null,null,null,null,null,null,null,null,null,null,null,null,null,99.866666666666674,"Analyst forecast increased earnings for most industries in the economy","Analyst forecast increased earnings for most industries in the economy","Analyst forecast increased earnings for most industries in the economy","Analyst forecast increased earnings for most industries in the economy","Analyst forecast increased earnings for most industries in the economy",7,{"$f":"+AK192","v":3},3.4705790052990487E-2,null,null,3,null,null,null,null,null,null,null,null,null,null,null,null,null,null,null,null,{"$f":"+INT($AE$8*$AD$10*RAND()+BF192)","v":107}]
[null,null,null,null,null,null,null,null,null,null,null,null,null,null,null,null,null,null,null,null,null,null,null,null,null,null,null,null,null,123.2,"Indicators are reinforcing a positive economic outlook","Indicators are reinforcing a positive economic outlook","Indicators are reinforcing a positive economic outlook","Indicators are reinforcing a positive economic outlook","Indicators are reinforcing a positive economic outlook",7,{"$f":"+AK193","v":3},3.4705790052990487E-2,null,null,2,null,null,null,null,null,null,null,null,null,null,null,null,null,null,null,null,{"$f":"+INT($AE$8*$AD$10*RAND()+BF193)","v":132}]
[null,null,null,null,null,null,null,null,null,null,null,null,null,null,null,null,null,null,null,null,null,null,null,null,null,null,null,null,null,196,"Leading indicators suggest positive economic outlook","Leading indicators suggest positive economic outlook","Leading indicators suggest positive economic outlook","Leading indicators suggest positive economic outlook","Leading indicators suggest positive economic outlook",7,{"$f":"+AK194","v":3},3.4705790052990487E-2,null,null,1,null,null,null,null,null,null,null,null,null,null,null,null,null,null,null,null,{"$f":"+INT($AE$8*$AD$10*RAND()+BF194)","v":210}]
[null,null,null,null,null,null,null,null,null,null,null,null,null,null,null,null,null,null,null,null,null,null,null,null,null,null,null,null,"Trial 8",0,{"$f":"+B02Clue1(INT($AJ196+RAND()*$AO196))","v":"Factory orders expected to increase sharply"},"Factory orders expected to increase sharply","Factory orders expected to increase sharply","Factory orders expected to increase sharply","Factory orders expected to increase sharply",5,{"$f":"INT(1+RAND()*10)","v":8},{"$f":"+$AI$14+(AJ196-1)*$AI$16+$AI$16*RAND()","v":2.8118825970108272E-2},null,null,7,null,null,null,null,null,null,null,null,null,null,null,null,null,null,null,null,0]
[null,null,null,null,null,null,null,null,null,null,null,null,null,null,null,null,null,null,null,null,null,null,null,null,null,null,null,null,null,40.133333333333333,{"$f":"+B02Clue1(INT($AJ197+RAND()*$AO197))","v":"Leading economic indicators match expectations"},"Leading economic indicators match expectations","Leading economic indicators match expectations","Leading economic indicators match expectations","Leading economic indicators match expectations",5,{"$f":"+AK196","v":8},2.8118825970108272E-2,null,null,5,null,null,null,null,null,null,null,null,null,null,null,null,null,null,null,null,{"$f":"+INT($AE$8*$AD$10*RAND()+BF196)","v":43}]
[null,null,null,null,null,null,null,null,null,null,null,null,null,null,null,null,null,null,null,null,null,null,null,null,null,null,null,null,null,71.86666666666666,{"$f":"+B02Clue1(INT($AJ198+RAND()*$AO198))","v":"Indicators are reinforcing a positive economic outlook"},"Indicators are reinforcing a positive economic outlook","Indicators are reinforcing a positive economic outlook","Indicators are reinforcing a positive economic outlook","Indicators are reinforcing a positive economic outlook",5,8,2.8118825970108272E-2,null,null,3,null,null,null,null,null,null,null,null,null,null,null,null,null,null,null,null,{"$f":"+INT($AE$8*$AD$10*RAND()+BF197)","v":77}]
[null,null,null,null,null,null,null,null,null,null,null,null,null,null,null,null,null,null,null,null,null,null,null,null,null,null,null,null,null,135.33333333333334,{"$f":"+B02Clue1(INT($AJ199+RAND()*$AO199))","v":"Fed chairman congressional testimony provides optimism"},"Fed chairman congressional testimony provides optimism","Fed chairman congressional testimony provides optimism","Fed chairman congressional testimony provides optimism","Fed chairman congressional testimony provides optimism",5,8,2.8118825970108272E-2,null,null,2,null,null,null,null,null,null,null,null,null,null,null,null,null,null,null,null,{"$f":"+INT($AE$8*$AD$10*RAND()+BF198)","v":145}]
[null,null,null,null,null,null,null,null,null,null,null,null,null,null,null,null,null,null,null,null,null,null,null,null,null,null,null,null,null,187.60000000000002,{"$f":"+B02Clue1(INT($AJ200+RAND()*$AO200))","v":"Leading economic indicators match expectations"},"Leading economic indicators match expectations","Leading economic indicators match expectations","Leading economic indicators match expectations","Leading economic indicators match expectations",5,8,2.8118825970108272E-2,null,null,1,null,null,null,null,null,null,null,null,null,null,null,null,null,null,null,null,{"$f":"+INT($AE$8*$AD$10*RAND()+BF199)","v":201}]
[null,null,null,null,null,null,null,null,null,null,null,null,null,null,null,null,null,null,null,null,null,null,null,null,null,null,null,null,"Period2 ",0,{"$f":"+B02Clue1(INT(0.6*$AJ201+0.4*$AJ196+RAND()*$AO201))","v":"Large jump in both imports and exports plus trade deficit sharply wider"},{"$f":"+$AE201","v":"Large jump in both imports and exports plus trade deficit sharply wider"},"Large jump in both imports and exports plus trade deficit sharply wider","Large jump in both imports and exports plus trade deficit sharply wider","Large jump in both imports and exports plus trade deficit sharply wider",8,{"$f":"INT(0.4*AK196+0.6*(1+RAND()*10))","v":4},{"$f":"+$AI$14+(AJ201-1)*$AI$16+$AI$16*RAND()","v":4.1346258448731882E-2},null,null,7,null,null,null,null,null,null,null,null,null,null,null,null,null,null,null,null,0]
[null,null,null,null,null,null,null,null,null,null,null,null,null,null,null,null,null,null,null,null,null,null,null,null,null,null,null,null,null,8.4,{"$f":"+B02Clue1(INT(0.6*$AJ202+0.4*$AJ197+RAND()*$AO202))","v":"Sharp jump in strong GDP forecasts"},"Sharp jump in strong GDP forecasts","Sharp jump in strong GDP forecasts","Sharp jump in strong GDP forecasts","Sharp jump in strong GDP forecasts",8,{"$f":"+AK201","v":4},{"$f":"+AL201","v":4.1346258448731882E-2},null,null,5,null,null,null,null,null,null,null,null,null,null,null,null,null,null,null,null,{"$f":"+INT($AE$8*$AD$10*RAND()+BF201)","v":9}]
[null,null,null,null,null,null,null,null,null,null,null,null,null,null,null,null,null,null,null,null,null,null,null,null,null,null,null,null,null,49.466666666666669,"Factory orders expected to increase sharply","Factory orders expected to increase sharply","Factory orders expected to increase sharply","Factory orders expected to increase sharply","Factory orders expected to increase sharply",8,{"$f":"+AK202","v":4},{"$f":"+AL202","v":4.1346258448731882E-2},null,null,3,null,null,null,null,null,null,null,null,null,null,null,null,null,null,null,null,{"$f":"+INT($AE$8*$AD$10*RAND()+BF202)","v":53}]
[null,null,null,null,null,null,null,null,null,null,null,null,null,null,null,null,null,null,null,null,null,null,null,null,null,null,null,null,null,49.466666666666669,"Analyst forecast increased earnings for most industries in the economy","Analyst forecast increased earnings for most industries in the economy","Analyst forecast increased earnings for most industries in the economy","Analyst forecast increased earnings for most industries in the economy","Analyst forecast increased earnings for most industries in the economy",8,{"$f":"+AK203","v":4},4.1346258448731882E-2,null,null,2,null,null,null,null,null,null,null,null,null,null,null,null,null,null,null,null,{"$f":"+INT($AE$8*$AD$10*RAND()+BF203)","v":53}]
[null,null,null,null,null,null,null,null,null,null,null,null,null,null,null,null,null,null,null,null,null,null,null,null,null,null,null,null,null,56,"Indicators are reinforcing a positive economic outlook","Indicators are reinforcing a positive economic outlook","Indicators are reinforcing a positive economic outlook","Indicators are reinforcing a positive economic outlook","Indicators are reinforcing a positive economic outlook",8,{"$f":"+AK204","v":4},4.1346258448731882E-2,null,null,1,null,null,null,null,null,null,null,null,null,null,null,null,null,null,null,null,{"$f":"+INT($AE$8*$AD$10*RAND()+BF204)","v":60}]
[null,null,null,null,null,null,null,null,null,null,null,null,null,null,null,null,null,null,null,null,null,null,null,null,null,null,null,null,"Period3",0,{"$f":"+B02Clue1(INT(0.6*$AJ206+0.4*$AJ201+RAND()*$AO206))","v":"Inflationary expectations increased sharply"},"Inflationary expectations increased sharply","Inflationary expectations increased sharply","Inflationary expectations increased sharply","Inflationary expectations increased sharply",4,{"$f":"INT(0.4*AK201+0.6*(1+RAND()*10))","v":6},{"$f":"+$AI$14+(AJ206-1)*$AI$16+$AI$16*RAND()","v":2.2629657089923042E-2},null,null,7,null,null,null,null,null,null,null,null,null,null,null,null,null,null,null,null,0]
[null,null,null,null,null,null,null,null,null,null,null,null,null,null,null,null,null,null,null,null,null,null,null,null,null,null,null,null,null,56.933333333333337,"Large jump in both imports and exports plus trade deficit sharply wider","Large jump in both imports and exports plus trade deficit sharply wider","Large jump in both imports and exports plus trade deficit sharply wider","Large jump in both imports and exports plus trade deficit sharply wider","Large jump in both imports and exports plus trade deficit sharply wider",4,{"$f":"+AK206","v":6},2.2629657089923042E-2,null,null,5,null,null,null,null,null,null,null,null,null,null,null,null,null,null,null,null,{"$f":"+INT($AE$8*$AD$10*RAND()+BF206)","v":61}]
[null,null,null,null,null,null,null,null,null,null,null,null,null,null,null,null,null,null,null,null,null,null,null,null,null,null,null,null,null,127.86666666666666,"Analyst forecast increased earnings for most industries in the economy","Analyst forecast increased earnings for most industries in the economy","Analyst forecast increased earnings for most industries in the economy","Analyst forecast increased earnings for most industries in the economy","Analyst forecast increased earnings for most industries in the economy",4,{"$f":"+AK207","v":6},2.2629657089923042E-2,null,null,3,null,null,null,null,null,null,null,null,null,null,null,null,null,null,null,null,{"$f":"+INT($AE$8*$AD$10*RAND()+BF207)","v":137}]
[null,null,null,null,null,null,null,null,null,null,null,null,null,null,null,null,null,null,null,null,null,null,null,null,null,null,null,null,null,205.33333333333331,"Leading indicators suggest positive economic outlook","Leading indicators suggest positive economic outlook","Leading indicators suggest positive economic outlook","Leading indicators suggest positive economic outlook","Leading indicators suggest positive economic outlook",4,{"$f":"+AK208","v":6},2.2629657089923042E-2,null,null,2,null,null,null,null,null,null,null,null,null,null,null,null,null,null,null,null,{"$f":"+INT($AE$8*$AD$10*RAND()+BF208)","v":220}]
[null,null,null,null,null,null,null,null,null,null,null,null,null,null,null,null,null,null,null,null,null,null,null,null,null,null,null,null,null,270.66666666666669,"Leading economic indicators match expectations","Leading economic indicators match expectations","Leading economic indicators match expectations","Leading economic indicators match expectations","Leading economic indicators match expectations",4,{"$f":"+AK209","v":6},2.2629657089923042E-2,null,null,1,null,null,null,null,null,null,null,null,null,null,null,null,null,null,null,null,{"$f":"+INT($AE$8*$AD$10*RAND()+BF209)","v":290}]
[null,null,null,null,null,null,null,null,null,null,null,null,null,null,null,null,null,null,null,null,null,null,null,null,null,null,null,null,"Period4",0,{"$f":"+B02Clue1(INT(0.6*$AJ211+0.4*$AJ206+RAND()*$AO211))","v":"Much stronger economic growth is currently being forecast"},"Much stronger economic growth is currently being forecast","Much stronger economic growth is currently being forecast","Much stronger economic growth is currently being forecast","Much stronger economic growth is currently being forecast",4,{"$f":"INT(0.4*AK206+0.6*(1+RAND()*10))","v":3},{"$f":"+$AI$14+(AJ211-1)*$AI$16+$AI$16*RAND()","v":2.5471159429185802E-2},null,null,7,null,null,null,null,null,null,null,null,null,null,null,null,null,null,null,null,0]
[null,null,null,null,null,null,null,null,null,null,null,null,null,null,null,null,null,null,null,null,null,null,null,null,null,null,null,null,null,75.600000000000009,"Leading economic indicators match expectations","Leading economic indicators match expectations","Leading economic indicators match expectations","Leading economic indicators match expectations","Leading economic indicators match expectations",4,{"$f":"+AK211","v":3},2.5471159429185802E-2,null,null,5,null,null,null,null,null,null,null,null,null,null,null,null,null,null,null,null,{"$f":"+INT($AE$8*$AD$10*RAND()+BF211)","v":81}]
[null,null,null,null,null,null,null,null,null,null,null,null,null,null,null,null,null,null,null,null,null,null,null,null,null,null,null,null,null,114.8,"Geopolitical concerns starting to worry investors","Geopolitical concerns starting to worry investors","Geopolitical concerns starting to worry investors","Geopolitical concerns starting to worry investors","Geopolitical concerns starting to worry investors",4,{"$f":"+AK212","v":3},2.5471159429185802E-2,null,null,3,null,null,null,null,null,null,null,null,null,null,null,null,null,null,null,null,{"$f":"+INT($AE$8*$AD$10*RAND()+BF212)","v":123}]
[null,null,null,null,null,null,null,null,null,null,null,null,null,null,null,null,null,null,null,null,null,null,null,null,null,null,null,null,null,192.26666666666665,"Some major corporations have started to trim work force","Some major corporations have started to trim work force","Some major corporations have started to trim work force","Some major corporations have started to trim work force","Some major corporations have started to trim work force",4,{"$f":"+AK213","v":3},2.5471159429185802E-2,null,null,2,null,null,null,null,null,null,null,null,null,null,null,null,null,null,null,null,{"$f":"+INT($AE$8*$AD$10*RAND()+BF213)","v":206}]
[null,null,null,null,null,null,null,null,null,null,null,null,null,null,null,null,null,null,null,null,null,null,null,null,null,null,null,null,null,{"$f":"+(BF215/300)*$AD$18","v":233.33333333333334},"Some major corporations have started to trim work force","Some major corporations have started to trim work force","Some major corporations have started to trim work force","Some major corporations have started to trim work force","Some major corporations have started to trim work force",4,{"$f":"+AK214","v":3},2.5471159429185802E-2,null,null,1,null,null,null,null,null,null,null,null,null,null,null,null,null,null,null,null,{"$f":"+INT($AE$8*$AD$10*RAND()+BF214)","v":250}]
[null,null,null,null,null,null,null,null,null,null,null,null,null,null,null,null,null,null,null,null,null,null,null,null,null,null,null,null,"Period5",0,{"$f":"+B02Clue1(INT(0.6*$AJ216+0.4*$AJ211+RAND()*$AO216))","v":"Very strong and unexpected surge in the producer price index"},"Very strong and unexpected surge in the producer price index","Very strong and unexpected surge in the producer price index","Very strong and unexpected surge in the producer price index","Very strong and unexpected surge in the producer price index",4,{"$f":"INT(0.4*AK211+0.6*(1+RAND()*10))","v":2},{"$f":"+$AI$14+(AJ216-1)*$AI$16+$AI$16*RAND()","v":2.5548338654789372E-2},null,null,7,null,null,null,null,null,null,null,null,null,null,null,null,null,null,null,null,0]
[null,null,null,null,null,null,null,null,null,null,null,null,null,null,null,null,null,null,null,null,null,null,null,null,null,null,null,null,null,28.933333333333334,"Indicators are reinforcing a positive economic outlook","Indicators are reinforcing a positive economic outlook","Indicators are reinforcing a positive economic outlook","Indicators are reinforcing a positive economic outlook","Indicators are reinforcing a positive economic outlook",4,{"$f":"+AK216","v":2},2.5548338654789372E-2,null,null,5,null,null,null,null,null,null,null,null,null,null,null,null,null,null,null,null,{"$f":"+INT($AE$8*$AD$10*RAND()+BF216)","v":31}]
[null,null,null,null,null,null,null,null,null,null,null,null,null,null,null,null,null,null,null,null,null,null,null,null,null,null,null,null,null,106.4,"Leading indicators suggest positive economic outlook","Leading indicators suggest positive economic outlook","Leading indicators suggest positive economic outlook","Leading indicators suggest positive economic outlook","Leading indicators suggest positive economic outlook",4,{"$f":"+AK217","v":2},2.5548338654789372E-2,null,null,3,null,null,null,null,null,null,null,null,null,null,null,null,null,null,null,null,{"$f":"+INT($AE$8*$AD$10*RAND()+BF217)","v":114}]
[null,null,null,null,null,null,null,null,null,null,null,null,null,null,null,null,null,null,null,null,null,null,null,null,null,null,null,null,null,118.53333333333333,"Some major corporations have started to trim work force","Some major corporations have started to trim work force","Some major corporations have started to trim work force","Some major corporations have started to trim work force","Some major corporations have started to trim work force",4,{"$f":"+AK218","v":2},2.5548338654789372E-2,null,null,2,null,null,null,null,null,null,null,null,null,null,null,null,null,null,null,null,{"$f":"+INT($AE$8*$AD$10*RAND()+BF218)","v":127}]
[null,null,null,null,null,null,null,null,null,null,null,null,null,null,null,null,null,null,null,null,null,null,null,null,null,null,null,null,null,177.33333333333331,"Some major corporations have started to trim work force","Some major corporations have started to trim work force","Some major corporations have started to trim work force","Some major corporations have started to trim work force","Some major corporations have started to trim work force",4,{"$f":"+AK219","v":2},2.5548338654789372E-2,null,null,{"$f":"+AO215","v":1},null,null,null,null,null,null,null,null,null,null,null,null,null,null,null,null,{"$f":"+INT($AE$8*$AD$10*RAND()+BF219)","v":190}]
[null,null,null,null,null,null,null,null,null,null,null,null,null,null,null,null,null,null,null,null,null,null,null,null,null,null,null,null,"Trial 9",0,{"$f":"+B02Clue1(INT($AJ221+RAND()*$AO221))","v":"Very strong and unexpected surge in the producer price index"},{"$f":"+$AE221","v":"Very strong and unexpected surge in the producer price index"},"Very strong and unexpected surge in the producer price index","Very strong and unexpected surge in the producer price index","Very strong and unexpected surge in the producer price index",7,{"$f":"INT(1+RAND()*10)","v":9},{"$f":"+$AI$14+(AJ221-1)*$AI$16+$AI$16*RAND()","v":3.5899372304731322E-2},null,null,7,null,null,null,null,null,null,null,null,null,null,null,null,null,null,null,null,0]
[null,null,null,null,null,null,null,null,null,null,null,null,null,null,null,null,null,null,null,null,null,null,null,null,null,null,null,null,null,80.266666666666666,{"$f":"+B02Clue1(INT($AJ222+RAND()*$AO222))","v":"Sharp jump in strong GDP forecasts"},"Sharp jump in strong GDP forecasts","Sharp jump in strong GDP forecasts","Sharp jump in strong GDP forecasts","Sharp jump in strong GDP forecasts",7,{"$f":"+AK221","v":9},3.5899372304731322E-2,null,null,5,null,null,null,null,null,null,null,null,null,null,null,null,null,null,null,null,{"$f":"+INT($AE$8*$AD$10*RAND()+BF221)","v":86}]
[null,null,null,null,null,null,null,null,null,null,null,null,null,null,null,null,null,null,null,null,null,null,null,null,null,null,null,null,null,98,{"$f":"+B02Clue1(INT($AJ223+RAND()*$AO223))","v":"Sharp jump in strong GDP forecasts"},"Sharp jump in strong GDP forecasts","Sharp jump in strong GDP forecasts","Sharp jump in strong GDP forecasts","Sharp jump in strong GDP forecasts",7,9,3.5899372304731322E-2,null,null,3,null,null,null,null,null,null,null,null,null,null,null,null,null,null,null,null,{"$f":"+INT($AE$8*$AD$10*RAND()+BF222)","v":105}]
[null,null,null,null,null,null,null,null,null,null,null,null,null,null,null,null,null,null,null,null,null,null,null,null,null,null,null,null,null,158.66666666666666,{"$f":"+B02Clue1(INT($AJ224+RAND()*$AO224))","v":"Indicators are reinforcing a positive economic outlook"},"Indicators are reinforcing a positive economic outlook","Indicators are reinforcing a positive economic outlook","Indicators are reinforcing a positive economic outlook","Indicators are reinforcing a positive economic outlook",7,9,3.5899372304731322E-2,null,null,2,null,null,null,null,null,null,null,null,null,null,null,null,null,null,null,null,{"$f":"+INT($AE$8*$AD$10*RAND()+BF223)","v":170}]
[null,null,null,null,null,null,null,null,null,null,null,null,null,null,null,null,null,null,null,null,null,null,null,null,null,null,null,null,null,208.13333333333333,{"$f":"+B02Clue1(INT($AJ225+RAND()*$AO225))","v":"Indicators are reinforcing a positive economic outlook"},"Indicators are reinforcing a positive economic outlook","Indicators are reinforcing a positive economic outlook","Indicators are reinforcing a positive economic outlook","Indicators are reinforcing a positive economic outlook",7,9,3.5899372304731322E-2,null,null,1,null,null,null,null,null,null,null,null,null,null,null,null,null,null,null,null,{"$f":"+INT($AE$8*$AD$10*RAND()+BF224)","v":223}]
[null,null,null,null,null,null,null,null,null,null,null,null,null,null,null,null,null,null,null,null,null,null,null,null,null,null,null,null,"Period2 ",0,{"$f":"+B02Clue1(INT(0.6*$AJ226+0.4*$AJ221+RAND()*$AO226))","v":"Analyst forecast increased earnings for most industries in the economy"},"Analyst forecast increased earnings for most industries in the economy","Analyst forecast increased earnings for most industries in the economy","Analyst forecast increased earnings for most industries in the economy","Analyst forecast increased earnings for most industries in the economy",7,{"$f":"INT(0.4*AK221+0.6*(1+RAND()*10))","v":4},{"$f":"+$AI$14+(AJ226-1)*$AI$16+$AI$16*RAND()","v":3.7859777438855137E-2},null,null,7,null,null,null,null,null,null,null,null,null,null,null,null,null,null,null,null,0]
[null,null,null,null,null,null,null,null,null,null,null,null,null,null,null,null,null,null,null,null,null,null,null,null,null,null,null,null,null,46.666666666666664,{"$f":"+B02Clue1(INT(0.6*$AJ227+0.4*$AJ222+RAND()*$AO227))","v":"Indicators are reinforcing a positive economic outlook"},"Indicators are reinforcing a positive economic outlook","Indicators are reinforcing a positive economic outlook","Indicators are reinforcing a positive economic outlook","Indicators are reinforcing a positive economic outlook",7,{"$f":"+AK226","v":4},{"$f":"+AL226","v":3.7859777438855137E-2},null,null,5,null,null,null,null,null,null,null,null,null,null,null,null,null,null,null,null,{"$f":"+INT($AE$8*$AD$10*RAND()+BF226)","v":50}]
[null,null,null,null,null,null,null,null,null,null,null,null,null,null,null,null,null,null,null,null,null,null,null,null,null,null,null,null,null,96.133333333333326,"Much stronger economic growth is currently being forecast","Much stronger economic growth is currently being forecast","Much stronger economic growth is currently being forecast","Much stronger economic growth is currently being forecast","Much stronger economic growth is currently being forecast",7,{"$f":"+AK227","v":4},{"$f":"+AL227","v":3.7859777438855137E-2},null,null,3,null,null,null,null,null,null,null,null,null,null,null,null,null,null,null,null,{"$f":"+INT($AE$8*$AD$10*RAND()+BF227)","v":103}]
[null,null,null,null,null,null,null,null,null,null,null,null,null,null,null,null,null,null,null,null,null,null,null,null,null,null,null,null,null,114.8,"Analyst forecast increased earnings for most industries in the economy","Analyst forecast increased earnings for most industries in the economy","Analyst forecast increased earnings for most industries in the economy","Analyst forecast increased earnings for most industries in the economy","Analyst forecast increased earnings for most industries in the economy",7,{"$f":"+AK228","v":4},3.7859777438855137E-2,null,null,2,null,null,null,null,null,null,null,null,null,null,null,null,null,null,null,null,{"$f":"+INT($AE$8*$AD$10*RAND()+BF228)","v":123}]
[null,null,null,null,null,null,null,null,null,null,null,null,null,null,null,null,null,null,null,null,null,null,null,null,null,null,null,null,null,147.46666666666664,"Indicators are reinforcing a positive economic outlook","Indicators are reinforcing a positive economic outlook","Indicators are reinforcing a positive economic outlook","Indicators are reinforcing a positive economic outlook","Indicators are reinforcing a positive economic outlook",7,{"$f":"+AK229","v":4},3.7859777438855137E-2,null,null,1,null,null,null,null,null,null,null,null,null,null,null,null,null,null,null,null,{"$f":"+INT($AE$8*$AD$10*RAND()+BF229)","v":158}]
[null,null,null,null,null,null,null,null,null,null,null,null,null,null,null,null,null,null,null,null,null,null,null,null,null,null,null,null,"Period3",0,{"$f":"+B02Clue1(INT(0.6*$AJ231+0.4*$AJ226+RAND()*$AO231))","v":"Consumer price index expected to surge"},"Consumer price index expected to surge","Consumer price index expected to surge","Consumer price index expected to surge","Consumer price index expected to surge",6,{"$f":"INT(0.4*AK226+0.6*(1+RAND()*10))","v":4},{"$f":"+$AI$14+(AJ231-1)*$AI$16+$AI$16*RAND()","v":3.2879861323653295E-2},null,null,7,null,null,null,null,null,null,null,null,null,null,null,null,null,null,null,null,0]
[null,null,null,null,null,null,null,null,null,null,null,null,null,null,null,null,null,null,null,null,null,null,null,null,null,null,null,null,null,11.200000000000001,"Inflationary expectations increased sharply","Inflationary expectations increased sharply","Inflationary expectations increased sharply","Inflationary expectations increased sharply","Inflationary expectations increased sharply",6,{"$f":"+AK231","v":4},3.2879861323653295E-2,null,null,5,null,null,null,null,null,null,null,null,null,null,null,null,null,null,null,null,{"$f":"+INT($AE$8*$AD$10*RAND()+BF231)","v":12}]
[null,null,null,null,null,null,null,null,null,null,null,null,null,null,null,null,null,null,null,null,null,null,null,null,null,null,null,null,null,33.6,"Indicators are reinforcing a positive economic outlook","Indicators are reinforcing a positive economic outlook","Indicators are reinforcing a positive economic outlook","Indicators are reinforcing a positive economic outlook","Indicators are reinforcing a positive economic outlook",6,{"$f":"+AK232","v":4},3.2879861323653295E-2,null,null,3,null,null,null,null,null,null,null,null,null,null,null,null,null,null,null,null,{"$f":"+INT($AE$8*$AD$10*RAND()+BF232)","v":36}]
[null,null,null,null,null,null,null,null,null,null,null,null,null,null,null,null,null,null,null,null,null,null,null,null,null,null,null,null,null,97.066666666666663,"Indicators are reinforcing a positive economic outlook","Indicators are reinforcing a positive economic outlook","Indicators are reinforcing a positive economic outlook","Indicators are reinforcing a positive economic outlook","Indicators are reinforcing a positive economic outlook",6,{"$f":"+AK233","v":4},3.2879861323653295E-2,null,null,2,null,null,null,null,null,null,null,null,null,null,null,null,null,null,null,null,{"$f":"+INT($AE$8*$AD$10*RAND()+BF233)","v":104}]
[null,null,null,null,null,null,null,null,null,null,null,null,null,null,null,null,null,null,null,null,null,null,null,null,null,null,null,null,null,119.46666666666667,"Geopolitical investment concerns are rapidly fading","Geopolitical investment concerns are rapidly fading","Geopolitical investment concerns are rapidly fading","Geopolitical investment concerns are rapidly fading","Geopolitical investment concerns are rapidly fading",6,{"$f":"+AK234","v":4},3.2879861323653295E-2,null,null,1,null,null,null,null,null,null,null,null,null,null,null,null,null,null,null,null,{"$f":"+INT($AE$8*$AD$10*RAND()+BF234)","v":128}]
[null,null,null,null,null,null,null,null,null,null,null,null,null,null,null,null,null,null,null,null,null,null,null,null,null,null,null,null,"Period4",0,{"$f":"+B02Clue1(INT(0.6*$AJ236+0.4*$AJ231+RAND()*$AO236))","v":"Analyst forecast increased earnings for most industries in the economy"},"Analyst forecast increased earnings for most industries in the economy","Analyst forecast increased earnings for most industries in the economy","Analyst forecast increased earnings for most industries in the economy","Analyst forecast increased earnings for most industries in the economy",4,{"$f":"INT(0.4*AK231+0.6*(1+RAND()*10))","v":3},{"$f":"+$AI$14+(AJ236-1)*$AI$16+$AI$16*RAND()","v":2.5846507945470158E-2},null,null,7,null,null,null,null,null,null,null,null,null,null,null,null,null,null,null,null,0]
[null,null,null,null,null,null,null,null,null,null,null,null,null,null,null,null,null,null,null,null,null,null,null,null,null,null,null,null,null,14.933333333333334,"Stock funds experiencing mild selling","Stock funds experiencing mild selling","Stock funds experiencing mild selling","Stock funds experiencing mild selling","Stock funds experiencing mild selling",4,{"$f":"+AK236","v":3},2.5846507945470158E-2,null,null,5,null,null,null,null,null,null,null,null,null,null,null,null,null,null,null,null,{"$f":"+INT($AE$8*$AD$10*RAND()+BF236)","v":16}]
[null,null,null,null,null,null,null,null,null,null,null,null,null,null,null,null,null,null,null,null,null,null,null,null,null,null,null,null,null,41.06666666666667,"Leading indicators suggest positive economic outlook","Leading indicators suggest positive economic outlook","Leading indicators suggest positive economic outlook","Leading indicators suggest positive economic outlook","Leading indicators suggest positive economic outlook",4,{"$f":"+AK237","v":3},2.5846507945470158E-2,null,null,3,null,null,null,null,null,null,null,null,null,null,null,null,null,null,null,null,{"$f":"+INT($AE$8*$AD$10*RAND()+BF237)","v":44}]
[null,null,null,null,null,null,null,null,null,null,null,null,null,null,null,null,null,null,null,null,null,null,null,null,null,null,null,null,null,111.06666666666666,"Some major corporations have started to trim work force","Some major corporations have started to trim work force","Some major corporations have started to trim work force","Some major corporations have started to trim work force","Some major corporations have started to trim work force",4,{"$f":"+AK238","v":3},2.5846507945470158E-2,null,null,2,null,null,null,null,null,null,null,null,null,null,null,null,null,null,null,null,{"$f":"+INT($AE$8*$AD$10*RAND()+BF238)","v":119}]
[null,null,null,null,null,null,null,null,null,null,null,null,null,null,null,null,null,null,null,null,null,null,null,null,null,null,null,null,null,131.6,"Stock funds experiencing mild selling","Stock funds experiencing mild selling","Stock funds experiencing mild selling","Stock funds experiencing mild selling","Stock funds experiencing mild selling",4,{"$f":"+AK239","v":3},2.5846507945470158E-2,null,null,1,null,null,null,null,null,null,null,null,null,null,null,null,null,null,null,null,{"$f":"+INT($AE$8*$AD$10*RAND()+BF239)","v":141}]
[null,null,null,null,null,null,null,null,null,null,null,null,null,null,null,null,null,null,null,null,null,null,null,null,null,null,null,null,"Period5",0,{"$f":"+B02Clue1(INT(0.6*$AJ241+0.4*$AJ236+RAND()*$AO241))","v":"Sharp jump in strong GDP forecasts"},{"$f":"+$AE241","v":"Sharp jump in strong GDP forecasts"},"Sharp jump in strong GDP forecasts","Sharp jump in strong GDP forecasts","Sharp jump in strong GDP forecasts",2,{"$f":"INT(0.4*AK236+0.6*(1+RAND()*10))","v":2},{"$f":"+$AI$14+(AJ241-1)*$AI$16+$AI$16*RAND()","v":1.6719284028458643E-2},null,null,7,null,null,null,null,null,null,null,null,null,null,null,null,null,null,null,null,0]
[null,null,null,null,null,null,null,null,null,null,null,null,null,null,null,null,null,null,null,null,null,null,null,null,null,null,null,null,null,62.533333333333331,"Early trend in recession, forward indicators raise new questions about the economy","Early trend in recession, forward indicators raise new questions about the economy","Early trend in recession, forward indicators raise new questions about the economy","Early trend in recession, forward indicators raise new questions about the economy","Early trend in recession, forward indicators raise new questions about the economy",2,{"$f":"+AK241","v":2},1.6719284028458643E-2,null,null,5,null,null,null,null,null,null,null,null,null,null,null,null,null,null,null,null,{"$f":"+INT($AE$8*$AD$10*RAND()+BF241)","v":67}]
[null,null,null,null,null,null,null,null,null,null,null,null,null,null,null,null,null,null,null,null,null,null,null,null,null,null,null,null,null,144.66666666666669,"Consumer spending suggests that a declining trend has started.","Consumer spending suggests that a declining trend has started.","Consumer spending suggests that a declining trend has started.","Consumer spending suggests that a declining trend has started.","Consumer spending suggests that a declining trend has started.",2,{"$f":"+AK242","v":2},1.6719284028458643E-2,null,null,3,null,null,null,null,null,null,null,null,null,null,null,null,null,null,null,null,{"$f":"+INT($AE$8*$AD$10*RAND()+BF242)","v":155}]
[null,null,null,null,null,null,null,null,null,null,null,null,null,null,null,null,null,null,null,null,null,null,null,null,null,null,null,null,null,213.73333333333332,"Consumer spending suggests that a declining trend has started.","Consumer spending suggests that a declining trend has started.","Consumer spending suggests that a declining trend has started.","Consumer spending suggests that a declining trend has started.","Consumer spending suggests that a declining trend has started.",2,{"$f":"+AK243","v":2},1.6719284028458643E-2,null,null,2,null,null,null,null,null,null,null,null,null,null,null,null,null,null,null,null,{"$f":"+INT($AE$8*$AD$10*RAND()+BF243)","v":229}]
[null,null,null,null,null,null,null,null,null,null,null,null,null,null,null,null,null,null,null,null,null,null,null,null,null,null,null,null,null,252,"Consumer spending suggests that a declining trend has started.","Consumer spending suggests that a declining trend has started.","Consumer spending suggests that a declining trend has started.","Consumer spending suggests that a declining trend has started.","Consumer spending suggests that a declining trend has started.",2,{"$f":"+AK244","v":2},1.6719284028458643E-2,null,null,1,null,null,null,null,null,null,null,null,null,null,null,null,null,null,null,null,{"$f":"+INT($AE$8*$AD$10*RAND()+BF244)","v":270}]
[null,null,null,null,null,null,null,null,null,null,null,null,null,null,null,null,null,null,null,null,null,null,null,null,null,null,null,null,"Trial 10",0,{"$f":"+B02Clue1(INT($AJ246+RAND()*$AO246))","v":"Sharp jump in strong GDP forecasts"},"Sharp jump in strong GDP forecasts","Sharp jump in strong GDP forecasts","Sharp jump in strong GDP forecasts","Sharp jump in strong GDP forecasts",4,{"$f":"INT(1+RAND()*10)","v":6},{"$f":"+$AI$14+(AJ246-1)*$AI$16+$AI$16*RAND()","v":2.2323812244294E-2},null,null,7,null,null,null,null,null,null,null,null,null,null,null,null,null,null,null,null,0]
[null,null,null,null,null,null,null,null,null,null,null,null,null,null,null,null,null,null,null,null,null,null,null,null,null,null,null,null,null,14,{"$f":"+B02Clue1(INT($AJ247+RAND()*$AO247))","v":"Analyst forecast increased earnings for most industries in the economy"},"Analyst forecast increased earnings for most industries in the economy","Analyst forecast increased earnings for most industries in the economy","Analyst forecast increased earnings for most industries in the economy","Analyst forecast increased earnings for most industries in the economy",4,{"$f":"+AK246","v":6},2.2323812244294E-2,null,null,5,null,null,null,null,null,null,null,null,null,null,null,null,null,null,null,null,{"$f":"+INT($AE$8*$AD$10*RAND()+BF246)","v":15}]
[null,null,null,null,null,null,null,null,null,null,null,null,null,null,null,null,null,null,null,null,null,null,null,null,null,null,null,null,null,86.8,{"$f":"+B02Clue1(INT($AJ248+RAND()*$AO248))","v":"Stock funds experiencing mild selling"},"Stock funds experiencing mild selling","Stock funds experiencing mild selling","Stock funds experiencing mild selling","Stock funds experiencing mild selling",4,6,2.2323812244294E-2,null,null,3,null,null,null,null,null,null,null,null,null,null,null,null,null,null,null,null,{"$f":"+INT($AE$8*$AD$10*RAND()+BF247)","v":93}]
[null,null,null,null,null,null,null,null,null,null,null,null,null,null,null,null,null,null,null,null,null,null,null,null,null,null,null,null,null,112,{"$f":"+B02Clue1(INT($AJ249+RAND()*$AO249))","v":"Stock funds experiencing mild selling"},"Stock funds experiencing mild selling","Stock funds experiencing mild selling","Stock funds experiencing mild selling","Stock funds experiencing mild selling",4,6,2.2323812244294E-2,null,null,2,null,null,null,null,null,null,null,null,null,null,null,null,null,null,null,null,{"$f":"+INT($AE$8*$AD$10*RAND()+BF248)","v":120}]
[null,null,null,null,null,null,null,null,null,null,null,null,null,null,null,null,null,null,null,null,null,null,null,null,null,null,null,null,null,185.73333333333332,{"$f":"+B02Clue1(INT($AJ250+RAND()*$AO250))","v":"Some major corporations have started to trim work force"},"Some major corporations have started to trim work force","Some major corporations have started to trim work force","Some major corporations have started to trim work force","Some major corporations have started to trim work force",4,6,2.2323812244294E-2,null,null,1,null,null,null,null,null,null,null,null,null,null,null,null,null,null,null,null,{"$f":"+INT($AE$8*$AD$10*RAND()+BF249)","v":199}]
[null,null,null,null,null,null,null,null,null,null,null,null,null,null,null,null,null,null,null,null,null,null,null,null,null,null,null,null,"Period2 ",0,{"$f":"+B02Clue1(INT(0.6*$AJ251+0.4*$AJ246+RAND()*$AO251))","v":"Stock funds experiencing mild selling"},"Stock funds experiencing mild selling","Stock funds experiencing mild selling","Stock funds experiencing mild selling","Stock funds experiencing mild selling",3,{"$f":"INT(0.4*AK246+0.6*(1+RAND()*10))","v":8},{"$f":"+$AI$14+(AJ251-1)*$AI$16+$AI$16*RAND()","v":2.0024001892440156E-2},null,null,7,null,null,null,null,null,null,null,null,null,null,null,null,null,null,null,null,0]
[null,null,null,null,null,null,null,null,null,null,null,null,null,null,null,null,null,null,null,null,null,null,null,null,null,null,null,null,null,7.4666666666666668,{"$f":"+B02Clue1(INT(0.6*$AJ252+0.4*$AJ247+RAND()*$AO252))","v":"Geopolitical concerns starting to worry investors"},"Geopolitical concerns starting to worry investors","Geopolitical concerns starting to worry investors","Geopolitical concerns starting to worry investors","Geopolitical concerns starting to worry investors",3,{"$f":"+AK251","v":8},{"$f":"+AL251","v":2.0024001892440156E-2},null,null,5,null,null,null,null,null,null,null,null,null,null,null,null,null,null,null,null,{"$f":"+INT($AE$8*$AD$10*RAND()+BF251)","v":8}]
[null,null,null,null,null,null,null,null,null,null,null,null,null,null,null,null,null,null,null,null,null,null,null,null,null,null,null,null,null,80.266666666666666,"Leading economic indicators match expectations","Leading economic indicators match expectations","Leading economic indicators match expectations","Leading economic indicators match expectations","Leading economic indicators match expectations",3,{"$f":"+AK252","v":8},{"$f":"+AL252","v":2.0024001892440156E-2},null,null,3,null,null,null,null,null,null,null,null,null,null,null,null,null,null,null,null,{"$f":"+INT($AE$8*$AD$10*RAND()+BF252)","v":86}]
[null,null,null,null,null,null,null,null,null,null,null,null,null,null,null,null,null,null,null,null,null,null,null,null,null,null,null,null,null,149.33333333333334,"Geopolitical concerns starting to worry investors","Geopolitical concerns starting to worry investors","Geopolitical concerns starting to worry investors","Geopolitical concerns starting to worry investors","Geopolitical concerns starting to worry investors",3,{"$f":"+AK253","v":8},2.0024001892440156E-2,null,null,2,null,null,null,null,null,null,null,null,null,null,null,null,null,null,null,null,{"$f":"+INT($AE$8*$AD$10*RAND()+BF253)","v":160}]
[null,null,null,null,null,null,null,null,null,null,null,null,null,null,null,null,null,null,null,null,null,null,null,null,null,null,null,null,null,203.46666666666667,"Some major corporations have started to trim work force","Some major corporations have started to trim work force","Some major corporations have started to trim work force","Some major corporations have started to trim work force","Some major corporations have started to trim work force",3,{"$f":"+AK254","v":8},2.0024001892440156E-2,null,null,1,null,null,null,null,null,null,null,null,null,null,null,null,null,null,null,null,{"$f":"+INT($AE$8*$AD$10*RAND()+BF254)","v":218}]
[null,null,null,null,null,null,null,null,null,null,null,null,null,null,null,null,null,null,null,null,null,null,null,null,null,null,null,null,"Period3",0,{"$f":"+B02Clue1(INT(0.6*$AJ256+0.4*$AJ251+RAND()*$AO256))","v":"Sharp jump in strong GDP forecasts"},"Sharp jump in strong GDP forecasts","Sharp jump in strong GDP forecasts","Sharp jump in strong GDP forecasts","Sharp jump in strong GDP forecasts",5,{"$f":"INT(0.4*AK251+0.6*(1+RAND()*10))","v":5},{"$f":"+$AI$14+(AJ256-1)*$AI$16+$AI$16*RAND()","v":2.8769757001897562E-2},null,null,7,null,null,null,null,null,null,null,null,null,null,null,null,null,null,null,null,0]
[null,null,null,null,null,null,null,null,null,null,null,null,null,null,null,null,null,null,null,null,null,null,null,null,null,null,null,null,null,64.400000000000006,"Stock funds experiencing mild selling","Stock funds experiencing mild selling","Stock funds experiencing mild selling","Stock funds experiencing mild selling","Stock funds experiencing mild selling",5,{"$f":"+AK256","v":5},2.8769757001897562E-2,null,null,5,null,null,null,null,null,null,null,null,null,null,null,null,null,null,null,null,{"$f":"+INT($AE$8*$AD$10*RAND()+BF256)","v":69}]
[null,null,null,null,null,null,null,null,null,null,null,null,null,null,null,null,null,null,null,null,null,null,null,null,null,null,null,null,null,64.400000000000006,"Leading economic indicators match expectations","Leading economic indicators match expectations","Leading economic indicators match expectations","Leading economic indicators match expectations","Leading economic indicators match expectations",5,{"$f":"+AK257","v":5},2.8769757001897562E-2,null,null,3,null,null,null,null,null,null,null,null,null,null,null,null,null,null,null,null,{"$f":"+INT($AE$8*$AD$10*RAND()+BF257)","v":69}]
[null,null,null,null,null,null,null,null,null,null,null,null,null,null,null,null,null,null,null,null,null,null,null,null,null,null,null,null,null,111.06666666666666,"Leading economic indicators match expectations","Leading economic indicators match expectations","Leading economic indicators match expectations","Leading economic indicators match expectations","Leading economic indicators match expectations",5,{"$f":"+AK258","v":5},2.8769757001897562E-2,null,null,2,null,null,null,null,null,null,null,null,null,null,null,null,null,null,null,null,{"$f":"+INT($AE$8*$AD$10*RAND()+BF258)","v":119}]
[null,null,null,null,null,null,null,null,null,null,null,null,null,null,null,null,null,null,null,null,null,null,null,null,null,null,null,null,null,120.39999999999999,"Some major corporations have started to trim work force","Some major corporations have started to trim work force","Some major corporations have started to trim work force","Some major corporations have started to trim work force","Some major corporations have started to trim work force",5,{"$f":"+AK259","v":5},2.8769757001897562E-2,null,null,1,null,null,null,null,null,null,null,null,null,null,null,null,null,null,null,null,{"$f":"+INT($AE$8*$AD$10*RAND()+BF259)","v":129}]
[null,null,null,null,null,null,null,null,null,null,null,null,null,null,null,null,null,null,null,null,null,null,null,null,null,null,null,null,"Period4",0,{"$f":"+B02Clue1(INT(0.6*$AJ261+0.4*$AJ256+RAND()*$AO261))","v":"Large jump in both imports and exports plus trade deficit sharply wider"},{"$f":"+$AE261","v":"Large jump in both imports and exports plus trade deficit sharply wider"},"Large jump in both imports and exports plus trade deficit sharply wider","Large jump in both imports and exports plus trade deficit sharply wider","Large jump in both imports and exports plus trade deficit sharply wider",6,{"$f":"INT(0.4*AK256+0.6*(1+RAND()*10))","v":3},{"$f":"+$AI$14+(AJ261-1)*$AI$16+$AI$16*RAND()","v":3.0512204606222854E-2},null,null,7,null,null,null,null,null,null,null,null,null,null,null,null,null,null,null,null,0]
[null,null,null,null,null,null,null,null,null,null,null,null,null,null,null,null,null,null,null,null,null,null,null,null,null,null,null,null,null,32.666666666666664,"Much stronger economic growth is currently being forecast","Much stronger economic growth is currently being forecast","Much stronger economic growth is currently being forecast","Much stronger economic growth is currently being forecast","Much stronger economic growth is currently being forecast",6,{"$f":"+AK261","v":3},3.0512204606222854E-2,null,null,5,null,null,null,null,null,null,null,null,null,null,null,null,null,null,null,null,{"$f":"+INT($AE$8*$AD$10*RAND()+BF261)","v":35}]
[null,null,null,null,null,null,null,null,null,null,null,null,null,null,null,null,null,null,null,null,null,null,null,null,null,null,null,null,null,42,"Analyst forecast increased earnings for most industries in the economy","Analyst forecast increased earnings for most industries in the economy","Analyst forecast increased earnings for most industries in the economy","Analyst forecast increased earnings for most industries in the economy","Analyst forecast increased earnings for most industries in the economy",6,{"$f":"+AK262","v":3},3.0512204606222854E-2,null,null,3,null,null,null,null,null,null,null,null,null,null,null,null,null,null,null,null,{"$f":"+INT($AE$8*$AD$10*RAND()+BF262)","v":45}]
[null,null,null,null,null,null,null,null,null,null,null,null,null,null,null,null,null,null,null,null,null,null,null,null,null,null,null,null,null,60.666666666666671,"Indicators are reinforcing a positive economic outlook","Indicators are reinforcing a positive economic outlook","Indicators are reinforcing a positive economic outlook","Indicators are reinforcing a positive economic outlook","Indicators are reinforcing a positive economic outlook",6,{"$f":"+AK263","v":3},3.0512204606222854E-2,null,null,2,null,null,null,null,null,null,null,null,null,null,null,null,null,null,null,null,{"$f":"+INT($AE$8*$AD$10*RAND()+BF263)","v":65}]
[null,null,null,null,null,null,null,null,null,null,null,null,null,null,null,null,null,null,null,null,null,null,null,null,null,null,null,null,null,117.6,"Leading indicators suggest positive economic outlook","Leading indicators suggest positive economic outlook","Leading indicators suggest positive economic outlook","Leading indicators suggest positive economic outlook","Leading indicators suggest positive economic outlook",6,{"$f":"+AK264","v":3},3.0512204606222854E-2,null,null,1,null,null,null,null,null,null,null,null,null,null,null,null,null,null,null,null,{"$f":"+INT($AE$8*$AD$10*RAND()+BF264)","v":126}]
[null,null,null,null,null,null,null,null,null,null,null,null,null,null,null,null,null,null,null,null,null,null,null,null,null,null,null,null,"Period5",0,{"$f":"+B02Clue1(INT(0.6*$AJ266+0.4*$AJ261+RAND()*$AO266))","v":"Inflationary expectations increased sharply"},"Inflationary expectations increased sharply","Inflationary expectations increased sharply","Inflationary expectations increased sharply","Inflationary expectations increased sharply",4,{"$f":"INT(0.4*AK261+0.6*(1+RAND()*10))","v":2},{"$f":"+$AI$14+(AJ266-1)*$AI$16+$AI$16*RAND()","v":2.5635104599913913E-2},null,null,7,null,null,null,null,null,null,null,null,null,null,null,null,null,null,null,null,0]
[null,null,null,null,null,null,null,null,null,null,null,null,null,null,null,null,null,null,null,null,null,null,null,null,null,null,null,null,null,27.066666666666666,"Fed chairman congressional testimony provides optimism","Fed chairman congressional testimony provides optimism","Fed chairman congressional testimony provides optimism","Fed chairman congressional testimony provides optimism","Fed chairman congressional testimony provides optimism",4,{"$f":"+AK266","v":2},2.5635104599913913E-2,null,null,5,null,null,null,null,null,null,null,null,null,null,null,null,null,null,null,null,{"$f":"+INT($AE$8*$AD$10*RAND()+BF266)","v":29}]
[null,null,null,null,null,null,null,null,null,null,null,null,null,null,null,null,null,null,null,null,null,null,null,null,null,null,null,null,null,33.6,"Stock funds experiencing mild selling","Stock funds experiencing mild selling","Stock funds experiencing mild selling","Stock funds experiencing mild selling","Stock funds experiencing mild selling",4,{"$f":"+AK267","v":2},2.5635104599913913E-2,null,null,3,null,null,null,null,null,null,null,null,null,null,null,null,null,null,null,null,{"$f":"+INT($AE$8*$AD$10*RAND()+BF267)","v":36}]
[null,null,null,null,null,null,null,null,null,null,null,null,null,null,null,null,null,null,null,null,null,null,null,null,null,null,null,null,null,70,"Stock funds experiencing mild selling","Stock funds experiencing mild selling","Stock funds experiencing mild selling","Stock funds experiencing mild selling","Stock funds experiencing mild selling",4,{"$f":"+AK268","v":2},2.5635104599913913E-2,null,null,2,null,null,null,null,null,null,null,null,null,null,null,null,null,null,null,null,{"$f":"+INT($AE$8*$AD$10*RAND()+BF268)","v":75}]
[null,null,null,null,null,null,null,null,null,null,null,null,null,null,null,null,null,null,null,null,null,null,null,null,null,null,null,null,null,70.933333333333337,"Leading economic indicators match expectations","Leading economic indicators match expectations","Leading economic indicators match expectations","Leading economic indicators match expectations","Leading economic indicators match expectations",4,{"$f":"+AK269","v":2},2.5635104599913913E-2,null,null,1,null,null,null,null,null,null,null,null,null,null,null,null,null,null,null,null,{"$f":"+INT($AE$8*$AD$10*RAND()+BF269)","v":76}]
[null,null,null,null,null,null,null,null,null,null,null,null,null,null,null,null,null,null,null,null,null,null,null,null,null,null,null,null,null,null,null,null,null,null,null,null,null,null,null,null,null,null,null,null,null,null,null,null,null,null,null,null,null,null,null,null,null,0]
[null,null,null,null,null,null,null,null,null,null,null,null,null,null,null,null,null,null,null,null,null,null,null,null,null,null,null,null,null,null,null,null,null,null,null,null,null,null,null,null,null,null,null,null,null,null,null,null,null,null,null,null,null,null,null,null,null,{"$f":"+INT($AE$8*$AD$10*RAND()+BF271)","v":77}]
[null,null,null,null,null,null,null,null,null,null,null,null,null,null,null,null,null,null,null,null,null,null,null,null,null,null,null,null,null,null,null,null,null,null,null,null,null,null,null,null,null,null,null,null,null,null,null,null,null,null,null,null,null,null,null,null,null,{"$f":"+INT($AE$8*$AD$10*RAND()+BF272)","v":158}]
[null,null,null,null,null,null,null,null,null,null,null,null,null,null,null,null,null,null,null,null,null,null,null,null,null,null,null,null,null,null,null,null,null,null,null,null,null,null,null,null,null,null,null,null,null,null,null,null,null,null,null,null,null,null,null,null,null,{"$f":"+INT($AE$8*$AD$10*RAND()+BF273)","v":247}]
[null,null,null,null,null,null,null,null,null,null,null,null,null,null,null,null,null,null,null,null,null,null,null,null,null,null,null,null,null,null,null,null,null,null,null,null,null,null,null,null,null,null,null,null,null,null,null,null,null,null,null,null,null,null,null,null,null,{"$f":"+INT($AE$8*$AD$10*RAND()+BF274)","v":298}]
[null,null,null,null,null,null,null,null,null,null,null,null,null,null,null,null,null,null,null,null,null,null,null,null,null,null,null,null,null,null,null,null,null,null,null,null,null,null,null,null,null,null,null,null,null,null,null,null,null,null,null,null,null,null,null,null,null,0]
[null,null,null,null,null,null,null,null,null,null,null,null,null,null,null,null,null,null,null,null,null,null,null,null,null,null,null,null,null,null,null,null,null,null,null,null,null,null,null,null,null,null,null,null,null,null,null,null,null,null,null,null,null,null,null,null,null,{"$f":"+INT($AE$8*$AD$10*RAND()+BF276)","v":30}]
[null,null,null,null,null,null,null,null,null,null,null,null,null,null,null,null,null,null,null,null,null,null,null,null,null,null,null,null,null,null,null,null,null,null,null,null,null,null,null,null,null,null,null,null,null,null,null,null,null,null,null,null,null,null,null,null,null,{"$f":"+INT($AE$8*$AD$10*RAND()+BF277)","v":105}]
[null,null,null,null,null,null,null,null,null,null,null,null,null,null,null,null,null,null,null,null,null,null,null,null,null,null,null,null,null,null,null,null,null,null,null,null,null,null,null,null,null,null,null,null,null,null,null,null,null,null,null,null,null,null,null,null,null,{"$f":"+INT($AE$8*$AD$10*RAND()+BF278)","v":158}]
[null,null,null,null,null,null,null,null,null,null,null,null,null,null,null,null,null,null,null,null,null,null,null,null,null,null,null,null,null,null,null,null,null,null,null,null,null,null,null,null,null,null,null,null,null,null,null,null,null,null,null,null,null,null,null,null,null,{"$f":"+INT($AE$8*$AD$10*RAND()+BF279)","v":180}]
[null,null,null,null,null,null,null,null,null,null,null,null,null,null,null,null,null,null,null,null,null,null,null,null,null,null,null,null,null,null,null,null,null,null,null,null,null,null,null,null,null,null,null,null,null,null,null,null,null,null,null,null,null,null,null,null,null,0]
[null,null,null,null,null,null,null,null,null,null,null,null,null,null,null,null,null,null,null,null,null,null,null,null,null,null,null,null,null,null,null,null,null,null,null,null,null,null,null,null,null,null,null,null,null,null,null,null,null,null,null,null,null,null,null,null,null,{"$f":"+INT($AE$8*$AD$10*RAND()+BF281)","v":87}]
[null,null,null,null,null,null,null,null,null,null,null,null,null,null,null,null,null,null,null,null,null,null,null,null,null,null,null,null,null,null,null,null,null,null,null,null,null,null,null,null,null,null,null,null,null,null,null,null,null,null,null,null,null,null,null,null,null,{"$f":"+INT($AE$8*$AD$10*RAND()+BF282)","v":134}]
[null,null,null,null,null,null,null,null,null,null,null,null,null,null,null,null,null,null,null,null,null,null,null,null,null,null,null,null,null,null,null,null,null,null,null,null,null,null,null,null,null,null,null,null,null,null,null,null,null,null,null,null,null,null,null,null,null,{"$f":"+INT($AE$8*$AD$10*RAND()+BF283)","v":168}]
[null,null,null,null,null,null,null,null,null,null,null,null,null,null,null,null,null,null,null,null,null,null,null,null,null,null,null,null,null,null,null,null,null,null,null,null,null,null,null,null,null,null,null,null,null,null,null,null,null,null,null,null,null,null,null,null,null,{"$f":"+INT($AE$8*$AD$10*RAND()+BF284)","v":187}]
[null,null,null,null,null,null,null,null,null,null,null,null,null,null,null,null,null,null,null,null,null,null,null,null,null,null,null,null,null,null,null,null,null,null,null,null,null,null,null,null,null,null,null,null,null,null,null,null,null,null,null,null,null,null,null,null,null,0]
[null,null,null,null,null,null,null,null,null,null,null,null,null,null,null,null,null,null,null,null,null,null,null,null,null,null,null,null,null,null,null,null,null,null,null,null,null,null,null,null,null,null,null,null,null,null,null,null,null,null,null,null,null,null,null,null,null,{"$f":"+INT($AE$8*$AD$10*RAND()+BF286)","v":19}]
[null,null,null,null,null,null,null,null,null,null,null,null,null,null,null,null,null,null,null,null,null,null,null,null,null,null,null,null,null,null,null,null,null,null,null,null,null,null,null,null,null,null,null,null,null,null,null,null,null,null,null,null,null,null,null,null,null,{"$f":"+INT($AE$8*$AD$10*RAND()+BF287)","v":106}]
[null,null,null,null,null,null,null,null,null,null,null,null,null,null,null,null,null,null,null,null,null,null,null,null,null,null,null,null,null,null,null,null,null,null,null,null,null,null,null,null,null,null,null,null,null,null,null,null,null,null,null,null,null,null,null,null,null,{"$f":"+INT($AE$8*$AD$10*RAND()+BF288)","v":176}]
[null,null,null,null,null,null,null,null,null,null,null,null,null,null,null,null,null,null,null,null,null,null,null,null,null,null,null,null,null,null,null,null,null,null,null,null,null,null,null,null,null,null,null,null,null,null,null,null,null,null,null,null,null,null,null,null,null,{"$f":"+INT($AE$8*$AD$10*RAND()+BF289)","v":219}]
[null,null,null,null,null,null,null,null,null,null,null,null,null,null,null,null,null,null,null,null,null,null,null,null,null,null,null,null,null,null,null,null,null,null,null,null,null,null,null,null,null,null,null,null,null,null,null,null,null,null,null,null,null,null,null,null,null,0]
[null,null,null,null,null,null,null,null,null,null,null,null,null,null,null,null,null,null,null,null,null,null,null,null,null,null,null,null,null,null,null,null,null,null,null,null,null,null,null,null,null,null,null,null,null,null,null,null,null,null,null,null,null,null,null,null,null,{"$f":"+INT($AE$8*$AD$10*RAND()+BF291)","v":88}]
[null,null,null,null,null,null,null,null,null,null,null,null,null,null,null,null,null,null,null,null,null,null,null,null,null,null,null,null,null,null,null,null,null,null,null,null,null,null,null,null,null,null,null,null,null,null,null,null,null,null,null,null,null,null,null,null,null,{"$f":"+INT($AE$8*$AD$10*RAND()+BF292)","v":113}]
[null,null,null,null,null,null,null,null,null,null,null,null,null,null,null,null,null,null,null,null,null,null,null,null,null,null,null,null,null,null,null,null,null,null,null,null,null,null,null,null,null,null,null,null,null,null,null,null,null,null,null,null,null,null,null,null,null,{"$f":"+INT($AE$8*$AD$10*RAND()+BF293)","v":134}]
[null,null,null,null,null,null,null,null,null,null,null,null,null,null,null,null,null,null,null,null,null,null,null,null,null,null,null,null,null,null,null,null,null,null,null,null,null,null,null,null,null,null,null,null,null,null,null,null,null,null,null,null,null,null,null,null,null,{"$f":"+INT($AE$8*$AD$10*RAND()+BF294)","v":160}]
[null,null,null,null,null,null,null,null,null,null,null,null,null,null,null,null,null,null,null,null,null,null,null,null,null,null,null,null,null,null,null,null,null,null,null,null,null,null,null,null,null,null,null,null,null,null,null,null,null,null,null,null,null,null,null,null,null,0]
[null,null,null,null,null,null,null,null,null,null,null,null,null,null,null,null,null,null,null,null,null,null,null,null,null,null,null,null,null,null,null,null,null,null,null,null,null,null,null,null,null,null,null,null,null,null,null,null,null,null,null,null,null,null,null,null,null,{"$f":"+INT($AE$8*$AD$10*RAND()+BF296)","v":23}]
[null,null,null,null,null,null,null,null,null,null,null,null,null,null,null,null,null,null,null,null,null,null,null,null,null,null,null,null,null,null,null,null,null,null,null,null,null,null,null,null,null,null,null,null,null,null,null,null,null,null,null,null,null,null,null,null,null,{"$f":"+INT($AE$8*$AD$10*RAND()+BF297)","v":109}]
[null,null,null,null,null,null,null,null,null,null,null,null,null,null,null,null,null,null,null,null,null,null,null,null,null,null,null,null,null,null,null,null,null,null,null,null,null,null,null,null,null,null,null,null,null,null,null,null,null,null,null,null,null,null,null,null,null,{"$f":"+INT($AE$8*$AD$10*RAND()+BF298)","v":157}]
[null,null,null,null,null,null,null,null,null,null,null,null,null,null,null,null,null,null,null,null,null,null,null,null,null,null,null,null,null,null,null,null,null,null,null,null,null,null,null,null,null,null,null,null,null,null,null,null,null,null,null,null,null,null,null,null,null,{"$f":"+INT($AE$8*$AD$10*RAND()+BF299)","v":202}]
[null,null,null,null,null,null,null,null,null,null,null,null,null,null,null,null,null,null,null,null,null,null,null,null,null,null,null,null,null,null,null,null,null,null,null,null,null,null,null,null,null,null,null,null,null,null,null,null,null,null,null,null,null,null,null,null,null,0]
[null,null,null,null,null,null,null,null,null,null,null,null,null,null,null,null,null,null,null,null,null,null,null,null,null,null,null,null,null,null,null,null,null,null,null,null,null,null,null,null,null,null,null,null,null,null,null,null,null,null,null,null,null,null,null,null,null,{"$f":"+INT($AE$8*$AD$10*RAND()+BF301)","v":19}]
[null,null,null,null,null,null,null,null,null,null,null,null,null,null,null,null,null,null,null,null,null,null,null,null,null,null,null,null,null,null,null,null,null,null,null,null,null,null,null,null,null,null,null,null,null,null,null,null,null,null,null,null,null,null,null,null,null,{"$f":"+INT($AE$8*$AD$10*RAND()+BF302)","v":103}]
[null,null,null,null,null,null,null,null,null,null,null,null,null,null,null,null,null,null,null,null,null,null,null,null,null,null,null,null,null,null,null,null,null,null,null,null,null,null,null,null,null,null,null,null,null,null,null,null,null,null,null,null,null,null,null,null,null,{"$f":"+INT($AE$8*$AD$10*RAND()+BF303)","v":133}]
[null,null,null,null,null,null,null,null,null,null,null,null,null,null,null,null,null,null,null,null,null,null,null,null,null,null,null,null,null,null,null,null,null,null,null,null,null,null,null,null,null,null,null,null,null,null,null,null,null,null,null,null,null,null,null,null,null,{"$f":"+INT($AE$8*$AD$10*RAND()+BF304)","v":141}]
[null,null,null,null,null,null,null,null,null,null,null,null,null,null,null,null,null,null,null,null,null,null,null,null,null,null,null,null,null,null,null,null,null,null,null,null,null,null,null,null,null,null,null,null,null,null,null,null,null,null,null,null,null,null,null,null,null,0]
[null,null,null,null,null,null,null,null,null,null,null,null,null,null,null,null,null,null,null,null,null,null,null,null,null,null,null,null,null,null,null,null,null,null,null,null,null,null,null,null,null,null,null,null,null,null,null,null,null,null,null,null,null,null,null,null,null,{"$f":"+INT($AE$8*$AD$10*RAND()+BF306)","v":9}]
[null,null,null,null,null,null,null,null,null,null,null,null,null,null,null,null,null,null,null,null,null,null,null,null,null,null,null,null,null,null,null,null,null,null,null,null,null,null,null,null,null,null,null,null,null,null,null,null,null,null,null,null,null,null,null,null,null,{"$f":"+INT($AE$8*$AD$10*RAND()+BF307)","v":61}]
[null,null,null,null,null,null,null,null,null,null,null,null,null,null,null,null,null,null,null,null,null,null,null,null,null,null,null,null,null,null,null,null,null,null,null,null,null,null,null,null,null,null,null,null,null,null,null,null,null,null,null,null,null,null,null,null,null,{"$f":"+INT($AE$8*$AD$10*RAND()+BF308)","v":66}]
[null,null,null,null,null,null,null,null,null,null,null,null,null,null,null,null,null,null,null,null,null,null,null,null,null,null,null,null,null,null,null,null,null,null,null,null,null,null,null,null,null,null,null,null,null,null,null,null,null,null,null,null,null,null,null,null,null,{"$f":"+INT($AE$8*$AD$10*RAND()+BF309)","v":148}]
[null,null,null,null,null,null,null,null,null,null,null,null,null,null,null,null,null,null,null,null,null,null,null,null,null,null,null,null,null,null,null,null,null,null,null,null,null,null,null,null,null,null,null,null,null,null,null,null,null,null,null,null,null,null,null,null,null,0]
[null,null,null,null,null,null,null,null,null,null,null,null,null,null,null,null,null,null,null,null,null,null,null,null,null,null,null,null,null,null,null,null,null,null,null,null,null,null,null,null,null,null,null,null,null,null,null,null,null,null,null,null,null,null,null,null,null,{"$f":"+INT($AE$8*$AD$10*RAND()+BF311)","v":46}]
[null,null,null,null,null,null,null,null,null,null,null,null,null,null,null,null,null,null,null,null,null,null,null,null,null,null,null,null,null,null,null,null,null,null,null,null,null,null,null,null,null,null,null,null,null,null,null,null,null,null,null,null,null,null,null,null,null,{"$f":"+INT($AE$8*$AD$10*RAND()+BF312)","v":124}]
[null,null,null,null,null,null,null,null,null,null,null,null,null,null,null,null,null,null,null,null,null,null,null,null,null,null,null,null,null,null,null,null,null,null,null,null,null,null,null,null,null,null,null,null,null,null,null,null,null,null,null,null,null,null,null,null,null,{"$f":"+INT($AE$8*$AD$10*RAND()+BF313)","v":159}]
[null,null,null,null,null,null,null,null,null,null,null,null,null,null,null,null,null,null,null,null,null,null,null,null,null,null,null,null,null,null,null,null,null,null,null,null,null,null,null,null,null,null,null,null,null,null,null,null,null,null,null,null,null,null,null,null,null,{"$f":"+INT($AE$8*$AD$10*RAND()+BF314)","v":209}]
[null,null,null,null,null,null,null,null,null,null,null,null,null,null,null,null,null,null,null,null,null,null,null,null,null,null,null,null,null,null,null,null,null,null,null,null,null,null,null,null,null,null,null,null,null,null,null,null,null,null,null,null,null,null,null,null,null,0]
[null,null,null,null,null,null,null,null,null,null,null,null,null,null,null,null,null,null,null,null,null,null,null,null,null,null,null,null,null,null,null,null,null,null,null,null,null,null,null,null,null,null,null,null,null,null,null,null,null,null,null,null,null,null,null,null,null,{"$f":"+INT($AE$8*$AD$10*RAND()+BF316)","v":61}]
[null,null,null,null,null,null,null,null,null,null,null,null,null,null,null,null,null,null,null,null,null,null,null,null,null,null,null,null,null,null,null,null,null,null,null,null,null,null,null,null,null,null,null,null,null,null,null,null,null,null,null,null,null,null,null,null,null,{"$f":"+INT($AE$8*$AD$10*RAND()+BF317)","v":120}]
[null,null,null,null,null,null,null,null,null,null,null,null,null,null,null,null,null,null,null,null,null,null,null,null,null,null,null,null,null,null,null,null,null,null,null,null,null,null,null,null,null,null,null,null,null,null,null,null,null,null,null,null,null,null,null,null,null,{"$f":"+INT($AE$8*$AD$10*RAND()+BF318)","v":178}]
[null,null,null,null,null,null,null,null,null,null,null,null,null,null,null,null,null,null,null,null,null,null,null,null,null,null,null,null,null,null,null,null,null,null,null,null,null,null,null,null,null,null,null,null,null,null,null,null,null,null,null,null,null,null,null,null,null,{"$f":"+INT($AE$8*$AD$10*RAND()+BF319)","v":228}]
[null,null,null,null,null,null,null,null,null,null,null,null,null,null,null,null,null,null,null,null,null,null,null,null,null,null,null,null,null,null,null,null,null,null,null,null,null,null,null,null,null,null,null,null,null,null,null,null,null,null,null,null,null,null,null,null,null,0]
[null,null,null,null,null,null,null,null,null,null,null,null,null,null,null,null,null,null,null,null,null,null,null,null,null,null,null,null,null,null,null,null,null,null,null,null,null,null,null,null,null,null,null,null,null,null,null,null,null,null,null,null,null,null,null,null,null,{"$f":"+INT($AE$8*$AD$10*RAND()+BF321)","v":8}]
[null,null,null,null,null,null,null,null,null,null,null,null,null,null,null,null,null,null,null,null,null,null,null,null,null,null,null,null,null,null,null,null,null,null,null,null,null,null,null,null,null,null,null,null,null,null,null,null,null,null,null,null,null,null,null,null,null,{"$f":"+INT($AE$8*$AD$10*RAND()+BF322)","v":31}]
[null,null,null,null,null,null,null,null,null,null,null,null,null,null,null,null,null,null,null,null,null,null,null,null,null,null,null,null,null,null,null,null,null,null,null,null,null,null,null,null,null,null,null,null,null,null,null,null,null,null,null,null,null,null,null,null,null,{"$f":"+INT($AE$8*$AD$10*RAND()+BF323)","v":80}]
[null,null,null,null,null,null,null,null,null,null,null,null,null,null,null,null,null,null,null,null,null,null,null,null,null,null,null,null,null,null,null,null,null,null,null,null,null,null,null,null,null,null,null,null,null,null,null,null,null,null,null,null,null,null,null,null,null,{"$f":"+INT($AE$8*$AD$10*RAND()+BF324)","v":139}]
[null,null,null,null,null,null,null,null,null,null,null,null,null,null,null,null,null,null,null,null,null,null,null,null,null,null,null,null,null,null,null,null,null,null,null,null,null,null,null,null,null,null,null,null,null,null,null,null,null,null,null,null,null,null,null,null,null,0]
[null,null,null,null,null,null,null,null,null,null,null,null,null,null,null,null,null,null,null,null,null,null,null,null,null,null,null,null,null,null,null,null,null,null,null,null,null,null,null,null,null,null,null,null,null,null,null,null,null,null,null,null,null,null,null,null,null,{"$f":"+INT($AE$8*$AD$10*RAND()+BF326)","v":19}]
[null,null,null,null,null,null,null,null,null,null,null,null,null,null,null,null,null,null,null,null,null,null,null,null,null,null,null,null,null,null,null,null,null,null,null,null,null,null,null,null,null,null,null,null,null,null,null,null,null,null,null,null,null,null,null,null,null,{"$f":"+INT($AE$8*$AD$10*RAND()+BF327)","v":63}]
[null,null,null,null,null,null,null,null,null,null,null,null,null,null,null,null,null,null,null,null,null,null,null,null,null,null,null,null,null,null,null,null,null,null,null,null,null,null,null,null,null,null,null,null,null,null,null,null,null,null,null,null,null,null,null,null,null,{"$f":"+INT($AE$8*$AD$10*RAND()+BF328)","v":67}]
[null,null,null,null,null,null,null,null,null,null,null,null,null,null,null,null,null,null,null,null,null,null,null,null,null,null,null,null,null,null,null,null,null,null,null,null,null,null,null,null,null,null,null,null,null,null,null,null,null,null,null,null,null,null,null,null,null,{"$f":"+INT($AE$8*$AD$10*RAND()+BF329)","v":95}]
[null,null,null,null,null,null,null,null,null,null,null,null,null,null,null,null,null,null,null,null,null,null,null,null,null,null,null,null,null,null,null,null,null,null,null,null,null,null,null,null,null,null,null,null,null,null,null,null,null,null,null,null,null,null,null,null,null,0]
[null,null,null,null,null,null,null,null,null,null,null,null,null,null,null,null,null,null,null,null,null,null,null,null,null,null,null,null,null,null,null,null,null,null,null,null,null,null,null,null,null,null,null,null,null,null,null,null,null,null,null,null,null,null,null,null,null,{"$f":"+INT($AE$8*$AD$10*RAND()+BF331)","v":62}]
[null,null,null,null,null,null,null,null,null,null,null,null,null,null,null,null,null,null,null,null,null,null,null,null,null,null,null,null,null,null,null,null,null,null,null,null,null,null,null,null,null,null,null,null,null,null,null,null,null,null,null,null,null,null,null,null,null,{"$f":"+INT($AE$8*$AD$10*RAND()+BF332)","v":105}]
[null,null,null,null,null,null,null,null,null,null,null,null,null,null,null,null,null,null,null,null,null,null,null,null,null,null,null,null,null,null,null,null,null,null,null,null,null,null,null,null,null,null,null,null,null,null,null,null,null,null,null,null,null,null,null,null,null,{"$f":"+INT($AE$8*$AD$10*RAND()+BF333)","v":179}]
[null,null,null,null,null,null,null,null,null,null,null,null,null,null,null,null,null,null,null,null,null,null,null,null,null,null,null,null,null,null,null,null,null,null,null,null,null,null,null,null,null,null,null,null,null,null,null,null,null,null,null,null,null,null,null,null,null,{"$f":"+INT($AE$8*$AD$10*RAND()+BF334)","v":237}]
[null,null,null,null,null,null,null,null,null,null,null,null,null,null,null,null,null,null,null,null,null,null,null,null,null,null,null,null,null,null,null,null,null,null,null,null,null,null,null,null,null,null,null,null,null,null,null,null,null,null,null,null,null,null,null,null,null,0]
[null,null,null,null,null,null,null,null,null,null,null,null,null,null,null,null,null,null,null,null,null,null,null,null,null,null,null,null,null,null,null,null,null,null,null,null,null,null,null,null,null,null,null,null,null,null,null,null,null,null,null,null,null,null,null,null,null,{"$f":"+INT($AE$8*$AD$10*RAND()+BF336)","v":37}]
[null,null,null,null,null,null,null,null,null,null,null,null,null,null,null,null,null,null,null,null,null,null,null,null,null,null,null,null,null,null,null,null,null,null,null,null,null,null,null,null,null,null,null,null,null,null,null,null,null,null,null,null,null,null,null,null,null,{"$f":"+INT($AE$8*$AD$10*RAND()+BF337)","v":66}]
[null,null,null,null,null,null,null,null,null,null,null,null,null,null,null,null,null,null,null,null,null,null,null,null,null,null,null,null,null,null,null,null,null,null,null,null,null,null,null,null,null,null,null,null,null,null,null,null,null,null,null,null,null,null,null,null,null,{"$f":"+INT($AE$8*$AD$10*RAND()+BF338)","v":76}]
[null,null,null,null,null,null,null,null,null,null,null,null,null,null,null,null,null,null,null,null,null,null,null,null,null,null,null,null,null,null,null,null,null,null,null,null,null,null,null,null,null,null,null,null,null,null,null,null,null,null,null,null,null,null,null,null,null,{"$f":"+INT($AE$8*$AD$10*RAND()+BF339)","v":136}]
[null,null,null,null,null,null,null,null,null,null,null,null,null,null,null,null,null,null,null,null,null,null,null,null,null,null,null,null,null,null,null,null,null,null,null,null,null,null,null,null,null,null,null,null,null,null,null,null,null,null,null,null,null,null,null,null,null,0]
[null,null,null,null,null,null,null,null,null,null,null,null,null,null,null,null,null,null,null,null,null,null,null,null,null,null,null,null,null,null,null,null,null,null,null,null,null,null,null,null,null,null,null,null,null,null,null,null,null,null,null,null,null,null,null,null,null,{"$f":"+INT($AE$8*$AD$10*RAND()+BF341)","v":63}]
[null,null,null,null,null,null,null,null,null,null,null,null,null,null,null,null,null,null,null,null,null,null,null,null,null,null,null,null,null,null,null,null,null,null,null,null,null,null,null,null,null,null,null,null,null,null,null,null,null,null,null,null,null,null,null,null,null,{"$f":"+INT($AE$8*$AD$10*RAND()+BF342)","v":63}]
[null,null,null,null,null,null,null,null,null,null,null,null,null,null,null,null,null,null,null,null,null,null,null,null,null,null,null,null,null,null,null,null,null,null,null,null,null,null,null,null,null,null,null,null,null,null,null,null,null,null,null,null,null,null,null,null,null,{"$f":"+INT($AE$8*$AD$10*RAND()+BF343)","v":67}]
[null,null,null,null,null,null,null,null,null,null,null,null,null,null,null,null,null,null,null,null,null,null,null,null,null,null,null,null,null,null,null,null,null,null,null,null,null,null,null,null,null,null,null,null,null,null,null,null,null,null,null,null,null,null,null,null,null,{"$f":"+INT($AE$8*$AD$10*RAND()+BF344)","v":79}]
[null,null,null,null,null,null,null,null,null,null,null,null,null,null,null,null,null,null,null,null,null,null,null,null,null,null,null,null,null,null,null,null,null,null,null,null,null,null,null,null,null,null,null,null,null,null,null,null,null,null,null,null,null,null,null,null,null,0]
[null,null,null,null,null,null,null,null,null,null,null,null,null,null,null,null,null,null,null,null,null,null,null,null,null,null,null,null,null,null,null,null,null,null,null,null,null,null,null,null,null,null,null,null,null,null,null,null,null,null,null,null,null,null,null,null,null,{"$f":"+INT($AE$8*$AD$10*RAND()+BF346)","v":60}]
[null,null,null,null,null,null,null,null,null,null,null,null,null,null,null,null,null,null,null,null,null,null,null,null,null,null,null,null,null,null,null,null,null,null,null,null,null,null,null,null,null,null,null,null,null,null,null,null,null,null,null,null,null,null,null,null,null,{"$f":"+INT($AE$8*$AD$10*RAND()+BF347)","v":130}]
[null,null,null,null,null,null,null,null,null,null,null,null,null,null,null,null,null,null,null,null,null,null,null,null,null,null,null,null,null,null,null,null,null,null,null,null,null,null,null,null,null,null,null,null,null,null,null,null,null,null,null,null,null,null,null,null,null,{"$f":"+INT($AE$8*$AD$10*RAND()+BF348)","v":189}]
[null,null,null,null,null,null,null,null,null,null,null,null,null,null,null,null,null,null,null,null,null,null,null,null,null,null,null,null,null,null,null,null,null,null,null,null,null,null,null,null,null,null,null,null,null,null,null,null,null,null,null,null,null,null,null,null,null,{"$f":"+INT($AE$8*$AD$10*RAND()+BF349)","v":257}]
[null,null,null,null,null,null,null,null,null,null,null,null,null,null,null,null,null,null,null,null,null,null,null,null,null,null,null,null,null,null,null,null,null,null,null,null,null,null,null,null,null,null,null,null,null,null,null,null,null,null,null,null,null,null,null,null,null,0]
[null,null,null,null,null,null,null,null,null,null,null,null,null,null,null,null,null,null,null,null,null,null,null,null,null,null,null,null,null,null,null,null,null,null,null,null,null,null,null,null,null,null,null,null,null,null,null,null,null,null,null,null,null,null,null,null,null,{"$f":"+INT($AE$8*$AD$10*RAND()+BF351)","v":74}]
[null,null,null,null,null,null,null,null,null,null,null,null,null,null,null,null,null,null,null,null,null,null,null,null,null,null,null,null,null,null,null,null,null,null,null,null,null,null,null,null,null,null,null,null,null,null,null,null,null,null,null,null,null,null,null,null,null,{"$f":"+INT($AE$8*$AD$10*RAND()+BF352)","v":120}]
[null,null,null,null,null,null,null,null,null,null,null,null,null,null,null,null,null,null,null,null,null,null,null,null,null,null,null,null,null,null,null,null,null,null,null,null,null,null,null,null,null,null,null,null,null,null,null,null,null,null,null,null,null,null,null,null,null,{"$f":"+INT($AE$8*$AD$10*RAND()+BF353)","v":193}]
[null,null,null,null,null,null,null,null,null,null,null,null,null,null,null,null,null,null,null,null,null,null,null,null,null,null,null,null,null,null,null,null,null,null,null,null,null,null,null,null,null,null,null,null,null,null,null,null,null,null,null,null,null,null,null,null,null,{"$f":"+INT($AE$8*$AD$10*RAND()+BF354)","v":224}]
[null,null,null,null,null,null,null,null,null,null,null,null,null,null,null,null,null,null,null,null,null,null,null,null,null,null,null,null,null,null,null,null,null,null,null,null,null,null,null,null,null,null,null,null,null,null,null,null,null,null,null,null,null,null,null,null,null,0]
[null,null,null,null,null,null,null,null,null,null,null,null,null,null,null,null,null,null,null,null,null,null,null,null,null,null,null,null,null,null,null,null,null,null,null,null,null,null,null,null,null,null,null,null,null,null,null,null,null,null,null,null,null,null,null,null,null,{"$f":"+INT($AE$8*$AD$10*RAND()+BF356)","v":30}]
[null,null,null,null,null,null,null,null,null,null,null,null,null,null,null,null,null,null,null,null,null,null,null,null,null,null,null,null,null,null,null,null,null,null,null,null,null,null,null,null,null,null,null,null,null,null,null,null,null,null,null,null,null,null,null,null,null,{"$f":"+INT($AE$8*$AD$10*RAND()+BF357)","v":88}]
[null,null,null,null,null,null,null,null,null,null,null,null,null,null,null,null,null,null,null,null,null,null,null,null,null,null,null,null,null,null,null,null,null,null,null,null,null,null,null,null,null,null,null,null,null,null,null,null,null,null,null,null,null,null,null,null,null,{"$f":"+INT($AE$8*$AD$10*RAND()+BF358)","v":159}]
[null,null,null,null,null,null,null,null,null,null,null,null,null,null,null,null,null,null,null,null,null,null,null,null,null,null,null,null,null,null,null,null,null,null,null,null,null,null,null,null,null,null,null,null,null,null,null,null,null,null,null,null,null,null,null,null,null,{"$f":"+INT($AE$8*$AD$10*RAND()+BF359)","v":226}]
[null,null,null,null,null,null,null,null,null,null,null,null,null,null,null,null,null,null,null,null,null,null,null,null,null,null,null,null,null,null,null,null,null,null,null,null,null,null,null,null,null,null,null,null,null,null,null,null,null,null,null,null,null,null,null,null,null,0]
[null,null,null,null,null,null,null,null,null,null,null,null,null,null,null,null,null,null,null,null,null,null,null,null,null,null,null,null,null,null,null,null,null,null,null,null,null,null,null,null,null,null,null,null,null,null,null,null,null,null,null,null,null,null,null,null,null,{"$f":"+INT($AE$8*$AD$10*RAND()+BF361)","v":38}]
[null,null,null,null,null,null,null,null,null,null,null,null,null,null,null,null,null,null,null,null,null,null,null,null,null,null,null,null,null,null,null,null,null,null,null,null,null,null,null,null,null,null,null,null,null,null,null,null,null,null,null,null,null,null,null,null,null,{"$f":"+INT($AE$8*$AD$10*RAND()+BF362)","v":82}]
[null,null,null,null,null,null,null,null,null,null,null,null,null,null,null,null,null,null,null,null,null,null,null,null,null,null,null,null,null,null,null,null,null,null,null,null,null,null,null,null,null,null,null,null,null,null,null,null,null,null,null,null,null,null,null,null,null,{"$f":"+INT($AE$8*$AD$10*RAND()+BF363)","v":131}]
[null,null,null,null,null,null,null,null,null,null,null,null,null,null,null,null,null,null,null,null,null,null,null,null,null,null,null,null,null,null,null,null,null,null,null,null,null,null,null,null,null,null,null,null,null,null,null,null,null,null,null,null,null,null,null,null,null,{"$f":"+INT($AE$8*$AD$10*RAND()+BF364)","v":156}]
[null,null,null,null,null,null,null,null,null,null,null,null,null,null,null,null,null,null,null,null,null,null,null,null,null,null,null,null,null,null,null,null,null,null,null,null,null,null,null,null,null,null,null,null,null,null,null,null,null,null,null,null,null,null,null,null,null,0]
[null,null,null,null,null,null,null,null,null,null,null,null,null,null,null,null,null,null,null,null,null,null,null,null,null,null,null,null,null,null,null,null,null,null,null,null,null,null,null,null,null,null,null,null,null,null,null,null,null,null,null,null,null,null,null,null,null,{"$f":"+INT($AE$8*$AD$10*RAND()+BF366)","v":2}]
[null,null,null,null,null,null,null,null,null,null,null,null,null,null,null,null,null,null,null,null,null,null,null,null,null,null,null,null,null,null,null,null,null,null,null,null,null,null,null,null,null,null,null,null,null,null,null,null,null,null,null,null,null,null,null,null,null,{"$f":"+INT($AE$8*$AD$10*RAND()+BF367)","v":71}]
[null,null,null,null,null,null,null,null,null,null,null,null,null,null,null,null,null,null,null,null,null,null,null,null,null,null,null,null,null,null,null,null,null,null,null,null,null,null,null,null,null,null,null,null,null,null,null,null,null,null,null,null,null,null,null,null,null,{"$f":"+INT($AE$8*$AD$10*RAND()+BF368)","v":112}]
[null,null,null,null,null,null,null,null,null,null,null,null,null,null,null,null,null,null,null,null,null,null,null,null,null,null,null,null,null,null,null,null,null,null,null,null,null,null,null,null,null,null,null,null,null,null,null,null,null,null,null,null,null,null,null,null,null,{"$f":"+INT($AE$8*$AD$10*RAND()+BF369)","v":135}]
[null,null,null,null,null,null,null,null,null,null,null,null,null,null,null,null,null,null,null,null,null,null,null,null,null,null,null,null,null,null,null,null,null,null,null,null,null,null,null,null,null,null,null,null,null,null,null,null,null,null,null,null,null,null,null,null,null,0]
[null,null,null,null,null,null,null,null,null,null,null,null,null,null,null,null,null,null,null,null,null,null,null,null,null,null,null,null,null,null,null,null,null,null,null,null,null,null,null,null,null,null,null,null,null,null,null,null,null,null,null,null,null,null,null,null,null,{"$f":"+INT($AE$8*$AD$10*RAND()+BF371)","v":69}]
[null,null,null,null,null,null,null,null,null,null,null,null,null,null,null,null,null,null,null,null,null,null,null,null,null,null,null,null,null,null,null,null,null,null,null,null,null,null,null,null,null,null,null,null,null,null,null,null,null,null,null,null,null,null,null,null,null,{"$f":"+INT($AE$8*$AD$10*RAND()+BF372)","v":118}]
[null,null,null,null,null,null,null,null,null,null,null,null,null,null,null,null,null,null,null,null,null,null,null,null,null,null,null,null,null,null,null,null,null,null,null,null,null,null,null,null,null,null,null,null,null,null,null,null,null,null,null,null,null,null,null,null,null,{"$f":"+INT($AE$8*$AD$10*RAND()+BF373)","v":139}]
[null,null,null,null,null,null,null,null,null,null,null,null,null,null,null,null,null,null,null,null,null,null,null,null,null,null,null,null,null,null,null,null,null,null,null,null,null,null,null,null,null,null,null,null,null,null,null,null,null,null,null,null,null,null,null,null,null,{"$f":"+INT($AE$8*$AD$10*RAND()+BF374)","v":201}]
[null,null,null,null,null,null,null,null,null,null,null,null,null,null,null,null,null,null,null,null,null,null,null,null,null,null,null,null,null,null,null,null,null,null,null,null,null,null,null,null,null,null,null,null,null,null,null,null,null,null,null,null,null,null,null,null,null,0]
[null,null,null,null,null,null,null,null,null,null,null,null,null,null,null,null,null,null,null,null,null,null,null,null,null,null,null,null,null,null,null,null,null,null,null,null,null,null,null,null,null,null,null,null,null,null,null,null,null,null,null,null,null,null,null,null,null,{"$f":"+INT($AE$8*$AD$10*RAND()+BF376)","v":61}]
[null,null,null,null,null,null,null,null,null,null,null,null,null,null,null,null,null,null,null,null,null,null,null,null,null,null,null,null,null,null,null,null,null,null,null,null,null,null,null,null,null,null,null,null,null,null,null,null,null,null,null,null,null,null,null,null,null,{"$f":"+INT($AE$8*$AD$10*RAND()+BF377)","v":125}]
[null,null,null,null,null,null,null,null,null,null,null,null,null,null,null,null,null,null,null,null,null,null,null,null,null,null,null,null,null,null,null,null,null,null,null,null,null,null,null,null,null,null,null,null,null,null,null,null,null,null,null,null,null,null,null,null,null,{"$f":"+INT($AE$8*$AD$10*RAND()+BF378)","v":147}]
[null,null,null,null,null,null,null,null,null,null,null,null,null,null,null,null,null,null,null,null,null,null,null,null,null,null,null,null,null,null,null,null,null,null,null,null,null,null,null,null,null,null,null,null,null,null,null,null,null,null,null,null,null,null,null,null,null,{"$f":"+INT($AE$8*$AD$10*RAND()+BF379)","v":158}]
[null,null,null,null,null,null,null,null,null,null,null,null,null,null,null,null,null,null,null,null,null,null,null,null,null,null,null,null,null,null,null,null,null,null,null,null,null,null,null,null,null,null,null,null,null,null,null,null,null,null,null,null,null,null,null,null,null,0]
[null,null,null,null,null,null,null,null,null,null,null,null,null,null,null,null,null,null,null,null,null,null,null,null,null,null,null,null,null,null,null,null,null,null,null,null,null,null,null,null,null,null,null,null,null,null,null,null,null,null,null,null,null,null,null,null,null,{"$f":"+INT($AE$8*$AD$10*RAND()+BF381)","v":43}]
[null,null,null,null,null,null,null,null,null,null,null,null,null,null,null,null,null,null,null,null,null,null,null,null,null,null,null,null,null,null,null,null,null,null,null,null,null,null,null,null,null,null,null,null,null,null,null,null,null,null,null,null,null,null,null,null,null,{"$f":"+INT($AE$8*$AD$10*RAND()+BF382)","v":115}]
[null,null,null,null,null,null,null,null,null,null,null,null,null,null,null,null,null,null,null,null,null,null,null,null,null,null,null,null,null,null,null,null,null,null,null,null,null,null,null,null,null,null,null,null,null,null,null,null,null,null,null,null,null,null,null,null,null,{"$f":"+INT($AE$8*$AD$10*RAND()+BF383)","v":176}]
[null,null,null,null,null,null,null,null,null,null,null,null,null,null,null,null,null,null,null,null,null,null,null,null,null,null,null,null,null,null,null,null,null,null,null,null,null,null,null,null,null,null,null,null,null,null,null,null,null,null,null,null,null,null,null,null,null,{"$f":"+INT($AE$8*$AD$10*RAND()+BF384)","v":212}]
[null,null,null,null,null,null,null,null,null,null,null,null,null,null,null,null,null,null,null,null,null,null,null,null,null,null,null,null,null,null,null,null,null,null,null,null,null,null,null,null,null,null,null,null,null,null,null,null,null,null,null,null,null,null,null,null,null,0]
[null,null,null,null,null,null,null,null,null,null,null,null,null,null,null,null,null,null,null,null,null,null,null,null,null,null,null,null,null,null,null,null,null,null,null,null,null,null,null,null,null,null,null,null,null,null,null,null,null,null,null,null,null,null,null,null,null,{"$f":"+INT($AE$8*$AD$10*RAND()+BF386)","v":2}]
[null,null,null,null,null,null,null,null,null,null,null,null,null,null,null,null,null,null,null,null,null,null,null,null,null,null,null,null,null,null,null,null,null,null,null,null,null,null,null,null,null,null,null,null,null,null,null,null,null,null,null,null,null,null,null,null,null,{"$f":"+INT($AE$8*$AD$10*RAND()+BF387)","v":9}]
[null,null,null,null,null,null,null,null,null,null,null,null,null,null,null,null,null,null,null,null,null,null,null,null,null,null,null,null,null,null,null,null,null,null,null,null,null,null,null,null,null,null,null,null,null,null,null,null,null,null,null,null,null,null,null,null,null,{"$f":"+INT($AE$8*$AD$10*RAND()+BF388)","v":46}]
[null,null,null,null,null,null,null,null,null,null,null,null,null,null,null,null,null,null,null,null,null,null,null,null,null,null,null,null,null,null,null,null,null,null,null,null,null,null,null,null,null,null,null,null,null,null,null,null,null,null,null,null,null,null,null,null,null,{"$f":"+INT($AE$8*$AD$10*RAND()+BF389)","v":90}]
[null,null,null,null,null,null,null,null,null,null,null,null,null,null,null,null,null,null,null,null,null,null,null,null,null,null,null,null,null,null,null,null,null,null,null,null,null,null,null,null,null,null,null,null,null,null,null,null,null,null,null,null,null,null,null,null,null,0]
[null,null,null,null,null,null,null,null,null,null,null,null,null,null,null,null,null,null,null,null,null,null,null,null,null,null,null,null,null,null,null,null,null,null,null,null,null,null,null,null,null,null,null,null,null,null,null,null,null,null,null,null,null,null,null,null,null,{"$f":"+INT($AE$8*$AD$10*RAND()+BF391)","v":34}]
[null,null,null,null,null,null,null,null,null,null,null,null,null,null,null,null,null,null,null,null,null,null,null,null,null,null,null,null,null,null,null,null,null,null,null,null,null,null,null,null,null,null,null,null,null,null,null,null,null,null,null,null,null,null,null,null,null,{"$f":"+INT($AE$8*$AD$10*RAND()+BF392)","v":115}]
[null,null,null,null,null,null,null,null,null,null,null,null,null,null,null,null,null,null,null,null,null,null,null,null,null,null,null,null,null,null,null,null,null,null,null,null,null,null,null,null,null,null,null,null,null,null,null,null,null,null,null,null,null,null,null,null,null,{"$f":"+INT($AE$8*$AD$10*RAND()+BF393)","v":132}]
[null,null,null,null,null,null,null,null,null,null,null,null,null,null,null,null,null,null,null,null,null,null,null,null,null,null,null,null,null,null,null,null,null,null,null,null,null,null,null,null,null,null,null,null,null,null,null,null,null,null,null,null,null,null,null,null,null,{"$f":"+INT($AE$8*$AD$10*RAND()+BF394)","v":203}]
[null,null,null,null,null,null,null,null,null,null,null,null,null,null,null,null,null,null,null,null,null,null,null,null,null,null,null,null,null,null,null,null,null,null,null,null,null,null,null,null,null,null,null,null,null,null,null,null,null,null,null,null,null,null,null,null,null,0]
[null,null,null,null,null,null,null,null,null,null,null,null,null,null,null,null,null,null,null,null,null,null,null,null,null,null,null,null,null,null,null,null,null,null,null,null,null,null,null,null,null,null,null,null,null,null,null,null,null,null,null,null,null,null,null,null,null,{"$f":"+INT($AE$8*$AD$10*RAND()+BF396)","v":15}]
[null,null,null,null,null,null,null,null,null,null,null,null,null,null,null,null,null,null,null,null,null,null,null,null,null,null,null,null,null,null,null,null,null,null,null,null,null,null,null,null,null,null,null,null,null,null,null,null,null,null,null,null,null,null,null,null,null,{"$f":"+INT($AE$8*$AD$10*RAND()+BF397)","v":67}]
[null,null,null,null,null,null,null,null,null,null,null,null,null,null,null,null,null,null,null,null,null,null,null,null,null,null,null,null,null,null,null,null,null,null,null,null,null,null,null,null,null,null,null,null,null,null,null,null,null,null,null,null,null,null,null,null,null,{"$f":"+INT($AE$8*$AD$10*RAND()+BF398)","v":67}]
[null,null,null,null,null,null,null,null,null,null,null,null,null,null,null,null,null,null,null,null,null,null,null,null,null,null,null,null,null,null,null,null,null,null,null,null,null,null,null,null,null,null,null,null,null,null,null,null,null,null,null,null,null,null,null,null,null,{"$f":"+INT($AE$8*$AD$10*RAND()+BF399)","v":154}]
[null,null,null,null,null,null,null,null,null,null,null,null,null,null,null,null,null,null,null,null,null,null,null,null,null,null,null,null,null,null,null,null,null,null,null,null,null,null,null,null,null,null,null,null,null,null,null,null,null,null,null,null,null,null,null,null,null,0]
[null,null,null,null,null,null,null,null,null,null,null,null,null,null,null,null,null,null,null,null,null,null,null,null,null,null,null,null,null,null,null,null,null,null,null,null,null,null,null,null,null,null,null,null,null,null,null,null,null,null,null,null,null,null,null,null,null,{"$f":"+INT($AE$8*$AD$10*RAND()+BF401)","v":50}]
[null,null,null,null,null,null,null,null,null,null,null,null,null,null,null,null,null,null,null,null,null,null,null,null,null,null,null,null,null,null,null,null,null,null,null,null,null,null,null,null,null,null,null,null,null,null,null,null,null,null,null,null,null,null,null,null,null,{"$f":"+INT($AE$8*$AD$10*RAND()+BF402)","v":76}]
[null,null,null,null,null,null,null,null,null,null,null,null,null,null,null,null,null,null,null,null,null,null,null,null,null,null,null,null,null,null,null,null,null,null,null,null,null,null,null,null,null,null,null,null,null,null,null,null,null,null,null,null,null,null,null,null,null,{"$f":"+INT($AE$8*$AD$10*RAND()+BF403)","v":85}]
[null,null,null,null,null,null,null,null,null,null,null,null,null,null,null,null,null,null,null,null,null,null,null,null,null,null,null,null,null,null,null,null,null,null,null,null,null,null,null,null,null,null,null,null,null,null,null,null,null,null,null,null,null,null,null,null,null,{"$f":"+INT($AE$8*$AD$10*RAND()+BF404)","v":154}]
[null,null,null,null,null,null,null,null,null,null,null,null,null,null,null,null,null,null,null,null,null,null,null,null,null,null,null,null,null,null,null,null,null,null,null,null,null,null,null,null,null,null,null,null,null,null,null,null,null,null,null,null,null,null,null,null,null,0]
[null,null,null,null,null,null,null,null,null,null,null,null,null,null,null,null,null,null,null,null,null,null,null,null,null,null,null,null,null,null,null,null,null,null,null,null,null,null,null,null,null,null,null,null,null,null,null,null,null,null,null,null,null,null,null,null,null,{"$f":"+INT($AE$8*$AD$10*RAND()+BF406)","v":25}]
[null,null,null,null,null,null,null,null,null,null,null,null,null,null,null,null,null,null,null,null,null,null,null,null,null,null,null,null,null,null,null,null,null,null,null,null,null,null,null,null,null,null,null,null,null,null,null,null,null,null,null,null,null,null,null,null,null,{"$f":"+INT($AE$8*$AD$10*RAND()+BF407)","v":43}]
[null,null,null,null,null,null,null,null,null,null,null,null,null,null,null,null,null,null,null,null,null,null,null,null,null,null,null,null,null,null,null,null,null,null,null,null,null,null,null,null,null,null,null,null,null,null,null,null,null,null,null,null,null,null,null,null,null,{"$f":"+INT($AE$8*$AD$10*RAND()+BF408)","v":46}]
[null,null,null,null,null,null,null,null,null,null,null,null,null,null,null,null,null,null,null,null,null,null,null,null,null,null,null,null,null,null,null,null,null,null,null,null,null,null,null,null,null,null,null,null,null,null,null,null,null,null,null,null,null,null,null,null,null,{"$f":"+INT($AE$8*$AD$10*RAND()+BF409)","v":82}]
[null,null,null,null,null,null,null,null,null,null,null,null,null,null,null,null,null,null,null,null,null,null,null,null,null,null,null,null,null,null,null,null,null,null,null,null,null,null,null,null,null,null,null,null,null,null,null,null,null,null,null,null,null,null,null,null,null,0]
[null,null,null,null,null,null,null,null,null,null,null,null,null,null,null,null,null,null,null,null,null,null,null,null,null,null,null,null,null,null,null,null,null,null,null,null,null,null,null,null,null,null,null,null,null,null,null,null,null,null,null,null,null,null,null,null,null,{"$f":"+INT($AE$8*$AD$10*RAND()+BF411)","v":44}]
[null,null,null,null,null,null,null,null,null,null,null,null,null,null,null,null,null,null,null,null,null,null,null,null,null,null,null,null,null,null,null,null,null,null,null,null,null,null,null,null,null,null,null,null,null,null,null,null,null,null,null,null,null,null,null,null,null,{"$f":"+INT($AE$8*$AD$10*RAND()+BF412)","v":123}]
[null,null,null,null,null,null,null,null,null,null,null,null,null,null,null,null,null,null,null,null,null,null,null,null,null,null,null,null,null,null,null,null,null,null,null,null,null,null,null,null,null,null,null,null,null,null,null,null,null,null,null,null,null,null,null,null,null,{"$f":"+INT($AE$8*$AD$10*RAND()+BF413)","v":131}]
[null,null,null,null,null,null,null,null,null,null,null,null,null,null,null,null,null,null,null,null,null,null,null,null,null,null,null,null,null,null,null,null,null,null,null,null,null,null,null,null,null,null,null,null,null,null,null,null,null,null,null,null,null,null,null,null,null,{"$f":"+INT($AE$8*$AD$10*RAND()+BF414)","v":143}]
[null,null,null,null,null,null,null,null,null,null,null,null,null,null,null,null,null,null,null,null,null,null,null,null,null,null,null,null,null,null,null,null,null,null,null,null,null,null,null,null,null,null,null,null,null,null,null,null,null,null,null,null,null,null,null,null,null,0]
[null,null,null,null,null,null,null,null,null,null,null,null,null,null,null,null,null,null,null,null,null,null,null,null,null,null,null,null,null,null,null,null,null,null,null,null,null,null,null,null,null,null,null,null,null,null,null,null,null,null,null,null,null,null,null,null,null,{"$f":"+INT($AE$8*$AD$10*RAND()+BF416)","v":87}]
[null,null,null,null,null,null,null,null,null,null,null,null,null,null,null,null,null,null,null,null,null,null,null,null,null,null,null,null,null,null,null,null,null,null,null,null,null,null,null,null,null,null,null,null,null,null,null,null,null,null,null,null,null,null,null,null,null,{"$f":"+INT($AE$8*$AD$10*RAND()+BF417)","v":90}]
[null,null,null,null,null,null,null,null,null,null,null,null,null,null,null,null,null,null,null,null,null,null,null,null,null,null,null,null,null,null,null,null,null,null,null,null,null,null,null,null,null,null,null,null,null,null,null,null,null,null,null,null,null,null,null,null,null,{"$f":"+INT($AE$8*$AD$10*RAND()+BF418)","v":107}]
[null,null,null,null,null,null,null,null,null,null,null,null,null,null,null,null,null,null,null,null,null,null,null,null,null,null,null,null,null,null,null,null,null,null,null,null,null,null,null,null,null,null,null,null,null,null,null,null,null,null,null,null,null,null,null,null,null,{"$f":"+INT($AE$8*$AD$10*RAND()+BF419)","v":147}]
[null,null,null,null,null,null,null,null,null,null,null,null,null,null,null,null,null,null,null,null,null,null,null,null,null,null,null,null,null,null,null,null,null,null,null,null,null,null,null,null,null,null,null,null,null,null,null,null,null,null,null,null,null,null,null,null,null,0]
[null,null,null,null,null,null,null,null,null,null,null,null,null,null,null,null,null,null,null,null,null,null,null,null,null,null,null,null,null,null,null,null,null,null,null,null,null,null,null,null,null,null,null,null,null,null,null,null,null,null,null,null,null,null,null,null,null,{"$f":"+INT($AE$8*$AD$10*RAND()+BF421)","v":55}]
[null,null,null,null,null,null,null,null,null,null,null,null,null,null,null,null,null,null,null,null,null,null,null,null,null,null,null,null,null,null,null,null,null,null,null,null,null,null,null,null,null,null,null,null,null,null,null,null,null,null,null,null,null,null,null,null,null,{"$f":"+INT($AE$8*$AD$10*RAND()+BF422)","v":97}]
[null,null,null,null,null,null,null,null,null,null,null,null,null,null,null,null,null,null,null,null,null,null,null,null,null,null,null,null,null,null,null,null,null,null,null,null,null,null,null,null,null,null,null,null,null,null,null,null,null,null,null,null,null,null,null,null,null,{"$f":"+INT($AE$8*$AD$10*RAND()+BF423)","v":100}]
[null,null,null,null,null,null,null,null,null,null,null,null,null,null,null,null,null,null,null,null,null,null,null,null,null,null,null,null,null,null,null,null,null,null,null,null,null,null,null,null,null,null,null,null,null,null,null,null,null,null,null,null,null,null,null,null,null,{"$f":"+INT($AE$8*$AD$10*RAND()+BF424)","v":122}]
[null,null,null,null,null,null,null,null,null,null,null,null,null,null,null,null,null,null,null,null,null,null,null,null,null,null,null,null,null,null,null,null,null,null,null,null,null,null,null,null,null,null,null,null,null,null,null,null,null,null,null,null,null,null,null,null,null,0]
[null,null,null,null,null,null,null,null,null,null,null,null,null,null,null,null,null,null,null,null,null,null,null,null,null,null,null,null,null,null,null,null,null,null,null,null,null,null,null,null,null,null,null,null,null,null,null,null,null,null,null,null,null,null,null,null,null,{"$f":"+INT($AE$8*$AD$10*RAND()+BF426)","v":39}]
[null,null,null,null,null,null,null,null,null,null,null,null,null,null,null,null,null,null,null,null,null,null,null,null,null,null,null,null,null,null,null,null,null,null,null,null,null,null,null,null,null,null,null,null,null,null,null,null,null,null,null,null,null,null,null,null,null,{"$f":"+INT($AE$8*$AD$10*RAND()+BF427)","v":91}]
[null,null,null,null,null,null,null,null,null,null,null,null,null,null,null,null,null,null,null,null,null,null,null,null,null,null,null,null,null,null,null,null,null,null,null,null,null,null,null,null,null,null,null,null,null,null,null,null,null,null,null,null,null,null,null,null,null,{"$f":"+INT($AE$8*$AD$10*RAND()+BF428)","v":158}]
[null,null,null,null,null,null,null,null,null,null,null,null,null,null,null,null,null,null,null,null,null,null,null,null,null,null,null,null,null,null,null,null,null,null,null,null,null,null,null,null,null,null,null,null,null,null,null,null,null,null,null,null,null,null,null,null,null,{"$f":"+INT($AE$8*$AD$10*RAND()+BF429)","v":179}]
[null,null,null,null,null,null,null,null,null,null,null,null,null,null,null,null,null,null,null,null,null,null,null,null,null,null,null,null,null,null,null,null,null,null,null,null,null,null,null,null,null,null,null,null,null,null,null,null,null,null,null,null,null,null,null,null,null,0]
[null,null,null,null,null,null,null,null,null,null,null,null,null,null,null,null,null,null,null,null,null,null,null,null,null,null,null,null,null,null,null,null,null,null,null,null,null,null,null,null,null,null,null,null,null,null,null,null,null,null,null,null,null,null,null,null,null,{"$f":"+INT($AE$8*$AD$10*RAND()+BF431)","v":11}]
[null,null,null,null,null,null,null,null,null,null,null,null,null,null,null,null,null,null,null,null,null,null,null,null,null,null,null,null,null,null,null,null,null,null,null,null,null,null,null,null,null,null,null,null,null,null,null,null,null,null,null,null,null,null,null,null,null,{"$f":"+INT($AE$8*$AD$10*RAND()+BF432)","v":95}]
[null,null,null,null,null,null,null,null,null,null,null,null,null,null,null,null,null,null,null,null,null,null,null,null,null,null,null,null,null,null,null,null,null,null,null,null,null,null,null,null,null,null,null,null,null,null,null,null,null,null,null,null,null,null,null,null,null,{"$f":"+INT($AE$8*$AD$10*RAND()+BF433)","v":138}]
[null,null,null,null,null,null,null,null,null,null,null,null,null,null,null,null,null,null,null,null,null,null,null,null,null,null,null,null,null,null,null,null,null,null,null,null,null,null,null,null,null,null,null,null,null,null,null,null,null,null,null,null,null,null,null,null,null,{"$f":"+INT($AE$8*$AD$10*RAND()+BF434)","v":200}]
[null,null,null,null,null,null,null,null,null,null,null,null,null,null,null,null,null,null,null,null,null,null,null,null,null,null,null,null,null,null,null,null,null,null,null,null,null,null,null,null,null,null,null,null,null,null,null,null,null,null,null,null,null,null,null,null,null,0]
[null,null,null,null,null,null,null,null,null,null,null,null,null,null,null,null,null,null,null,null,null,null,null,null,null,null,null,null,null,null,null,null,null,null,null,null,null,null,null,null,null,null,null,null,null,null,null,null,null,null,null,null,null,null,null,null,null,{"$f":"+INT($AE$8*$AD$10*RAND()+BF436)","v":68}]
[null,null,null,null,null,null,null,null,null,null,null,null,null,null,null,null,null,null,null,null,null,null,null,null,null,null,null,null,null,null,null,null,null,null,null,null,null,null,null,null,null,null,null,null,null,null,null,null,null,null,null,null,null,null,null,null,null,{"$f":"+INT($AE$8*$AD$10*RAND()+BF437)","v":136}]
[null,null,null,null,null,null,null,null,null,null,null,null,null,null,null,null,null,null,null,null,null,null,null,null,null,null,null,null,null,null,null,null,null,null,null,null,null,null,null,null,null,null,null,null,null,null,null,null,null,null,null,null,null,null,null,null,null,{"$f":"+INT($AE$8*$AD$10*RAND()+BF438)","v":162}]
[null,null,null,null,null,null,null,null,null,null,null,null,null,null,null,null,null,null,null,null,null,null,null,null,null,null,null,null,null,null,null,null,null,null,null,null,null,null,null,null,null,null,null,null,null,null,null,null,null,null,null,null,null,null,null,null,null,{"$f":"+INT($AE$8*$AD$10*RAND()+BF439)","v":212}]
[null,null,null,null,null,null,null,null,null,null,null,null,null,null,null,null,null,null,null,null,null,null,null,null,null,null,null,null,null,null,null,null,null,null,null,null,null,null,null,null,null,null,null,null,null,null,null,null,null,null,null,null,null,null,null,null,null,0]
[null,null,null,null,null,null,null,null,null,null,null,null,null,null,null,null,null,null,null,null,null,null,null,null,null,null,null,null,null,null,null,null,null,null,null,null,null,null,null,null,null,null,null,null,null,null,null,null,null,null,null,null,null,null,null,null,null,{"$f":"+INT($AE$8*$AD$10*RAND()+BF441)","v":84}]
[null,null,null,null,null,null,null,null,null,null,null,null,null,null,null,null,null,null,null,null,null,null,null,null,null,null,null,null,null,null,null,null,null,null,null,null,null,null,null,null,null,null,null,null,null,null,null,null,null,null,null,null,null,null,null,null,null,{"$f":"+INT($AE$8*$AD$10*RAND()+BF442)","v":104}]
[null,null,null,null,null,null,null,null,null,null,null,null,null,null,null,null,null,null,null,null,null,null,null,null,null,null,null,null,null,null,null,null,null,null,null,null,null,null,null,null,null,null,null,null,null,null,null,null,null,null,null,null,null,null,null,null,null,{"$f":"+INT($AE$8*$AD$10*RAND()+BF443)","v":165}]
[null,null,null,null,null,null,null,null,null,null,null,null,null,null,null,null,null,null,null,null,null,null,null,null,null,null,null,null,null,null,null,null,null,null,null,null,null,null,null,null,null,null,null,null,null,null,null,null,null,null,null,null,null,null,null,null,null,{"$f":"+INT($AE$8*$AD$10*RAND()+BF444)","v":197}]
[null,null,null,null,null,null,null,null,null,null,null,null,null,null,null,null,null,null,null,null,null,null,null,null,null,null,null,null,null,null,null,null,null,null,null,null,null,null,null,null,null,null,null,null,null,null,null,null,null,null,null,null,null,null,null,null,null,0]
[null,null,null,null,null,null,null,null,null,null,null,null,null,null,null,null,null,null,null,null,null,null,null,null,null,null,null,null,null,null,null,null,null,null,null,null,null,null,null,null,null,null,null,null,null,null,null,null,null,null,null,null,null,null,null,null,null,{"$f":"+INT($AE$8*$AD$10*RAND()+BF446)","v":4}]
[null,null,null,null,null,null,null,null,null,null,null,null,null,null,null,null,null,null,null,null,null,null,null,null,null,null,null,null,null,null,null,null,null,null,null,null,null,null,null,null,null,null,null,null,null,null,null,null,null,null,null,null,null,null,null,null,null,{"$f":"+INT($AE$8*$AD$10*RAND()+BF447)","v":31}]
[null,null,null,null,null,null,null,null,null,null,null,null,null,null,null,null,null,null,null,null,null,null,null,null,null,null,null,null,null,null,null,null,null,null,null,null,null,null,null,null,null,null,null,null,null,null,null,null,null,null,null,null,null,null,null,null,null,{"$f":"+INT($AE$8*$AD$10*RAND()+BF448)","v":68}]
[null,null,null,null,null,null,null,null,null,null,null,null,null,null,null,null,null,null,null,null,null,null,null,null,null,null,null,null,null,null,null,null,null,null,null,null,null,null,null,null,null,null,null,null,null,null,null,null,null,null,null,null,null,null,null,null,null,{"$f":"+INT($AE$8*$AD$10*RAND()+BF449)","v":75}]
[null,null,null,null,null,null,null,null,null,null,null,null,null,null,null,null,null,null,null,null,null,null,null,null,null,null,null,null,null,null,null,null,null,null,null,null,null,null,null,null,null,null,null,null,null,null,null,null,null,null,null,null,null,null,null,null,null,0]
[null,null,null,null,null,null,null,null,null,null,null,null,null,null,null,null,null,null,null,null,null,null,null,null,null,null,null,null,null,null,null,null,null,null,null,null,null,null,null,null,null,null,null,null,null,null,null,null,null,null,null,null,null,null,null,null,null,{"$f":"+INT($AE$8*$AD$10*RAND()+BF451)","v":13}]
[null,null,null,null,null,null,null,null,null,null,null,null,null,null,null,null,null,null,null,null,null,null,null,null,null,null,null,null,null,null,null,null,null,null,null,null,null,null,null,null,null,null,null,null,null,null,null,null,null,null,null,null,null,null,null,null,null,{"$f":"+INT($AE$8*$AD$10*RAND()+BF452)","v":72}]
[null,null,null,null,null,null,null,null,null,null,null,null,null,null,null,null,null,null,null,null,null,null,null,null,null,null,null,null,null,null,null,null,null,null,null,null,null,null,null,null,null,null,null,null,null,null,null,null,null,null,null,null,null,null,null,null,null,{"$f":"+INT($AE$8*$AD$10*RAND()+BF453)","v":96}]
[null,null,null,null,null,null,null,null,null,null,null,null,null,null,null,null,null,null,null,null,null,null,null,null,null,null,null,null,null,null,null,null,null,null,null,null,null,null,null,null,null,null,null,null,null,null,null,null,null,null,null,null,null,null,null,null,null,{"$f":"+INT($AE$8*$AD$10*RAND()+BF454)","v":146}]
[null,null,null,null,null,null,null,null,null,null,null,null,null,null,null,null,null,null,null,null,null,null,null,null,null,null,null,null,null,null,null,null,null,null,null,null,null,null,null,null,null,null,null,null,null,null,null,null,null,null,null,null,null,null,null,null,null,0]
[null,null,null,null,null,null,null,null,null,null,null,null,null,null,null,null,null,null,null,null,null,null,null,null,null,null,null,null,null,null,null,null,null,null,null,null,null,null,null,null,null,null,null,null,null,null,null,null,null,null,null,null,null,null,null,null,null,{"$f":"+INT($AE$8*$AD$10*RAND()+BF456)","v":48}]
[null,null,null,null,null,null,null,null,null,null,null,null,null,null,null,null,null,null,null,null,null,null,null,null,null,null,null,null,null,null,null,null,null,null,null,null,null,null,null,null,null,null,null,null,null,null,null,null,null,null,null,null,null,null,null,null,null,{"$f":"+INT($AE$8*$AD$10*RAND()+BF457)","v":78}]
[null,null,null,null,null,null,null,null,null,null,null,null,null,null,null,null,null,null,null,null,null,null,null,null,null,null,null,null,null,null,null,null,null,null,null,null,null,null,null,null,null,null,null,null,null,null,null,null,null,null,null,null,null,null,null,null,null,{"$f":"+INT($AE$8*$AD$10*RAND()+BF458)","v":103}]
[null,null,null,null,null,null,null,null,null,null,null,null,null,null,null,null,null,null,null,null,null,null,null,null,null,null,null,null,null,null,null,null,null,null,null,null,null,null,null,null,null,null,null,null,null,null,null,null,null,null,null,null,null,null,null,null,null,{"$f":"+INT($AE$8*$AD$10*RAND()+BF459)","v":162}]
[null,null,null,null,null,null,null,null,null,null,null,null,null,null,null,null,null,null,null,null,null,null,null,null,null,null,null,null,null,null,null,null,null,null,null,null,null,null,null,null,null,null,null,null,null,null,null,null,null,null,null,null,null,null,null,null,null,0]
[null,null,null,null,null,null,null,null,null,null,null,null,null,null,null,null,null,null,null,null,null,null,null,null,null,null,null,null,null,null,null,null,null,null,null,null,null,null,null,null,null,null,null,null,null,null,null,null,null,null,null,null,null,null,null,null,null,{"$f":"+INT($AE$8*$AD$10*RAND()+BF461)","v":69}]
[null,null,null,null,null,null,null,null,null,null,null,null,null,null,null,null,null,null,null,null,null,null,null,null,null,null,null,null,null,null,null,null,null,null,null,null,null,null,null,null,null,null,null,null,null,null,null,null,null,null,null,null,null,null,null,null,null,{"$f":"+INT($AE$8*$AD$10*RAND()+BF462)","v":81}]
[null,null,null,null,null,null,null,null,null,null,null,null,null,null,null,null,null,null,null,null,null,null,null,null,null,null,null,null,null,null,null,null,null,null,null,null,null,null,null,null,null,null,null,null,null,null,null,null,null,null,null,null,null,null,null,null,null,{"$f":"+INT($AE$8*$AD$10*RAND()+BF463)","v":88}]
[null,null,null,null,null,null,null,null,null,null,null,null,null,null,null,null,null,null,null,null,null,null,null,null,null,null,null,null,null,null,null,null,null,null,null,null,null,null,null,null,null,null,null,null,null,null,null,null,null,null,null,null,null,null,null,null,null,{"$f":"+INT($AE$8*$AD$10*RAND()+BF464)","v":160}]
[null,null,null,null,null,null,null,null,null,null,null,null,null,null,null,null,null,null,null,null,null,null,null,null,null,null,null,null,null,null,null,null,null,null,null,null,null,null,null,null,null,null,null,null,null,null,null,null,null,null,null,null,null,null,null,null,null,0]
[null,null,null,null,null,null,null,null,null,null,null,null,null,null,null,null,null,null,null,null,null,null,null,null,null,null,null,null,null,null,null,null,null,null,null,null,null,null,null,null,null,null,null,null,null,null,null,null,null,null,null,null,null,null,null,null,null,{"$f":"+INT($AE$8*$AD$10*RAND()+BF466)","v":8}]
[null,null,null,null,null,null,null,null,null,null,null,null,null,null,null,null,null,null,null,null,null,null,null,null,null,null,null,null,null,null,null,null,null,null,null,null,null,null,null,null,null,null,null,null,null,null,null,null,null,null,null,null,null,null,null,null,null,{"$f":"+INT($AE$8*$AD$10*RAND()+BF467)","v":54}]
[null,null,null,null,null,null,null,null,null,null,null,null,null,null,null,null,null,null,null,null,null,null,null,null,null,null,null,null,null,null,null,null,null,null,null,null,null,null,null,null,null,null,null,null,null,null,null,null,null,null,null,null,null,null,null,null,null,{"$f":"+INT($AE$8*$AD$10*RAND()+BF468)","v":76}]
[null,null,null,null,null,null,null,null,null,null,null,null,null,null,null,null,null,null,null,null,null,null,null,null,null,null,null,null,null,null,null,null,null,null,null,null,null,null,null,null,null,null,null,null,null,null,null,null,null,null,null,null,null,null,null,null,null,{"$f":"+INT($AE$8*$AD$10*RAND()+BF469)","v":106}]
[null,null,null,null,null,null,null,null,null,null,null,null,null,null,null,null,null,null,null,null,null,null,null,null,null,null,null,null,null,null,null,null,null,null,null,null,null,null,null,null,null,null,null,null,null,null,null,null,null,null,null,null,null,null,null,null,null,0]
[null,null,null,null,null,null,null,null,null,null,null,null,null,null,null,null,null,null,null,null,null,null,null,null,null,null,null,null,null,null,null,null,null,null,null,null,null,null,null,null,null,null,null,null,null,null,null,null,null,null,null,null,null,null,null,null,null,{"$f":"+INT($AE$8*$AD$10*RAND()+BF471)","v":56}]
[null,null,null,null,null,null,null,null,null,null,null,null,null,null,null,null,null,null,null,null,null,null,null,null,null,null,null,null,null,null,null,null,null,null,null,null,null,null,null,null,null,null,null,null,null,null,null,null,null,null,null,null,null,null,null,null,null,{"$f":"+INT($AE$8*$AD$10*RAND()+BF472)","v":62}]
[null,null,null,null,null,null,null,null,null,null,null,null,null,null,null,null,null,null,null,null,null,null,null,null,null,null,null,null,null,null,null,null,null,null,null,null,null,null,null,null,null,null,null,null,null,null,null,null,null,null,null,null,null,null,null,null,null,{"$f":"+INT($AE$8*$AD$10*RAND()+BF473)","v":129}]
[null,null,null,null,null,null,null,null,null,null,null,null,null,null,null,null,null,null,null,null,null,null,null,null,null,null,null,null,null,null,null,null,null,null,null,null,null,null,null,null,null,null,null,null,null,null,null,null,null,null,null,null,null,null,null,null,null,{"$f":"+INT($AE$8*$AD$10*RAND()+BF474)","v":182}]
[null,null,null,null,null,null,null,null,null,null,null,null,null,null,null,null,null,null,null,null,null,null,null,null,null,null,null,null,null,null,null,null,null,null,null,null,null,null,null,null,null,null,null,null,null,null,null,null,null,null,null,null,null,null,null,null,null,0]
[null,null,null,null,null,null,null,null,null,null,null,null,null,null,null,null,null,null,null,null,null,null,null,null,null,null,null,null,null,null,null,null,null,null,null,null,null,null,null,null,null,null,null,null,null,null,null,null,null,null,null,null,null,null,null,null,null,{"$f":"+INT($AE$8*$AD$10*RAND()+BF476)","v":58}]
[null,null,null,null,null,null,null,null,null,null,null,null,null,null,null,null,null,null,null,null,null,null,null,null,null,null,null,null,null,null,null,null,null,null,null,null,null,null,null,null,null,null,null,null,null,null,null,null,null,null,null,null,null,null,null,null,null,{"$f":"+INT($AE$8*$AD$10*RAND()+BF477)","v":94}]
[null,null,null,null,null,null,null,null,null,null,null,null,null,null,null,null,null,null,null,null,null,null,null,null,null,null,null,null,null,null,null,null,null,null,null,null,null,null,null,null,null,null,null,null,null,null,null,null,null,null,null,null,null,null,null,null,null,{"$f":"+INT($AE$8*$AD$10*RAND()+BF478)","v":177}]
[null,null,null,null,null,null,null,null,null,null,null,null,null,null,null,null,null,null,null,null,null,null,null,null,null,null,null,null,null,null,null,null,null,null,null,null,null,null,null,null,null,null,null,null,null,null,null,null,null,null,null,null,null,null,null,null,null,{"$f":"+INT($AE$8*$AD$10*RAND()+BF479)","v":202}]
[null,null,null,null,null,null,null,null,null,null,null,null,null,null,null,null,null,null,null,null,null,null,null,null,null,null,null,null,null,null,null,null,null,null,null,null,null,null,null,null,null,null,null,null,null,null,null,null,null,null,null,null,null,null,null,null,null,0]
[null,null,null,null,null,null,null,null,null,null,null,null,null,null,null,null,null,null,null,null,null,null,null,null,null,null,null,null,null,null,null,null,null,null,null,null,null,null,null,null,null,null,null,null,null,null,null,null,null,null,null,null,null,null,null,null,null,{"$f":"+INT($AE$8*$AD$10*RAND()+BF481)","v":87}]
[null,null,null,null,null,null,null,null,null,null,null,null,null,null,null,null,null,null,null,null,null,null,null,null,null,null,null,null,null,null,null,null,null,null,null,null,null,null,null,null,null,null,null,null,null,null,null,null,null,null,null,null,null,null,null,null,null,{"$f":"+INT($AE$8*$AD$10*RAND()+BF482)","v":120}]
[null,null,null,null,null,null,null,null,null,null,null,null,null,null,null,null,null,null,null,null,null,null,null,null,null,null,null,null,null,null,null,null,null,null,null,null,null,null,null,null,null,null,null,null,null,null,null,null,null,null,null,null,null,null,null,null,null,{"$f":"+INT($AE$8*$AD$10*RAND()+BF483)","v":209}]
[null,null,null,null,null,null,null,null,null,null,null,null,null,null,null,null,null,null,null,null,null,null,null,null,null,null,null,null,null,null,null,null,null,null,null,null,null,null,null,null,null,null,null,null,null,null,null,null,null,null,null,null,null,null,null,null,null,{"$f":"+INT($AE$8*$AD$10*RAND()+BF484)","v":231}]
[null,null,null,null,null,null,null,null,null,null,null,null,null,null,null,null,null,null,null,null,null,null,null,null,null,null,null,null,null,null,null,null,null,null,null,null,null,null,null,null,null,null,null,null,null,null,null,null,null,null,null,null,null,null,null,null,null,0]
[null,null,null,null,null,null,null,null,null,null,null,null,null,null,null,null,null,null,null,null,null,null,null,null,null,null,null,null,null,null,null,null,null,null,null,null,null,null,null,null,null,null,null,null,null,null,null,null,null,null,null,null,null,null,null,null,null,{"$f":"+INT($AE$8*$AD$10*RAND()+BF486)","v":56}]
[null,null,null,null,null,null,null,null,null,null,null,null,null,null,null,null,null,null,null,null,null,null,null,null,null,null,null,null,null,null,null,null,null,null,null,null,null,null,null,null,null,null,null,null,null,null,null,null,null,null,null,null,null,null,null,null,null,{"$f":"+INT($AE$8*$AD$10*RAND()+BF487)","v":79}]
[null,null,null,null,null,null,null,null,null,null,null,null,null,null,null,null,null,null,null,null,null,null,null,null,null,null,null,null,null,null,null,null,null,null,null,null,null,null,null,null,null,null,null,null,null,null,null,null,null,null,null,null,null,null,null,null,null,{"$f":"+INT($AE$8*$AD$10*RAND()+BF488)","v":99}]
[null,null,null,null,null,null,null,null,null,null,null,null,null,null,null,null,null,null,null,null,null,null,null,null,null,null,null,null,null,null,null,null,null,null,null,null,null,null,null,null,null,null,null,null,null,null,null,null,null,null,null,null,null,null,null,null,null,{"$f":"+INT($AE$8*$AD$10*RAND()+BF489)","v":162}]
[null,null,null,null,null,null,null,null,null,null,null,null,null,null,null,null,null,null,null,null,null,null,null,null,null,null,null,null,null,null,null,null,null,null,null,null,null,null,null,null,null,null,null,null,null,null,null,null,null,null,null,null,null,null,null,null,null,0]
[null,null,null,null,null,null,null,null,null,null,null,null,null,null,null,null,null,null,null,null,null,null,null,null,null,null,null,null,null,null,null,null,null,null,null,null,null,null,null,null,null,null,null,null,null,null,null,null,null,null,null,null,null,null,null,null,null,{"$f":"+INT($AE$8*$AD$10*RAND()+BF491)","v":44}]
[null,null,null,null,null,null,null,null,null,null,null,null,null,null,null,null,null,null,null,null,null,null,null,null,null,null,null,null,null,null,null,null,null,null,null,null,null,null,null,null,null,null,null,null,null,null,null,null,null,null,null,null,null,null,null,null,null,{"$f":"+INT($AE$8*$AD$10*RAND()+BF492)","v":124}]
[null,null,null,null,null,null,null,null,null,null,null,null,null,null,null,null,null,null,null,null,null,null,null,null,null,null,null,null,null,null,null,null,null,null,null,null,null,null,null,null,null,null,null,null,null,null,null,null,null,null,null,null,null,null,null,null,null,{"$f":"+INT($AE$8*$AD$10*RAND()+BF493)","v":197}]
[null,null,null,null,null,null,null,null,null,null,null,null,null,null,null,null,null,null,null,null,null,null,null,null,null,null,null,null,null,null,null,null,null,null,null,null,null,null,null,null,null,null,null,null,null,null,null,null,null,null,null,null,null,null,null,null,null,{"$f":"+INT($AE$8*$AD$10*RAND()+BF494)","v":206}]
[null,null,null,null,null,null,null,null,null,null,null,null,null,null,null,null,null,null,null,null,null,null,null,null,null,null,null,null,null,null,null,null,null,null,null,null,null,null,null,null,null,null,null,null,null,null,null,null,null,null,null,null,null,null,null,null,null,0]
[null,null,null,null,null,null,null,null,null,null,null,null,null,null,null,null,null,null,null,null,null,null,null,null,null,null,null,null,null,null,null,null,null,null,null,null,null,null,null,null,null,null,null,null,null,null,null,null,null,null,null,null,null,null,null,null,null,{"$f":"+INT($AE$8*$AD$10*RAND()+BF496)","v":87}]
[null,null,null,null,null,null,null,null,null,null,null,null,null,null,null,null,null,null,null,null,null,null,null,null,null,null,null,null,null,null,null,null,null,null,null,null,null,null,null,null,null,null,null,null,null,null,null,null,null,null,null,null,null,null,null,null,null,{"$f":"+INT($AE$8*$AD$10*RAND()+BF497)","v":170}]
[null,null,null,null,null,null,null,null,null,null,null,null,null,null,null,null,null,null,null,null,null,null,null,null,null,null,null,null,null,null,null,null,null,null,null,null,null,null,null,null,null,null,null,null,null,null,null,null,null,null,null,null,null,null,null,null,null,{"$f":"+INT($AE$8*$AD$10*RAND()+BF498)","v":179}]
[null,null,null,null,null,null,null,null,null,null,null,null,null,null,null,null,null,null,null,null,null,null,null,null,null,null,null,null,null,null,null,null,null,null,null,null,null,null,null,null,null,null,null,null,null,null,null,null,null,null,null,null,null,null,null,null,null,{"$f":"+INT($AE$8*$AD$10*RAND()+BF499)","v":202}]
[null,null,null,null,null,null,null,null,null,null,null,null,null,null,null,null,null,null,null,null,null,null,null,null,null,null,null,null,null,null,null,null,null,null,null,null,null,null,null,null,null,null,null,null,null,null,null,null,null,null,null,null,null,null,null,null,null,{"$f":"+INT($AE$8*$AD$10*RAND()+BF501)","v":1}]
[null,null,null,null,null,null,null,null,null,null,null,null,null,null,null,null,null,null,null,null,null,null,null,null,null,null,null,null,null,null,null,null,null,null,null,null,null,null,null,null,null,null,null,null,null,null,null,null,null,null,null,null,null,null,null,null,null,{"$f":"+INT($AE$8*$AD$10*RAND()+BF506)","v":88}]
[null,null,null,null,null,null,null,null,null,null,null,null,null,null,null,null,null,null,null,null,null,null,null,null,null,null,null,null,null,null,null,null,null,null,null,null,null,null,null,null,null,null,null,null,null,null,null,null,null,null,null,null,null,null,null,null,null,{"$f":"+INT($AE$8*$AD$10*RAND()+BF511)","v":41}]
[null,null,null,null,null,null,null,null,null,null,null,null,null,null,null,null,null,null,null,null,null,null,null,null,null,null,null,null,null,null,null,null,null,null,null,null,null,null,null,null,null,null,null,null,null,null,null,null,null,null,null,null,null,null,null,null,null,{"$f":"+INT($AE$8*$AD$10*RAND()+BF514)","v":201}]
[null,null,null,null,null,null,null,null,null,null,null,null,null,null,null,null,null,null,null,null,null,null,null,null,null,null,null,null,null,null,null,null,null,null,null,null,null,null,null,null,null,null,null,null,null,null,null,null,null,null,null,null,null,null,null,null,null,{"$f":"+INT($AE$8*$AD$10*RAND()+BF518)","v":57}]
[null,null,null,null,null,null,null,null,null,null,null,null,null,null,null,null,null,null,null,null,null,null,null,null,null,null,null,null,null,null,null,null,null,null,null,null,null,null,null,null,null,null,null,null,null,null,null,null,null,null,null,null,null,null,null,null,null,{"$f":"+INT($AE$8*$AD$10*RAND()+BF523)","v":123}]
[null,null,null,null,null,null,null,null,null,null,null,null,null,null,null,null,null,null,null,null,null,null,null,null,null,null,null,null,null,null,null,null,null,null,null,null,null,null,null,null,null,null,null,null,null,null,null,null,null,null,null,null,null,null,null,null,null,{"$f":"+INT($AE$8*$AD$10*RAND()+BF528)","v":109}]
[null,null,null,null,null,null,null,null,null,null,null,null,null,null,null,null,null,null,null,null,null,null,null,null,null,null,null,null,null,null,null,null,null,null,null,null,null,null,null,null,null,null,null,null,null,null,null,null,null,null,null,null,null,null,null,null,null,0]
[null,null,null,null,null,null,null,null,null,null,null,null,null,null,null,null,null,null,null,null,null,null,null,null,null,null,null,null,null,null,null,null,null,null,null,null,null,null,null,null,null,null,null,null,null,null,null,null,null,null,null,null,null,null,null,null,null,0]
[null,null,null,null,null,null,null,null,null,null,null,null,null,null,null,null,null,null,null,null,null,null,null,null,null,null,null,null,null,null,null,null,null,null,null,null,null,null,null,null,null,null,null,null,null,null,null,null,null,null,null,null,null,null,null,null,null,0]
[null,null,null,null,null,null,null,null,null,null,null,null,null,null,null,null,null,null,null,null,null,null,null,null,null,null,null,null,null,null,null,null,null,null,null,null,null,null,null,null,null,null,null,null,null,null,null,null,null,null,null,null,null,null,null,null,null,{"$f":"+INT($AE$8*$AD$10*RAND()+BF546)","v":44}]
[null,null,null,null,null,null,null,null,null,null,null,null,null,null,null,null,null,null,null,null,null,null,null,null,null,null,null,null,null,null,null,null,null,null,null,null,null,null,null,null,null,null,null,null,null,null,null,null,null,null,null,null,null,null,null,null,null,{"$f":"+INT($AE$8*$AD$10*RAND()+BF547)","v":83}]
[null,null,null,null,null,null,null,null,null,null,null,null,null,null,null,null,null,null,null,null,null,null,null,null,null,null,null,null,null,null,null,null,null,null,null,null,null,null,null,null,null,null,null,null,null,null,null,null,null,null,null,null,null,null,null,null,null,{"$f":"+INT($AE$8*$AD$10*RAND()+BF552)","v":102}]
[null,null,null,null,null,null,null,null,null,null,null,null,null,null,null,null,null,null,null,null,null,null,null,null,null,null,null,null,null,null,null,null,null,null,null,null,null,null,null,null,null,null,null,null,null,null,null,null,null,null,null,null,null,null,null,null,null,0]
[null,null,null,null,null,null,null,null,null,null,null,null,null,null,null,null,null,null,null,null,null,null,null,null,null,null,null,null,null,null,null,null,null,null,null,null,null,null,null,null,null,null,null,null,null,null,null,null,null,null,null,null,null,null,null,null,null,{"$f":"+INT($AE$8*$AD$10*RAND()+BF563)","v":136}]
[null,null,null,null,null,null,null,null,null,null,null,null,null,null,null,null,null,null,null,null,null,null,null,null,null,null,null,null,null,null,null,null,null,null,null,null,null,null,null,null,null,null,null,null,null,null,null,null,null,null,null,null,null,null,null,null,null,{"$f":"+INT($AE$8*$AD$10*RAND()+BF564)","v":141}]
[null,null,null,null,null,null,null,null,null,null,null,null,null,null,null,null,null,null,null,null,null,null,null,null,null,null,null,null,null,null,null,null,null,null,null,null,null,null,null,null,null,null,null,null,null,null,null,null,null,null,null,null,null,null,null,null,null,{"$f":"+INT($AE$8*$AD$10*RAND()+BF569)","v":117}]
[null,null,null,null,null,null,null,null,null,null,null,null,null,null,null,null,null,null,null,null,null,null,null,null,null,null,null,null,null,null,null,null,null,null,null,null,null,null,null,null,null,null,null,null,null,null,null,null,null,null,null,null,null,null,null,null,null,{"$f":"+INT($AE$8*$AD$10*RAND()+BF574)","v":193}]
[null,null,null,null,null,null,null,null,null,null,null,null,null,null,null,null,null,null,null,null,null,null,null,null,null,null,null,null,null,null,null,null,null,null,null,null,null,null,null,null,null,null,null,null,null,null,null,null,null,null,null,null,null,null,null,null,null,0]
[null,null,null,null,null,null,null,null,null,null,null,null,null,null,null,null,null,null,null,null,null,null,null,null,null,null,null,null,null,null,null,null,null,null,null,null,null,null,null,null,null,null,null,null,null,null,null,null,null,null,null,null,null,null,null,null,null,{"$f":"+INT($AE$8*$AD$10*RAND()+BF581)","v":6}]
[null,null,null,null,null,null,null,null,null,null,null,null,null,null,null,null,null,null,null,null,null,null,null,null,null,null,null,null,null,null,null,null,null,null,null,null,null,null,null,null,null,null,null,null,null,null,null,null,null,null,null,null,null,null,null,null,null,{"$f":"+INT($AE$8*$AD$10*RAND()+BF588)","v":189}]
[null,null,null,null,null,null,null,null,null,null,null,null,null,null,null,null,null,null,null,null,null,null,null,null,null,null,null,null,null,null,null,null,null,null,null,null,null,null,null,null,null,null,null,null,null,null,null,null,null,null,null,null,null,null,null,null,null,{"$f":"+INT($AE$8*$AD$10*RAND()+BF592)","v":121}]
[null,null,null,null,null,null,null,null,null,null,null,null,null,null,null,null,null,null,null,null,null,null,null,null,null,null,null,null,null,null,null,null,null,null,null,null,null,null,null,null,null,null,null,null,null,null,null,null,null,null,null,null,null,null,null,null,null,{"$f":"+INT($AE$8*$AD$10*RAND()+BF597)","v":49}]
[null,null,null,null,null,null,null,null,null,null,null,null,null,null,null,null,null,null,null,null,null,null,null,null,null,null,null,null,null,null,null,null,null,null,null,null,null,null,null,null,null,null,null,null,null,null,null,null,null,null,null,null,null,null,null,null,null,{"$f":"+INT($AE$8*$AD$10*RAND()+BF598)","v":87}]
[null,null,null,null,null,null,null,null,null,null,null,null,null,null,null,null,null,null,null,null,null,null,null,null,null,null,null,null,null,null,null,null,null,null,null,null,null,null,null,null,null,null,null,null,null,null,null,null,null,null,null,null,null,null,null,null,null,{"$f":"+INT($AE$8*$AD$10*RAND()+BF602)","v":53}]
[null,null,null,null,null,null,null,null,null,null,null,null,null,null,null,null,null,null,null,null,null,null,null,null,null,null,null,null,null,null,null,null,null,null,null,null,null,null,null,null,null,null,null,null,null,null,null,null,null,null,null,null,null,null,null,null,null,{"$f":"+INT($AE$8*$AD$10*RAND()+BF609)","v":152}]
[null,null,null,null,null,null,null,null,null,null,null,null,null,null,null,null,null,null,null,null,null,null,null,null,null,null,null,null,null,null,null,null,null,null,null,null,null,null,null,null,null,null,null,null,null,null,null,null,null,null,null,null,null,null,null,null,null,{"$f":"+INT($AE$8*$AD$10*RAND()+BF614)","v":179}]
[null,null,null,null,null,null,null,null,null,null,null,null,null,null,null,null,null,null,null,null,null,null,null,null,null,null,null,null,null,null,null,null,null,null,null,null,null,null,null,null,null,null,null,null,null,null,null,null,null,null,null,null,null,null,null,null,null,{"$f":"+INT($AE$8*$AD$10*RAND()+BF616)","v":79}]
[null,null,null,null,null,null,null,null,null,null,null,null,null,null,null,null,null,null,null,null,null,null,null,null,null,null,null,null,null,null,null,null,null,null,null,null,null,null,null,null,null,null,null,null,null,null,null,null,null,null,null,null,null,null,null,null,null,{"$f":"+INT($AE$8*$AD$10*RAND()+BF621)","v":76}]
[null,null,null,null,null,null,null,null,null,null,null,null,null,null,null,null,null,null,null,null,null,null,null,null,null,null,null,null,null,null,null,null,null,null,null,null,null,null,null,null,null,null,null,null,null,null,null,null,null,null,null,null,null,null,null,null,null,{"$f":"+INT($AE$8*$AD$10*RAND()+BF626)","v":80}]
[null,null,null,null,null,null,null,null,null,null,null,null,null,null,null,null,null,null,null,null,null,null,null,null,null,null,null,null,null,null,null,null,null,null,null,null,null,null,null,null,null,null,null,null,null,null,null,null,null,null,null,null,null,null,null,null,null,{"$f":"+INT($AE$8*$AD$10*RAND()+BF631)","v":87}]
[null,null,null,null,null,null,null,null,null,null,null,null,null,null,null,null,null,null,null,null,null,null,null,null,null,null,null,null,null,null,null,null,null,null,null,null,null,null,null,null,null,null,null,null,null,null,null,null,null,null,null,null,null,null,null,null,null,{"$f":"+INT($AE$8*$AD$10*RAND()+BF634)","v":126}]
[null,null,null,null,null,null,null,null,null,null,null,null,null,null,null,null,null,null,null,null,null,null,null,null,null,null,null,null,null,null,null,null,null,null,null,null,null,null,null,null,null,null,null,null,null,null,null,null,null,null,null,null,null,null,null,null,null,{"$f":"+INT($AE$8*$AD$10*RAND()+BF638)","v":98}]
[null,null,null,null,null,null,null,null,null,null,null,null,null,null,null,null,null,null,null,null,null,null,null,null,null,null,null,null,null,null,null,null,null,null,null,null,null,null,null,null,null,null,null,null,null,null,null,null,null,null,null,null,null,null,null,null,null,{"$f":"+INT($AE$8*$AD$10*RAND()+BF643)","v":201}]
[null,null,null,null,null,null,null,null,null,null,null,null,null,null,null,null,null,null,null,null,null,null,null,null,null,null,null,null,null,null,null,null,null,null,null,null,null,null,null,null,null,null,null,null,null,null,null,null,null,null,null,null,null,null,null,null,null,{"$f":"+INT($AE$8*$AD$10*RAND()+BF648)","v":53}]
[null,null,null,null,null,null,null,null,null,null,null,null,null,null,null,null,null,null,null,null,null,null,null,null,null,null,null,null,null,null,null,null,null,null,null,null,null,null,null,null,null,null,null,null,null,null,null,null,null,null,null,null,null,null,null,null,null,0]
[null,null,null,null,null,null,null,null,null,null,null,null,null,null,null,null,null,null,null,null,null,null,null,null,null,null,null,null,null,null,null,null,null,null,null,null,null,null,null,null,null,null,null,null,null,null,null,null,null,null,null,null,null,null,null,null,null,0]
[null,null,null,null,null,null,null,null,null,null,null,null,null,null,null,null,null,null,null,null,null,null,null,null,null,null,null,null,null,null,null,null,null,null,null,null,null,null,null,null,null,null,null,null,null,null,null,null,null,null,null,null,null,null,null,null,null,{"$f":"+INT($AE$8*$AD$10*RAND()+BF658)","v":134}]
[null,null,null,null,null,null,null,null,null,null,null,null,null,null,null,null,null,null,null,null,null,null,null,null,null,null,null,null,null,null,null,null,null,null,null,null,null,null,null,null,null,null,null,null,null,null,null,null,null,null,null,null,null,null,null,null,null,{"$f":"+INT($AE$8*$AD$10*RAND()+BF666)","v":33}]
[null,null,null,null,null,null,null,null,null,null,null,null,null,null,null,null,null,null,null,null,null,null,null,null,null,null,null,null,null,null,null,null,null,null,null,null,null,null,null,null,null,null,null,null,null,null,null,null,null,null,null,null,null,null,null,null,null,{"$f":"+INT($AE$8*$AD$10*RAND()+BF667)","v":116}]
[null,null,null,null,null,null,null,null,null,null,null,null,null,null,null,null,null,null,null,null,null,null,null,null,null,null,null,null,null,null,null,null,null,null,null,null,null,null,null,null,null,null,null,null,null,null,null,null,null,null,null,null,null,null,null,null,null,{"$f":"+INT($AE$8*$AD$10*RAND()+BF672)","v":86}]
[null,null,null,null,null,null,null,null,null,null,null,null,null,null,null,null,null,null,null,null,null,null,null,null,null,null,null,null,null,null,null,null,null,null,null,null,null,null,null,null,null,null,null,null,null,null,null,null,null,null,null,null,null,null,null,null,null,{"$f":"+INT($AE$8*$AD$10*RAND()+BF676)","v":18}]
[null,null,null,null,null,null,null,null,null,null,null,null,null,null,null,null,null,null,null,null,null,null,null,null,null,null,null,null,null,null,null,null,null,null,null,null,null,null,null,null,null,null,null,null,null,null,null,null,null,null,null,null,null,null,null,null,null,{"$f":"+INT($AE$8*$AD$10*RAND()+BF683)","v":114}]
[null,null,null,null,null,null,null,null,null,null,null,null,null,null,null,null,null,null,null,null,null,null,null,null,null,null,null,null,null,null,null,null,null,null,null,null,null,null,null,null,null,null,null,null,null,null,null,null,null,null,null,null,null,null,null,null,null,{"$f":"+INT($AE$8*$AD$10*RAND()+BF684)","v":196}]
[null,null,null,null,null,null,null,null,null,null,null,null,null,null,null,null,null,null,null,null,null,null,null,null,null,null,null,null,null,null,null,null,null,null,null,null,null,null,null,null,null,null,null,null,null,null,null,null,null,null,null,null,null,null,null,null,null,0]
[null,null,null,null,null,null,null,null,null,null,null,null,null,null,null,null,null,null,null,null,null,null,null,null,null,null,null,null,null,null,null,null,null,null,null,null,null,null,null,null,null,null,null,null,null,null,null,null,null,null,null,null,null,null,null,null,null,0]
[null,null,null,null,null,null,null,null,null,null,null,null,null,null,null,null,null,null,null,null,null,null,null,null,null,null,null,null,null,null,null,null,null,null,null,null,null,null,null,null,null,null,null,null,null,null,null,null,null,null,null,null,null,null,null,null,null,0]
[null,null,null,null,null,null,null,null,null,null,null,null,null,null,null,null,null,null,null,null,null,null,null,null,null,null,null,null,null,null,null,null,null,null,null,null,null,null,null,null,null,null,null,null,null,null,null,null,null,null,null,null,null,null,null,null,null,{"$f":"+INT($AE$8*$AD$10*RAND()+BF701)","v":19}]
[null,null,null,null,null,null,null,null,null,null,null,null,null,null,null,null,null,null,null,null,null,null,null,null,null,null,null,null,null,null,null,null,null,null,null,null,null,null,null,null,null,null,null,null,null,null,null,null,null,null,null,null,null,null,null,null,null,{"$f":"+INT($AE$8*$AD$10*RAND()+BF709)","v":125}]
[null,null,null,null,null,null,null,null,null,null,null,null,null,null,null,null,null,null,null,null,null,null,null,null,null,null,null,null,null,null,null,null,null,null,null,null,null,null,null,null,null,null,null,null,null,null,null,null,null,null,null,null,null,null,null,null,null,{"$f":"+INT($AE$8*$AD$10*RAND()+BF712)","v":86}]
[null,null,null,null,null,null,null,null,null,null,null,null,null,null,null,null,null,null,null,null,null,null,null,null,null,null,null,null,null,null,null,null,null,null,null,null,null,null,null,null,null,null,null,null,null,null,null,null,null,null,null,null,null,null,null,null,null,{"$f":"+INT($AE$8*$AD$10*RAND()+BF717)","v":81}]
[null,null,null,null,null,null,null,null,null,null,null,null,null,null,null,null,null,null,null,null,null,null,null,null,null,null,null,null,null,null,null,null,null,null,null,null,null,null,null,null,null,null,null,null,null,null,null,null,null,null,null,null,null,null,null,null,null,{"$f":"+INT($AE$8*$AD$10*RAND()+BF718)","v":134}]
[null,null,null,null,null,null,null,null,null,null,null,null,null,null,null,null,null,null,null,null,null,null,null,null,null,null,null,null,null,null,null,null,null,null,null,null,null,null,null,null,null,null,null,null,null,null,null,null,null,null,null,null,null,null,null,null,null,{"$f":"+INT($AE$8*$AD$10*RAND()+BF724)","v":178}]
[null,null,null,null,null,null,null,null,null,null,null,null,null,null,null,null,null,null,null,null,null,null,null,null,null,null,null,null,null,null,null,null,null,null,null,null,null,null,null,null,null,null,null,null,null,null,null,null,null,null,null,null,null,null,null,null,null,{"$f":"+INT($AE$8*$AD$10*RAND()+BF729)","v":117}]
[null,null,null,null,null,null,null,null,null,null,null,null,null,null,null,null,null,null,null,null,null,null,null,null,null,null,null,null,null,null,null,null,null,null,null,null,null,null,null,null,null,null,null,null,null,null,null,null,null,null,null,null,null,null,null,null,null,{"$f":"+INT($AE$8*$AD$10*RAND()+BF734)","v":236}]
[null,null,null,null,null,null,null,null,null,null,null,null,null,null,null,null,null,null,null,null,null,null,null,null,null,null,null,null,null,null,null,null,null,null,null,null,null,null,null,null,null,null,null,null,null,null,null,null,null,null,null,null,null,null,null,null,null,{"$f":"+INT($AE$8*$AD$10*RAND()+BF737)","v":74}]
[null,null,null,null,null,null,null,null,null,null,null,null,null,null,null,null,null,null,null,null,null,null,null,null,null,null,null,null,null,null,null,null,null,null,null,null,null,null,null,null,null,null,null,null,null,null,null,null,null,null,null,null,null,null,null,null,null,{"$f":"+INT($AE$8*$AD$10*RAND()+BF741)","v":11}]
[null,null,null,null,null,null,null,null,null,null,null,null,null,null,null,null,null,null,null,null,null,null,null,null,null,null,null,null,null,null,null,null,null,null,null,null,null,null,null,null,null,null,null,null,null,null,null,null,null,null,null,null,null,null,null,null,null,{"$f":"+INT($AE$8*$AD$10*RAND()+BF746)","v":26}]
[null,null,null,null,null,null,null,null,null,null,null,null,null,null,null,null,null,null,null,null,null,null,null,null,null,null,null,null,null,null,null,null,null,null,null,null,null,null,null,null,null,null,null,null,null,null,null,null,null,null,null,null,null,null,null,null,null,{"$f":"+INT($AE$8*$AD$10*RAND()+BF751)","v":31}]
[null,null,null,null,null,null,null,null,null,null,null,null,null,null,null,null,null,null,null,null,null,null,null,null,null,null,null,null,null,null,null,null,null,null,null,null,null,null,null,null,null,null,null,null,null,null,null,null,null,null,null,null,null,null,null,null,null,{"$f":"+INT($AE$8*$AD$10*RAND()+BF753)","v":125}]
[null,null,null,null,null,null,null,null,null,null,null,null,null,null,null,null,null,null,null,null,null,null,null,null,null,null,null,null,null,null,null,null,null,null,null,null,null,null,null,null,null,null,null,null,null,null,null,null,null,null,null,null,null,null,null,null,null,{"$f":"+INT($AE$8*$AD$10*RAND()+BF758)","v":129}]
[null,null,null,null,null,null,null,null,null,null,null,null,null,null,null,null,null,null,null,null,null,null,null,null,null,null,null,null,null,null,null,null,null,null,null,null,null,null,null,null,null,null,null,null,null,null,null,null,null,null,null,null,null,null,null,null,null,{"$f":"+INT($AE$8*$AD$10*RAND()+BF763)","v":168}]
[null,null,null,null,null,null,null,null,null,null,null,null,null,null,null,null,null,null,null,null,null,null,null,null,null,null,null,null,null,null,null,null,null,null,null,null,null,null,null,null,null,null,null,null,null,null,null,null,null,null,null,null,null,null,null,null,null,{"$f":"+INT($AE$8*$AD$10*RAND()+BF769)","v":171}]
[null,null,null,null,null,null,null,null,null,null,null,null,null,null,null,null,null,null,null,null,null,null,null,null,null,null,null,null,null,null,null,null,null,null,null,null,null,null,null,null,null,null,null,null,null,null,null,null,null,null,null,null,null,null,null,null,null,0]
[null,null,null,null,null,null,null,null,null,null,null,null,null,null,null,null,null,null,null,null,null,null,null,null,null,null,null,null,null,null,null,null,null,null,null,null,null,null,null,null,null,null,null,null,null,null,null,null,null,null,null,null,null,null,null,null,null,0]
[null,null,null,null,null,null,null,null,null,null,null,null,null,null,null,null,null,null,null,null,null,null,null,null,null,null,null,null,null,null,null,null,null,null,null,null,null,null,null,null,null,null,null,null,null,null,null,null,null,null,null,null,null,null,null,null,null,{"$f":"+INT($AE$8*$AD$10*RAND()+BF778)","v":114}]
[null,null,null,null,null,null,null,null,null,null,null,null,null,null,null,null,null,null,null,null,null,null,null,null,null,null,null,null,null,null,null,null,null,null,null,null,null,null,null,null,null,null,null,null,null,null,null,null,null,null,null,null,null,null,null,null,null,{"$f":"+INT($AE$8*$AD$10*RAND()+BF786)","v":4}]
[null,null,null,null,null,null,null,null,null,null,null,null,null,null,null,null,null,null,null,null,null,null,null,null,null,null,null,null,null,null,null,null,null,null,null,null,null,null,null,null,null,null,null,null,null,null,null,null,null,null,null,null,null,null,null,null,null,{"$f":"+INT($AE$8*$AD$10*RAND()+BF787)","v":41}]
[null,null,null,null,null,null,null,null,null,null,null,null,null,null,null,null,null,null,null,null,null,null,null,null,null,null,null,null,null,null,null,null,null,null,null,null,null,null,null,null,null,null,null,null,null,null,null,null,null,null,null,null,null,null,null,null,null,{"$f":"+INT($AE$8*$AD$10*RAND()+BF792)","v":40}]
[null,null,null,null,null,null,null,null,null,null,null,null,null,null,null,null,null,null,null,null,null,null,null,null,null,null,null,null,null,null,null,null,null,null,null,null,null,null,null,null,null,null,null,null,null,null,null,null,null,null,null,null,null,null,null,null,null,{"$f":"+INT($AE$8*$AD$10*RAND()+BF798)","v":117}]
[null,null,null,null,null,null,null,null,null,null,null,null,null,null,null,null,null,null,null,null,null,null,null,null,null,null,null,null,null,null,null,null,null,null,null,null,null,null,null,null,null,null,null,null,null,null,null,null,null,null,null,null,null,null,null,null,null,{"$f":"+INT($AE$8*$AD$10*RAND()+BF803)","v":143}]
[null,null,null,null,null,null,null,null,null,null,null,null,null,null,null,null,null,null,null,null,null,null,null,null,null,null,null,null,null,null,null,null,null,null,null,null,null,null,null,null,null,null,null,null,null,null,null,null,null,null,null,null,null,null,null,null,null,{"$f":"+INT($AE$8*$AD$10*RAND()+BF804)","v":190}]
[null,null,null,null,null,null,null,null,null,null,null,null,null,null,null,null,null,null,null,null,null,null,null,null,null,null,null,null,null,null,null,null,null,null,null,null,null,null,null,null,null,null,null,null,null,null,null,null,null,null,null,null,null,null,null,null,null,{"$f":"+INT($AE$8*$AD$10*RAND()+BF811)","v":87}]
[null,null,null,null,null,null,null,null,null,null,null,null,null,null,null,null,null,null,null,null,null,null,null,null,null,null,null,null,null,null,null,null,null,null,null,null,null,null,null,null,null,null,null,null,null,null,null,null,null,null,null,null,null,null,null,null,null,0]
[null,null,null,null,null,null,null,null,null,null,null,null,null,null,null,null,null,null,null,null,null,null,null,null,null,null,null,null,null,null,null,null,null,null,null,null,null,null,null,null,null,null,null,null,null,null,null,null,null,null,null,null,null,null,null,null,null,0]
[null,null,null,null,null,null,null,null,null,null,null,null,null,null,null,null,null,null,null,null,null,null,null,null,null,null,null,null,null,null,null,null,null,null,null,null,null,null,null,null,null,null,null,null,null,null,null,null,null,null,null,null,null,null,null,null,null,0]
[null,null,null,null,null,null,null,null,null,null,null,null,null,null,null,null,null,null,null,null,null,null,null,null,null,null,null,null,null,null,null,null,null,null,null,null,null,null,null,null,null,null,null,null,null,null,null,null,null,null,null,null,null,null,null,null,null,{"$f":"+INT($AE$8*$AD$10*RAND()+BF827)","v":131}]
[null,null,null,null,null,null,null,null,null,null,null,null,null,null,null,null,null,null,null,null,null,null,null,null,null,null,null,null,null,null,null,null,null,null,null,null,null,null,null,null,null,null,null,null,null,null,null,null,null,null,null,null,null,null,null,null,null,{"$f":"+INT($AE$8*$AD$10*RAND()+BF832)","v":31}]
[null,null,null,null,null,null,null,null,null,null,null,null,null,null,null,null,null,null,null,null,null,null,null,null,null,null,null,null,null,null,null,null,null,null,null,null,null,null,null,null,null,null,null,null,null,null,null,null,null,null,null,null,null,null,null,null,null,{"$f":"+INT($AE$8*$AD$10*RAND()+BF837)","v":77}]
[null,null,null,null,null,null,null,null,null,null,null,null,null,null,null,null,null,null,null,null,null,null,null,null,null,null,null,null,null,null,null,null,null,null,null,null,null,null,null,null,null,null,null,null,null,null,null,null,null,null,null,null,null,null,null,null,null,{"$f":"+INT($AE$8*$AD$10*RAND()+BF839)","v":167}]
[null,null,null,null,null,null,null,null,null,null,null,null,null,null,null,null,null,null,null,null,null,null,null,null,null,null,null,null,null,null,null,null,null,null,null,null,null,null,null,null,null,null,null,null,null,null,null,null,null,null,null,null,null,null,null,null,null,{"$f":"+INT($AE$8*$AD$10*RAND()+BF844)","v":229}]
[null,null,null,null,null,null,null,null,null,null,null,null,null,null,null,null,null,null,null,null,null,null,null,null,null,null,null,null,null,null,null,null,null,null,null,null,null,null,null,null,null,null,null,null,null,null,null,null,null,null,null,null,null,null,null,null,null,{"$f":"+INT($AE$8*$AD$10*RAND()+BF849)","v":254}]
[null,null,null,null,null,null,null,null,null,null,null,null,null,null,null,null,null,null,null,null,null,null,null,null,null,null,null,null,null,null,null,null,null,null,null,null,null,null,null,null,null,null,null,null,null,null,null,null,null,null,null,null,null,null,null,null,null,{"$f":"+INT($AE$8*$AD$10*RAND()+BF853)","v":201}]
[null,null,null,null,null,null,null,null,null,null,null,null,null,null,null,null,null,null,null,null,null,null,null,null,null,null,null,null,null,null,null,null,null,null,null,null,null,null,null,null,null,null,null,null,null,null,null,null,null,null,null,null,null,null,null,null,null,{"$f":"+INT($AE$8*$AD$10*RAND()+BF856)","v":49}]
[null,null,null,null,null,null,null,null,null,null,null,null,null,null,null,null,null,null,null,null,null,null,null,null,null,null,null,null,null,null,null,null,null,null,null,null,null,null,null,null,null,null,null,null,null,null,null,null,null,null,null,null,null,null,null,null,null,{"$f":"+INT($AE$8*$AD$10*RAND()+BF861)","v":15}]
[null,null,null,null,null,null,null,null,null,null,null,null,null,null,null,null,null,null,null,null,null,null,null,null,null,null,null,null,null,null,null,null,null,null,null,null,null,null,null,null,null,null,null,null,null,null,null,null,null,null,null,null,null,null,null,null,null,{"$f":"+INT($AE$8*$AD$10*RAND()+BF866)","v":29}]
[null,null,null,null,null,null,null,null,null,null,null,null,null,null,null,null,null,null,null,null,null,null,null,null,null,null,null,null,null,null,null,null,null,null,null,null,null,null,null,null,null,null,null,null,null,null,null,null,null,null,null,null,null,null,null,null,null,{"$f":"+INT($AE$8*$AD$10*RAND()+BF871)","v":82}]
[null,null,null,null,null,null,null,null,null,null,null,null,null,null,null,null,null,null,null,null,null,null,null,null,null,null,null,null,null,null,null,null,null,null,null,null,null,null,null,null,null,null,null,null,null,null,null,null,null,null,null,null,null,null,null,null,null,{"$f":"+INT($AE$8*$AD$10*RAND()+BF873)","v":165}]
[null,null,null,null,null,null,null,null,null,null,null,null,null,null,null,null,null,null,null,null,null,null,null,null,null,null,null,null,null,null,null,null,null,null,null,null,null,null,null,null,null,null,null,null,null,null,null,null,null,null,null,null,null,null,null,null,null,{"$f":"+INT($AE$8*$AD$10*RAND()+BF878)","v":168}]
[null,null,null,null,null,null,null,null,null,null,null,null,null,null,null,null,null,null,null,null,null,null,null,null,null,null,null,null,null,null,null,null,null,null,null,null,null,null,null,null,null,null,null,null,null,null,null,null,null,null,null,null,null,null,null,null,null,0]
[null,null,null,null,null,null,null,null,null,null,null,null,null,null,null,null,null,null,null,null,null,null,null,null,null,null,null,null,null,null,null,null,null,null,null,null,null,null,null,null,null,null,null,null,null,null,null,null,null,null,null,null,null,null,null,null,null,{"$f":"+INT($AE$8*$AD$10*RAND()+BF889)","v":204}]
[null,null,null,null,null,null,null,null,null,null,null,null,null,null,null,null,null,null,null,null,null,null,null,null,null,null,null,null,null,null,null,null,null,null,null,null,null,null,null,null,null,null,null,null,null,null,null,null,null,null,null,null,null,null,null,null,null,0]
[null,null,null,null,null,null,null,null,null,null,null,null,null,null,null,null,null,null,null,null,null,null,null,null,null,null,null,null,null,null,null,null,null,null,null,null,null,null,null,null,null,null,null,null,null,null,null,null,null,null,null,null,null,null,null,null,null,0]
[null,null,null,null,null,null,null,null,null,null,null,null,null,null,null,null,null,null,null,null,null,null,null,null,null,null,null,null,null,null,null,null,null,null,null,null,null,null,null,null,null,null,null,null,null,null,null,null,null,null,null,null,null,null,null,null,null,{"$f":"+INT($AE$8*$AD$10*RAND()+BF899)","v":150}]
[null,null,null,null,null,null,null,null,null,null,null,null,null,null,null,null,null,null,null,null,null,null,null,null,null,null,null,null,null,null,null,null,null,null,null,null,null,null,null,null,null,null,null,null,null,null,null,null,null,null,null,null,null,null,null,null,null,{"$f":"+INT($AE$8*$AD$10*RAND()+BF906)","v":68}]
[null,null,null,null,null,null,null,null,null,null,null,null,null,null,null,null,null,null,null,null,null,null,null,null,null,null,null,null,null,null,null,null,null,null,null,null,null,null,null,null,null,null,null,null,null,null,null,null,null,null,null,null,null,null,null,null,null,{"$f":"+INT($AE$8*$AD$10*RAND()+BF907)","v":133}]
[null,null,null,null,null,null,null,null,null,null,null,null,null,null,null,null,null,null,null,null,null,null,null,null,null,null,null,null,null,null,null,null,null,null,null,null,null,null,null,null,null,null,null,null,null,null,null,null,null,null,null,null,null,null,null,null,null,{"$f":"+INT($AE$8*$AD$10*RAND()+BF913)","v":141}]
[null,null,null,null,null,null,null,null,null,null,null,null,null,null,null,null,null,null,null,null,null,null,null,null,null,null,null,null,null,null,null,null,null,null,null,null,null,null,null,null,null,null,null,null,null,null,null,null,null,null,null,null,null,null,null,null,null,{"$f":"+INT($AE$8*$AD$10*RAND()+BF918)","v":150}]
[null,null,null,null,null,null,null,null,null,null,null,null,null,null,null,null,null,null,null,null,null,null,null,null,null,null,null,null,null,null,null,null,null,null,null,null,null,null,null,null,null,null,null,null,null,null,null,null,null,null,null,null,null,null,null,null,null,{"$f":"+INT($AE$8*$AD$10*RAND()+BF923)","v":102}]
[null,null,null,null,null,null,null,null,null,null,null,null,null,null,null,null,null,null,null,null,null,null,null,null,null,null,null,null,null,null,null,null,null,null,null,null,null,null,null,null,null,null,null,null,null,null,null,null,null,null,null,null,null,null,null,null,null,{"$f":"+INT($AE$8*$AD$10*RAND()+BF927)","v":120}]
[null,null,null,null,null,null,null,null,null,null,null,null,null,null,null,null,null,null,null,null,null,null,null,null,null,null,null,null,null,null,null,null,null,null,null,null,null,null,null,null,null,null,null,null,null,null,null,null,null,null,null,null,null,null,null,null,null,0]
[null,null,null,null,null,null,null,null,null,null,null,null,null,null,null,null,null,null,null,null,null,null,null,null,null,null,null,null,null,null,null,null,null,null,null,null,null,null,null,null,null,null,null,null,null,null,null,null,null,null,null,null,null,null,null,null,null,0]
[null,null,null,null,null,null,null,null,null,null,null,null,null,null,null,null,null,null,null,null,null,null,null,null,null,null,null,null,null,null,null,null,null,null,null,null,null,null,null,null,null,null,null,null,null,null,null,null,null,null,null,null,null,null,null,null,null,0]
[null,null,null,null,null,null,null,null,null,null,null,null,null,null,null,null,null,null,null,null,null,null,null,null,null,null,null,null,null,null,null,null,null,null,null,null,null,null,null,null,null,null,null,null,null,null,null,null,null,null,null,null,null,null,null,null,null,{"$f":"+INT($AE$8*$AD$10*RAND()+BF941)","v":46}]
[null,null,null,null,null,null,null,null,null,null,null,null,null,null,null,null,null,null,null,null,null,null,null,null,null,null,null,null,null,null,null,null,null,null,null,null,null,null,null,null,null,null,null,null,null,null,null,null,null,null,null,null,null,null,null,null,null,{"$f":"+INT($AE$8*$AD$10*RAND()+BF947)","v":25}]
[null,null,null,null,null,null,null,null,null,null,null,null,null,null,null,null,null,null,null,null,null,null,null,null,null,null,null,null,null,null,null,null,null,null,null,null,null,null,null,null,null,null,null,null,null,null,null,null,null,null,null,null,null,null,null,null,null,{"$f":"+INT($AE$8*$AD$10*RAND()+BF952)","v":83}]
[null,null,null,null,null,null,null,null,null,null,null,null,null,null,null,null,null,null,null,null,null,null,null,null,null,null,null,null,null,null,null,null,null,null,null,null,null,null,null,null,null,null,null,null,null,null,null,null,null,null,null,null,null,null,null,null,null,0]
[null,null,null,null,null,null,null,null,null,null,null,null,null,null,null,null,null,null,null,null,null,null,null,null,null,null,null,null,null,null,null,null,null,null,null,null,null,null,null,null,null,null,null,null,null,null,null,null,null,null,null,null,null,null,null,null,null,{"$f":"+INT($AE$8*$AD$10*RAND()+BF959)","v":214}]
[null,null,null,null,null,null,null,null,null,null,null,null,null,null,null,null,null,null,null,null,null,null,null,null,null,null,null,null,null,null,null,null,null,null,null,null,null,null,null,null,null,null,null,null,null,null,null,null,null,null,null,null,null,null,null,null,null,{"$f":"+INT($AE$8*$AD$10*RAND()+BF964)","v":140}]
[null,null,null,null,null,null,null,null,null,null,null,null,null,null,null,null,null,null,null,null,null,null,null,null,null,null,null,null,null,null,null,null,null,null,null,null,null,null,null,null,null,null,null,null,null,null,null,null,null,null,null,null,null,null,null,null,null,{"$f":"+INT($AE$8*$AD$10*RAND()+BF969)","v":93}]
[null,null,null,null,null,null,null,null,null,null,null,null,null,null,null,null,null,null,null,null,null,null,null,null,null,null,null,null,null,null,null,null,null,null,null,null,null,null,null,null,null,null,null,null,null,null,null,null,null,null,null,null,null,null,null,null,null,{"$f":"+INT($AE$8*$AD$10*RAND()+BF974)","v":134}]
[null,null,null,null,null,null,null,null,null,null,null,null,null,null,null,null,null,null,null,null,null,null,null,null,null,null,null,null,null,null,null,null,null,null,null,null,null,null,null,null,null,null,null,null,null,null,null,null,null,null,null,null,null,null,null,null,null,{"$f":"+INT($AE$8*$AD$10*RAND()+BF976)","v":88}]
[null,null,null,null,null,null,null,null,null,null,null,null,null,null,null,null,null,null,null,null,null,null,null,null,null,null,null,null,null,null,null,null,null,null,null,null,null,null,null,null,null,null,null,null,null,null,null,null,null,null,null,null,null,null,null,null,null,{"$f":"+INT($AE$8*$AD$10*RAND()+BF981)","v":87}]
[null,null,null,null,null,null,null,null,null,null,null,null,null,null,null,null,null,null,null,null,null,null,null,null,null,null,null,null,null,null,null,null,null,null,null,null,null,null,null,null,null,null,null,null,null,null,null,null,null,null,null,null,null,null,null,null,null,{"$f":"+INT($AE$8*$AD$10*RAND()+BF988)","v":114}]
[null,null,null,null,null,null,null,null,null,null,null,null,null,null,null,null,null,null,null,null,null,null,null,null,null,null,null,null,null,null,null,null,null,null,null,null,null,null,null,null,null,null,null,null,null,null,null,null,null,null,null,null,null,null,null,null,null,{"$f":"+INT($AE$8*$AD$10*RAND()+BF992)","v":148}]
[null,null,null,null,null,null,null,null,null,null,null,null,null,null,null,null,null,null,null,null,null,null,null,null,null,null,null,null,null,null,null,null,null,null,null,null,null,null,null,null,null,null,null,null,null,null,null,null,null,null,null,null,null,null,null,null,null,{"$f":"+INT($AE$8*$AD$10*RAND()+BF993)","v":148}]
[null,null,null,null,null,null,null,null,null,null,null,null,null,null,null,null,null,null,null,null,null,null,null,null,null,null,null,null,null,null,null,null,null,null,null,null,null,null,null,null,null,null,null,null,null,null,null,null,null,null,null,null,null,null,null,null,null,{"$f":"+INT($AE$8*$AD$10*RAND()+BF998)","v":75}]
[null,null,null,null,null,null,null,null,null,null,null,null,null,null,null,null,null,null,null,null,null,null,null,null,null,null,null,null,null,null,null,null,null,null,null,null,null,null,null,null,null,null,null,null,null,null,null,null,null,null,null,null,null,null,null,null,null,{"$f":"+INT($AE$8*$AD$10*RAND()+BF1001)","v":51}]
[null,null,null,null,null,null,null,null,null,null,null,null,null,null,null,null,null,null,null,null,null,null,null,null,null,null,null,null,null,null,null,null,null,null,null,null,null,null,null,null,null,null,null,null,null,null,null,null,null,null,null,null,null,null,null,null,null,{"$f":"+INT($AE$8*$AD$10*RAND()+BF1009)","v":122}]
[null,null,null,null,null,null,null,null,null,null,null,null,null,null,null,null,null,null,null,null,null,null,null,null,null,null,null,null,null,null,null,null,null,null,null,null,null,null,null,null,null,null,null,null,null,null,null,null,null,null,null,null,null,null,null,null,null,0]
[null,null,null,null,null,null,null,null,null,null,null,null,null,null,null,null,null,null,null,null,null,null,null,null,null,null,null,null,null,null,null,null,null,null,null,null,null,null,null,null,null,null,null,null,null,null,null,null,null,null,null,null,null,null,null,null,null,0]
[null,null,null,null,null,null,null,null,null,null,null,null,null,null,null,null,null,null,null,null,null,null,null,null,null,null,null,null,null,null,null,null,null,null,null,null,null,null,null,null,null,null,null,null,null,null,null,null,null,null,null,null,null,null,null,null,null,{"$f":"+INT($AE$8*$AD$10*RAND()+BF1021)","v":85}]
[null,null,null,null,null,null,null,null,null,null,null,null,null,null,null,null,null,null,null,null,null,null,null,null,null,null,null,null,null,null,null,null,null,null,null,null,null,null,null,null,null,null,null,null,null,null,null,null,null,null,null,null,null,null,null,null,null,{"$f":"+INT($AE$8*$AD$10*RAND()+BF1026)","v":38}]
[null,null,null,null,null,null,null,null,null,null,null,null,null,null,null,null,null,null,null,null,null,null,null,null,null,null,null,null,null,null,null,null,null,null,null,null,null,null,null,null,null,null,null,null,null,null,null,null,null,null,null,null,null,null,null,null,null,{"$f":"+INT($AE$8*$AD$10*RAND()+BF1027)","v":107}]
[null,null,null,null,null,null,null,null,null,null,null,null,null,null,null,null,null,null,null,null,null,null,null,null,null,null,null,null,null,null,null,null,null,null,null,null,null,null,null,null,null,null,null,null,null,null,null,null,null,null,null,null,null,null,null,null,null,{"$f":"+INT($AE$8*$AD$10*RAND()+BF1034)","v":144}]
[null,null,null,null,null,null,null,null,null,null,null,null,null,null,null,null,null,null,null,null,null,null,null,null,null,null,null,null,null,null,null,null,null,null,null,null,null,null,null,null,null,null,null,null,null,null,null,null,null,null,null,null,null,null,null,null,null,{"$f":"+INT($AE$8*$AD$10*RAND()+BF1038)","v":244}]
[null,null,null,null,null,null,null,null,null,null,null,null,null,null,null,null,null,null,null,null,null,null,null,null,null,null,null,null,null,null,null,null,null,null,null,null,null,null,null,null,null,null,null,null,null,null,null,null,null,null,null,null,null,null,null,null,null,{"$f":"+INT($AE$8*$AD$10*RAND()+BF1043)","v":139}]
[null,null,null,null,null,null,null,null,null,null,null,null,null,null,null,null,null,null,null,null,null,null,null,null,null,null,null,null,null,null,null,null,null,null,null,null,null,null,null,null,null,null,null,null,null,null,null,null,null,null,null,null,null,null,null,null,null,{"$f":"+INT($AE$8*$AD$10*RAND()+BF1048)","v":162}]
[null,null,null,null,null,null,null,null,null,null,null,null,null,null,null,null,null,null,null,null,null,null,null,null,null,null,null,null,null,null,null,null,null,null,null,null,null,null,null,null,null,null,null,null,null,null,null,null,null,null,null,null,null,null,null,null,null,0]
[null,null,null,null,null,null,null,null,null,null,null,null,null,null,null,null,null,null,null,null,null,null,null,null,null,null,null,null,null,null,null,null,null,null,null,null,null,null,null,null,null,null,null,null,null,null,null,null,null,null,null,null,null,null,null,null,null,0]
[null,null,null,null,null,null,null,null,null,null,null,null,null,null,null,null,null,null,null,null,null,null,null,null,null,null,null,null,null,null,null,null,null,null,null,null,null,null,null,null,null,null,null,null,null,null,null,null,null,null,null,null,null,null,null,null,null,0]
[null,null,null,null,null,null,null,null,null,null,null,null,null,null,null,null,null,null,null,null,null,null,null,null,null,null,null,null,null,null,null,null,null,null,null,null,null,null,null,null,null,null,null,null,null,null,null,null,null,null,null,null,null,null,null,null,null,{"$f":"+INT($AE$8*$AD$10*RAND()+BF1062)","v":85}]
[null,null,null,null,null,null,null,null,null,null,null,null,null,null,null,null,null,null,null,null,null,null,null,null,null,null,null,null,null,null,null,null,null,null,null,null,null,null,null,null,null,null,null,null,null,null,null,null,null,null,null,null,null,null,null,null,null,{"$f":"+INT($AE$8*$AD$10*RAND()+BF1067)","v":141}]
[null,null,null,null,null,null,null,null,null,null,null,null,null,null,null,null,null,null,null,null,null,null,null,null,null,null,null,null,null,null,null,null,null,null,null,null,null,null,null,null,null,null,null,null,null,null,null,null,null,null,null,null,null,null,null,null,null,{"$f":"+INT($AE$8*$AD$10*RAND()+BF1072)","v":40}]
[null,null,null,null,null,null,null,null,null,null,null,null,null,null,null,null,null,null,null,null,null,null,null,null,null,null,null,null,null,null,null,null,null,null,null,null,null,null,null,null,null,null,null,null,null,null,null,null,null,null,null,null,null,null,null,null,null,{"$f":"+INT($AE$8*$AD$10*RAND()+BF1076)","v":78}]
[null,null,null,null,null,null,null,null,null,null,null,null,null,null,null,null,null,null,null,null,null,null,null,null,null,null,null,null,null,null,null,null,null,null,null,null,null,null,null,null,null,null,null,null,null,null,null,null,null,null,null,null,null,null,null,null,null,{"$f":"+INT($AE$8*$AD$10*RAND()+BF1079)","v":104}]
[null,null,null,null,null,null,null,null,null,null,null,null,null,null,null,null,null,null,null,null,null,null,null,null,null,null,null,null,null,null,null,null,null,null,null,null,null,null,null,null,null,null,null,null,null,null,null,null,null,null,null,null,null,null,null,null,null,{"$f":"+INT($AE$8*$AD$10*RAND()+BF1084)","v":138}]
[null,null,null,null,null,null,null,null,null,null,null,null,null,null,null,null,null,null,null,null,null,null,null,null,null,null,null,null,null,null,null,null,null,null,null,null,null,null,null,null,null,null,null,null,null,null,null,null,null,null,null,null,null,null,null,null,null,0]
[null,null,null,null,null,null,null,null,null,null,null,null,null,null,null,null,null,null,null,null,null,null,null,null,null,null,null,null,null,null,null,null,null,null,null,null,null,null,null,null,null,null,null,null,null,null,null,null,null,null,null,null,null,null,null,null,null,0]
[null,null,null,null,null,null,null,null,null,null,null,null,null,null,null,null,null,null,null,null,null,null,null,null,null,null,null,null,null,null,null,null,null,null,null,null,null,null,null,null,null,null,null,null,null,null,null,null,null,null,null,null,null,null,null,null,null,{"$f":"+INT($AE$8*$AD$10*RAND()+BF1096)","v":59}]
[null,null,null,null,null,null,null,null,null,null,null,null,null,null,null,null,null,null,null,null,null,null,null,null,null,null,null,null,null,null,null,null,null,null,null,null,null,null,null,null,null,null,null,null,null,null,null,null,null,null,null,null,null,null,null,null,null,{"$f":"+INT($AE$8*$AD$10*RAND()+BF1101)","v":8}]
[null,null,null,null,null,null,null,null,null,null,null,null,null,null,null,null,null,null,null,null,null,null,null,null,null,null,null,null,null,null,null,null,null,null,null,null,null,null,null,null,null,null,null,null,null,null,null,null,null,null,null,null,null,null,null,null,null,{"$f":"+INT($AE$8*$AD$10*RAND()+BF1108)","v":133}]
[null,null,null,null,null,null,null,null,null,null,null,null,null,null,null,null,null,null,null,null,null,null,null,null,null,null,null,null,null,null,null,null,null,null,null,null,null,null,null,null,null,null,null,null,null,null,null,null,null,null,null,null,null,null,null,null,null,{"$f":"+INT($AE$8*$AD$10*RAND()+BF1112)","v":109}]
[null,null,null,null,null,null,null,null,null,null,null,null,null,null,null,null,null,null,null,null,null,null,null,null,null,null,null,null,null,null,null,null,null,null,null,null,null,null,null,null,null,null,null,null,null,null,null,null,null,null,null,null,null,null,null,null,null,{"$f":"+INT($AE$8*$AD$10*RAND()+BF1113)","v":182}]
[null,null,null,null,null,null,null,null,null,null,null,null,null,null,null,null,null,null,null,null,null,null,null,null,null,null,null,null,null,null,null,null,null,null,null,null,null,null,null,null,null,null,null,null,null,null,null,null,null,null,null,null,null,null,null,null,null,{"$f":"+INT($AE$8*$AD$10*RAND()+BF1118)","v":156}]
[null,null,null,null,null,null,null,null,null,null,null,null,null,null,null,null,null,null,null,null,null,null,null,null,null,null,null,null,null,null,null,null,null,null,null,null,null,null,null,null,null,null,null,null,null,null,null,null,null,null,null,null,null,null,null,null,null,{"$f":"+INT($AE$8*$AD$10*RAND()+BF1124)","v":176}]
[null,null,null,null,null,null,null,null,null,null,null,null,null,null,null,null,null,null,null,null,null,null,null,null,null,null,null,null,null,null,null,null,null,null,null,null,null,null,null,null,null,null,null,null,null,null,null,null,null,null,null,null,null,null,null,null,null,{"$f":"+INT($AE$8*$AD$10*RAND()+BF1129)","v":172}]
[null,null,null,null,null,null,null,null,null,null,null,null,null,null,null,null,null,null,null,null,null,null,null,null,null,null,null,null,null,null,null,null,null,null,null,null,null,null,null,null,null,null,null,null,null,null,null,null,null,null,null,null,null,null,null,null,null,0]
[null,null,null,null,null,null,null,null,null,null,null,null,null,null,null,null,null,null,null,null,null,null,null,null,null,null,null,null,null,null,null,null,null,null,null,null,null,null,null,null,null,null,null,null,null,null,null,null,null,null,null,null,null,null,null,null,null,{"$f":"+INT($AE$8*$AD$10*RAND()+BF1136)","v":8}]
[null,null,null,null,null,null,null,null,null,null,null,null,null,null,null,null,null,null,null,null,null,null,null,null,null,null,null,null,null,null,null,null,null,null,null,null,null,null,null,null,null,null,null,null,null,null,null,null,null,null,null,null,null,null,null,null,null,{"$f":"+INT($AE$8*$AD$10*RAND()+BF1141)","v":25}]
[null,null,null,null,null,null,null,null,null,null,null,null,null,null,null,null,null,null,null,null,null,null,null,null,null,null,null,null,null,null,null,null,null,null,null,null,null,null,null,null,null,null,null,null,null,null,null,null,null,null,null,null,null,null,null,null,null,{"$f":"+INT($AE$8*$AD$10*RAND()+BF1146)","v":2}]
[null,null,null,null,null,null,null,null,null,null,null,null,null,null,null,null,null,null,null,null,null,null,null,null,null,null,null,null,null,null,null,null,null,null,null,null,null,null,null,null,null,null,null,null,null,null,null,null,null,null,null,null,null,null,null,null,null,0]
[null,null,null,null,null,null,null,null,null,null,null,null,null,null,null,null,null,null,null,null,null,null,null,null,null,null,null,null,null,null,null,null,null,null,null,null,null,null,null,null,null,null,null,null,null,null,null,null,null,null,null,null,null,null,null,null,null,{"$f":"+INT($AE$8*$AD$10*RAND()+BF1153)","v":95}]
[null,null,null,null,null,null,null,null,null,null,null,null,null,null,null,null,null,null,null,null,null,null,null,null,null,null,null,null,null,null,null,null,null,null,null,null,null,null,null,null,null,null,null,null,null,null,null,null,null,null,null,null,null,null,null,null,null,{"$f":"+INT($AE$8*$AD$10*RAND()+BF1158)","v":231}]
[null,null,null,null,null,null,null,null,null,null,null,null,null,null,null,null,null,null,null,null,null,null,null,null,null,null,null,null,null,null,null,null,null,null,null,null,null,null,null,null,null,null,null,null,null,null,null,null,null,null,null,null,null,null,null,null,null,{"$f":"+INT($AE$8*$AD$10*RAND()+BF1163)","v":85}]
[null,null,null,null,null,null,null,null,null,null,null,null,null,null,null,null,null,null,null,null,null,null,null,null,null,null,null,null,null,null,null,null,null,null,null,null,null,null,null,null,null,null,null,null,null,null,null,null,null,null,null,null,null,null,null,null,null,{"$f":"+INT($AE$8*$AD$10*RAND()+BF1164)","v":132}]
[null,null,null,null,null,null,null,null,null,null,null,null,null,null,null,null,null,null,null,null,null,null,null,null,null,null,null,null,null,null,null,null,null,null,null,null,null,null,null,null,null,null,null,null,null,null,null,null,null,null,null,null,null,null,null,null,null,0]
[null,null,null,null,null,null,null,null,null,null,null,null,null,null,null,null,null,null,null,null,null,null,null,null,null,null,null,null,null,null,null,null,null,null,null,null,null,null,null,null,null,null,null,null,null,null,null,null,null,null,null,null,null,null,null,null,null,0]
[null,null,null,null,null,null,null,null,null,null,null,null,null,null,null,null,null,null,null,null,null,null,null,null,null,null,null,null,null,null,null,null,null,null,null,null,null,null,null,null,null,null,null,null,null,null,null,null,null,null,null,null,null,null,null,null,null,{"$f":"+INT($AE$8*$AD$10*RAND()+BF1178)","v":123}]
[null,null,null,null,null,null,null,null,null,null,null,null,null,null,null,null,null,null,null,null,null,null,null,null,null,null,null,null,null,null,null,null,null,null,null,null,null,null,null,null,null,null,null,null,null,null,null,null,null,null,null,null,null,null,null,null,null,{"$f":"+INT($AE$8*$AD$10*RAND()+BF1182)","v":61}]
[null,null,null,null,null,null,null,null,null,null,null,null,null,null,null,null,null,null,null,null,null,null,null,null,null,null,null,null,null,null,null,null,null,null,null,null,null,null,null,null,null,null,null,null,null,null,null,null,null,null,null,null,null,null,null,null,null,{"$f":"+INT($AE$8*$AD$10*RAND()+BF1187)","v":125}]
[null,null,null,null,null,null,null,null,null,null,null,null,null,null,null,null,null,null,null,null,null,null,null,null,null,null,null,null,null,null,null,null,null,null,null,null,null,null,null,null,null,null,null,null,null,null,null,null,null,null,null,null,null,null,null,null,null,{"$f":"+INT($AE$8*$AD$10*RAND()+BF1192)","v":128}]
[null,null,null,null,null,null,null,null,null,null,null,null,null,null,null,null,null,null,null,null,null,null,null,null,null,null,null,null,null,null,null,null,null,null,null,null,null,null,null,null,null,null,null,null,null,null,null,null,null,null,null,null,null,null,null,null,null,{"$f":"+INT($AE$8*$AD$10*RAND()+BF1196)","v":38}]
[null,null,null,null,null,null,null,null,null,null,null,null,null,null,null,null,null,null,null,null,null,null,null,null,null,null,null,null,null,null,null,null,null,null,null,null,null,null,null,null,null,null,null,null,null,null,null,null,null,null,null,null,null,null,null,null,null,{"$f":"+INT($AE$8*$AD$10*RAND()+BF1199)","v":118}]
[null,null,null,null,null,null,null,null,null,null,null,null,null,null,null,null,null,null,null,null,null,null,null,null,null,null,null,null,null,null,null,null,null,null,null,null,null,null,null,null,null,null,null,null,null,null,null,null,null,null,null,null,null,null,null,null,null,{"$f":"+INT($AE$8*$AD$10*RAND()+BF1204)","v":137}]
[null,null,null,null,null,null,null,null,null,null,null,null,null,null,null,null,null,null,null,null,null,null,null,null,null,null,null,null,null,null,null,null,null,null,null,null,null,null,null,null,null,null,null,null,null,null,null,null,null,null,null,null,null,null,null,null,null,{"$f":"+INT($AE$8*$AD$10*RAND()+BF1211)","v":20}]
[null,null,null,null,null,null,null,null,null,null,null,null,null,null,null,null,null,null,null,null,null,null,null,null,null,null,null,null,null,null,null,null,null,null,null,null,null,null,null,null,null,null,null,null,null,null,null,null,null,null,null,null,null,null,null,null,null,0]
[null,null,null,null,null,null,null,null,null,null,null,null,null,null,null,null,null,null,null,null,null,null,null,null,null,null,null,null,null,null,null,null,null,null,null,null,null,null,null,null,null,null,null,null,null,null,null,null,null,null,null,null,null,null,null,null,null,{"$f":"+INT($AE$8*$AD$10*RAND()+BF1216)","v":48}]
[null,null,null,null,null,null,null,null,null,null,null,null,null,null,null,null,null,null,null,null,null,null,null,null,null,null,null,null,null,null,null,null,null,null,null,null,null,null,null,null,null,null,null,null,null,null,null,null,null,null,null,null,null,null,null,null,null,0]
[null,null,null,null,null,null,null,null,null,null,null,null,null,null,null,null,null,null,null,null,null,null,null,null,null,null,null,null,null,null,null,null,null,null,null,null,null,null,null,null,null,null,null,null,null,null,null,null,null,null,null,null,null,null,null,null,null,{"$f":"+INT($AE$8*$AD$10*RAND()+BF1227)","v":61}]
[null,null,null,null,null,null,null,null,null,null,null,null,null,null,null,null,null,null,null,null,null,null,null,null,null,null,null,null,null,null,null,null,null,null,null,null,null,null,null,null,null,null,null,null,null,null,null,null,null,null,null,null,null,null,null,null,null,{"$f":"+INT($AE$8*$AD$10*RAND()+BF1232)","v":124}]
[null,null,null,null,null,null,null,null,null,null,null,null,null,null,null,null,null,null,null,null,null,null,null,null,null,null,null,null,null,null,null,null,null,null,null,null,null,null,null,null,null,null,null,null,null,null,null,null,null,null,null,null,null,null,null,null,null,{"$f":"+INT($AE$8*$AD$10*RAND()+BF1233)","v":167}]
[null,null,null,null,null,null,null,null,null,null,null,null,null,null,null,null,null,null,null,null,null,null,null,null,null,null,null,null,null,null,null,null,null,null,null,null,null,null,null,null,null,null,null,null,null,null,null,null,null,null,null,null,null,null,null,null,null,{"$f":"+INT($AE$8*$AD$10*RAND()+BF1238)","v":109}]
[null,null,null,null,null,null,null,null,null,null,null,null,null,null,null,null,null,null,null,null,null,null,null,null,null,null,null,null,null,null,null,null,null,null,null,null,null,null,null,null,null,null,null,null,null,null,null,null,null,null,null,null,null,null,null,null,null,{"$f":"+INT($AE$8*$AD$10*RAND()+BF1244)","v":207}]
[null,null,null,null,null,null,null,null,null,null,null,null,null,null,null,null,null,null,null,null,null,null,null,null,null,null,null,null,null,null,null,null,null,null,null,null,null,null,null,null,null,null,null,null,null,null,null,null,null,null,null,null,null,null,null,null,null,{"$f":"+INT($AE$8*$AD$10*RAND()+BF1249)","v":242}]
[null,null,null,null,null,null,null,null,null,null,null,null,null,null,null,null,null,null,null,null,null,null,null,null,null,null,null,null,null,null,null,null,null,null,null,null,null,null,null,null,null,null,null,null,null,null,null,null,null,null,null,null,null,null,null,null,null,{"$f":"+INT($AE$8*$AD$10*RAND()+BF1252)","v":158}]
[null,null,null,null,null,null,null,null,null,null,null,null,null,null,null,null,null,null,null,null,null,null,null,null,null,null,null,null,null,null,null,null,null,null,null,null,null,null,null,null,null,null,null,null,null,null,null,null,null,null,null,null,null,null,null,null,null,{"$f":"+INT($AE$8*$AD$10*RAND()+BF1256)","v":42}]
[null,null,null,null,null,null,null,null,null,null,null,null,null,null,null,null,null,null,null,null,null,null,null,null,null,null,null,null,null,null,null,null,null,null,null,null,null,null,null,null,null,null,null,null,null,null,null,null,null,null,null,null,null,null,null,null,null,{"$f":"+INT($AE$8*$AD$10*RAND()+BF1261)","v":45}]
[null,null,null,null,null,null,null,null,null,null,null,null,null,null,null,null,null,null,null,null,null,null,null,null,null,null,null,null,null,null,null,null,null,null,null,null,null,null,null,null,null,null,null,null,null,null,null,null,null,null,null,null,null,null,null,null,null,{"$f":"+INT($AE$8*$AD$10*RAND()+BF1266)","v":9}]
[null,null,null,null,null,null,null,null,null,null,null,null,null,null,null,null,null,null,null,null,null,null,null,null,null,null,null,null,null,null,null,null,null,null,null,null,null,null,null,null,null,null,null,null,null,null,null,null,null,null,null,null,null,null,null,null,null,{"$f":"+INT($AE$8*$AD$10*RAND()+BF1271)","v":28}]
[null,null,null,null,null,null,null,null,null,null,null,null,null,null,null,null,null,null,null,null,null,null,null,null,null,null,null,null,null,null,null,null,null,null,null,null,null,null,null,null,null,null,null,null,null,null,null,null,null,null,null,null,null,null,null,null,null,{"$f":"+INT($AE$8*$AD$10*RAND()+BF1273)","v":107}]
[null,null,null,null,null,null,null,null,null,null,null,null,null,null,null,null,null,null,null,null,null,null,null,null,null,null,null,null,null,null,null,null,null,null,null,null,null,null,null,null,null,null,null,null,null,null,null,null,null,null,null,null,null,null,null,null,null,{"$f":"+INT($AE$8*$AD$10*RAND()+BF1278)","v":92}]
[null,null,null,null,null,null,null,null,null,null,null,null,null,null,null,null,null,null,null,null,null,null,null,null,null,null,null,null,null,null,null,null,null,null,null,null,null,null,null,null,null,null,null,null,null,null,null,null,null,null,null,null,null,null,null,null,null,0]
[null,null,null,null,null,null,null,null,null,null,null,null,null,null,null,null,null,null,null,null,null,null,null,null,null,null,null,null,null,null,null,null,null,null,null,null,null,null,null,null,null,null,null,null,null,null,null,null,null,null,null,null,null,null,null,null,null,0]
[null,null,null,null,null,null,null,null,null,null,null,null,null,null,null,null,null,null,null,null,null,null,null,null,null,null,null,null,null,null,null,null,null,null,null,null,null,null,null,null,null,null,null,null,null,null,null,null,null,null,null,null,null,null,null,null,null,0]
[null,null,null,null,null,null,null,null,null,null,null,null,null,null,null,null,null,null,null,null,null,null,null,null,null,null,null,null,null,null,null,null,null,null,null,null,null,null,null,null,null,null,null,null,null,null,null,null,null,null,null,null,null,null,null,null,null,0]
[null,null,null,null,null,null,null,null,null,null,null,null,null,null,null,null,null,null,null,null,null,null,null,null,null,null,null,null,null,null,null,null,null,null,null,null,null,null,null,null,null,null,null,null,null,null,null,null,null,null,null,null,null,null,null,null,null,{"$f":"+INT($AE$8*$AD$10*RAND()+BF1299)","v":110}]
[null,null,null,null,null,null,null,null,null,null,null,null,null,null,null,null,null,null,null,null,null,null,null,null,null,null,null,null,null,null,null,null,null,null,null,null,null,null,null,null,null,null,null,null,null,null,null,null,null,null,null,null,null,null,null,null,null,{"$f":"+INT($AE$8*$AD$10*RAND()+BF1302)","v":124}]
[null,null,null,null,null,null,null,null,null,null,null,null,null,null,null,null,null,null,null,null,null,null,null,null,null,null,null,null,null,null,null,null,null,null,null,null,null,null,null,null,null,null,null,null,null,null,null,null,null,null,null,null,null,null,null,null,null,{"$f":"+INT($AE$8*$AD$10*RAND()+BF1307)","v":87}]
[null,null,null,null,null,null,null,null,null,null,null,null,null,null,null,null,null,null,null,null,null,null,null,null,null,null,null,null,null,null,null,null,null,null,null,null,null,null,null,null,null,null,null,null,null,null,null,null,null,null,null,null,null,null,null,null,null,{"$f":"+INT($AE$8*$AD$10*RAND()+BF1313)","v":139}]
[null,null,null,null,null,null,null,null,null,null,null,null,null,null,null,null,null,null,null,null,null,null,null,null,null,null,null,null,null,null,null,null,null,null,null,null,null,null,null,null,null,null,null,null,null,null,null,null,null,null,null,null,null,null,null,null,null,{"$f":"+INT($AE$8*$AD$10*RAND()+BF1318)","v":153}]
[null,null,null,null,null,null,null,null,null,null,null,null,null,null,null,null,null,null,null,null,null,null,null,null,null,null,null,null,null,null,null,null,null,null,null,null,null,null,null,null,null,null,null,null,null,null,null,null,null,null,null,null,null,null,null,null,null,{"$f":"+INT($AE$8*$AD$10*RAND()+BF1319)","v":194}]
[null,null,null,null,null,null,null,null,null,null,null,null,null,null,null,null,null,null,null,null,null,null,null,null,null,null,null,null,null,null,null,null,null,null,null,null,null,null,null,null,null,null,null,null,null,null,null,null,null,null,null,null,null,null,null,null,null,{"$f":"+INT($AE$8*$AD$10*RAND()+BF1324)","v":183}]
[null,null,null,null,null,null,null,null,null,null,null,null,null,null,null,null,null,null,null,null,null,null,null,null,null,null,null,null,null,null,null,null,null,null,null,null,null,null,null,null,null,null,null,null,null,null,null,null,null,null,null,null,null,null,null,null,null,{"$f":"+INT($AE$8*$AD$10*RAND()+BF1331)","v":75}]
[null,null,null,null,null,null,null,null,null,null,null,null,null,null,null,null,null,null,null,null,null,null,null,null,null,null,null,null,null,null,null,null,null,null,null,null,null,null,null,null,null,null,null,null,null,null,null,null,null,null,null,null,null,null,null,null,null,0]
[null,null,null,null,null,null,null,null,null,null,null,null,null,null,null,null,null,null,null,null,null,null,null,null,null,null,null,null,null,null,null,null,null,null,null,null,null,null,null,null,null,null,null,null,null,null,null,null,null,null,null,null,null,null,null,null,null,{"$f":"+INT($AE$8*$AD$10*RAND()+BF1336)","v":50}]
[null,null,null,null,null,null,null,null,null,null,null,null,null,null,null,null,null,null,null,null,null,null,null,null,null,null,null,null,null,null,null,null,null,null,null,null,null,null,null,null,null,null,null,null,null,null,null,null,null,null,null,null,null,null,null,null,null,0]
[null,null,null,null,null,null,null,null,null,null,null,null,null,null,null,null,null,null,null,null,null,null,null,null,null,null,null,null,null,null,null,null,null,null,null,null,null,null,null,null,null,null,null,null,null,null,null,null,null,null,null,null,null,null,null,null,null,{"$f":"+INT($AE$8*$AD$10*RAND()+BF1347)","v":108}]
[null,null,null,null,null,null,null,null,null,null,null,null,null,null,null,null,null,null,null,null,null,null,null,null,null,null,null,null,null,null,null,null,null,null,null,null,null,null,null,null,null,null,null,null,null,null,null,null,null,null,null,null,null,null,null,null,null,{"$f":"+INT($AE$8*$AD$10*RAND()+BF1352)","v":126}]
[null,null,null,null,null,null,null,null,null,null,null,null,null,null,null,null,null,null,null,null,null,null,null,null,null,null,null,null,null,null,null,null,null,null,null,null,null,null,null,null,null,null,null,null,null,null,null,null,null,null,null,null,null,null,null,null,null,0]
[null,null,null,null,null,null,null,null,null,null,null,null,null,null,null,null,null,null,null,null,null,null,null,null,null,null,null,null,null,null,null,null,null,null,null,null,null,null,null,null,null,null,null,null,null,null,null,null,null,null,null,null,null,null,null,null,null,{"$f":"+INT($AE$8*$AD$10*RAND()+BF1359)","v":256}]
[null,null,null,null,null,null,null,null,null,null,null,null,null,null,null,null,null,null,null,null,null,null,null,null,null,null,null,null,null,null,null,null,null,null,null,null,null,null,null,null,null,null,null,null,null,null,null,null,null,null,null,null,null,null,null,null,null,{"$f":"+INT($AE$8*$AD$10*RAND()+BF1364)","v":162}]
[null,null,null,null,null,null,null,null,null,null,null,null,null,null,null,null,null,null,null,null,null,null,null,null,null,null,null,null,null,null,null,null,null,null,null,null,null,null,null,null,null,null,null,null,null,null,null,null,null,null,null,null,null,null,null,null,null,{"$f":"+INT($AE$8*$AD$10*RAND()+BF1369)","v":87}]
[null,null,null,null,null,null,null,null,null,null,null,null,null,null,null,null,null,null,null,null,null,null,null,null,null,null,null,null,null,null,null,null,null,null,null,null,null,null,null,null,null,null,null,null,null,null,null,null,null,null,null,null,null,null,null,null,null,{"$f":"+INT($AE$8*$AD$10*RAND()+BF1373)","v":152}]
[null,null,null,null,null,null,null,null,null,null,null,null,null,null,null,null,null,null,null,null,null,null,null,null,null,null,null,null,null,null,null,null,null,null,null,null,null,null,null,null,null,null,null,null,null,null,null,null,null,null,null,null,null,null,null,null,null,{"$f":"+INT($AE$8*$AD$10*RAND()+BF1376)","v":8}]
[null,null,null,null,null,null,null,null,null,null,null,null,null,null,null,null,null,null,null,null,null,null,null,null,null,null,null,null,null,null,null,null,null,null,null,null,null,null,null,null,null,null,null,null,null,null,null,null,null,null,null,null,null,null,null,null,null,{"$f":"+INT($AE$8*$AD$10*RAND()+BF1381)","v":23}]
[null,null,null,null,null,null,null,null,null,null,null,null,null,null,null,null,null,null,null,null,null,null,null,null,null,null,null,null,null,null,null,null,null,null,null,null,null,null,null,null,null,null,null,null,null,null,null,null,null,null,null,null,null,null,null,null,null,{"$f":"+INT($AE$8*$AD$10*RAND()+BF1387)","v":19}]
[null,null,null,null,null,null,null,null,null,null,null,null,null,null,null,null,null,null,null,null,null,null,null,null,null,null,null,null,null,null,null,null,null,null,null,null,null,null,null,null,null,null,null,null,null,null,null,null,null,null,null,null,null,null,null,null,null,{"$f":"+INT($AE$8*$AD$10*RAND()+BF1388)","v":44}]
[null,null,null,null,null,null,null,null,null,null,null,null,null,null,null,null,null,null,null,null,null,null,null,null,null,null,null,null,null,null,null,null,null,null,null,null,null,null,null,null,null,null,null,null,null,null,null,null,null,null,null,null,null,null,null,null,null,{"$f":"+INT($AE$8*$AD$10*RAND()+BF1393)","v":117}]
[null,null,null,null,null,null,null,null,null,null,null,null,null,null,null,null,null,null,null,null,null,null,null,null,null,null,null,null,null,null,null,null,null,null,null,null,null,null,null,null,null,null,null,null,null,null,null,null,null,null,null,null,null,null,null,null,null,{"$f":"+INT($AE$8*$AD$10*RAND()+BF1398)","v":148}]
[null,null,null,null,null,null,null,null,null,null,null,null,null,null,null,null,null,null,null,null,null,null,null,null,null,null,null,null,null,null,null,null,null,null,null,null,null,null,null,null,null,null,null,null,null,null,null,null,null,null,null,null,null,null,null,null,null,{"$f":"+INT($AE$8*$AD$10*RAND()+BF1401)","v":11}]
[null,null,null,null,null,null,null,null,null,null,null,null,null,null,null,null,null,null,null,null,null,null,null,null,null,null,null,null,null,null,null,null,null,null,null,null,null,null,null,null,null,null,null,null,null,null,null,null,null,null,null,null,null,null,null,null,null,0]
[null,null,null,null,null,null,null,null,null,null,null,null,null,null,null,null,null,null,null,null,null,null,null,null,null,null,null,null,null,null,null,null,null,null,null,null,null,null,null,null,null,null,null,null,null,null,null,null,null,null,null,null,null,null,null,null,null,0]
[null,null,null,null,null,null,null,null,null,null,null,null,null,null,null,null,null,null,null,null,null,null,null,null,null,null,null,null,null,null,null,null,null,null,null,null,null,null,null,null,null,null,null,null,null,null,null,null,null,null,null,null,null,null,null,null,null,0]
[null,null,null,null,null,null,null,null,null,null,null,null,null,null,null,null,null,null,null,null,null,null,null,null,null,null,null,null,null,null,null,null,null,null,null,null,null,null,null,null,null,null,null,null,null,null,null,null,null,null,null,null,null,null,null,null,null,{"$f":"+INT($AE$8*$AD$10*RAND()+BF1421)","v":5}]
[null,null,null,null,null,null,null,null,null,null,null,null,null,null,null,null,null,null,null,null,null,null,null,null,null,null,null,null,null,null,null,null,null,null,null,null,null,null,null,null,null,null,null,null,null,null,null,null,null,null,null,null,null,null,null,null,null,{"$f":"+INT($AE$8*$AD$10*RAND()+BF1422)","v":31}]
[null,null,null,null,null,null,null,null,null,null,null,null,null,null,null,null,null,null,null,null,null,null,null,null,null,null,null,null,null,null,null,null,null,null,null,null,null,null,null,null,null,null,null,null,null,null,null,null,null,null,null,null,null,null,null,null,null,{"$f":"+INT($AE$8*$AD$10*RAND()+BF1427)","v":50}]
[null,null,null,null,null,null,null,null,null,null,null,null,null,null,null,null,null,null,null,null,null,null,null,null,null,null,null,null,null,null,null,null,null,null,null,null,null,null,null,null,null,null,null,null,null,null,null,null,null,null,null,null,null,null,null,null,null,{"$f":"+INT($AE$8*$AD$10*RAND()+BF1433)","v":186}]
[null,null,null,null,null,null,null,null,null,null,null,null,null,null,null,null,null,null,null,null,null,null,null,null,null,null,null,null,null,null,null,null,null,null,null,null,null,null,null,null,null,null,null,null,null,null,null,null,null,null,null,null,null,null,null,null,null,{"$f":"+INT($AE$8*$AD$10*RAND()+BF1438)","v":82}]
[null,null,null,null,null,null,null,null,null,null,null,null,null,null,null,null,null,null,null,null,null,null,null,null,null,null,null,null,null,null,null,null,null,null,null,null,null,null,null,null,null,null,null,null,null,null,null,null,null,null,null,null,null,null,null,null,null,{"$f":"+INT($AE$8*$AD$10*RAND()+BF1439)","v":168}]
[null,null,null,null,null,null,null,null,null,null,null,null,null,null,null,null,null,null,null,null,null,null,null,null,null,null,null,null,null,null,null,null,null,null,null,null,null,null,null,null,null,null,null,null,null,null,null,null,null,null,null,null,null,null,null,null,null,{"$f":"+INT($AE$8*$AD$10*RAND()+BF1443)","v":120}]
[null,null,null,null,null,null,null,null,null,null,null,null,null,null,null,null,null,null,null,null,null,null,null,null,null,null,null,null,null,null,null,null,null,null,null,null,null,null,null,null,null,null,null,null,null,null,null,null,null,null,null,null,null,null,null,null,null,0]
[null,null,null,null,null,null,null,null,null,null,null,null,null,null,null,null,null,null,null,null,null,null,null,null,null,null,null,null,null,null,null,null,null,null,null,null,null,null,null,null,null,null,null,null,null,null,null,null,null,null,null,null,null,null,null,null,null,0]
[null,null,null,null,null,null,null,null,null,null,null,null,null,null,null,null,null,null,null,null,null,null,null,null,null,null,null,null,null,null,null,null,null,null,null,null,null,null,null,null,null,null,null,null,null,null,null,null,null,null,null,null,null,null,null,null,null,{"$f":"+INT($AE$8*$AD$10*RAND()+BF1456)","v":40}]
[null,null,null,null,null,null,null,null,null,null,null,null,null,null,null,null,null,null,null,null,null,null,null,null,null,null,null,null,null,null,null,null,null,null,null,null,null,null,null,null,null,null,null,null,null,null,null,null,null,null,null,null,null,null,null,null,null,{"$f":"+INT($AE$8*$AD$10*RAND()+BF1461)","v":88}]
[null,null,null,null,null,null,null,null,null,null,null,null,null,null,null,null,null,null,null,null,null,null,null,null,null,null,null,null,null,null,null,null,null,null,null,null,null,null,null,null,null,null,null,null,null,null,null,null,null,null,null,null,null,null,null,null,null,{"$f":"+INT($AE$8*$AD$10*RAND()+BF1467)","v":82}]
[null,null,null,null,null,null,null,null,null,null,null,null,null,null,null,null,null,null,null,null,null,null,null,null,null,null,null,null,null,null,null,null,null,null,null,null,null,null,null,null,null,null,null,null,null,null,null,null,null,null,null,null,null,null,null,null,null,{"$f":"+INT($AE$8*$AD$10*RAND()+BF1472)","v":28}]
[null,null,null,null,null,null,null,null,null,null,null,null,null,null,null,null,null,null,null,null,null,null,null,null,null,null,null,null,null,null,null,null,null,null,null,null,null,null,null,null,null,null,null,null,null,null,null,null,null,null,null,null,null,null,null,null,null,0]
[null,null,null,null,null,null,null,null,null,null,null,null,null,null,null,null,null,null,null,null,null,null,null,null,null,null,null,null,null,null,null,null,null,null,null,null,null,null,null,null,null,null,null,null,null,null,null,null,null,null,null,null,null,null,null,null,null,{"$f":"+INT($AE$8*$AD$10*RAND()+BF1479)","v":152}]
[null,null,null,null,null,null,null,null,null,null,null,null,null,null,null,null,null,null,null,null,null,null,null,null,null,null,null,null,null,null,null,null,null,null,null,null,null,null,null,null,null,null,null,null,null,null,null,null,null,null,null,null,null,null,null,null,null,{"$f":"+INT($AE$8*$AD$10*RAND()+BF1484)","v":265}]
[null,null,null,null,null,null,null,null,null,null,null,null,null,null,null,null,null,null,null,null,null,null,null,null,null,null,null,null,null,null,null,null,null,null,null,null,null,null,null,null,null,null,null,null,null,null,null,null,null,null,null,null,null,null,null,null,null,{"$f":"+INT($AE$8*$AD$10*RAND()+BF1489)","v":256}]
[null,null,null,null,null,null,null,null,null,null,null,null,null,null,null,null,null,null,null,null,null,null,null,null,null,null,null,null,null,null,null,null,null,null,null,null,null,null,null,null,null,null,null,null,null,null,null,null,null,null,null,null,null,null,null,null,null,{"$f":"+INT($AE$8*$AD$10*RAND()+BF1494)","v":124}]
[null,null,null,null,null,null,null,null,null,null,null,null,null,null,null,null,null,null,null,null,null,null,null,null,null,null,null,null,null,null,null,null,null,null,null,null,null,null,null,null,null,null,null,null,null,null,null,null,null,null,null,null,null,null,null,null,null,{"$f":"+INT($AE$8*$AD$10*RAND()+BF1496)","v":51}]
[null,null,null,null,null,null,null,null,null,null,null,null,null,null,null,null,null,null,null,null,null,null,null,null,null,null,null,null,null,null,null,null,null,null,null,null,null,null,null,null,null,null,null,null,null,null,null,null,null,null,null,null,null,null,null,null,null,{"$f":"+INT($AE$8*$AD$10*RAND()+BF1501)","v":64}]
[null,null,null,null,null,null,null,null,null,null,null,null,null,null,null,null,null,null,null,null,null,null,null,null,null,null,null,null,null,null,null,null,null,null,null,null,null,null,null,null,null,null,null,null,null,null,null,null,null,null,null,null,null,null,null,null,null,{"$f":"+INT($AE$8*$AD$10*RAND()+BF1503)","v":124}]
[null,null,null,null,null,null,null,null,null,null,null,null,null,null,null,null,null,null,null,null,null,null,null,null,null,null,null,null,null,null,null,null,null,null,null,null,null,null,null,null,null,null,null,null,null,null,null,null,null,null,null,null,null,null,null,null,null,{"$f":"+INT($AE$8*$AD$10*RAND()+BF1508)","v":147}]
[null,null,null,null,null,null,null,null,null,null,null,null,null,null,null,null,null,null,null,null,null,null,null,null,null,null,null,null,null,null,null,null,null,null,null,null,null,null,null,null,null,null,null,null,null,null,null,null,null,null,null,null,null,null,null,null,null,{"$f":"+INT($AE$8*$AD$10*RAND()+BF1513)","v":104}]
[null,null,null,null,null,null,null,null,null,null,null,null,null,null,null,null,null,null,null,null,null,null,null,null,null,null,null,null,null,null,null,null,null,null,null,null,null,null,null,null,null,null,null,null,null,null,null,null,null,null,null,null,null,null,null,null,null,{"$f":"+INT($AE$8*$AD$10*RAND()+BF1517)","v":128}]
[null,null,null,null,null,null,null,null,null,null,null,null,null,null,null,null,null,null,null,null,null,null,null,null,null,null,null,null,null,null,null,null,null,null,null,null,null,null,null,null,null,null,null,null,null,null,null,null,null,null,null,null,null,null,null,null,null,{"$f":"+INT($AE$8*$AD$10*RAND()+BF1524)","v":185}]
[null,null,null,null,null,null,null,null,null,null,null,null,null,null,null,null,null,null,null,null,null,null,null,null,null,null,null,null,null,null,null,null,null,null,null,null,null,null,null,null,null,null,null,null,null,null,null,null,null,null,null,null,null,null,null,null,null,0]
[null,null,null,null,null,null,null,null,null,null,null,null,null,null,null,null,null,null,null,null,null,null,null,null,null,null,null,null,null,null,null,null,null,null,null,null,null,null,null,null,null,null,null,null,null,null,null,null,null,null,null,null,null,null,null,null,null,0]
[null,null,null,null,null,null,null,null,null,null,null,null,null,null,null,null,null,null,null,null,null,null,null,null,null,null,null,null,null,null,null,null,null,null,null,null,null,null,null,null,null,null,null,null,null,null,null,null,null,null,null,null,null,null,null,null,null,{"$f":"+INT($AE$8*$AD$10*RAND()+BF1536)","v":15}]
[null,null,null,null,null,null,null,null,null,null,null,null,null,null,null,null,null,null,null,null,null,null,null,null,null,null,null,null,null,null,null,null,null,null,null,null,null,null,null,null,null,null,null,null,null,null,null,null,null,null,null,null,null,null,null,null,null,{"$f":"+INT($AE$8*$AD$10*RAND()+BF1541)","v":84}]
[null,null,null,null,null,null,null,null,null,null,null,null,null,null,null,null,null,null,null,null,null,null,null,null,null,null,null,null,null,null,null,null,null,null,null,null,null,null,null,null,null,null,null,null,null,null,null,null,null,null,null,null,null,null,null,null,null,{"$f":"+INT($AE$8*$AD$10*RAND()+BF1542)","v":158}]
[null,null,null,null,null,null,null,null,null,null,null,null,null,null,null,null,null,null,null,null,null,null,null,null,null,null,null,null,null,null,null,null,null,null,null,null,null,null,null,null,null,null,null,null,null,null,null,null,null,null,null,null,null,null,null,null,null,0]
[null,null,null,null,null,null,null,null,null,null,null,null,null,null,null,null,null,null,null,null,null,null,null,null,null,null,null,null,null,null,null,null,null,null,null,null,null,null,null,null,null,null,null,null,null,null,null,null,null,null,null,null,null,null,null,null,null,{"$f":"+INT($AE$8*$AD$10*RAND()+BF1553)","v":98}]
[null,null,null,null,null,null,null,null,null,null,null,null,null,null,null,null,null,null,null,null,null,null,null,null,null,null,null,null,null,null,null,null,null,null,null,null,null,null,null,null,null,null,null,null,null,null,null,null,null,null,null,null,null,null,null,null,null,{"$f":"+INT($AE$8*$AD$10*RAND()+BF1558)","v":166}]
[null,null,null,null,null,null,null,null,null,null,null,null,null,null,null,null,null,null,null,null,null,null,null,null,null,null,null,null,null,null,null,null,null,null,null,null,null,null,null,null,null,null,null,null,null,null,null,null,null,null,null,null,null,null,null,null,null,{"$f":"+INT($AE$8*$AD$10*RAND()+BF1559)","v":178}]
[null,null,null,null,null,null,null,null,null,null,null,null,null,null,null,null,null,null,null,null,null,null,null,null,null,null,null,null,null,null,null,null,null,null,null,null,null,null,null,null,null,null,null,null,null,null,null,null,null,null,null,null,null,null,null,null,null,{"$f":"+INT($AE$8*$AD$10*RAND()+BF1563)","v":127}]
[null,null,null,null,null,null,null,null,null,null,null,null,null,null,null,null,null,null,null,null,null,null,null,null,null,null,null,null,null,null,null,null,null,null,null,null,null,null,null,null,null,null,null,null,null,null,null,null,null,null,null,null,null,null,null,null,null,0]
[null,null,null,null,null,null,null,null,null,null,null,null,null,null,null,null,null,null,null,null,null,null,null,null,null,null,null,null,null,null,null,null,null,null,null,null,null,null,null,null,null,null,null,null,null,null,null,null,null,null,null,null,null,null,null,null,null,0]
[null,null,null,null,null,null,null,null,null,null,null,null,null,null,null,null,null,null,null,null,null,null,null,null,null,null,null,null,null,null,null,null,null,null,null,null,null,null,null,null,null,null,null,null,null,null,null,null,null,null,null,null,null,null,null,null,null,{"$f":"+INT($AE$8*$AD$10*RAND()+BF1577)","v":112}]
[null,null,null,null,null,null,null,null,null,null,null,null,null,null,null,null,null,null,null,null,null,null,null,null,null,null,null,null,null,null,null,null,null,null,null,null,null,null,null,null,null,null,null,null,null,null,null,null,null,null,null,null,null,null,null,null,null,{"$f":"+INT($AE$8*$AD$10*RAND()+BF1582)","v":6}]
[null,null,null,null,null,null,null,null,null,null,null,null,null,null,null,null,null,null,null,null,null,null,null,null,null,null,null,null,null,null,null,null,null,null,null,null,null,null,null,null,null,null,null,null,null,null,null,null,null,null,null,null,null,null,null,null,null,{"$f":"+INT($AE$8*$AD$10*RAND()+BF1587)","v":125}]
[null,null,null,null,null,null,null,null,null,null,null,null,null,null,null,null,null,null,null,null,null,null,null,null,null,null,null,null,null,null,null,null,null,null,null,null,null,null,null,null,null,null,null,null,null,null,null,null,null,null,null,null,null,null,null,null,null,{"$f":"+INT($AE$8*$AD$10*RAND()+BF1592)","v":76}]
[null,null,null,null,null,null,null,null,null,null,null,null,null,null,null,null,null,null,null,null,null,null,null,null,null,null,null,null,null,null,null,null,null,null,null,null,null,null,null,null,null,null,null,null,null,null,null,null,null,null,null,null,null,null,null,null,null,{"$f":"+INT($AE$8*$AD$10*RAND()+BF1596)","v":41}]
[null,null,null,null,null,null,null,null,null,null,null,null,null,null,null,null,null,null,null,null,null,null,null,null,null,null,null,null,null,null,null,null,null,null,null,null,null,null,null,null,null,null,null,null,null,null,null,null,null,null,null,null,null,null,null,null,null,{"$f":"+INT($AE$8*$AD$10*RAND()+BF1599)","v":263}]
[null,null,null,null,null,null,null,null,null,null,null,null,null,null,null,null,null,null,null,null,null,null,null,null,null,null,null,null,null,null,null,null,null,null,null,null,null,null,null,null,null,null,null,null,null,null,null,null,null,null,null,null,null,null,null,null,null,{"$f":"+INT($AE$8*$AD$10*RAND()+BF1604)","v":162}]
[null,null,null,null,null,null,null,null,null,null,null,null,null,null,null,null,null,null,null,null,null,null,null,null,null,null,null,null,null,null,null,null,null,null,null,null,null,null,null,null,null,null,null,null,null,null,null,null,null,null,null,null,null,null,null,null,null,0]
[null,null,null,null,null,null,null,null,null,null,null,null,null,null,null,null,null,null,null,null,null,null,null,null,null,null,null,null,null,null,null,null,null,null,null,null,null,null,null,null,null,null,null,null,null,null,null,null,null,null,null,null,null,null,null,null,null,{"$f":"+INT($AE$8*$AD$10*RAND()+BF1611)","v":77}]
[null,null,null,null,null,null,null,null,null,null,null,null,null,null,null,null,null,null,null,null,null,null,null,null,null,null,null,null,null,null,null,null,null,null,null,null,null,null,null,null,null,null,null,null,null,null,null,null,null,null,null,null,null,null,null,null,null,{"$f":"+INT($AE$8*$AD$10*RAND()+BF1616)","v":46}]
[null,null,null,null,null,null,null,null,null,null,null,null,null,null,null,null,null,null,null,null,null,null,null,null,null,null,null,null,null,null,null,null,null,null,null,null,null,null,null,null,null,null,null,null,null,null,null,null,null,null,null,null,null,null,null,null,null,{"$f":"+INT($AE$8*$AD$10*RAND()+BF1621)","v":63}]
[null,null,null,null,null,null,null,null,null,null,null,null,null,null,null,null,null,null,null,null,null,null,null,null,null,null,null,null,null,null,null,null,null,null,null,null,null,null,null,null,null,null,null,null,null,null,null,null,null,null,null,null,null,null,null,null,null,{"$f":"+INT($AE$8*$AD$10*RAND()+BF1624)","v":174}]
[null,null,null,null,null,null,null,null,null,null,null,null,null,null,null,null,null,null,null,null,null,null,null,null,null,null,null,null,null,null,null,null,null,null,null,null,null,null,null,null,null,null,null,null,null,null,null,null,null,null,null,null,null,null,null,null,null,{"$f":"+INT($AE$8*$AD$10*RAND()+BF1628)","v":101}]
[null,null,null,null,null,null,null,null,null,null,null,null,null,null,null,null,null,null,null,null,null,null,null,null,null,null,null,null,null,null,null,null,null,null,null,null,null,null,null,null,null,null,null,null,null,null,null,null,null,null,null,null,null,null,null,null,null,{"$f":"+INT($AE$8*$AD$10*RAND()+BF1633)","v":186}]
[null,null,null,null,null,null,null,null,null,null,null,null,null,null,null,null,null,null,null,null,null,null,null,null,null,null,null,null,null,null,null,null,null,null,null,null,null,null,null,null,null,null,null,null,null,null,null,null,null,null,null,null,null,null,null,null,null,{"$f":"+INT($AE$8*$AD$10*RAND()+BF1638)","v":50}]
[null,null,null,null,null,null,null,null,null,null,null,null,null,null,null,null,null,null,null,null,null,null,null,null,null,null,null,null,null,null,null,null,null,null,null,null,null,null,null,null,null,null,null,null,null,null,null,null,null,null,null,null,null,null,null,null,null,{"$f":"+INT($AE$8*$AD$10*RAND()+BF1644)","v":61}]
[null,null,null,null,null,null,null,null,null,null,null,null,null,null,null,null,null,null,null,null,null,null,null,null,null,null,null,null,null,null,null,null,null,null,null,null,null,null,null,null,null,null,null,null,null,null,null,null,null,null,null,null,null,null,null,null,null,0]
[null,null,null,null,null,null,null,null,null,null,null,null,null,null,null,null,null,null,null,null,null,null,null,null,null,null,null,null,null,null,null,null,null,null,null,null,null,null,null,null,null,null,null,null,null,null,null,null,null,null,null,null,null,null,null,null,null,{"$f":"+INT($AE$8*$AD$10*RAND()+BF1652)","v":146}]
[null,null,null,null,null,null,null,null,null,null,null,null,null,null,null,null,null,null,null,null,null,null,null,null,null,null,null,null,null,null,null,null,null,null,null,null,null,null,null,null,null,null,null,null,null,null,null,null,null,null,null,null,null,null,null,null,null,{"$f":"+INT($AE$8*$AD$10*RAND()+BF1656)","v":66}]
[null,null,null,null,null,null,null,null,null,null,null,null,null,null,null,null,null,null,null,null,null,null,null,null,null,null,null,null,null,null,null,null,null,null,null,null,null,null,null,null,null,null,null,null,null,null,null,null,null,null,null,null,null,null,null,null,null,{"$f":"+INT($AE$8*$AD$10*RAND()+BF1661)","v":41}]
[null,null,null,null,null,null,null,null,null,null,null,null,null,null,null,null,null,null,null,null,null,null,null,null,null,null,null,null,null,null,null,null,null,null,null,null,null,null,null,null,null,null,null,null,null,null,null,null,null,null,null,null,null,null,null,null,null,{"$f":"+INT($AE$8*$AD$10*RAND()+BF1662)","v":108}]
[null,null,null,null,null,null,null,null,null,null,null,null,null,null,null,null,null,null,null,null,null,null,null,null,null,null,null,null,null,null,null,null,null,null,null,null,null,null,null,null,null,null,null,null,null,null,null,null,null,null,null,null,null,null,null,null,null,0]
[null,null,null,null,null,null,null,null,null,null,null,null,null,null,null,null,null,null,null,null,null,null,null,null,null,null,null,null,null,null,null,null,null,null,null,null,null,null,null,null,null,null,null,null,null,null,null,null,null,null,null,null,null,null,null,null,null,{"$f":"+INT($AE$8*$AD$10*RAND()+BF1673)","v":123}]
[null,null,null,null,null,null,null,null,null,null,null,null,null,null,null,null,null,null,null,null,null,null,null,null,null,null,null,null,null,null,null,null,null,null,null,null,null,null,null,null,null,null,null,null,null,null,null,null,null,null,null,null,null,null,null,null,null,{"$f":"+INT($AE$8*$AD$10*RAND()+BF1678)","v":118}]
[null,null,null,null,null,null,null,null,null,null,null,null,null,null,null,null,null,null,null,null,null,null,null,null,null,null,null,null,null,null,null,null,null,null,null,null,null,null,null,null,null,null,null,null,null,null,null,null,null,null,null,null,null,null,null,null,null,0]
[null,null,null,null,null,null,null,null,null,null,null,null,null,null,null,null,null,null,null,null,null,null,null,null,null,null,null,null,null,null,null,null,null,null,null,null,null,null,null,null,null,null,null,null,null,null,null,null,null,null,null,null,null,null,null,null,null,0]
[null,null,null,null,null,null,null,null,null,null,null,null,null,null,null,null,null,null,null,null,null,null,null,null,null,null,null,null,null,null,null,null,null,null,null,null,null,null,null,null,null,null,null,null,null,null,null,null,null,null,null,null,null,null,null,null,null,0]
[null,null,null,null,null,null,null,null,null,null,null,null,null,null,null,null,null,null,null,null,null,null,null,null,null,null,null,null,null,null,null,null,null,null,null,null,null,null,null,null,null,null,null,null,null,null,null,null,null,null,null,null,null,null,null,null,null,0]
[null,null,null,null,null,null,null,null,null,null,null,null,null,null,null,null,null,null,null,null,null,null,null,null,null,null,null,null,null,null,null,null,null,null,null,null,null,null,null,null,null,null,null,null,null,null,null,null,null,null,null,null,null,null,null,null,null,{"$f":"+INT($AE$8*$AD$10*RAND()+BF1698)","v":44}]
[null,null,null,null,null,null,null,null,null,null,null,null,null,null,null,null,null,null,null,null,null,null,null,null,null,null,null,null,null,null,null,null,null,null,null,null,null,null,null,null,null,null,null,null,null,null,null,null,null,null,null,null,null,null,null,null,null,{"$f":"+INT($AE$8*$AD$10*RAND()+BF1702)","v":72}]
[null,null,null,null,null,null,null,null,null,null,null,null,null,null,null,null,null,null,null,null,null,null,null,null,null,null,null,null,null,null,null,null,null,null,null,null,null,null,null,null,null,null,null,null,null,null,null,null,null,null,null,null,null,null,null,null,null,{"$f":"+INT($AE$8*$AD$10*RAND()+BF1707)","v":54}]
[null,null,null,null,null,null,null,null,null,null,null,null,null,null,null,null,null,null,null,null,null,null,null,null,null,null,null,null,null,null,null,null,null,null,null,null,null,null,null,null,null,null,null,null,null,null,null,null,null,null,null,null,null,null,null,null,null,{"$f":"+INT($AE$8*$AD$10*RAND()+BF1712)","v":119}]
[null,null,null,null,null,null,null,null,null,null,null,null,null,null,null,null,null,null,null,null,null,null,null,null,null,null,null,null,null,null,null,null,null,null,null,null,null,null,null,null,null,null,null,null,null,null,null,null,null,null,null,null,null,null,null,null,null,{"$f":"+INT($AE$8*$AD$10*RAND()+BF1714)","v":242}]
[null,null,null,null,null,null,null,null,null,null,null,null,null,null,null,null,null,null,null,null,null,null,null,null,null,null,null,null,null,null,null,null,null,null,null,null,null,null,null,null,null,null,null,null,null,null,null,null,null,null,null,null,null,null,null,null,null,{"$f":"+INT($AE$8*$AD$10*RAND()+BF1719)","v":216}]
[null,null,null,null,null,null,null,null,null,null,null,null,null,null,null,null,null,null,null,null,null,null,null,null,null,null,null,null,null,null,null,null,null,null,null,null,null,null,null,null,null,null,null,null,null,null,null,null,null,null,null,null,null,null,null,null,null,{"$f":"+INT($AE$8*$AD$10*RAND()+BF1724)","v":173}]
[null,null,null,null,null,null,null,null,null,null,null,null,null,null,null,null,null,null,null,null,null,null,null,null,null,null,null,null,null,null,null,null,null,null,null,null,null,null,null,null,null,null,null,null,null,null,null,null,null,null,null,null,null,null,null,null,null,{"$f":"+INT($AE$8*$AD$10*RAND()+BF1726)","v":75}]
[null,null,null,null,null,null,null,null,null,null,null,null,null,null,null,null,null,null,null,null,null,null,null,null,null,null,null,null,null,null,null,null,null,null,null,null,null,null,null,null,null,null,null,null,null,null,null,null,null,null,null,null,null,null,null,null,null,{"$f":"+INT($AE$8*$AD$10*RAND()+BF1731)","v":1}]
[null,null,null,null,null,null,null,null,null,null,null,null,null,null,null,null,null,null,null,null,null,null,null,null,null,null,null,null,null,null,null,null,null,null,null,null,null,null,null,null,null,null,null,null,null,null,null,null,null,null,null,null,null,null,null,null,null,{"$f":"+INT($AE$8*$AD$10*RAND()+BF1736)","v":53}]
[null,null,null,null,null,null,null,null,null,null,null,null,null,null,null,null,null,null,null,null,null,null,null,null,null,null,null,null,null,null,null,null,null,null,null,null,null,null,null,null,null,null,null,null,null,null,null,null,null,null,null,null,null,null,null,null,null,0]
[null,null,null,null,null,null,null,null,null,null,null,null,null,null,null,null,null,null,null,null,null,null,null,null,null,null,null,null,null,null,null,null,null,null,null,null,null,null,null,null,null,null,null,null,null,null,null,null,null,null,null,null,null,null,null,null,null,{"$f":"+INT($AE$8*$AD$10*RAND()+BF1747)","v":76}]
[null,null,null,null,null,null,null,null,null,null,null,null,null,null,null,null,null,null,null,null,null,null,null,null,null,null,null,null,null,null,null,null,null,null,null,null,null,null,null,null,null,null,null,null,null,null,null,null,null,null,null,null,null,null,null,null,null,{"$f":"+INT($AE$8*$AD$10*RAND()+BF1748)","v":82}]
[null,null,null,null,null,null,null,null,null,null,null,null,null,null,null,null,null,null,null,null,null,null,null,null,null,null,null,null,null,null,null,null,null,null,null,null,null,null,null,null,null,null,null,null,null,null,null,null,null,null,null,null,null,null,null,null,null,{"$f":"+INT($AE$8*$AD$10*RAND()+BF1753)","v":141}]
[null,null,null,null,null,null,null,null,null,null,null,null,null,null,null,null,null,null,null,null,null,null,null,null,null,null,null,null,null,null,null,null,null,null,null,null,null,null,null,null,null,null,null,null,null,null,null,null,null,null,null,null,null,null,null,null,null,{"$f":"+INT($AE$8*$AD$10*RAND()+BF1758)","v":224}]
[null,null,null,null,null,null,null,null,null,null,null,null,null,null,null,null,null,null,null,null,null,null,null,null,null,null,null,null,null,null,null,null,null,null,null,null,null,null,null,null,null,null,null,null,null,null,null,null,null,null,null,null,null,null,null,null,null,{"$f":"+INT($AE$8*$AD$10*RAND()+BF1764)","v":193}]
[null,null,null,null,null,null,null,null,null,null,null,null,null,null,null,null,null,null,null,null,null,null,null,null,null,null,null,null,null,null,null,null,null,null,null,null,null,null,null,null,null,null,null,null,null,null,null,null,null,null,null,null,null,null,null,null,null,0]
[null,null,null,null,null,null,null,null,null,null,null,null,null,null,null,null,null,null,null,null,null,null,null,null,null,null,null,null,null,null,null,null,null,null,null,null,null,null,null,null,null,null,null,null,null,null,null,null,null,null,null,null,null,null,null,null,null,{"$f":"+INT($AE$8*$AD$10*RAND()+BF1773)","v":136}]
[null,null,null,null,null,null,null,null,null,null,null,null,null,null,null,null,null,null,null,null,null,null,null,null,null,null,null,null,null,null,null,null,null,null,null,null,null,null,null,null,null,null,null,null,null,null,null,null,null,null,null,null,null,null,null,null,null,{"$f":"+INT($AE$8*$AD$10*RAND()+BF1776)","v":59}]
[null,null,null,null,null,null,null,null,null,null,null,null,null,null,null,null,null,null,null,null,null,null,null,null,null,null,null,null,null,null,null,null,null,null,null,null,null,null,null,null,null,null,null,null,null,null,null,null,null,null,null,null,null,null,null,null,null,{"$f":"+INT($AE$8*$AD$10*RAND()+BF1781)","v":44}]
[null,null,null,null,null,null,null,null,null,null,null,null,null,null,null,null,null,null,null,null,null,null,null,null,null,null,null,null,null,null,null,null,null,null,null,null,null,null,null,null,null,null,null,null,null,null,null,null,null,null,null,null,null,null,null,null,null,{"$f":"+INT($AE$8*$AD$10*RAND()+BF1782)","v":46}]
[null,null,null,null,null,null,null,null,null,null,null,null,null,null,null,null,null,null,null,null,null,null,null,null,null,null,null,null,null,null,null,null,null,null,null,null,null,null,null,null,null,null,null,null,null,null,null,null,null,null,null,null,null,null,null,null,null,{"$f":"+INT($AE$8*$AD$10*RAND()+BF1788)","v":111}]
[null,null,null,null,null,null,null,null,null,null,null,null,null,null,null,null,null,null,null,null,null,null,null,null,null,null,null,null,null,null,null,null,null,null,null,null,null,null,null,null,null,null,null,null,null,null,null,null,null,null,null,null,null,null,null,null,null,{"$f":"+INT($AE$8*$AD$10*RAND()+BF1793)","v":99}]
[null,null,null,null,null,null,null,null,null,null,null,null,null,null,null,null,null,null,null,null,null,null,null,null,null,null,null,null,null,null,null,null,null,null,null,null,null,null,null,null,null,null,null,null,null,null,null,null,null,null,null,null,null,null,null,null,null,{"$f":"+INT($AE$8*$AD$10*RAND()+BF1798)","v":179}]
[null,null,null,null,null,null,null,null,null,null,null,null,null,null,null,null,null,null,null,null,null,null,null,null,null,null,null,null,null,null,null,null,null,null,null,null,null,null,null,null,null,null,null,null,null,null,null,null,null,null,null,null,null,null,null,null,null,0]
[null,null,null,null,null,null,null,null,null,null,null,null,null,null,null,null,null,null,null,null,null,null,null,null,null,null,null,null,null,null,null,null,null,null,null,null,null,null,null,null,null,null,null,null,null,null,null,null,null,null,null,null,null,null,null,null,null,0]
[null,null,null,null,null,null,null,null,null,null,null,null,null,null,null,null,null,null,null,null,null,null,null,null,null,null,null,null,null,null,null,null,null,null,null,null,null,null,null,null,null,null,null,null,null,null,null,null,null,null,null,null,null,null,null,null,null,0]
[null,null,null,null,null,null,null,null,null,null,null,null,null,null,null,null,null,null,null,null,null,null,null,null,null,null,null,null,null,null,null,null,null,null,null,null,null,null,null,null,null,null,null,null,null,null,null,null,null,null,null,null,null,null,null,null,null,{"$f":"+INT($AE$8*$AD$10*RAND()+BF1814)","v":83}]
[null,null,null,null,null,null,null,null,null,null,null,null,null,null,null,null,null,null,null,null,null,null,null,null,null,null,null,null,null,null,null,null,null,null,null,null,null,null,null,null,null,null,null,null,null,null,null,null,null,null,null,null,null,null,null,null,null,{"$f":"+INT($AE$8*$AD$10*RAND()+BF1817)","v":99}]
[null,null,null,null,null,null,null,null,null,null,null,null,null,null,null,null,null,null,null,null,null,null,null,null,null,null,null,null,null,null,null,null,null,null,null,null,null,null,null,null,null,null,null,null,null,null,null,null,null,null,null,null,null,null,null,null,null,{"$f":"+INT($AE$8*$AD$10*RAND()+BF1822)","v":134}]
[null,null,null,null,null,null,null,null,null,null,null,null,null,null,null,null,null,null,null,null,null,null,null,null,null,null,null,null,null,null,null,null,null,null,null,null,null,null,null,null,null,null,null,null,null,null,null,null,null,null,null,null,null,null,null,null,null,{"$f":"+INT($AE$8*$AD$10*RAND()+BF1827)","v":53}]
[null,null,null,null,null,null,null,null,null,null,null,null,null,null,null,null,null,null,null,null,null,null,null,null,null,null,null,null,null,null,null,null,null,null,null,null,null,null,null,null,null,null,null,null,null,null,null,null,null,null,null,null,null,null,null,null,null,{"$f":"+INT($AE$8*$AD$10*RAND()+BF1833)","v":143}]
[null,null,null,null,null,null,null,null,null,null,null,null,null,null,null,null,null,null,null,null,null,null,null,null,null,null,null,null,null,null,null,null,null,null,null,null,null,null,null,null,null,null,null,null,null,null,null,null,null,null,null,null,null,null,null,null,null,{"$f":"+INT($AE$8*$AD$10*RAND()+BF1834)","v":219}]
[null,null,null,null,null,null,null,null,null,null,null,null,null,null,null,null,null,null,null,null,null,null,null,null,null,null,null,null,null,null,null,null,null,null,null,null,null,null,null,null,null,null,null,null,null,null,null,null,null,null,null,null,null,null,null,null,null,{"$f":"+INT($AE$8*$AD$10*RAND()+BF1839)","v":187}]
[null,null,null,null,null,null,null,null,null,null,null,null,null,null,null,null,null,null,null,null,null,null,null,null,null,null,null,null,null,null,null,null,null,null,null,null,null,null,null,null,null,null,null,null,null,null,null,null,null,null,null,null,null,null,null,null,null,{"$f":"+INT($AE$8*$AD$10*RAND()+BF1842)","v":112}]
[null,null,null,null,null,null,null,null,null,null,null,null,null,null,null,null,null,null,null,null,null,null,null,null,null,null,null,null,null,null,null,null,null,null,null,null,null,null,null,null,null,null,null,null,null,null,null,null,null,null,null,null,null,null,null,null,null,0]
[null,null,null,null,null,null,null,null,null,null,null,null,null,null,null,null,null,null,null,null,null,null,null,null,null,null,null,null,null,null,null,null,null,null,null,null,null,null,null,null,null,null,null,null,null,null,null,null,null,null,null,null,null,null,null,null,null,{"$f":"+INT($AE$8*$AD$10*RAND()+BF1851)","v":73}]
[null,null,null,null,null,null,null,null,null,null,null,null,null,null,null,null,null,null,null,null,null,null,null,null,null,null,null,null,null,null,null,null,null,null,null,null,null,null,null,null,null,null,null,null,null,null,null,null,null,null,null,null,null,null,null,null,null,{"$f":"+INT($AE$8*$AD$10*RAND()+BF1856)","v":0}]
[null,null,null,null,null,null,null,null,null,null,null,null,null,null,null,null,null,null,null,null,null,null,null,null,null,null,null,null,null,null,null,null,null,null,null,null,null,null,null,null,null,null,null,null,null,null,null,null,null,null,null,null,null,null,null,null,null,{"$f":"+INT($AE$8*$AD$10*RAND()+BF1861)","v":14}]
[null,null,null,null,null,null,null,null,null,null,null,null,null,null,null,null,null,null,null,null,null,null,null,null,null,null,null,null,null,null,null,null,null,null,null,null,null,null,null,null,null,null,null,null,null,null,null,null,null,null,null,null,null,null,null,null,null,{"$f":"+INT($AE$8*$AD$10*RAND()+BF1867)","v":31}]
[null,null,null,null,null,null,null,null,null,null,null,null,null,null,null,null,null,null,null,null,null,null,null,null,null,null,null,null,null,null,null,null,null,null,null,null,null,null,null,null,null,null,null,null,null,null,null,null,null,null,null,null,null,null,null,null,null,{"$f":"+INT($AE$8*$AD$10*RAND()+BF1868)","v":64}]
[null,null,null,null,null,null,null,null,null,null,null,null,null,null,null,null,null,null,null,null,null,null,null,null,null,null,null,null,null,null,null,null,null,null,null,null,null,null,null,null,null,null,null,null,null,null,null,null,null,null,null,null,null,null,null,null,null,0]
[null,null,null,null,null,null,null,null,null,null,null,null,null,null,null,null,null,null,null,null,null,null,null,null,null,null,null,null,null,null,null,null,null,null,null,null,null,null,null,null,null,null,null,null,null,null,null,null,null,null,null,null,null,null,null,null,null,{"$f":"+INT($AE$8*$AD$10*RAND()+BF1879)","v":129}]
[null,null,null,null,null,null,null,null,null,null,null,null,null,null,null,null,null,null,null,null,null,null,null,null,null,null,null,null,null,null,null,null,null,null,null,null,null,null,null,null,null,null,null,null,null,null,null,null,null,null,null,null,null,null,null,null,null,{"$f":"+INT($AE$8*$AD$10*RAND()+BF1884)","v":179}]
[null,null,null,null,null,null,null,null,null,null,null,null,null,null,null,null,null,null,null,null,null,null,null,null,null,null,null,null,null,null,null,null,null,null,null,null,null,null,null,null,null,null,null,null,null,null,null,null,null,null,null,null,null,null,null,null,null,0]
[null,null,null,null,null,null,null,null,null,null,null,null,null,null,null,null,null,null,null,null,null,null,null,null,null,null,null,null,null,null,null,null,null,null,null,null,null,null,null,null,null,null,null,null,null,null,null,null,null,null,null,null,null,null,null,null,null,{"$f":"+INT($AE$8*$AD$10*RAND()+BF1893)","v":87}]
[null,null,null,null,null,null,null,null,null,null,null,null,null,null,null,null,null,null,null,null,null,null,null,null,null,null,null,null,null,null,null,null,null,null,null,null,null,null,null,null,null,null,null,null,null,null,null,null,null,null,null,null,null,null,null,null,null,{"$f":"+INT($AE$8*$AD$10*RAND()+BF1896)","v":26}]
[null,null,null,null,null,null,null,null,null,null,null,null,null,null,null,null,null,null,null,null,null,null,null,null,null,null,null,null,null,null,null,null,null,null,null,null,null,null,null,null,null,null,null,null,null,null,null,null,null,null,null,null,null,null,null,null,null,{"$f":"+INT($AE$8*$AD$10*RAND()+BF1901)","v":68}]
[null,null,null,null,null,null,null,null,null,null,null,null,null,null,null,null,null,null,null,null,null,null,null,null,null,null,null,null,null,null,null,null,null,null,null,null,null,null,null,null,null,null,null,null,null,null,null,null,null,null,null,null,null,null,null,null,null,{"$f":"+INT($AE$8*$AD$10*RAND()+BF1902)","v":109}]
[null,null,null,null,null,null,null,null,null,null,null,null,null,null,null,null,null,null,null,null,null,null,null,null,null,null,null,null,null,null,null,null,null,null,null,null,null,null,null,null,null,null,null,null,null,null,null,null,null,null,null,null,null,null,null,null,null,{"$f":"+INT($AE$8*$AD$10*RAND()+BF1908)","v":133}]
[null,null,null,null,null,null,null,null,null,null,null,null,null,null,null,null,null,null,null,null,null,null,null,null,null,null,null,null,null,null,null,null,null,null,null,null,null,null,null,null,null,null,null,null,null,null,null,null,null,null,null,null,null,null,null,null,null,{"$f":"+INT($AE$8*$AD$10*RAND()+BF1913)","v":78}]
[null,null,null,null,null,null,null,null,null,null,null,null,null,null,null,null,null,null,null,null,null,null,null,null,null,null,null,null,null,null,null,null,null,null,null,null,null,null,null,null,null,null,null,null,null,null,null,null,null,null,null,null,null,null,null,null,null,{"$f":"+INT($AE$8*$AD$10*RAND()+BF1918)","v":197}]
[null,null,null,null,null,null,null,null,null,null,null,null,null,null,null,null,null,null,null,null,null,null,null,null,null,null,null,null,null,null,null,null,null,null,null,null,null,null,null,null,null,null,null,null,null,null,null,null,null,null,null,null,null,null,null,null,null,{"$f":"+INT($AE$8*$AD$10*RAND()+BF1921)","v":37}]
[null,null,null,null,null,null,null,null,null,null,null,null,null,null,null,null,null,null,null,null,null,null,null,null,null,null,null,null,null,null,null,null,null,null,null,null,null,null,null,null,null,null,null,null,null,null,null,null,null,null,null,null,null,null,null,null,null,0]
[null,null,null,null,null,null,null,null,null,null,null,null,null,null,null,null,null,null,null,null,null,null,null,null,null,null,null,null,null,null,null,null,null,null,null,null,null,null,null,null,null,null,null,null,null,null,null,null,null,null,null,null,null,null,null,null,null,0]
[null,null,null,null,null,null,null,null,null,null,null,null,null,null,null,null,null,null,null,null,null,null,null,null,null,null,null,null,null,null,null,null,null,null,null,null,null,null,null,null,null,null,null,null,null,null,null,null,null,null,null,null,null,null,null,null,null,0]
[null,null,null,null,null,null,null,null,null,null,null,null,null,null,null,null,null,null,null,null,null,null,null,null,null,null,null,null,null,null,null,null,null,null,null,null,null,null,null,null,null,null,null,null,null,null,null,null,null,null,null,null,null,null,null,null,null,{"$f":"+INT($AE$8*$AD$10*RAND()+BF1937)","v":87}]
[null,null,null,null,null,null,null,null,null,null,null,null,null,null,null,null,null,null,null,null,null,null,null,null,null,null,null,null,null,null,null,null,null,null,null,null,null,null,null,null,null,null,null,null,null,null,null,null,null,null,null,null,null,null,null,null,null,{"$f":"+INT($AE$8*$AD$10*RAND()+BF1942)","v":87}]
[null,null,null,null,null,null,null,null,null,null,null,null,null,null,null,null,null,null,null,null,null,null,null,null,null,null,null,null,null,null,null,null,null,null,null,null,null,null,null,null,null,null,null,null,null,null,null,null,null,null,null,null,null,null,null,null,null,{"$f":"+INT($AE$8*$AD$10*RAND()+BF1949)","v":99}]
[null,null,null,null,null,null,null,null,null,null,null,null,null,null,null,null,null,null,null,null,null,null,null,null,null,null,null,null,null,null,null,null,null,null,null,null,null,null,null,null,null,null,null,null,null,null,null,null,null,null,null,null,null,null,null,null,null,{"$f":"+INT($AE$8*$AD$10*RAND()+BF1953)","v":178}]
[null,null,null,null,null,null,null,null,null,null,null,null,null,null,null,null,null,null,null,null,null,null,null,null,null,null,null,null,null,null,null,null,null,null,null,null,null,null,null,null,null,null,null,null,null,null,null,null,null,null,null,null,null,null,null,null,null,{"$f":"+INT($AE$8*$AD$10*RAND()+BF1954)","v":219}]
[null,null,null,null,null,null,null,null,null,null,null,null,null,null,null,null,null,null,null,null,null,null,null,null,null,null,null,null,null,null,null,null,null,null,null,null,null,null,null,null,null,null,null,null,null,null,null,null,null,null,null,null,null,null,null,null,null,{"$f":"+INT($AE$8*$AD$10*RAND()+BF1959)","v":187}]
[null,null,null,null,null,null,null,null,null,null,null,null,null,null,null,null,null,null,null,null,null,null,null,null,null,null,null,null,null,null,null,null,null,null,null,null,null,null,null,null,null,null,null,null,null,null,null,null,null,null,null,null,null,null,null,null,null,{"$f":"+INT($AE$8*$AD$10*RAND()+BF1963)","v":182}]
[null,null,null,null,null,null,null,null,null,null,null,null,null,null,null,null,null,null,null,null,null,null,null,null,null,null,null,null,null,null,null,null,null,null,null,null,null,null,null,null,null,null,null,null,null,null,null,null,null,null,null,null,null,null,null,null,null,0]
[null,null,null,null,null,null,null,null,null,null,null,null,null,null,null,null,null,null,null,null,null,null,null,null,null,null,null,null,null,null,null,null,null,null,null,null,null,null,null,null,null,null,null,null,null,null,null,null,null,null,null,null,null,null,null,null,null,{"$f":"+INT($AE$8*$AD$10*RAND()+BF1971)","v":78}]
[null,null,null,null,null,null,null,null,null,null,null,null,null,null,null,null,null,null,null,null,null,null,null,null,null,null,null,null,null,null,null,null,null,null,null,null,null,null,null,null,null,null,null,null,null,null,null,null,null,null,null,null,null,null,null,null,null,{"$f":"+INT($AE$8*$AD$10*RAND()+BF1977)","v":146}]
[null,null,null,null,null,null,null,null,null,null,null,null,null,null,null,null,null,null,null,null,null,null,null,null,null,null,null,null,null,null,null,null,null,null,null,null,null,null,null,null,null,null,null,null,null,null,null,null,null,null,null,null,null,null,null,null,null,{"$f":"+INT($AE$8*$AD$10*RAND()+BF1982)","v":81}]
[null,null,null,null,null,null,null,null,null,null,null,null,null,null,null,null,null,null,null,null,null,null,null,null,null,null,null,null,null,null,null,null,null,null,null,null,null,null,null,null,null,null,null,null,null,null,null,null,null,null,null,null,null,null,null,null,null,{"$f":"+INT($AE$8*$AD$10*RAND()+BF1987)","v":40}]
[null,null,null,null,null,null,null,null,null,null,null,null,null,null,null,null,null,null,null,null,null,null,null,null,null,null,null,null,null,null,null,null,null,null,null,null,null,null,null,null,null,null,null,null,null,null,null,null,null,null,null,null,null,null,null,null,null,{"$f":"+INT($AE$8*$AD$10*RAND()+BF1988)","v":120}]
[null,null,null,null,null,null,null,null,null,null,null,null,null,null,null,null,null,null,null,null,null,null,null,null,null,null,null,null,null,null,null,null,null,null,null,null,null,null,null,null,null,null,null,null,null,null,null,null,null,null,null,null,null,null,null,null,null,0]
[null,null,null,null,null,null,null,null,null,null,null,null,null,null,null,null,null,null,null,null,null,null,null,null,null,null,null,null,null,null,null,null,null,null,null,null,null,null,null,null,null,null,null,null,null,null,null,null,null,null,null,null,null,null,null,null,null,{"$f":"+INT($AE$8*$AD$10*RAND()+BF1999)","v":180}]
[null,null,null,null,null,null,null,null,null,null,null,null,null,null,null,null,null,null,null,null,null,null,null,null,null,null,null,null,null,null,null,null,null,null,null,null,null,null,null,null,null,null,null,null,null,null,null,null,null,null,null,null,null,null,null,null,null,{"$f":"+INT($AE$8*$AD$10*RAND()+BF2004)","v":155}]
[null,null,null,null,null,null,null,null,null,null,null,null,null,null,null,null,null,null,null,null,null,null,null,null,null,null,null,null,null,null,null,null,null,null,null,null,null,null,null,null,null,null,null,null,null,null,null,null,null,null,null,null,null,null,null,null,null,0]
[null,null,null,null,null,null,null,null,null,null,null,null,null,null,null,null,null,null,null,null,null,null,null,null,null,null,null,null,null,null,null,null,null,null,null,null,null,null,null,null,null,null,null,null,null,null,null,null,null,null,null,null,null,null,null,null,null,{"$f":"+INT($AE$8*$AD$10*RAND()+BF2011)","v":88}]
[null,null,null,null,null,null,null,null,null,null,null,null,null,null,null,null,null,null,null,null,null,null,null,null,null,null,null,null,null,null,null,null,null,null,null,null,null,null,null,null,null,null,null,null,null,null,null,null,null,null,null,null,null,null,null,null,null,{"$f":"+INT($AE$8*$AD$10*RAND()+BF2016)","v":55}]
[null,null,null,null,null,null,null,null,null,null,null,null,null,null,null,null,null,null,null,null,null,null,null,null,null,null,null,null,null,null,null,null,null,null,null,null,null,null,null,null,null,null,null,null,null,null,null,null,null,null,null,null,null,null,null,null,null,{"$f":"+INT($AE$8*$AD$10*RAND()+BF2021)","v":25}]
[null,null,null,null,null,null,null,null,null,null,null,null,null,null,null,null,null,null,null,null,null,null,null,null,null,null,null,null,null,null,null,null,null,null,null,null,null,null,null,null,null,null,null,null,null,null,null,null,null,null,null,null,null,null,null,null,null,{"$f":"+INT($AE$8*$AD$10*RAND()+BF2023)","v":141}]
[null,null,null,null,null,null,null,null,null,null,null,null,null,null,null,null,null,null,null,null,null,null,null,null,null,null,null,null,null,null,null,null,null,null,null,null,null,null,null,null,null,null,null,null,null,null,null,null,null,null,null,null,null,null,null,null,null,{"$f":"+INT($AE$8*$AD$10*RAND()+BF2028)","v":153}]
[null,null,null,null,null,null,null,null,null,null,null,null,null,null,null,null,null,null,null,null,null,null,null,null,null,null,null,null,null,null,null,null,null,null,null,null,null,null,null,null,null,null,null,null,null,null,null,null,null,null,null,null,null,null,null,null,null,{"$f":"+INT($AE$8*$AD$10*RAND()+BF2033)","v":16}]
[null,null,null,null,null,null,null,null,null,null,null,null,null,null,null,null,null,null,null,null,null,null,null,null,null,null,null,null,null,null,null,null,null,null,null,null,null,null,null,null,null,null,null,null,null,null,null,null,null,null,null,null,null,null,null,null,null,{"$f":"+INT($AE$8*$AD$10*RAND()+BF2037)","v":141}]
[null,null,null,null,null,null,null,null,null,null,null,null,null,null,null,null,null,null,null,null,null,null,null,null,null,null,null,null,null,null,null,null,null,null,null,null,null,null,null,null,null,null,null,null,null,null,null,null,null,null,null,null,null,null,null,null,null,0]
[null,null,null,null,null,null,null,null,null,null,null,null,null,null,null,null,null,null,null,null,null,null,null,null,null,null,null,null,null,null,null,null,null,null,null,null,null,null,null,null,null,null,null,null,null,null,null,null,null,null,null,null,null,null,null,null,null,0]
[null,null,null,null,null,null,null,null,null,null,null,null,null,null,null,null,null,null,null,null,null,null,null,null,null,null,null,null,null,null,null,null,null,null,null,null,null,null,null,null,null,null,null,null,null,null,null,null,null,null,null,null,null,null,null,null,null,0]
[null,null,null,null,null,null,null,null,null,null,null,null,null,null,null,null,null,null,null,null,null,null,null,null,null,null,null,null,null,null,null,null,null,null,null,null,null,null,null,null,null,null,null,null,null,null,null,null,null,null,null,null,null,null,null,null,null,{"$f":"+INT($AE$8*$AD$10*RAND()+BF2056)","v":49}]
[null,null,null,null,null,null,null,null,null,null,null,null,null,null,null,null,null,null,null,null,null,null,null,null,null,null,null,null,null,null,null,null,null,null,null,null,null,null,null,null,null,null,null,null,null,null,null,null,null,null,null,null,null,null,null,null,null,{"$f":"+INT($AE$8*$AD$10*RAND()+BF2057)","v":50}]
[null,null,null,null,null,null,null,null,null,null,null,null,null,null,null,null,null,null,null,null,null,null,null,null,null,null,null,null,null,null,null,null,null,null,null,null,null,null,null,null,null,null,null,null,null,null,null,null,null,null,null,null,null,null,null,null,null,{"$f":"+INT($AE$8*$AD$10*RAND()+BF2062)","v":23}]
[null,null,null,null,null,null,null,null,null,null,null,null,null,null,null,null,null,null,null,null,null,null,null,null,null,null,null,null,null,null,null,null,null,null,null,null,null,null,null,null,null,null,null,null,null,null,null,null,null,null,null,null,null,null,null,null,null,0]
[null,null,null,null,null,null,null,null,null,null,null,null,null,null,null,null,null,null,null,null,null,null,null,null,null,null,null,null,null,null,null,null,null,null,null,null,null,null,null,null,null,null,null,null,null,null,null,null,null,null,null,null,null,null,null,null,null,{"$f":"+INT($AE$8*$AD$10*RAND()+BF2073)","v":79}]
[null,null,null,null,null,null,null,null,null,null,null,null,null,null,null,null,null,null,null,null,null,null,null,null,null,null,null,null,null,null,null,null,null,null,null,null,null,null,null,null,null,null,null,null,null,null,null,null,null,null,null,null,null,null,null,null,null,{"$f":"+INT($AE$8*$AD$10*RAND()+BF2074)","v":155}]
[null,null,null,null,null,null,null,null,null,null,null,null,null,null,null,null,null,null,null,null,null,null,null,null,null,null,null,null,null,null,null,null,null,null,null,null,null,null,null,null,null,null,null,null,null,null,null,null,null,null,null,null,null,null,null,null,null,{"$f":"+INT($AE$8*$AD$10*RAND()+BF2079)","v":232}]
[null,null,null,null,null,null,null,null,null,null,null,null,null,null,null,null,null,null,null,null,null,null,null,null,null,null,null,null,null,null,null,null,null,null,null,null,null,null,null,null,null,null,null,null,null,null,null,null,null,null,null,null,null,null,null,null,null,0]
[null,null,null,null,null,null,null,null,null,null,null,null,null,null,null,null,null,null,null,null,null,null,null,null,null,null,null,null,null,null,null,null,null,null,null,null,null,null,null,null,null,null,null,null,null,null,null,null,null,null,null,null,null,null,null,null,null,0]
[null,null,null,null,null,null,null,null,null,null,null,null,null,null,null,null,null,null,null,null,null,null,null,null,null,null,null,null,null,null,null,null,null,null,null,null,null,null,null,null,null,null,null,null,null,null,null,null,null,null,null,null,null,null,null,null,null,{"$f":"+INT($AE$8*$AD$10*RAND()+BF2091)","v":59}]
[null,null,null,null,null,null,null,null,null,null,null,null,null,null,null,null,null,null,null,null,null,null,null,null,null,null,null,null,null,null,null,null,null,null,null,null,null,null,null,null,null,null,null,null,null,null,null,null,null,null,null,null,null,null,null,null,null,{"$f":"+INT($AE$8*$AD$10*RAND()+BF2098)","v":139}]
[null,null,null,null,null,null,null,null,null,null,null,null,null,null,null,null,null,null,null,null,null,null,null,null,null,null,null,null,null,null,null,null,null,null,null,null,null,null,null,null,null,null,null,null,null,null,null,null,null,null,null,null,null,null,null,null,null,{"$f":"+INT($AE$8*$AD$10*RAND()+BF2102)","v":48}]
[null,null,null,null,null,null,null,null,null,null,null,null,null,null,null,null,null,null,null,null,null,null,null,null,null,null,null,null,null,null,null,null,null,null,null,null,null,null,null,null,null,null,null,null,null,null,null,null,null,null,null,null,null,null,null,null,null,{"$f":"+INT($AE$8*$AD$10*RAND()+BF2107)","v":107}]
[null,null,null,null,null,null,null,null,null,null,null,null,null,null,null,null,null,null,null,null,null,null,null,null,null,null,null,null,null,null,null,null,null,null,null,null,null,null,null,null,null,null,null,null,null,null,null,null,null,null,null,null,null,null,null,null,null,{"$f":"+INT($AE$8*$AD$10*RAND()+BF2112)","v":154}]
[null,null,null,null,null,null,null,null,null,null,null,null,null,null,null,null,null,null,null,null,null,null,null,null,null,null,null,null,null,null,null,null,null,null,null,null,null,null,null,null,null,null,null,null,null,null,null,null,null,null,null,null,null,null,null,null,null,{"$f":"+INT($AE$8*$AD$10*RAND()+BF2114)","v":195}]
[null,null,null,null,null,null,null,null,null,null,null,null,null,null,null,null,null,null,null,null,null,null,null,null,null,null,null,null,null,null,null,null,null,null,null,null,null,null,null,null,null,null,null,null,null,null,null,null,null,null,null,null,null,null,null,null,null,{"$f":"+INT($AE$8*$AD$10*RAND()+BF2119)","v":161}]
[null,null,null,null,null,null,null,null,null,null,null,null,null,null,null,null,null,null,null,null,null,null,null,null,null,null,null,null,null,null,null,null,null,null,null,null,null,null,null,null,null,null,null,null,null,null,null,null,null,null,null,null,null,null,null,null,null,{"$f":"+INT($AE$8*$AD$10*RAND()+BF2124)","v":145}]
[null,null,null,null,null,null,null,null,null,null,null,null,null,null,null,null,null,null,null,null,null,null,null,null,null,null,null,null,null,null,null,null,null,null,null,null,null,null,null,null,null,null,null,null,null,null,null,null,null,null,null,null,null,null,null,null,null,0]
[null,null,null,null,null,null,null,null,null,null,null,null,null,null,null,null,null,null,null,null,null,null,null,null,null,null,null,null,null,null,null,null,null,null,null,null,null,null,null,null,null,null,null,null,null,null,null,null,null,null,null,null,null,null,null,null,null,{"$f":"+INT($AE$8*$AD$10*RAND()+BF2131)","v":70}]
[null,null,null,null,null,null,null,null,null,null,null,null,null,null,null,null,null,null,null,null,null,null,null,null,null,null,null,null,null,null,null,null,null,null,null,null,null,null,null,null,null,null,null,null,null,null,null,null,null,null,null,null,null,null,null,null,null,{"$f":"+INT($AE$8*$AD$10*RAND()+BF2136)","v":42}]
[null,null,null,null,null,null,null,null,null,null,null,null,null,null,null,null,null,null,null,null,null,null,null,null,null,null,null,null,null,null,null,null,null,null,null,null,null,null,null,null,null,null,null,null,null,null,null,null,null,null,null,null,null,null,null,null,null,{"$f":"+INT($AE$8*$AD$10*RAND()+BF2139)","v":101}]
[null,null,null,null,null,null,null,null,null,null,null,null,null,null,null,null,null,null,null,null,null,null,null,null,null,null,null,null,null,null,null,null,null,null,null,null,null,null,null,null,null,null,null,null,null,null,null,null,null,null,null,null,null,null,null,null,null,{"$f":"+INT($AE$8*$AD$10*RAND()+BF2143)","v":105}]
[null,null,null,null,null,null,null,null,null,null,null,null,null,null,null,null,null,null,null,null,null,null,null,null,null,null,null,null,null,null,null,null,null,null,null,null,null,null,null,null,null,null,null,null,null,null,null,null,null,null,null,null,null,null,null,null,null,{"$f":"+INT($AE$8*$AD$10*RAND()+BF2148)","v":146}]
[null,null,null,null,null,null,null,null,null,null,null,null,null,null,null,null,null,null,null,null,null,null,null,null,null,null,null,null,null,null,null,null,null,null,null,null,null,null,null,null,null,null,null,null,null,null,null,null,null,null,null,null,null,null,null,null,null,{"$f":"+INT($AE$8*$AD$10*RAND()+BF2153)","v":143}]
[null,null,null,null,null,null,null,null,null,null,null,null,null,null,null,null,null,null,null,null,null,null,null,null,null,null,null,null,null,null,null,null,null,null,null,null,null,null,null,null,null,null,null,null,null,null,null,null,null,null,null,null,null,null,null,null,null,{"$f":"+INT($AE$8*$AD$10*RAND()+BF2158)","v":123}]
[null,null,null,null,null,null,null,null,null,null,null,null,null,null,null,null,null,null,null,null,null,null,null,null,null,null,null,null,null,null,null,null,null,null,null,null,null,null,null,null,null,null,null,null,null,null,null,null,null,null,null,null,null,null,null,null,null,0]
[null,null,null,null,null,null,null,null,null,null,null,null,null,null,null,null,null,null,null,null,null,null,null,null,null,null,null,null,null,null,null,null,null,null,null,null,null,null,null,null,null,null,null,null,null,null,null,null,null,null,null,null,null,null,null,null,null,0]
[null,null,null,null,null,null,null,null,null,null,null,null,null,null,null,null,null,null,null,null,null,null,null,null,null,null,null,null,null,null,null,null,null,null,null,null,null,null,null,null,null,null,null,null,null,null,null,null,null,null,null,null,null,null,null,null,null,{"$f":"+INT($AE$8*$AD$10*RAND()+BF2172)","v":118}]
[null,null,null,null,null,null,null,null,null,null,null,null,null,null,null,null,null,null,null,null,null,null,null,null,null,null,null,null,null,null,null,null,null,null,null,null,null,null,null,null,null,null,null,null,null,null,null,null,null,null,null,null,null,null,null,null,null,{"$f":"+INT($AE$8*$AD$10*RAND()+BF2176)","v":15}]
[null,null,null,null,null,null,null,null,null,null,null,null,null,null,null,null,null,null,null,null,null,null,null,null,null,null,null,null,null,null,null,null,null,null,null,null,null,null,null,null,null,null,null,null,null,null,null,null,null,null,null,null,null,null,null,null,null,{"$f":"+INT($AE$8*$AD$10*RAND()+BF2177)","v":74}]
[null,null,null,null,null,null,null,null,null,null,null,null,null,null,null,null,null,null,null,null,null,null,null,null,null,null,null,null,null,null,null,null,null,null,null,null,null,null,null,null,null,null,null,null,null,null,null,null,null,null,null,null,null,null,null,null,null,{"$f":"+INT($AE$8*$AD$10*RAND()+BF2182)","v":13}]
[null,null,null,null,null,null,null,null,null,null,null,null,null,null,null,null,null,null,null,null,null,null,null,null,null,null,null,null,null,null,null,null,null,null,null,null,null,null,null,null,null,null,null,null,null,null,null,null,null,null,null,null,null,null,null,null,null,{"$f":"+INT($AE$8*$AD$10*RAND()+BF2186)","v":30}]
[null,null,null,null,null,null,null,null,null,null,null,null,null,null,null,null,null,null,null,null,null,null,null,null,null,null,null,null,null,null,null,null,null,null,null,null,null,null,null,null,null,null,null,null,null,null,null,null,null,null,null,null,null,null,null,null,null,{"$f":"+INT($AE$8*$AD$10*RAND()+BF2193)","v":75}]
[null,null,null,null,null,null,null,null,null,null,null,null,null,null,null,null,null,null,null,null,null,null,null,null,null,null,null,null,null,null,null,null,null,null,null,null,null,null,null,null,null,null,null,null,null,null,null,null,null,null,null,null,null,null,null,null,null,{"$f":"+INT($AE$8*$AD$10*RAND()+BF2194)","v":125}]
[null,null,null,null,null,null,null,null,null,null,null,null,null,null,null,null,null,null,null,null,null,null,null,null,null,null,null,null,null,null,null,null,null,null,null,null,null,null,null,null,null,null,null,null,null,null,null,null,null,null,null,null,null,null,null,null,null,0]
[null,null,null,null,null,null,null,null,null,null,null,null,null,null,null,null,null,null,null,null,null,null,null,null,null,null,null,null,null,null,null,null,null,null,null,null,null,null,null,null,null,null,null,null,null,null,null,null,null,null,null,null,null,null,null,null,null,0]
[null,null,null,null,null,null,null,null,null,null,null,null,null,null,null,null,null,null,null,null,null,null,null,null,null,null,null,null,null,null,null,null,null,null,null,null,null,null,null,null,null,null,null,null,null,null,null,null,null,null,null,null,null,null,null,null,null,0]
[null,null,null,null,null,null,null,null,null,null,null,null,null,null,null,null,null,null,null,null,null,null,null,null,null,null,null,null,null,null,null,null,null,null,null,null,null,null,null,null,null,null,null,null,null,null,null,null,null,null,null,null,null,null,null,null,null,{"$f":"+INT($AE$8*$AD$10*RAND()+BF2214)","v":227}]
[null,null,null,null,null,null,null,null,null,null,null,null,null,null,null,null,null,null,null,null,null,null,null,null,null,null,null,null,null,null,null,null,null,null,null,null,null,null,null,null,null,null,null,null,null,null,null,null,null,null,null,null,null,null,null,null,null,{"$f":"+INT($AE$8*$AD$10*RAND()+BF2217)","v":42}]
[null,null,null,null,null,null,null,null,null,null,null,null,null,null,null,null,null,null,null,null,null,null,null,null,null,null,null,null,null,null,null,null,null,null,null,null,null,null,null,null,null,null,null,null,null,null,null,null,null,null,null,null,null,null,null,null,null,{"$f":"+INT($AE$8*$AD$10*RAND()+BF2222)","v":2}]
[null,null,null,null,null,null,null,null,null,null,null,null,null,null,null,null,null,null,null,null,null,null,null,null,null,null,null,null,null,null,null,null,null,null,null,null,null,null,null,null,null,null,null,null,null,null,null,null,null,null,null,null,null,null,null,null,null,{"$f":"+INT($AE$8*$AD$10*RAND()+BF2227)","v":76}]
[null,null,null,null,null,null,null,null,null,null,null,null,null,null,null,null,null,null,null,null,null,null,null,null,null,null,null,null,null,null,null,null,null,null,null,null,null,null,null,null,null,null,null,null,null,null,null,null,null,null,null,null,null,null,null,null,null,{"$f":"+INT($AE$8*$AD$10*RAND()+BF2232)","v":97}]
[null,null,null,null,null,null,null,null,null,null,null,null,null,null,null,null,null,null,null,null,null,null,null,null,null,null,null,null,null,null,null,null,null,null,null,null,null,null,null,null,null,null,null,null,null,null,null,null,null,null,null,null,null,null,null,null,null,{"$f":"+INT($AE$8*$AD$10*RAND()+BF2234)","v":171}]
[null,null,null,null,null,null,null,null,null,null,null,null,null,null,null,null,null,null,null,null,null,null,null,null,null,null,null,null,null,null,null,null,null,null,null,null,null,null,null,null,null,null,null,null,null,null,null,null,null,null,null,null,null,null,null,null,null,{"$f":"+INT($AE$8*$AD$10*RAND()+BF2239)","v":256}]
[null,null,null,null,null,null,null,null,null,null,null,null,null,null,null,null,null,null,null,null,null,null,null,null,null,null,null,null,null,null,null,null,null,null,null,null,null,null,null,null,null,null,null,null,null,null,null,null,null,null,null,null,null,null,null,null,null,{"$f":"+INT($AE$8*$AD$10*RAND()+BF2242)","v":119}]
[null,null,null,null,null,null,null,null,null,null,null,null,null,null,null,null,null,null,null,null,null,null,null,null,null,null,null,null,null,null,null,null,null,null,null,null,null,null,null,null,null,null,null,null,null,null,null,null,null,null,null,null,null,null,null,null,null,{"$f":"+INT($AE$8*$AD$10*RAND()+BF2246)","v":73}]
[null,null,null,null,null,null,null,null,null,null,null,null,null,null,null,null,null,null,null,null,null,null,null,null,null,null,null,null,null,null,null,null,null,null,null,null,null,null,null,null,null,null,null,null,null,null,null,null,null,null,null,null,null,null,null,null,null,{"$f":"+INT($AE$8*$AD$10*RAND()+BF2251)","v":44}]
[null,null,null,null,null,null,null,null,null,null,null,null,null,null,null,null,null,null,null,null,null,null,null,null,null,null,null,null,null,null,null,null,null,null,null,null,null,null,null,null,null,null,null,null,null,null,null,null,null,null,null,null,null,null,null,null,null,{"$f":"+INT($AE$8*$AD$10*RAND()+BF2256)","v":53}]
[null,null,null,null,null,null,null,null,null,null,null,null,null,null,null,null,null,null,null,null,null,null,null,null,null,null,null,null,null,null,null,null,null,null,null,null,null,null,null,null,null,null,null,null,null,null,null,null,null,null,null,null,null,null,null,null,null,0]
[null,null,null,null,null,null,null,null,null,null,null,null,null,null,null,null,null,null,null,null,null,null,null,null,null,null,null,null,null,null,null,null,null,null,null,null,null,null,null,null,null,null,null,null,null,null,null,null,null,null,null,null,null,null,null,null,null,{"$f":"+INT($AE$8*$AD$10*RAND()+BF2263)","v":38}]
[null,null,null,null,null,null,null,null,null,null,null,null,null,null,null,null,null,null,null,null,null,null,null,null,null,null,null,null,null,null,null,null,null,null,null,null,null,null,null,null,null,null,null,null,null,null,null,null,null,null,null,null,null,null,null,null,null,{"$f":"+INT($AE$8*$AD$10*RAND()+BF2268)","v":158}]
[null,null,null,null,null,null,null,null,null,null,null,null,null,null,null,null,null,null,null,null,null,null,null,null,null,null,null,null,null,null,null,null,null,null,null,null,null,null,null,null,null,null,null,null,null,null,null,null,null,null,null,null,null,null,null,null,null,{"$f":"+INT($AE$8*$AD$10*RAND()+BF2274)","v":239}]
[null,null,null,null,null,null,null,null,null,null,null,null,null,null,null,null,null,null,null,null,null,null,null,null,null,null,null,null,null,null,null,null,null,null,null,null,null,null,null,null,null,null,null,null,null,null,null,null,null,null,null,null,null,null,null,null,null,{"$f":"+INT($AE$8*$AD$10*RAND()+BF2279)","v":198}]
[null,null,null,null,null,null,null,null,null,null,null,null,null,null,null,null,null,null,null,null,null,null,null,null,null,null,null,null,null,null,null,null,null,null,null,null,null,null,null,null,null,null,null,null,null,null,null,null,null,null,null,null,null,null,null,null,null,0]
[null,null,null,null,null,null,null,null,null,null,null,null,null,null,null,null,null,null,null,null,null,null,null,null,null,null,null,null,null,null,null,null,null,null,null,null,null,null,null,null,null,null,null,null,null,null,null,null,null,null,null,null,null,null,null,null,null,0]
[null,null,null,null,null,null,null,null,null,null,null,null,null,null,null,null,null,null,null,null,null,null,null,null,null,null,null,null,null,null,null,null,null,null,null,null,null,null,null,null,null,null,null,null,null,null,null,null,null,null,null,null,null,null,null,null,null,{"$f":"+INT($AE$8*$AD$10*RAND()+BF2288)","v":114}]
[null,null,null,null,null,null,null,null,null,null,null,null,null,null,null,null,null,null,null,null,null,null,null,null,null,null,null,null,null,null,null,null,null,null,null,null,null,null,null,null,null,null,null,null,null,null,null,null,null,null,null,null,null,null,null,null,null,{"$f":"+INT($AE$8*$AD$10*RAND()+BF2296)","v":80}]
[null,null,null,null,null,null,null,null,null,null,null,null,null,null,null,null,null,null,null,null,null,null,null,null,null,null,null,null,null,null,null,null,null,null,null,null,null,null,null,null,null,null,null,null,null,null,null,null,null,null,null,null,null,null,null,null,null,{"$f":"+INT($AE$8*$AD$10*RAND()+BF2297)","v":116}]
[null,null,null,null,null,null,null,null,null,null,null,null,null,null,null,null,null,null,null,null,null,null,null,null,null,null,null,null,null,null,null,null,null,null,null,null,null,null,null,null,null,null,null,null,null,null,null,null,null,null,null,null,null,null,null,null,null,{"$f":"+INT($AE$8*$AD$10*RAND()+BF2302)","v":83}]
[null,null,null,null,null,null,null,null,null,null,null,null,null,null,null,null,null,null,null,null,null,null,null,null,null,null,null,null,null,null,null,null,null,null,null,null,null,null,null,null,null,null,null,null,null,null,null,null,null,null,null,null,null,null,null,null,null,{"$f":"+INT($AE$8*$AD$10*RAND()+BF2308)","v":163}]
[null,null,null,null,null,null,null,null,null,null,null,null,null,null,null,null,null,null,null,null,null,null,null,null,null,null,null,null,null,null,null,null,null,null,null,null,null,null,null,null,null,null,null,null,null,null,null,null,null,null,null,null,null,null,null,null,null,{"$f":"+INT($AE$8*$AD$10*RAND()+BF2313)","v":125}]
[null,null,null,null,null,null,null,null,null,null,null,null,null,null,null,null,null,null,null,null,null,null,null,null,null,null,null,null,null,null,null,null,null,null,null,null,null,null,null,null,null,null,null,null,null,null,null,null,null,null,null,null,null,null,null,null,null,{"$f":"+INT($AE$8*$AD$10*RAND()+BF2314)","v":194}]
[null,null,null,null,null,null,null,null,null,null,null,null,null,null,null,null,null,null,null,null,null,null,null,null,null,null,null,null,null,null,null,null,null,null,null,null,null,null,null,null,null,null,null,null,null,null,null,null,null,null,null,null,null,null,null,null,null,0]
[null,null,null,null,null,null,null,null,null,null,null,null,null,null,null,null,null,null,null,null,null,null,null,null,null,null,null,null,null,null,null,null,null,null,null,null,null,null,null,null,null,null,null,null,null,null,null,null,null,null,null,null,null,null,null,null,null,0]
[null,null,null,null,null,null,null,null,null,null,null,null,null,null,null,null,null,null,null,null,null,null,null,null,null,null,null,null,null,null,null,null,null,null,null,null,null,null,null,null,null,null,null,null,null,null,null,null,null,null,null,null,null,null,null,null,null,0]
[null,null,null,null,null,null,null,null,null,null,null,null,null,null,null,null,null,null,null,null,null,null,null,null,null,null,null,null,null,null,null,null,null,null,null,null,null,null,null,null,null,null,null,null,null,null,null,null,null,null,null,null,null,null,null,null,null,0]
[null,null,null,null,null,null,null,null,null,null,null,null,null,null,null,null,null,null,null,null,null,null,null,null,null,null,null,null,null,null,null,null,null,null,null,null,null,null,null,null,null,null,null,null,null,null,null,null,null,null,null,null,null,null,null,null,null,{"$f":"+INT($AE$8*$AD$10*RAND()+BF2337)","v":92}]
[null,null,null,null,null,null,null,null,null,null,null,null,null,null,null,null,null,null,null,null,null,null,null,null,null,null,null,null,null,null,null,null,null,null,null,null,null,null,null,null,null,null,null,null,null,null,null,null,null,null,null,null,null,null,null,null,null,{"$f":"+INT($AE$8*$AD$10*RAND()+BF2342)","v":89}]
[null,null,null,null,null,null,null,null,null,null,null,null,null,null,null,null,null,null,null,null,null,null,null,null,null,null,null,null,null,null,null,null,null,null,null,null,null,null,null,null,null,null,null,null,null,null,null,null,null,null,null,null,null,null,null,null,null,{"$f":"+INT($AE$8*$AD$10*RAND()+BF2347)","v":76}]
[null,null,null,null,null,null,null,null,null,null,null,null,null,null,null,null,null,null,null,null,null,null,null,null,null,null,null,null,null,null,null,null,null,null,null,null,null,null,null,null,null,null,null,null,null,null,null,null,null,null,null,null,null,null,null,null,null,{"$f":"+INT($AE$8*$AD$10*RAND()+BF2348)","v":123}]
[null,null,null,null,null,null,null,null,null,null,null,null,null,null,null,null,null,null,null,null,null,null,null,null,null,null,null,null,null,null,null,null,null,null,null,null,null,null,null,null,null,null,null,null,null,null,null,null,null,null,null,null,null,null,null,null,null,{"$f":"+INT($AE$8*$AD$10*RAND()+BF2354)","v":142}]
[null,null,null,null,null,null,null,null,null,null,null,null,null,null,null,null,null,null,null,null,null,null,null,null,null,null,null,null,null,null,null,null,null,null,null,null,null,null,null,null,null,null,null,null,null,null,null,null,null,null,null,null,null,null,null,null,null,{"$f":"+INT($AE$8*$AD$10*RAND()+BF2359)","v":183}]
[null,null,null,null,null,null,null,null,null,null,null,null,null,null,null,null,null,null,null,null,null,null,null,null,null,null,null,null,null,null,null,null,null,null,null,null,null,null,null,null,null,null,null,null,null,null,null,null,null,null,null,null,null,null,null,null,null,{"$f":"+INT($AE$8*$AD$10*RAND()+BF2362)","v":96}]
[null,null,null,null,null,null,null,null,null,null,null,null,null,null,null,null,null,null,null,null,null,null,null,null,null,null,null,null,null,null,null,null,null,null,null,null,null,null,null,null,null,null,null,null,null,null,null,null,null,null,null,null,null,null,null,null,null,{"$f":"+INT($AE$8*$AD$10*RAND()+BF2366)","v":22}]
[null,null,null,null,null,null,null,null,null,null,null,null,null,null,null,null,null,null,null,null,null,null,null,null,null,null,null,null,null,null,null,null,null,null,null,null,null,null,null,null,null,null,null,null,null,null,null,null,null,null,null,null,null,null,null,null,null,{"$f":"+INT($AE$8*$AD$10*RAND()+BF2371)","v":87}]
[null,null,null,null,null,null,null,null,null,null,null,null,null,null,null,null,null,null,null,null,null,null,null,null,null,null,null,null,null,null,null,null,null,null,null,null,null,null,null,null,null,null,null,null,null,null,null,null,null,null,null,null,null,null,null,null,null,{"$f":"+INT($AE$8*$AD$10*RAND()+BF2376)","v":60}]
[null,null,null,null,null,null,null,null,null,null,null,null,null,null,null,null,null,null,null,null,null,null,null,null,null,null,null,null,null,null,null,null,null,null,null,null,null,null,null,null,null,null,null,null,null,null,null,null,null,null,null,null,null,null,null,null,null,{"$f":"+INT($AE$8*$AD$10*RAND()+BF2382)","v":107}]
[null,null,null,null,null,null,null,null,null,null,null,null,null,null,null,null,null,null,null,null,null,null,null,null,null,null,null,null,null,null,null,null,null,null,null,null,null,null,null,null,null,null,null,null,null,null,null,null,null,null,null,null,null,null,null,null,null,{"$f":"+INT($AE$8*$AD$10*RAND()+BF2383)","v":170}]
[null,null,null,null,null,null,null,null,null,null,null,null,null,null,null,null,null,null,null,null,null,null,null,null,null,null,null,null,null,null,null,null,null,null,null,null,null,null,null,null,null,null,null,null,null,null,null,null,null,null,null,null,null,null,null,null,null,{"$f":"+INT($AE$8*$AD$10*RAND()+BF2388)","v":143}]
[null,null,null,null,null,null,null,null,null,null,null,null,null,null,null,null,null,null,null,null,null,null,null,null,null,null,null,null,null,null,null,null,null,null,null,null,null,null,null,null,null,null,null,null,null,null,null,null,null,null,null,null,null,null,null,null,null,0]
[null,null,null,null,null,null,null,null,null,null,null,null,null,null,null,null,null,null,null,null,null,null,null,null,null,null,null,null,null,null,null,null,null,null,null,null,null,null,null,null,null,null,null,null,null,null,null,null,null,null,null,null,null,null,null,null,null,{"$f":"+INT($AE$8*$AD$10*RAND()+BF2399)","v":102}]
[null,null,null,null,null,null,null,null,null,null,null,null,null,null,null,null,null,null,null,null,null,null,null,null,null,null,null,null,null,null,null,null,null,null,null,null,null,null,null,null,null,null,null,null,null,null,null,null,null,null,null,null,null,null,null,null,null,0]
[null,null,null,null,null,null,null,null,null,null,null,null,null,null,null,null,null,null,null,null,null,null,null,null,null,null,null,null,null,null,null,null,null,null,null,null,null,null,null,null,null,null,null,null,null,null,null,null,null,null,null,null,null,null,null,null,null,{"$f":"+INT($AE$8*$AD$10*RAND()+BF2404)","v":187}]
[null,null,null,null,null,null,null,null,null,null,null,null,null,null,null,null,null,null,null,null,null,null,null,null,null,null,null,null,null,null,null,null,null,null,null,null,null,null,null,null,null,null,null,null,null,null,null,null,null,null,null,null,null,null,null,null,null,{"$f":"+INT($AE$8*$AD$10*RAND()+BF2411)","v":79}]
[null,null,null,null,null,null,null,null,null,null,null,null,null,null,null,null,null,null,null,null,null,null,null,null,null,null,null,null,null,null,null,null,null,null,null,null,null,null,null,null,null,null,null,null,null,null,null,null,null,null,null,null,null,null,null,null,null,{"$f":"+INT($AE$8*$AD$10*RAND()+BF2416)","v":64}]
[null,null,null,null,null,null,null,null,null,null,null,null,null,null,null,null,null,null,null,null,null,null,null,null,null,null,null,null,null,null,null,null,null,null,null,null,null,null,null,null,null,null,null,null,null,null,null,null,null,null,null,null,null,null,null,null,null,{"$f":"+INT($AE$8*$AD$10*RAND()+BF2417)","v":134}]
[null,null,null,null,null,null,null,null,null,null,null,null,null,null,null,null,null,null,null,null,null,null,null,null,null,null,null,null,null,null,null,null,null,null,null,null,null,null,null,null,null,null,null,null,null,null,null,null,null,null,null,null,null,null,null,null,null,{"$f":"+INT($AE$8*$AD$10*RAND()+BF2423)","v":127}]
[null,null,null,null,null,null,null,null,null,null,null,null,null,null,null,null,null,null,null,null,null,null,null,null,null,null,null,null,null,null,null,null,null,null,null,null,null,null,null,null,null,null,null,null,null,null,null,null,null,null,null,null,null,null,null,null,null,{"$f":"+INT($AE$8*$AD$10*RAND()+BF2428)","v":101}]
[null,null,null,null,null,null,null,null,null,null,null,null,null,null,null,null,null,null,null,null,null,null,null,null,null,null,null,null,null,null,null,null,null,null,null,null,null,null,null,null,null,null,null,null,null,null,null,null,null,null,null,null,null,null,null,null,null,{"$f":"+INT($AE$8*$AD$10*RAND()+BF2433)","v":173}]
[null,null,null,null,null,null,null,null,null,null,null,null,null,null,null,null,null,null,null,null,null,null,null,null,null,null,null,null,null,null,null,null,null,null,null,null,null,null,null,null,null,null,null,null,null,null,null,null,null,null,null,null,null,null,null,null,null,{"$f":"+INT($AE$8*$AD$10*RAND()+BF2437)","v":65}]
[null,null,null,null,null,null,null,null,null,null,null,null,null,null,null,null,null,null,null,null,null,null,null,null,null,null,null,null,null,null,null,null,null,null,null,null,null,null,null,null,null,null,null,null,null,null,null,null,null,null,null,null,null,null,null,null,null,0]
[null,null,null,null,null,null,null,null,null,null,null,null,null,null,null,null,null,null,null,null,null,null,null,null,null,null,null,null,null,null,null,null,null,null,null,null,null,null,null,null,null,null,null,null,null,null,null,null,null,null,null,null,null,null,null,null,null,0]
[null,null,null,null,null,null,null,null,null,null,null,null,null,null,null,null,null,null,null,null,null,null,null,null,null,null,null,null,null,null,null,null,null,null,null,null,null,null,null,null,null,null,null,null,null,null,null,null,null,null,null,null,null,null,null,null,null,0]
[null,null,null,null,null,null,null,null,null,null,null,null,null,null,null,null,null,null,null,null,null,null,null,null,null,null,null,null,null,null,null,null,null,null,null,null,null,null,null,null,null,null,null,null,null,null,null,null,null,null,null,null,null,null,null,null,null,0]
[null,null,null,null,null,null,null,null,null,null,null,null,null,null,null,null,null,null,null,null,null,null,null,null,null,null,null,null,null,null,null,null,null,null,null,null,null,null,null,null,null,null,null,null,null,null,null,null,null,null,null,null,null,null,null,null,null,{"$f":"+INT($AE$8*$AD$10*RAND()+BF2457)","v":162}]
[null,null,null,null,null,null,null,null,null,null,null,null,null,null,null,null,null,null,null,null,null,null,null,null,null,null,null,null,null,null,null,null,null,null,null,null,null,null,null,null,null,null,null,null,null,null,null,null,null,null,null,null,null,null,null,null,null,{"$f":"+INT($AE$8*$AD$10*RAND()+BF2462)","v":74}]
[null,null,null,null,null,null,null,null,null,null,null,null,null,null,null,null,null,null,null,null,null,null,null,null,null,null,null,null,null,null,null,null,null,null,null,null,null,null,null,null,null,null,null,null,null,null,null,null,null,null,null,null,null,null,null,null,null,{"$f":"+INT($AE$8*$AD$10*RAND()+BF2464)","v":168}]
[null,null,null,null,null,null,null,null,null,null,null,null,null,null,null,null,null,null,null,null,null,null,null,null,null,null,null,null,null,null,null,null,null,null,null,null,null,null,null,null,null,null,null,null,null,null,null,null,null,null,null,null,null,null,null,null,null,{"$f":"+INT($AE$8*$AD$10*RAND()+BF2469)","v":242}]
[null,null,null,null,null,null,null,null,null,null,null,null,null,null,null,null,null,null,null,null,null,null,null,null,null,null,null,null,null,null,null,null,null,null,null,null,null,null,null,null,null,null,null,null,null,null,null,null,null,null,null,null,null,null,null,null,null,{"$f":"+INT($AE$8*$AD$10*RAND()+BF2474)","v":240}]
[null,null,null,null,null,null,null,null,null,null,null,null,null,null,null,null,null,null,null,null,null,null,null,null,null,null,null,null,null,null,null,null,null,null,null,null,null,null,null,null,null,null,null,null,null,null,null,null,null,null,null,null,null,null,null,null,null,{"$f":"+INT($AE$8*$AD$10*RAND()+BF2479)","v":178}]
[null,null,null,null,null,null,null,null,null,null,null,null,null,null,null,null,null,null,null,null,null,null,null,null,null,null,null,null,null,null,null,null,null,null,null,null,null,null,null,null,null,null,null,null,null,null,null,null,null,null,null,null,null,null,null,null,null,{"$f":"+INT($AE$8*$AD$10*RAND()+BF2483)","v":169}]
[null,null,null,null,null,null,null,null,null,null,null,null,null,null,null,null,null,null,null,null,null,null,null,null,null,null,null,null,null,null,null,null,null,null,null,null,null,null,null,null,null,null,null,null,null,null,null,null,null,null,null,null,null,null,null,null,null,{"$f":"+INT($AE$8*$AD$10*RAND()+BF2486)","v":78}]
[null,null,null,null,null,null,null,null,null,null,null,null,null,null,null,null,null,null,null,null,null,null,null,null,null,null,null,null,null,null,null,null,null,null,null,null,null,null,null,null,null,null,null,null,null,null,null,null,null,null,null,null,null,null,null,null,null,{"$f":"+INT($AE$8*$AD$10*RAND()+BF2491)","v":57}]
[null,null,null,null,null,null,null,null,null,null,null,null,null,null,null,null,null,null,null,null,null,null,null,null,null,null,null,null,null,null,null,null,null,null,null,null,null,null,null,null,null,null,null,null,null,null,null,null,null,null,null,null,null,null,null,null,null,{"$f":"+INT($AE$8*$AD$10*RAND()+BF2497)","v":78}]
[null,null,null,null,null,null,null,null,null,null,null,null,null,null,null,null,null,null,null,null,null,null,null,null,null,null,null,null,null,null,null,null,null,null,null,null,null,null,null,null,null,null,null,null,null,null,null,null,null,null,null,null,null,null,null,null,null,{"$f":"+INT($AE$8*$AD$10*RAND()+BF2502)","v":49}]
[null,null,null,null,null,null,null,null,null,null,null,null,null,null,null,null,null,null,null,null,null,null,null,null,null,null,null,null,null,null,null,null,null,null,null,null,null,null,null,null,null,null,null,null,null,null,null,null,null,null,null,null,null,null,null,null,null,{"$f":"+INT($AE$8*$AD$10*RAND()+BF2503)","v":94}]
[null,null,null,null,null,null,null,null,null,null,null,null,null,null,null,null,null,null,null,null,null,null,null,null,null,null,null,null,null,null,null,null,null,null,null,null,null,null,null,null,null,null,null,null,null,null,null,null,null,null,null,null,null,null,null,null,null,{"$f":"+INT($AE$8*$AD$10*RAND()+BF2511)","v":57}]
[null,null,null,null,null,null,null,null,null,null,null,null,null,null,null,null,null,null,null,null,null,null,null,null,null,null,null,null,null,null,null,null,null,null,null,null,null,null,null,null,null,null,null,null,null,null,null,null,null,null,null,null,null,null,null,null,null,{"$f":"+INT($AE$8*$AD$10*RAND()+BF2514)","v":148}]
[null,null,null,null,null,null,null,null,null,null,null,null,null,null,null,null,null,null,null,null,null,null,null,null,null,null,null,null,null,null,null,null,null,null,null,null,null,null,null,null,null,null,null,null,null,null,null,null,null,null,null,null,null,null,null,null,null,{"$f":"+INT($AE$8*$AD$10*RAND()+BF2519)","v":178}]
[null,null,null,null,null,null,null,null,null,null,null,null,null,null,null,null,null,null,null,null,null,null,null,null,null,null,null,null,null,null,null,null,null,null,null,null,null,null,null,null,null,null,null,null,null,null,null,null,null,null,null,null,null,null,null,null,null,0]
[null,null,null,null,null,null,null,null,null,null,null,null,null,null,null,null,null,null,null,null,null,null,null,null,null,null,null,null,null,null,null,null,null,null,null,null,null,null,null,null,null,null,null,null,null,null,null,null,null,null,null,null,null,null,null,null,null,0]
[null,null,null,null,null,null,null,null,null,null,null,null,null,null,null,null,null,null,null,null,null,null,null,null,null,null,null,null,null,null,null,null,null,null,null,null,null,null,null,null,null,null,null,null,null,null,null,null,null,null,null,null,null,null,null,null,null,{"$f":"+INT($AE$8*$AD$10*RAND()+BF2531)","v":83}]
[null,null,null,null,null,null,null,null,null,null,null,null,null,null,null,null,null,null,null,null,null,null,null,null,null,null,null,null,null,null,null,null,null,null,null,null,null,null,null,null,null,null,null,null,null,null,null,null,null,null,null,null,null,null,null,null,null,{"$f":"+INT($AE$8*$AD$10*RAND()+BF2536)","v":54}]
[null,null,null,null,null,null,null,null,null,null,null,null,null,null,null,null,null,null,null,null,null,null,null,null,null,null,null,null,null,null,null,null,null,null,null,null,null,null,null,null,null,null,null,null,null,null,null,null,null,null,null,null,null,null,null,null,null,{"$f":"+INT($AE$8*$AD$10*RAND()+BF2539)","v":223}]
[null,null,null,null,null,null,null,null,null,null,null,null,null,null,null,null,null,null,null,null,null,null,null,null,null,null,null,null,null,null,null,null,null,null,null,null,null,null,null,null,null,null,null,null,null,null,null,null,null,null,null,null,null,null,null,null,null,{"$f":"+INT($AE$8*$AD$10*RAND()+BF2543)","v":62}]
[null,null,null,null,null,null,null,null,null,null,null,null,null,null,null,null,null,null,null,null,null,null,null,null,null,null,null,null,null,null,null,null,null,null,null,null,null,null,null,null,null,null,null,null,null,null,null,null,null,null,null,null,null,null,null,null,null,{"$f":"+INT($AE$8*$AD$10*RAND()+BF2548)","v":116}]
[null,null,null,null,null,null,null,null,null,null,null,null,null,null,null,null,null,null,null,null,null,null,null,null,null,null,null,null,null,null,null,null,null,null,null,null,null,null,null,null,null,null,null,null,null,null,null,null,null,null,null,null,null,null,null,null,null,{"$f":"+INT($AE$8*$AD$10*RAND()+BF2553)","v":215}]
[null,null,null,null,null,null,null,null,null,null,null,null,null,null,null,null,null,null,null,null,null,null,null,null,null,null,null,null,null,null,null,null,null,null,null,null,null,null,null,null,null,null,null,null,null,null,null,null,null,null,null,null,null,null,null,null,null,{"$f":"+INT($AE$8*$AD$10*RAND()+BF2557)","v":88}]
[null,null,null,null,null,null,null,null,null,null,null,null,null,null,null,null,null,null,null,null,null,null,null,null,null,null,null,null,null,null,null,null,null,null,null,null,null,null,null,null,null,null,null,null,null,null,null,null,null,null,null,null,null,null,null,null,null,0]
[null,null,null,null,null,null,null,null,null,null,null,null,null,null,null,null,null,null,null,null,null,null,null,null,null,null,null,null,null,null,null,null,null,null,null,null,null,null,null,null,null,null,null,null,null,null,null,null,null,null,null,null,null,null,null,null,null,0]
[null,null,null,null,null,null,null,null,null,null,null,null,null,null,null,null,null,null,null,null,null,null,null,null,null,null,null,null,null,null,null,null,null,null,null,null,null,null,null,null,null,null,null,null,null,null,null,null,null,null,null,null,null,null,null,null,null,{"$f":"+INT($AE$8*$AD$10*RAND()+BF2567)","v":137}]
[null,null,null,null,null,null,null,null,null,null,null,null,null,null,null,null,null,null,null,null,null,null,null,null,null,null,null,null,null,null,null,null,null,null,null,null,null,null,null,null,null,null,null,null,null,null,null,null,null,null,null,null,null,null,null,null,null,{"$f":"+INT($AE$8*$AD$10*RAND()+BF2572)","v":86}]
[null,null,null,null,null,null,null,null,null,null,null,null,null,null,null,null,null,null,null,null,null,null,null,null,null,null,null,null,null,null,null,null,null,null,null,null,null,null,null,null,null,null,null,null,null,null,null,null,null,null,null,null,null,null,null,null,null,{"$f":"+INT($AE$8*$AD$10*RAND()+BF2577)","v":121}]
[null,null,null,null,null,null,null,null,null,null,null,null,null,null,null,null,null,null,null,null,null,null,null,null,null,null,null,null,null,null,null,null,null,null,null,null,null,null,null,null,null,null,null,null,null,null,null,null,null,null,null,null,null,null,null,null,null,{"$f":"+INT($AE$8*$AD$10*RAND()+BF2582)","v":94}]
[null,null,null,null,null,null,null,null,null,null,null,null,null,null,null,null,null,null,null,null,null,null,null,null,null,null,null,null,null,null,null,null,null,null,null,null,null,null,null,null,null,null,null,null,null,null,null,null,null,null,null,null,null,null,null,null,null,0]
[null,null,null,null,null,null,null,null,null,null,null,null,null,null,null,null,null,null,null,null,null,null,null,null,null,null,null,null,null,null,null,null,null,null,null,null,null,null,null,null,null,null,null,null,null,null,null,null,null,null,null,null,null,null,null,null,null,{"$f":"+INT($AE$8*$AD$10*RAND()+BF2589)","v":168}]
[null,null,null,null,null,null,null,null,null,null,null,null,null,null,null,null,null,null,null,null,null,null,null,null,null,null,null,null,null,null,null,null,null,null,null,null,null,null,null,null,null,null,null,null,null,null,null,null,null,null,null,null,null,null,null,null,null,{"$f":"+INT($AE$8*$AD$10*RAND()+BF2594)","v":198}]
[null,null,null,null,null,null,null,null,null,null,null,null,null,null,null,null,null,null,null,null,null,null,null,null,null,null,null,null,null,null,null,null,null,null,null,null,null,null,null,null,null,null,null,null,null,null,null,null,null,null,null,null,null,null,null,null,null,{"$f":"+INT($AE$8*$AD$10*RAND()+BF2599)","v":231}]
[null,null,null,null,null,null,null,null,null,null,null,null,null,null,null,null,null,null,null,null,null,null,null,null,null,null,null,null,null,null,null,null,null,null,null,null,null,null,null,null,null,null,null,null,null,null,null,null,null,null,null,null,null,null,null,null,null,0]
[null,null,null,null,null,null,null,null,null,null,null,null,null,null,null,null,null,null,null,null,null,null,null,null,null,null,null,null,null,null,null,null,null,null,null,null,null,null,null,null,null,null,null,null,null,null,null,null,null,null,null,null,null,null,null,null,null,{"$f":"+INT($AE$8*$AD$10*RAND()+BF2606)","v":46}]
[null,null,null,null,null,null,null,null,null,null,null,null,null,null,null,null,null,null,null,null,null,null,null,null,null,null,null,null,null,null,null,null,null,null,null,null,null,null,null,null,null,null,null,null,null,null,null,null,null,null,null,null,null,null,null,null,null,{"$f":"+INT($AE$8*$AD$10*RAND()+BF2611)","v":79}]
[null,null,null,null,null,null,null,null,null,null,null,null,null,null,null,null,null,null,null,null,null,null,null,null,null,null,null,null,null,null,null,null,null,null,null,null,null,null,null,null,null,null,null,null,null,null,null,null,null,null,null,null,null,null,null,null,null,{"$f":"+INT($AE$8*$AD$10*RAND()+BF2618)","v":96}]
[null,null,null,null,null,null,null,null,null,null,null,null,null,null,null,null,null,null,null,null,null,null,null,null,null,null,null,null,null,null,null,null,null,null,null,null,null,null,null,null,null,null,null,null,null,null,null,null,null,null,null,null,null,null,null,null,null,{"$f":"+INT($AE$8*$AD$10*RAND()+BF2622)","v":97}]
[null,null,null,null,null,null,null,null,null,null,null,null,null,null,null,null,null,null,null,null,null,null,null,null,null,null,null,null,null,null,null,null,null,null,null,null,null,null,null,null,null,null,null,null,null,null,null,null,null,null,null,null,null,null,null,null,null,{"$f":"+INT($AE$8*$AD$10*RAND()+BF2623)","v":154}]
[null,null,null,null,null,null,null,null,null,null,null,null,null,null,null,null,null,null,null,null,null,null,null,null,null,null,null,null,null,null,null,null,null,null,null,null,null,null,null,null,null,null,null,null,null,null,null,null,null,null,null,null,null,null,null,null,null,{"$f":"+INT($AE$8*$AD$10*RAND()+BF2627)","v":103}]
[null,null,null,null,null,null,null,null,null,null,null,null,null,null,null,null,null,null,null,null,null,null,null,null,null,null,null,null,null,null,null,null,null,null,null,null,null,null,null,null,null,null,null,null,null,null,null,null,null,null,null,null,null,null,null,null,null,{"$f":"+INT($AE$8*$AD$10*RAND()+BF2634)","v":200}]
[null,null,null,null,null,null,null,null,null,null,null,null,null,null,null,null,null,null,null,null,null,null,null,null,null,null,null,null,null,null,null,null,null,null,null,null,null,null,null,null,null,null,null,null,null,null,null,null,null,null,null,null,null,null,null,null,null,{"$f":"+INT($AE$8*$AD$10*RAND()+BF2639)","v":151}]
[null,null,null,null,null,null,null,null,null,null,null,null,null,null,null,null,null,null,null,null,null,null,null,null,null,null,null,null,null,null,null,null,null,null,null,null,null,null,null,null,null,null,null,null,null,null,null,null,null,null,null,null,null,null,null,null,null,{"$f":"+INT($AE$8*$AD$10*RAND()+BF2641)","v":21}]
[null,null,null,null,null,null,null,null,null,null,null,null,null,null,null,null,null,null,null,null,null,null,null,null,null,null,null,null,null,null,null,null,null,null,null,null,null,null,null,null,null,null,null,null,null,null,null,null,null,null,null,null,null,null,null,null,null,0]
[null,null,null,null,null,null,null,null,null,null,null,null,null,null,null,null,null,null,null,null,null,null,null,null,null,null,null,null,null,null,null,null,null,null,null,null,null,null,null,null,null,null,null,null,null,null,null,null,null,null,null,null,null,null,null,null,null,{"$f":"+INT($AE$8*$AD$10*RAND()+BF2646)","v":35}]
[null,null,null,null,null,null,null,null,null,null,null,null,null,null,null,null,null,null,null,null,null,null,null,null,null,null,null,null,null,null,null,null,null,null,null,null,null,null,null,null,null,null,null,null,null,null,null,null,null,null,null,null,null,null,null,null,null,{"$f":"+INT($AE$8*$AD$10*RAND()+BF2647)","v":73}]
[null,null,null,null,null,null,null,null,null,null,null,null,null,null,null,null,null,null,null,null,null,null,null,null,null,null,null,null,null,null,null,null,null,null,null,null,null,null,null,null,null,null,null,null,null,null,null,null,null,null,null,null,null,null,null,null,null,{"$f":"+INT($AE$8*$AD$10*RAND()+BF2648)","v":118}]
[null,null,null,null,null,null,null,null,null,null,null,null,null,null,null,null,null,null,null,null,null,null,null,null,null,null,null,null,null,null,null,null,null,null,null,null,null,null,null,null,null,null,null,null,null,null,null,null,null,null,null,null,null,null,null,null,null,{"$f":"+INT($AE$8*$AD$10*RAND()+BF2649)","v":180}]
[null,null,null,null,null,null,null,null,null,null,null,null,null,null,null,null,null,null,null,null,null,null,null,null,null,null,null,null,null,null,null,null,null,null,null,null,null,null,null,null,null,null,null,null,null,null,null,null,null,null,null,null,null,null,null,null,null,0]
[null,null,null,null,null,null,null,null,null,null,null,null,null,null,null,null,null,null,null,null,null,null,null,null,null,null,null,null,null,null,null,null,null,null,null,null,null,null,null,null,null,null,null,null,null,null,null,null,null,null,null,null,null,null,null,null,null,{"$f":"+INT($AE$8*$AD$10*RAND()+BF2651)","v":19}]
[null,null,null,null,null,null,null,null,null,null,null,null,null,null,null,null,null,null,null,null,null,null,null,null,null,null,null,null,null,null,null,null,null,null,null,null,null,null,null,null,null,null,null,null,null,null,null,null,null,null,null,null,null,null,null,null,null,{"$f":"+INT($AE$8*$AD$10*RAND()+BF2652)","v":66}]
[null,null,null,null,null,null,null,null,null,null,null,null,null,null,null,null,null,null,null,null,null,null,null,null,null,null,null,null,null,null,null,null,null,null,null,null,null,null,null,null,null,null,null,null,null,null,null,null,null,null,null,null,null,null,null,null,null,{"$f":"+INT($AE$8*$AD$10*RAND()+BF2653)","v":70}]
[null,null,null,null,null,null,null,null,null,null,null,null,null,null,null,null,null,null,null,null,null,null,null,null,null,null,null,null,null,null,null,null,null,null,null,null,null,null,null,null,null,null,null,null,null,null,null,null,null,null,null,null,null,null,null,null,null,{"$f":"+INT($AE$8*$AD$10*RAND()+BF2654)","v":78}]
[null,null,null,null,null,null,null,null,null,null,null,null,null,null,null,null,null,null,null,null,null,null,null,null,null,null,null,null,null,null,null,null,null,null,null,null,null,null,null,null,null,null,null,null,null,null,null,null,null,null,null,null,null,null,null,null,null,0]
[null,null,null,null,null,null,null,null,null,null,null,null,null,null,null,null,null,null,null,null,null,null,null,null,null,null,null,null,null,null,null,null,null,null,null,null,null,null,null,null,null,null,null,null,null,null,null,null,null,null,null,null,null,null,null,null,null,{"$f":"+INT($AE$8*$AD$10*RAND()+BF2656)","v":88}]
[null,null,null,null,null,null,null,null,null,null,null,null,null,null,null,null,null,null,null,null,null,null,null,null,null,null,null,null,null,null,null,null,null,null,null,null,null,null,null,null,null,null,null,null,null,null,null,null,null,null,null,null,null,null,null,null,null,{"$f":"+INT($AE$8*$AD$10*RAND()+BF2657)","v":148}]
[null,null,null,null,null,null,null,null,null,null,null,null,null,null,null,null,null,null,null,null,null,null,null,null,null,null,null,null,null,null,null,null,null,null,null,null,null,null,null,null,null,null,null,null,null,null,null,null,null,null,null,null,null,null,null,null,null,{"$f":"+INT($AE$8*$AD$10*RAND()+BF2658)","v":187}]
[null,null,null,null,null,null,null,null,null,null,null,null,null,null,null,null,null,null,null,null,null,null,null,null,null,null,null,null,null,null,null,null,null,null,null,null,null,null,null,null,null,null,null,null,null,null,null,null,null,null,null,null,null,null,null,null,null,{"$f":"+INT($AE$8*$AD$10*RAND()+BF2659)","v":260}]
[null,null,null,null,null,null,null,null,null,null,null,null,null,null,null,null,null,null,null,null,null,null,null,null,null,null,null,null,null,null,null,null,null,null,null,null,null,null,null,null,null,null,null,null,null,null,null,null,null,null,null,null,null,null,null,null,null,0]
[null,null,null,null,null,null,null,null,null,null,null,null,null,null,null,null,null,null,null,null,null,null,null,null,null,null,null,null,null,null,null,null,null,null,null,null,null,null,null,null,null,null,null,null,null,null,null,null,null,null,null,null,null,null,null,null,null,{"$f":"+INT($AE$8*$AD$10*RAND()+BF2661)","v":30}]
[null,null,null,null,null,null,null,null,null,null,null,null,null,null,null,null,null,null,null,null,null,null,null,null,null,null,null,null,null,null,null,null,null,null,null,null,null,null,null,null,null,null,null,null,null,null,null,null,null,null,null,null,null,null,null,null,null,{"$f":"+INT($AE$8*$AD$10*RAND()+BF2662)","v":66}]
[null,null,null,null,null,null,null,null,null,null,null,null,null,null,null,null,null,null,null,null,null,null,null,null,null,null,null,null,null,null,null,null,null,null,null,null,null,null,null,null,null,null,null,null,null,null,null,null,null,null,null,null,null,null,null,null,null,{"$f":"+INT($AE$8*$AD$10*RAND()+BF2663)","v":131}]
[null,null,null,null,null,null,null,null,null,null,null,null,null,null,null,null,null,null,null,null,null,null,null,null,null,null,null,null,null,null,null,null,null,null,null,null,null,null,null,null,null,null,null,null,null,null,null,null,null,null,null,null,null,null,null,null,null,{"$f":"+INT($AE$8*$AD$10*RAND()+BF2664)","v":212}]
[null,null,null,null,null,null,null,null,null,null,null,null,null,null,null,null,null,null,null,null,null,null,null,null,null,null,null,null,null,null,null,null,null,null,null,null,null,null,null,null,null,null,null,null,null,null,null,null,null,null,null,null,null,null,null,null,null,0]
[null,null,null,null,null,null,null,null,null,null,null,null,null,null,null,null,null,null,null,null,null,null,null,null,null,null,null,null,null,null,null,null,null,null,null,null,null,null,null,null,null,null,null,null,null,null,null,null,null,null,null,null,null,null,null,null,null,{"$f":"+INT($AE$8*$AD$10*RAND()+BF2666)","v":6}]
[null,null,null,null,null,null,null,null,null,null,null,null,null,null,null,null,null,null,null,null,null,null,null,null,null,null,null,null,null,null,null,null,null,null,null,null,null,null,null,null,null,null,null,null,null,null,null,null,null,null,null,null,null,null,null,null,null,{"$f":"+INT($AE$8*$AD$10*RAND()+BF2667)","v":7}]
[null,null,null,null,null,null,null,null,null,null,null,null,null,null,null,null,null,null,null,null,null,null,null,null,null,null,null,null,null,null,null,null,null,null,null,null,null,null,null,null,null,null,null,null,null,null,null,null,null,null,null,null,null,null,null,null,null,{"$f":"+INT($AE$8*$AD$10*RAND()+BF2668)","v":64}]
[null,null,null,null,null,null,null,null,null,null,null,null,null,null,null,null,null,null,null,null,null,null,null,null,null,null,null,null,null,null,null,null,null,null,null,null,null,null,null,null,null,null,null,null,null,null,null,null,null,null,null,null,null,null,null,null,null,{"$f":"+INT($AE$8*$AD$10*RAND()+BF2669)","v":97}]
[null,null,null,null,null,null,null,null,null,null,null,null,null,null,null,null,null,null,null,null,null,null,null,null,null,null,null,null,null,null,null,null,null,null,null,null,null,null,null,null,null,null,null,null,null,null,null,null,null,null,null,null,null,null,null,null,null,0]
[null,null,null,null,null,null,null,null,null,null,null,null,null,null,null,null,null,null,null,null,null,null,null,null,null,null,null,null,null,null,null,null,null,null,null,null,null,null,null,null,null,null,null,null,null,null,null,null,null,null,null,null,null,null,null,null,null,{"$f":"+INT($AE$8*$AD$10*RAND()+BF2671)","v":40}]
[null,null,null,null,null,null,null,null,null,null,null,null,null,null,null,null,null,null,null,null,null,null,null,null,null,null,null,null,null,null,null,null,null,null,null,null,null,null,null,null,null,null,null,null,null,null,null,null,null,null,null,null,null,null,null,null,null,{"$f":"+INT($AE$8*$AD$10*RAND()+BF2672)","v":70}]
[null,null,null,null,null,null,null,null,null,null,null,null,null,null,null,null,null,null,null,null,null,null,null,null,null,null,null,null,null,null,null,null,null,null,null,null,null,null,null,null,null,null,null,null,null,null,null,null,null,null,null,null,null,null,null,null,null,{"$f":"+INT($AE$8*$AD$10*RAND()+BF2673)","v":83}]
[null,null,null,null,null,null,null,null,null,null,null,null,null,null,null,null,null,null,null,null,null,null,null,null,null,null,null,null,null,null,null,null,null,null,null,null,null,null,null,null,null,null,null,null,null,null,null,null,null,null,null,null,null,null,null,null,null,{"$f":"+INT($AE$8*$AD$10*RAND()+BF2674)","v":140}]
[null,null,null,null,null,null,null,null,null,null,null,null,null,null,null,null,null,null,null,null,null,null,null,null,null,null,null,null,null,null,null,null,null,null,null,null,null,null,null,null,null,null,null,null,null,null,null,null,null,null,null,null,null,null,null,null,null,0]
[null,null,null,null,null,null,null,null,null,null,null,null,null,null,null,null,null,null,null,null,null,null,null,null,null,null,null,null,null,null,null,null,null,null,null,null,null,null,null,null,null,null,null,null,null,null,null,null,null,null,null,null,null,null,null,null,null,{"$f":"+INT($AE$8*$AD$10*RAND()+BF2676)","v":36}]
[null,null,null,null,null,null,null,null,null,null,null,null,null,null,null,null,null,null,null,null,null,null,null,null,null,null,null,null,null,null,null,null,null,null,null,null,null,null,null,null,null,null,null,null,null,null,null,null,null,null,null,null,null,null,null,null,null,{"$f":"+INT($AE$8*$AD$10*RAND()+BF2677)","v":83}]
[null,null,null,null,null,null,null,null,null,null,null,null,null,null,null,null,null,null,null,null,null,null,null,null,null,null,null,null,null,null,null,null,null,null,null,null,null,null,null,null,null,null,null,null,null,null,null,null,null,null,null,null,null,null,null,null,null,{"$f":"+INT($AE$8*$AD$10*RAND()+BF2678)","v":162}]
[null,null,null,null,null,null,null,null,null,null,null,null,null,null,null,null,null,null,null,null,null,null,null,null,null,null,null,null,null,null,null,null,null,null,null,null,null,null,null,null,null,null,null,null,null,null,null,null,null,null,null,null,null,null,null,null,null,{"$f":"+INT($AE$8*$AD$10*RAND()+BF2679)","v":163}]
[null,null,null,null,null,null,null,null,null,null,null,null,null,null,null,null,null,null,null,null,null,null,null,null,null,null,null,null,null,null,null,null,null,null,null,null,null,null,null,null,null,null,null,null,null,null,null,null,null,null,null,null,null,null,null,null,null,0]
[null,null,null,null,null,null,null,null,null,null,null,null,null,null,null,null,null,null,null,null,null,null,null,null,null,null,null,null,null,null,null,null,null,null,null,null,null,null,null,null,null,null,null,null,null,null,null,null,null,null,null,null,null,null,null,null,null,{"$f":"+INT($AE$8*$AD$10*RAND()+BF2681)","v":40}]
[null,null,null,null,null,null,null,null,null,null,null,null,null,null,null,null,null,null,null,null,null,null,null,null,null,null,null,null,null,null,null,null,null,null,null,null,null,null,null,null,null,null,null,null,null,null,null,null,null,null,null,null,null,null,null,null,null,{"$f":"+INT($AE$8*$AD$10*RAND()+BF2682)","v":97}]
[null,null,null,null,null,null,null,null,null,null,null,null,null,null,null,null,null,null,null,null,null,null,null,null,null,null,null,null,null,null,null,null,null,null,null,null,null,null,null,null,null,null,null,null,null,null,null,null,null,null,null,null,null,null,null,null,null,{"$f":"+INT($AE$8*$AD$10*RAND()+BF2683)","v":100}]
[null,null,null,null,null,null,null,null,null,null,null,null,null,null,null,null,null,null,null,null,null,null,null,null,null,null,null,null,null,null,null,null,null,null,null,null,null,null,null,null,null,null,null,null,null,null,null,null,null,null,null,null,null,null,null,null,null,{"$f":"+INT($AE$8*$AD$10*RAND()+BF2684)","v":134}]
[null,null,null,null,null,null,null,null,null,null,null,null,null,null,null,null,null,null,null,null,null,null,null,null,null,null,null,null,null,null,null,null,null,null,null,null,null,null,null,null,null,null,null,null,null,null,null,null,null,null,null,null,null,null,null,null,null,0]
[null,null,null,null,null,null,null,null,null,null,null,null,null,null,null,null,null,null,null,null,null,null,null,null,null,null,null,null,null,null,null,null,null,null,null,null,null,null,null,null,null,null,null,null,null,null,null,null,null,null,null,null,null,null,null,null,null,{"$f":"+INT($AE$8*$AD$10*RAND()+BF2686)","v":26}]
[null,null,null,null,null,null,null,null,null,null,null,null,null,null,null,null,null,null,null,null,null,null,null,null,null,null,null,null,null,null,null,null,null,null,null,null,null,null,null,null,null,null,null,null,null,null,null,null,null,null,null,null,null,null,null,null,null,{"$f":"+INT($AE$8*$AD$10*RAND()+BF2687)","v":45}]
[null,null,null,null,null,null,null,null,null,null,null,null,null,null,null,null,null,null,null,null,null,null,null,null,null,null,null,null,null,null,null,null,null,null,null,null,null,null,null,null,null,null,null,null,null,null,null,null,null,null,null,null,null,null,null,null,null,{"$f":"+INT($AE$8*$AD$10*RAND()+BF2688)","v":88}]
[null,null,null,null,null,null,null,null,null,null,null,null,null,null,null,null,null,null,null,null,null,null,null,null,null,null,null,null,null,null,null,null,null,null,null,null,null,null,null,null,null,null,null,null,null,null,null,null,null,null,null,null,null,null,null,null,null,{"$f":"+INT($AE$8*$AD$10*RAND()+BF2689)","v":153}]
[null,null,null,null,null,null,null,null,null,null,null,null,null,null,null,null,null,null,null,null,null,null,null,null,null,null,null,null,null,null,null,null,null,null,null,null,null,null,null,null,null,null,null,null,null,null,null,null,null,null,null,null,null,null,null,null,null,0]
[null,null,null,null,null,null,null,null,null,null,null,null,null,null,null,null,null,null,null,null,null,null,null,null,null,null,null,null,null,null,null,null,null,null,null,null,null,null,null,null,null,null,null,null,null,null,null,null,null,null,null,null,null,null,null,null,null,{"$f":"+INT($AE$8*$AD$10*RAND()+BF2691)","v":78}]
[null,null,null,null,null,null,null,null,null,null,null,null,null,null,null,null,null,null,null,null,null,null,null,null,null,null,null,null,null,null,null,null,null,null,null,null,null,null,null,null,null,null,null,null,null,null,null,null,null,null,null,null,null,null,null,null,null,{"$f":"+INT($AE$8*$AD$10*RAND()+BF2692)","v":106}]
[null,null,null,null,null,null,null,null,null,null,null,null,null,null,null,null,null,null,null,null,null,null,null,null,null,null,null,null,null,null,null,null,null,null,null,null,null,null,null,null,null,null,null,null,null,null,null,null,null,null,null,null,null,null,null,null,null,{"$f":"+INT($AE$8*$AD$10*RAND()+BF2693)","v":126}]
[null,null,null,null,null,null,null,null,null,null,null,null,null,null,null,null,null,null,null,null,null,null,null,null,null,null,null,null,null,null,null,null,null,null,null,null,null,null,null,null,null,null,null,null,null,null,null,null,null,null,null,null,null,null,null,null,null,{"$f":"+INT($AE$8*$AD$10*RAND()+BF2694)","v":129}]
[null,null,null,null,null,null,null,null,null,null,null,null,null,null,null,null,null,null,null,null,null,null,null,null,null,null,null,null,null,null,null,null,null,null,null,null,null,null,null,null,null,null,null,null,null,null,null,null,null,null,null,null,null,null,null,null,null,0]
[null,null,null,null,null,null,null,null,null,null,null,null,null,null,null,null,null,null,null,null,null,null,null,null,null,null,null,null,null,null,null,null,null,null,null,null,null,null,null,null,null,null,null,null,null,null,null,null,null,null,null,null,null,null,null,null,null,{"$f":"+INT($AE$8*$AD$10*RAND()+BF2696)","v":58}]
[null,null,null,null,null,null,null,null,null,null,null,null,null,null,null,null,null,null,null,null,null,null,null,null,null,null,null,null,null,null,null,null,null,null,null,null,null,null,null,null,null,null,null,null,null,null,null,null,null,null,null,null,null,null,null,null,null,{"$f":"+INT($AE$8*$AD$10*RAND()+BF2697)","v":80}]
[null,null,null,null,null,null,null,null,null,null,null,null,null,null,null,null,null,null,null,null,null,null,null,null,null,null,null,null,null,null,null,null,null,null,null,null,null,null,null,null,null,null,null,null,null,null,null,null,null,null,null,null,null,null,null,null,null,{"$f":"+INT($AE$8*$AD$10*RAND()+BF2698)","v":115}]
[null,null,null,null,null,null,null,null,null,null,null,null,null,null,null,null,null,null,null,null,null,null,null,null,null,null,null,null,null,null,null,null,null,null,null,null,null,null,null,null,null,null,null,null,null,null,null,null,null,null,null,null,null,null,null,null,null,{"$f":"+INT($AE$8*$AD$10*RAND()+BF2699)","v":149}]
[null,null,null,null,null,null,null,null,null,null,null,null,null,null,null,null,null,null,null,null,null,null,null,null,null,null,null,null,null,null,null,null,null,null,null,null,null,null,null,null,null,null,null,null,null,null,null,null,null,null,null,null,null,null,null,null,null,0]
[null,null,null,null,null,null,null,null,null,null,null,null,null,null,null,null,null,null,null,null,null,null,null,null,null,null,null,null,null,null,null,null,null,null,null,null,null,null,null,null,null,null,null,null,null,null,null,null,null,null,null,null,null,null,null,null,null,{"$f":"+INT($AE$8*$AD$10*RAND()+BF2701)","v":41}]
[null,null,null,null,null,null,null,null,null,null,null,null,null,null,null,null,null,null,null,null,null,null,null,null,null,null,null,null,null,null,null,null,null,null,null,null,null,null,null,null,null,null,null,null,null,null,null,null,null,null,null,null,null,null,null,null,null,{"$f":"+INT($AE$8*$AD$10*RAND()+BF2702)","v":87}]
[null,null,null,null,null,null,null,null,null,null,null,null,null,null,null,null,null,null,null,null,null,null,null,null,null,null,null,null,null,null,null,null,null,null,null,null,null,null,null,null,null,null,null,null,null,null,null,null,null,null,null,null,null,null,null,null,null,{"$f":"+INT($AE$8*$AD$10*RAND()+BF2703)","v":94}]
[null,null,null,null,null,null,null,null,null,null,null,null,null,null,null,null,null,null,null,null,null,null,null,null,null,null,null,null,null,null,null,null,null,null,null,null,null,null,null,null,null,null,null,null,null,null,null,null,null,null,null,null,null,null,null,null,null,{"$f":"+INT($AE$8*$AD$10*RAND()+BF2704)","v":167}]
[null,null,null,null,null,null,null,null,null,null,null,null,null,null,null,null,null,null,null,null,null,null,null,null,null,null,null,null,null,null,null,null,null,null,null,null,null,null,null,null,null,null,null,null,null,null,null,null,null,null,null,null,null,null,null,null,null,0]
[null,null,null,null,null,null,null,null,null,null,null,null,null,null,null,null,null,null,null,null,null,null,null,null,null,null,null,null,null,null,null,null,null,null,null,null,null,null,null,null,null,null,null,null,null,null,null,null,null,null,null,null,null,null,null,null,null,{"$f":"+INT($AE$8*$AD$10*RAND()+BF2706)","v":55}]
[null,null,null,null,null,null,null,null,null,null,null,null,null,null,null,null,null,null,null,null,null,null,null,null,null,null,null,null,null,null,null,null,null,null,null,null,null,null,null,null,null,null,null,null,null,null,null,null,null,null,null,null,null,null,null,null,null,{"$f":"+INT($AE$8*$AD$10*RAND()+BF2707)","v":89}]
[null,null,null,null,null,null,null,null,null,null,null,null,null,null,null,null,null,null,null,null,null,null,null,null,null,null,null,null,null,null,null,null,null,null,null,null,null,null,null,null,null,null,null,null,null,null,null,null,null,null,null,null,null,null,null,null,null,{"$f":"+INT($AE$8*$AD$10*RAND()+BF2708)","v":144}]
[null,null,null,null,null,null,null,null,null,null,null,null,null,null,null,null,null,null,null,null,null,null,null,null,null,null,null,null,null,null,null,null,null,null,null,null,null,null,null,null,null,null,null,null,null,null,null,null,null,null,null,null,null,null,null,null,null,{"$f":"+INT($AE$8*$AD$10*RAND()+BF2709)","v":191}]
[null,null,null,null,null,null,null,null,null,null,null,null,null,null,null,null,null,null,null,null,null,null,null,null,null,null,null,null,null,null,null,null,null,null,null,null,null,null,null,null,null,null,null,null,null,null,null,null,null,null,null,null,null,null,null,null,null,0]
[null,null,null,null,null,null,null,null,null,null,null,null,null,null,null,null,null,null,null,null,null,null,null,null,null,null,null,null,null,null,null,null,null,null,null,null,null,null,null,null,null,null,null,null,null,null,null,null,null,null,null,null,null,null,null,null,null,{"$f":"+INT($AE$8*$AD$10*RAND()+BF2711)","v":62}]
[null,null,null,null,null,null,null,null,null,null,null,null,null,null,null,null,null,null,null,null,null,null,null,null,null,null,null,null,null,null,null,null,null,null,null,null,null,null,null,null,null,null,null,null,null,null,null,null,null,null,null,null,null,null,null,null,null,{"$f":"+INT($AE$8*$AD$10*RAND()+BF2712)","v":146}]
[null,null,null,null,null,null,null,null,null,null,null,null,null,null,null,null,null,null,null,null,null,null,null,null,null,null,null,null,null,null,null,null,null,null,null,null,null,null,null,null,null,null,null,null,null,null,null,null,null,null,null,null,null,null,null,null,null,{"$f":"+INT($AE$8*$AD$10*RAND()+BF2713)","v":187}]
[null,null,null,null,null,null,null,null,null,null,null,null,null,null,null,null,null,null,null,null,null,null,null,null,null,null,null,null,null,null,null,null,null,null,null,null,null,null,null,null,null,null,null,null,null,null,null,null,null,null,null,null,null,null,null,null,null,{"$f":"+INT($AE$8*$AD$10*RAND()+BF2714)","v":248}]
[null,null,null,null,null,null,null,null,null,null,null,null,null,null,null,null,null,null,null,null,null,null,null,null,null,null,null,null,null,null,null,null,null,null,null,null,null,null,null,null,null,null,null,null,null,null,null,null,null,null,null,null,null,null,null,null,null,0]
[null,null,null,null,null,null,null,null,null,null,null,null,null,null,null,null,null,null,null,null,null,null,null,null,null,null,null,null,null,null,null,null,null,null,null,null,null,null,null,null,null,null,null,null,null,null,null,null,null,null,null,null,null,null,null,null,null,{"$f":"+INT($AE$8*$AD$10*RAND()+BF2716)","v":48}]
[null,null,null,null,null,null,null,null,null,null,null,null,null,null,null,null,null,null,null,null,null,null,null,null,null,null,null,null,null,null,null,null,null,null,null,null,null,null,null,null,null,null,null,null,null,null,null,null,null,null,null,null,null,null,null,null,null,{"$f":"+INT($AE$8*$AD$10*RAND()+BF2717)","v":73}]
[null,null,null,null,null,null,null,null,null,null,null,null,null,null,null,null,null,null,null,null,null,null,null,null,null,null,null,null,null,null,null,null,null,null,null,null,null,null,null,null,null,null,null,null,null,null,null,null,null,null,null,null,null,null,null,null,null,{"$f":"+INT($AE$8*$AD$10*RAND()+BF2718)","v":89}]
[null,null,null,null,null,null,null,null,null,null,null,null,null,null,null,null,null,null,null,null,null,null,null,null,null,null,null,null,null,null,null,null,null,null,null,null,null,null,null,null,null,null,null,null,null,null,null,null,null,null,null,null,null,null,null,null,null,{"$f":"+INT($AE$8*$AD$10*RAND()+BF2719)","v":162}]
[null,null,null,null,null,null,null,null,null,null,null,null,null,null,null,null,null,null,null,null,null,null,null,null,null,null,null,null,null,null,null,null,null,null,null,null,null,null,null,null,null,null,null,null,null,null,null,null,null,null,null,null,null,null,null,null,null,0]
[null,null,null,null,null,null,null,null,null,null,null,null,null,null,null,null,null,null,null,null,null,null,null,null,null,null,null,null,null,null,null,null,null,null,null,null,null,null,null,null,null,null,null,null,null,null,null,null,null,null,null,null,null,null,null,null,null,{"$f":"+INT($AE$8*$AD$10*RAND()+BF2721)","v":24}]
[null,null,null,null,null,null,null,null,null,null,null,null,null,null,null,null,null,null,null,null,null,null,null,null,null,null,null,null,null,null,null,null,null,null,null,null,null,null,null,null,null,null,null,null,null,null,null,null,null,null,null,null,null,null,null,null,null,{"$f":"+INT($AE$8*$AD$10*RAND()+BF2722)","v":113}]
[null,null,null,null,null,null,null,null,null,null,null,null,null,null,null,null,null,null,null,null,null,null,null,null,null,null,null,null,null,null,null,null,null,null,null,null,null,null,null,null,null,null,null,null,null,null,null,null,null,null,null,null,null,null,null,null,null,{"$f":"+INT($AE$8*$AD$10*RAND()+BF2723)","v":168}]
[null,null,null,null,null,null,null,null,null,null,null,null,null,null,null,null,null,null,null,null,null,null,null,null,null,null,null,null,null,null,null,null,null,null,null,null,null,null,null,null,null,null,null,null,null,null,null,null,null,null,null,null,null,null,null,null,null,{"$f":"+INT($AE$8*$AD$10*RAND()+BF2724)","v":210}]
[null,null,null,null,null,null,null,null,null,null,null,null,null,null,null,null,null,null,null,null,null,null,null,null,null,null,null,null,null,null,null,null,null,null,null,null,null,null,null,null,null,null,null,null,null,null,null,null,null,null,null,null,null,null,null,null,null,0]
[null,null,null,null,null,null,null,null,null,null,null,null,null,null,null,null,null,null,null,null,null,null,null,null,null,null,null,null,null,null,null,null,null,null,null,null,null,null,null,null,null,null,null,null,null,null,null,null,null,null,null,null,null,null,null,null,null,{"$f":"+INT($AE$8*$AD$10*RAND()+BF2726)","v":7}]
[null,null,null,null,null,null,null,null,null,null,null,null,null,null,null,null,null,null,null,null,null,null,null,null,null,null,null,null,null,null,null,null,null,null,null,null,null,null,null,null,null,null,null,null,null,null,null,null,null,null,null,null,null,null,null,null,null,{"$f":"+INT($AE$8*$AD$10*RAND()+BF2727)","v":35}]
[null,null,null,null,null,null,null,null,null,null,null,null,null,null,null,null,null,null,null,null,null,null,null,null,null,null,null,null,null,null,null,null,null,null,null,null,null,null,null,null,null,null,null,null,null,null,null,null,null,null,null,null,null,null,null,null,null,{"$f":"+INT($AE$8*$AD$10*RAND()+BF2728)","v":67}]
[null,null,null,null,null,null,null,null,null,null,null,null,null,null,null,null,null,null,null,null,null,null,null,null,null,null,null,null,null,null,null,null,null,null,null,null,null,null,null,null,null,null,null,null,null,null,null,null,null,null,null,null,null,null,null,null,null,{"$f":"+INT($AE$8*$AD$10*RAND()+BF2729)","v":152}]
[null,null,null,null,null,null,null,null,null,null,null,null,null,null,null,null,null,null,null,null,null,null,null,null,null,null,null,null,null,null,null,null,null,null,null,null,null,null,null,null,null,null,null,null,null,null,null,null,null,null,null,null,null,null,null,null,null,0]
[null,null,null,null,null,null,null,null,null,null,null,null,null,null,null,null,null,null,null,null,null,null,null,null,null,null,null,null,null,null,null,null,null,null,null,null,null,null,null,null,null,null,null,null,null,null,null,null,null,null,null,null,null,null,null,null,null,{"$f":"+INT($AE$8*$AD$10*RAND()+BF2731)","v":41}]
[null,null,null,null,null,null,null,null,null,null,null,null,null,null,null,null,null,null,null,null,null,null,null,null,null,null,null,null,null,null,null,null,null,null,null,null,null,null,null,null,null,null,null,null,null,null,null,null,null,null,null,null,null,null,null,null,null,{"$f":"+INT($AE$8*$AD$10*RAND()+BF2732)","v":48}]
[null,null,null,null,null,null,null,null,null,null,null,null,null,null,null,null,null,null,null,null,null,null,null,null,null,null,null,null,null,null,null,null,null,null,null,null,null,null,null,null,null,null,null,null,null,null,null,null,null,null,null,null,null,null,null,null,null,{"$f":"+INT($AE$8*$AD$10*RAND()+BF2733)","v":102}]
[null,null,null,null,null,null,null,null,null,null,null,null,null,null,null,null,null,null,null,null,null,null,null,null,null,null,null,null,null,null,null,null,null,null,null,null,null,null,null,null,null,null,null,null,null,null,null,null,null,null,null,null,null,null,null,null,null,{"$f":"+INT($AE$8*$AD$10*RAND()+BF2734)","v":102}]
[null,null,null,null,null,null,null,null,null,null,null,null,null,null,null,null,null,null,null,null,null,null,null,null,null,null,null,null,null,null,null,null,null,null,null,null,null,null,null,null,null,null,null,null,null,null,null,null,null,null,null,null,null,null,null,null,null,0]
[null,null,null,null,null,null,null,null,null,null,null,null,null,null,null,null,null,null,null,null,null,null,null,null,null,null,null,null,null,null,null,null,null,null,null,null,null,null,null,null,null,null,null,null,null,null,null,null,null,null,null,null,null,null,null,null,null,{"$f":"+INT($AE$8*$AD$10*RAND()+BF2736)","v":3}]
[null,null,null,null,null,null,null,null,null,null,null,null,null,null,null,null,null,null,null,null,null,null,null,null,null,null,null,null,null,null,null,null,null,null,null,null,null,null,null,null,null,null,null,null,null,null,null,null,null,null,null,null,null,null,null,null,null,{"$f":"+INT($AE$8*$AD$10*RAND()+BF2737)","v":46}]
[null,null,null,null,null,null,null,null,null,null,null,null,null,null,null,null,null,null,null,null,null,null,null,null,null,null,null,null,null,null,null,null,null,null,null,null,null,null,null,null,null,null,null,null,null,null,null,null,null,null,null,null,null,null,null,null,null,{"$f":"+INT($AE$8*$AD$10*RAND()+BF2738)","v":94}]
[null,null,null,null,null,null,null,null,null,null,null,null,null,null,null,null,null,null,null,null,null,null,null,null,null,null,null,null,null,null,null,null,null,null,null,null,null,null,null,null,null,null,null,null,null,null,null,null,null,null,null,null,null,null,null,null,null,{"$f":"+INT($AE$8*$AD$10*RAND()+BF2739)","v":175}]
[null,null,null,null,null,null,null,null,null,null,null,null,null,null,null,null,null,null,null,null,null,null,null,null,null,null,null,null,null,null,null,null,null,null,null,null,null,null,null,null,null,null,null,null,null,null,null,null,null,null,null,null,null,null,null,null,null,0]
[null,null,null,null,null,null,null,null,null,null,null,null,null,null,null,null,null,null,null,null,null,null,null,null,null,null,null,null,null,null,null,null,null,null,null,null,null,null,null,null,null,null,null,null,null,null,null,null,null,null,null,null,null,null,null,null,null,{"$f":"+INT($AE$8*$AD$10*RAND()+BF2741)","v":62}]
[null,null,null,null,null,null,null,null,null,null,null,null,null,null,null,null,null,null,null,null,null,null,null,null,null,null,null,null,null,null,null,null,null,null,null,null,null,null,null,null,null,null,null,null,null,null,null,null,null,null,null,null,null,null,null,null,null,{"$f":"+INT($AE$8*$AD$10*RAND()+BF2742)","v":122}]
[null,null,null,null,null,null,null,null,null,null,null,null,null,null,null,null,null,null,null,null,null,null,null,null,null,null,null,null,null,null,null,null,null,null,null,null,null,null,null,null,null,null,null,null,null,null,null,null,null,null,null,null,null,null,null,null,null,{"$f":"+INT($AE$8*$AD$10*RAND()+BF2743)","v":176}]
[null,null,null,null,null,null,null,null,null,null,null,null,null,null,null,null,null,null,null,null,null,null,null,null,null,null,null,null,null,null,null,null,null,null,null,null,null,null,null,null,null,null,null,null,null,null,null,null,null,null,null,null,null,null,null,null,null,{"$f":"+INT($AE$8*$AD$10*RAND()+BF2744)","v":254}]
[null,null,null,null,null,null,null,null,null,null,null,null,null,null,null,null,null,null,null,null,null,null,null,null,null,null,null,null,null,null,null,null,null,null,null,null,null,null,null,null,null,null,null,null,null,null,null,null,null,null,null,null,null,null,null,null,null,0]
[null,null,null,null,null,null,null,null,null,null,null,null,null,null,null,null,null,null,null,null,null,null,null,null,null,null,null,null,null,null,null,null,null,null,null,null,null,null,null,null,null,null,null,null,null,null,null,null,null,null,null,null,null,null,null,null,null,{"$f":"+INT($AE$8*$AD$10*RAND()+BF2746)","v":67}]
[null,null,null,null,null,null,null,null,null,null,null,null,null,null,null,null,null,null,null,null,null,null,null,null,null,null,null,null,null,null,null,null,null,null,null,null,null,null,null,null,null,null,null,null,null,null,null,null,null,null,null,null,null,null,null,null,null,{"$f":"+INT($AE$8*$AD$10*RAND()+BF2747)","v":138}]
[null,null,null,null,null,null,null,null,null,null,null,null,null,null,null,null,null,null,null,null,null,null,null,null,null,null,null,null,null,null,null,null,null,null,null,null,null,null,null,null,null,null,null,null,null,null,null,null,null,null,null,null,null,null,null,null,null,{"$f":"+INT($AE$8*$AD$10*RAND()+BF2748)","v":146}]
[null,null,null,null,null,null,null,null,null,null,null,null,null,null,null,null,null,null,null,null,null,null,null,null,null,null,null,null,null,null,null,null,null,null,null,null,null,null,null,null,null,null,null,null,null,null,null,null,null,null,null,null,null,null,null,null,null,{"$f":"+INT($AE$8*$AD$10*RAND()+BF2749)","v":214}]
[null,null,null,null,null,null,null,null,null,null,null,null,null,null,null,null,null,null,null,null,null,null,null,null,null,null,null,null,null,null,null,null,null,null,null,null,null,null,null,null,null,null,null,null,null,null,null,null,null,null,null,null,null,null,null,null,null,0]
[null,null,null,null,null,null,null,null,null,null,null,null,null,null,null,null,null,null,null,null,null,null,null,null,null,null,null,null,null,null,null,null,null,null,null,null,null,null,null,null,null,null,null,null,null,null,null,null,null,null,null,null,null,null,null,null,null,{"$f":"+INT($AE$8*$AD$10*RAND()+BF2751)","v":27}]
[null,null,null,null,null,null,null,null,null,null,null,null,null,null,null,null,null,null,null,null,null,null,null,null,null,null,null,null,null,null,null,null,null,null,null,null,null,null,null,null,null,null,null,null,null,null,null,null,null,null,null,null,null,null,null,null,null,{"$f":"+INT($AE$8*$AD$10*RAND()+BF2752)","v":101}]
[null,null,null,null,null,null,null,null,null,null,null,null,null,null,null,null,null,null,null,null,null,null,null,null,null,null,null,null,null,null,null,null,null,null,null,null,null,null,null,null,null,null,null,null,null,null,null,null,null,null,null,null,null,null,null,null,null,{"$f":"+INT($AE$8*$AD$10*RAND()+BF2753)","v":153}]
[null,null,null,null,null,null,null,null,null,null,null,null,null,null,null,null,null,null,null,null,null,null,null,null,null,null,null,null,null,null,null,null,null,null,null,null,null,null,null,null,null,null,null,null,null,null,null,null,null,null,null,null,null,null,null,null,null,{"$f":"+INT($AE$8*$AD$10*RAND()+BF2754)","v":240}]
[null,null,null,null,null,null,null,null,null,null,null,null,null,null,null,null,null,null,null,null,null,null,null,null,null,null,null,null,null,null,null,null,null,null,null,null,null,null,null,null,null,null,null,null,null,null,null,null,null,null,null,null,null,null,null,null,null,0]
[null,null,null,null,null,null,null,null,null,null,null,null,null,null,null,null,null,null,null,null,null,null,null,null,null,null,null,null,null,null,null,null,null,null,null,null,null,null,null,null,null,null,null,null,null,null,null,null,null,null,null,null,null,null,null,null,null,{"$f":"+INT($AE$8*$AD$10*RAND()+BF2756)","v":20}]
[null,null,null,null,null,null,null,null,null,null,null,null,null,null,null,null,null,null,null,null,null,null,null,null,null,null,null,null,null,null,null,null,null,null,null,null,null,null,null,null,null,null,null,null,null,null,null,null,null,null,null,null,null,null,null,null,null,{"$f":"+INT($AE$8*$AD$10*RAND()+BF2757)","v":58}]
[null,null,null,null,null,null,null,null,null,null,null,null,null,null,null,null,null,null,null,null,null,null,null,null,null,null,null,null,null,null,null,null,null,null,null,null,null,null,null,null,null,null,null,null,null,null,null,null,null,null,null,null,null,null,null,null,null,{"$f":"+INT($AE$8*$AD$10*RAND()+BF2758)","v":70}]
[null,null,null,null,null,null,null,null,null,null,null,null,null,null,null,null,null,null,null,null,null,null,null,null,null,null,null,null,null,null,null,null,null,null,null,null,null,null,null,null,null,null,null,null,null,null,null,null,null,null,null,null,null,null,null,null,null,{"$f":"+INT($AE$8*$AD$10*RAND()+BF2759)","v":107}]
[null,null,null,null,null,null,null,null,null,null,null,null,null,null,null,null,null,null,null,null,null,null,null,null,null,null,null,null,null,null,null,null,null,null,null,null,null,null,null,null,null,null,null,null,null,null,null,null,null,null,null,null,null,null,null,null,null,0]
[null,null,null,null,null,null,null,null,null,null,null,null,null,null,null,null,null,null,null,null,null,null,null,null,null,null,null,null,null,null,null,null,null,null,null,null,null,null,null,null,null,null,null,null,null,null,null,null,null,null,null,null,null,null,null,null,null,{"$f":"+INT($AE$8*$AD$10*RAND()+BF2761)","v":36}]
[null,null,null,null,null,null,null,null,null,null,null,null,null,null,null,null,null,null,null,null,null,null,null,null,null,null,null,null,null,null,null,null,null,null,null,null,null,null,null,null,null,null,null,null,null,null,null,null,null,null,null,null,null,null,null,null,null,{"$f":"+INT($AE$8*$AD$10*RAND()+BF2762)","v":79}]
[null,null,null,null,null,null,null,null,null,null,null,null,null,null,null,null,null,null,null,null,null,null,null,null,null,null,null,null,null,null,null,null,null,null,null,null,null,null,null,null,null,null,null,null,null,null,null,null,null,null,null,null,null,null,null,null,null,{"$f":"+INT($AE$8*$AD$10*RAND()+BF2763)","v":83}]
[null,null,null,null,null,null,null,null,null,null,null,null,null,null,null,null,null,null,null,null,null,null,null,null,null,null,null,null,null,null,null,null,null,null,null,null,null,null,null,null,null,null,null,null,null,null,null,null,null,null,null,null,null,null,null,null,null,{"$f":"+INT($AE$8*$AD$10*RAND()+BF2764)","v":163}]
[null,null,null,null,null,null,null,null,null,null,null,null,null,null,null,null,null,null,null,null,null,null,null,null,null,null,null,null,null,null,null,null,null,null,null,null,null,null,null,null,null,null,null,null,null,null,null,null,null,null,null,null,null,null,null,null,null,0]
[null,null,null,null,null,null,null,null,null,null,null,null,null,null,null,null,null,null,null,null,null,null,null,null,null,null,null,null,null,null,null,null,null,null,null,null,null,null,null,null,null,null,null,null,null,null,null,null,null,null,null,null,null,null,null,null,null,{"$f":"+INT($AE$8*$AD$10*RAND()+BF2766)","v":31}]
[null,null,null,null,null,null,null,null,null,null,null,null,null,null,null,null,null,null,null,null,null,null,null,null,null,null,null,null,null,null,null,null,null,null,null,null,null,null,null,null,null,null,null,null,null,null,null,null,null,null,null,null,null,null,null,null,null,{"$f":"+INT($AE$8*$AD$10*RAND()+BF2767)","v":119}]
[null,null,null,null,null,null,null,null,null,null,null,null,null,null,null,null,null,null,null,null,null,null,null,null,null,null,null,null,null,null,null,null,null,null,null,null,null,null,null,null,null,null,null,null,null,null,null,null,null,null,null,null,null,null,null,null,null,{"$f":"+INT($AE$8*$AD$10*RAND()+BF2768)","v":201}]
[null,null,null,null,null,null,null,null,null,null,null,null,null,null,null,null,null,null,null,null,null,null,null,null,null,null,null,null,null,null,null,null,null,null,null,null,null,null,null,null,null,null,null,null,null,null,null,null,null,null,null,null,null,null,null,null,null,{"$f":"+INT($AE$8*$AD$10*RAND()+BF2769)","v":208}]